{"text_format":"1","workbook":"xlsx","n_sheets":24,"sheets":["Portada","Créditos","Presentación","Índice","Hoja1","Hoja2","Hoja3","Hoja4","Hoja5","Hoja6","Hoja7","Hoja8","Hoja9","Hoja10","Hoja11","Hoja12","Hoja13","Hoja14","Hoja15","Hoja16","Hoja17","Hoja18","Hoja19","Hoja20"],"not_rendered":{"charts":23,"images":4,"macros":1,"external_links":0,"defined_names":3,"comments":0,"pivot_tables":0},"unopened":[],"bounds":{"document_bytes":16777216,"sheet_cells":100000,"rows_first":2000,"rows_last":500,"rows_between":2000,"halvings":0,"cell_chars":16384,"cell_head_chars":4096},"cells_cut":0,"cells_raw":0,"read":"whole","date_system":"1900"}

{"sheet":"Portada","index":0,"n_rows":0,"n_cols":0,"rows_kept":0,"cut":false,"hidden":false,"merged":[]}

{"sheet":"Créditos","index":1,"n_rows":34,"n_cols":1,"rows_kept":34,"cut":false,"hidden":false,"merged":[]}
["CONSEJERÍA DE ECONOMÍA, HACIENDA Y EMPLEO"]
[]
["Consejero de Economía, Hacienda y Empleo"]
["Excmo. Sr. Don Javier Fernández-Lasquetty y Blanc"]
[]
["Viceconsejero de Hacienda y Empleo"]
["Ilmo. Sr. D. Alfredo Timermans del Olmo"]
[]
["Directora General de Trabajo y Gerente del Instituto Regional"]
["de Seguridad y Salud en el Trabajo"]
["Ilma. Sra. Doña Silvia Marina Parra Rudilla"]
[]
["ELABORACIÓN"]
["Dirección"]
["Silvia Marina Parra Rudilla, Directora General de Trabajo"]
["y Gerente del Instituto Regional de Seguridad y Salud en el Trabajo"]
[]
["Autoría"]
["Dolores Núñez Munaiz"]
["Unidad Técnica de Estadística"]
[]
["Unidad Branding, Comunicación y  Relaciones Institucionales "]
["Alberto Muñoz González"]
["Germán Blázquez López"]
["Rebeca Robles Gayo"]
["Rosa Rebollo Codón"]
[]
["© Comunidad de Madrid, 2021"]
[]
["Edita: Instituto Regional de Seguridad y Salud en el Trabajo"]
["Ventura Rodríguez, 7. 28008 Madrid"]
["Tel.: 900 713 123 Fax.: 91 420 61 17"]
["irsst.formacion@madrid.org"]
["https://www.comunidad.madrid"]

{"sheet":"Presentación","index":2,"n_rows":9,"n_cols":1,"rows_kept":9,"cut":false,"hidden":false,"merged":[]}
["Presentación"]
[]
[]
["El Instituto Regional de Seguridad y Salud en el Trabajo de la Comunidad de Madrid realiza estudios estadísticos de diversa índole que permiten analizar a fondo la accidentalidad laboral en la región, ofreciendo una información imprescindible para caracterizar los accidentes ocurridos en el ejercicio, y permitiendo diseñar e impulsar medidas específicas que contribuyan a reducir los índices de siniestralidad en nuestra comunidad autónoma. Así, en consonancia con lo establecido VI Plan director en prevención de riesgos laborales de la Comunidad de Madrid, los resultados obtenidos en este estudio relativo a la siniestralidad, nos permitirán asesorar con mayor efectividad tanto a los trabajadores como a los empresarios de la región, en aras de lograr una prevención más práctica y adaptarla a la cambiante realidad de nuestro ámbito laboral."]
["Así, con la publicación de este informe, la Consejería de Economía, Hacienda y Empleo, a través del Instituto Regional de Seguridad y Salud en el Trabajo, pretende realizar un análisis de las causas de los accidentes graves, muy graves y mortales que han sido investigados por el personal de este organismo, con el objetivo de sacar conclusiones que permitan tomar decisiones orientadas a la reducción de la siniestralidad laboral y mejorar la cultura preventiva de la población de la Región."]
["Nuestra sociedad no puede permitirse los costes humanos, así como sociales y económicos, que representan los accidentes de trabajo, por ello, el Instituto Regional de Seguridad y Salud en el Trabajo de la Comunidad de Madrid confía en que este documento se convierta en un útil instrumento para todos los que desde cualquier ámbito, público o privado, dedicamos importantes recursos para el diseño y elaboración de estrategias en la lucha contra la siniestralidad laboral."]
["Doña Silvia Marina Parra Rudilla"]
["Directora General de Trabajo"]
["y Gerente del Instituto Regional de Seguridad y Salud en el Trabajo"]

{"sheet":"Índice","index":3,"n_rows":92,"n_cols":4,"rows_kept":92,"cut":false,"hidden":false,"merged":[[90,1,90,8]]}
[]
[]
[null,2018]
[]
[null,"Índice"]
[]
[]
[null,"Accidentes investigados graves, muy graves y mortales"]
[]
[]
[null,"Tabla1.1","Bloque de causas y porcentaje . Año 2018 (*)"]
[null,null,"Gráfico 1.1","Porcentaje de accidentes graves, muy graves y mortales investigados según el número de causas detectadas"]
[]
[null,"Tabla 2.1","Causas y porcentaje. Ordenados por frecuencia . Año 2018 (*)"]
[]
[null,"Tabla3.1","Accidentes investigados según sector de actividad y porcentaje . Año 2018 (*)"]
[null,null,"Bloque de causa según sector de actividad por porcentaje . Año 2018 (*)"]
[null,null,"Gráfico 2.1","Accidentes investigados según sector año 2018"]
[null,null,"Gráfico 3.1","Bloques de causa según sector de actividad 2018"]
[null,null,"Gráfico 4.1","Sector de actividad según bloque de causa 2018"]
[]
[null,"Agricultura-graves","Causas y porcentaje. Ordenados por frecuencia . Año 2018 (*)"]
[null,null,"Gráfico 5.1","Sector agricultura según bloque de causa 2018"]
[]
[null,"Industria-graves","Causas y porcentaje. Ordenados por frecuencia . Año 2018 (*)"]
[null,null,"Gráfico 6.1","Sector industria según bloque de causa 2018"]
[]
[null,"Construcción-graves","Accidentes investigados del sector construcción según causas y porcentaje. Ordenados por frecuencia . Año 2018 (*)"]
[null,null,"Gráfico 7.1","Sector construcción según bloque de causa 2018"]
[]
[null,"Servicios-graves","Accidentes investigados del sector servicios según causas y porcentaje. Ordenados por frecuencia . Año 2018 (*)"]
[null,null,"Gráfico 8,1","Sector servicios según bloque de causa 2018"]
[]
[null,"Tabla 4.1","Accidentes investigados según sexo y gravedad por porcentaje . Año 2018 (*)"]
[null,null,"Bloque de causa según sexo por porcentaje . Año 2018 (*)"]
[null,null,"Gráfico 9.1","Accidentes investigados según sexo y gravedad"]
[null,null,"Gráfico 10.1","Bloques de causa según sexo"]
[]
[null,"Tabla 5.1","Accidentes investigados según sector de la actividad y nacionalidad por porcentaje . Año 2018 (*)"]
[null,null,"Bloque de causa y nacionalidad de los accidentes graves, muy graves y mortales investigados y porcentaje . Año 2018 (*)"]
[null,null,"Gráfico 11.1","Bloques de causa según nacionalidad"]
[]
[null,"Tabla 6.1","Accidentes investigados según grupos de edad y sexo por porcentaje . Año 2018 (*)"]
[null,null,"Bloque de causa según grupos de edad por porcentaje . Año 2018 (*)"]
[null,null,"Causas y grupo de edad y porcentaje. Ordenados por frecuencia . Año 2018 (*)"]
[null,null,"Gráfico 12.1","Bloques de causa según grupos de edad"]
[]
[null,"Tabla 7.1 ","Accidentes investigados según sector de actividad y ocupación por porcentaje . Año 2018 (*)"]
[null,null,"Bloque de causa según ocupación por porcentaje . Año 2018 (*)"]
[null,null,"Causa según ocupación más frecuente por porcentaje . Año 2018 (*) "]
[null,null,"Gráfico 13,1","Accidentes investigados según ocupación y sector"]
[]
[null,"Tabla 8.1","Accidentes investigados según tipo de contrato y sector de actividad . Año 2018 (*)"]
[null,null,"Bloque de causa según tipo de contrato . Año 2018 (*)"]
[null,null,"Gráfico 14,1","Tipo de contrato y sector de actividad"]
[null,null,"Gráfico 15,1","Tipo de contrato y bloque de causas"]
[]
[null,"Tabla 9,1","Accidentes investigados según lugar del accidente. Ordenados por frecuencia Año 2018 (*)"]
[null,null,"Bloque de causas según el lugar del accidente, mayor frecuencia. Año 2018 (*)"]
[null,null,"Gráfico 16,1","Bloque de causas  por lugar del accidente"]
[]
[null,"Tabla 10,1","Accidentes investigados según tipo de trabajo.Ordenados por frecuencia Año 2018 (*)"]
[null,null,"Bloque de causas y tipo de trabajo. Año 2018 (*)"]
[null,null,"Gráfico 17,1","Bloque de causas y tipo de trabajo"]
[]
[null,"Tabla 11.1","Accidentes investigados según desviación. Año 2018 (*)"]
[null,null,"Bloque de causa según desviación, mayor frecuencia. Año 2018 (*)"]
[null,null,"Causa  según  desviación mayor frecuencia. Año 2018 (*)"]
[null,null,"Gráfico 18,1","Bloque de causa y desviación"]
[]
[null,"Tabla 12.1","Accidentes investigados según forma del accidente. Año 2018 (*)"]
[null,null,"Bloque de causas según forma del accidente mayor frecuencia. Año 2018 (*)"]
[null,null,"Causas de los accidentes graves, muy graves y mortales investigados según forma del accidente de mayor frecuencia. Año 2018 (*)"]
[null,null,"Gráfico 19,1","Bloque de causas y forma del accidente"]
[]
[null,"Tabla 13.1","Accidentes investigados según organización preventiva. Año 2018 (*)"]
[null,null,"Bloque de causas según organización preventiva. Año 2018 (*)"]
[null,null,"Gráfico 20,1","Organización preventiva de la empresa"]
[]
[]
[null,"Tabla 14.1","Accidentes investigados según evaluación de riesgos. Año 2018 (*)"]
[null,null,"Bloque de causas según evaluación de riesgos. Año 2018 (*)"]
[null,null,"Accidentes investigados según asunción de medidas preventivas. Año 2018 (*)"]
[null,null,"Bloque de causas de los accidentes investigados según asunción de medidas preventivas. Año 2018 (*)"]
[null,null,"Gráfico 21,1","Evaluación de riesgos"]
[null,null,"Grafico 22,1","Bloques de causa y evaluación de riesgos"]
[]
[]
[null,"Bloques y causas por código"]
[null,"Bloques y causas por bloque"]
[null,"Nota: Las respuestas del campo causa y bloque se han elaborado en forma de multirespuesta. Ya que para cada accidente investigado hay 10 posibles respuestas de causa."]
[null,"(*) Accidentes asignados en 2018 para su investigación en el mismo periodo y durante el año 2019"]

{"sheet":"Hoja1","index":4,"n_rows":29,"n_cols":43,"rows_kept":29,"cut":false,"hidden":true,"merged":[[22,31,22,42],[3,0,3,2]]}
[]
[]
[]
["Bloque de causas y porcentaje . (*)"]
[{"$f":"año_publi","v":2018},"Total","Porcentaje",null,null,null,null,null,null,null,"% del N de columna","% de respuestas de la tabla"]
["Prevención intrínseca",35,0.22600000000000001,null,null,null,null,null,"bloque_inf","Prevención intrínseca",0.185,8.3000000000000004E-2]
["Protección, señalización",37,0.23899999999999999,null,null,null,null,null,null,"Protección, señalización",0.22800000000000001,0.10199999999999999]
["Materiales, productos o agentes",10,6.5000000000000002E-2,null,null,null,null,null,null,"Materiales, productos o agentes",9.5000000000000001E-2,4.2999999999999997E-2]
["Espacios y superficies de trabajo",43,0.27700000000000002,null,null,null,null,null,null,"Espacios y superficies de trabajo",0.23799999999999999,0.106]
["Organización del trabajo",100,0.64500000000000002,null,null,null,null,null,null,"Organización del trabajo",0.55600000000000005,0.248]
["Gestión de la prevención",82,0.52900000000000003,null,null,null,null,null,null,"Gestión de la prevención",0.503,0.22500000000000001]
["Factores individuales",53,0.34200000000000003,null,null,null,null,null,null,"Factores individuales",0.34399999999999997,0.154]
["Otras causas",17,0.11,null,null,null,null,null,null,"Otras causas",0.09,0.04]
["(*) Accidentes asignados en 2020 para su investigación en el mismo periodo y durante el año 2021"]
[]
[]
[]
[]
[]
[]
[null,null,null,null,null,null,null,null,null,null,null,null,null,null,null,null,null,null,null,null,null,null,null,null,null,null,null,null,null,null,null,null,1,2,3,4,5,6,7,8,9,10]
[null,null,null,null,null,null,null,null,null,null,null,null,null,null,null,null,null,null,null,null,null,null,null,null,null,null,null,null,null,null,"Estadísticos"]
[null,null,null,null,null,null,null,null,null,null,null,null,null,null,null,null,null,null,null,null,null,null,null,null,null,null,null,null,null,null,null,"Estadísticos"]
[null,null,null,null,null,null,null,null,null,null,null,null,null,null,null,null,null,null,null,null,null,null,null,null,null,null,null,null,null,null,"N","Estadísticos"]
[null,null,null,null,null,null,null,null,null,null,null,null,null,null,null,null,null,null,null,null,null,null,null,null,null,null,null,null,null,null,null,null,null,"Bloque1","Bloque2","Bloque3","Bloque4","Bloque5","Bloque6","Bloque7","Bloque8","Bloque9","Bloque10"]
[null,null,null,null,null,null,null,null,null,null,null,null,null,null,null,null,null,null,null,null,null,null,null,null,null,null,null,null,null,null,null,"N","Válido",131,113,85,60,45,28,17,14,11,8]
[null,null,null,null,null,null,null,null,null,null,null,null,null,null,null,null,null,null,null,null,null,null,null,null,null,null,null,null,null,null,null,null,"Perdidos",0,18,46,71,86,103,114,117,120,123]
[]
[null,null,null,null,null,null,null,null,null,null,null,null,null,null,null,null,null,null,null,null,null,null,null,null,null,null,null,null,null,null,null,null,null,100,86.25954198473282,64.885496183206101,45.801526717557252,34.351145038167942,21.374045801526716,12.977099236641221,10.687022900763358,8.3969465648854964,6.1068702290076331]

{"sheet":"Hoja2","index":5,"n_rows":127,"n_cols":5,"rows_kept":127,"cut":false,"hidden":true,"merged":[[4,0,4,4],[5,0,6,1],[5,2,5,3],[5,4,6,4]]}
[]
[]
[]
[]
["Causa de los accidentes graves, muy graves y mortales investigados ordenados por frecuencia. (*)"]
[{"$f":"año_publi","v":2018},null,"Respuestas",null,"Porcentaje de casos"]
[null,null,"Nº","Porcentaje"]
[null,"7206 Formación/información inadecuada, inexistente sobre riesgos o medidas preventivas",34,0.219,5.8999999999999997E-2]
[null,"6102 Método de trabajo inadecuado",29,0.187,0.05]
[null,"7201 No identificación del/los riesgos que han materializado el accidente",28,0.18099999999999999,4.8000000000000001E-2]
[null,"6304 Formación/información inadecuada o inexistente sobre la tarea",20,0.129,3.4000000000000002E-2]
[null,"1104 Ausencia/deficiencia de protecciones colectivas frente a caídas de personas",18,0.11600000000000001,3.1E-2]
[null,"7105 Procedimientos inexistentes, insuficientes o deficientes. para la coordinación de actividades realizadas por varias",13,8.4000000000000005E-2,2.1999999999999999E-2]
[null,"8108 Permanencia del trabajador dentro de una zona peligrosa",13,8.4000000000000005E-2,2.1999999999999999E-2]
[null,"1106 Falta de seguridad estructural o estabilidad de paramentos, etc.",12,7.6999999999999999E-2,2.1000000000000001E-2]
[null,"7103 Procedimientos inexistentes, insuficientes o deficientes para informar a los trabajadores de los riesgos y las medi",12,7.6999999999999999E-2,2.1000000000000001E-2]
[null,"6401 No poner a disposición de los trabajadores las máquinas, equipos y medios auxiliares necesarios o adecuados.",11,7.0999999999999994E-2,1.9E-2]
[null,"8106 No utilización de equipos de protección individual puestas a disposición por la empresa y de uso obligatorio.",11,7.0999999999999994E-2,1.9E-2]
[null,"6305 Procedimientos inexistentes o insuficientes para formar o informar a los trabajadores  acerca de la utilización o m",10,6.5000000000000002E-2,1.7000000000000001E-2]
[null,"8199 Otras causas relativas a los factores de comportamiento",10,6.5000000000000002E-2,1.7000000000000001E-2]
[null,"6101 Método de trabajo  inexistente",9,5.8000000000000003E-2,1.6E-2]
[null,"6103 Diseño inadecuado del trabajo o tarea",9,5.8000000000000003E-2,1.6E-2]
[null,"6110 Ausencia de vigilancia, control y dirección de persona competente",9,5.8000000000000003E-2,1.6E-2]
[null,"6403 Selección de útiles, herramientas y medios auxiliares no adecuados al trabajo a realizar",9,5.8000000000000003E-2,1.6E-2]
[null,"7101 Inexistencia o insuficiencia de un procedimiento que regule la realización de las actividades dirigidas a la identi",9,5.8000000000000003E-2,1.6E-2]
[null,"7203 Medidas preventivas propuestas en la planificación derivada de la evaluación de riesgos insuficientes o inadecuadas",9,5.8000000000000003E-2,1.6E-2]
[null,"3111 Accesibilidad a órganos de la máquina peligrosos (atrapantes, cortantes, punzantes, o con posibilidad de ocasionar",8,5.1999999999999998E-2,1.4E-2]
[null,"3302 Deficiencia/ausencia del manual de instrucciones de máquinas",8,5.1999999999999998E-2,1.4E-2]
[null,"4102 Deficiente ubicación, defectos de estabilidad en equipos de trabajo debido a una incorrecta construcción, montaje y",8,5.1999999999999998E-2,1.4E-2]
[null,"8103 Incumplimiento de normas de seguridad establecidas",8,5.1999999999999998E-2,1.4E-2]
[null,"1103 Espacio insuficiente en lugares de trabajo o en las zonas de tránsito",7,4.4999999999999998E-2,1.2E-2]
[null,"7102 Inexistencia o deficiencia de un procedimiento que regule la planificación de la implantación de las medidas preven",7,4.4999999999999998E-2,1.2E-2]
[null,"7202 Medidas preventivas propuestas en la planificación derivada de la evaluación de riesgos insuficientes o inadecuadas",7,4.4999999999999998E-2,1.2E-2]
[null,"7208 No poner a disposición de los trabajadores las prendas o equipos de protección necesarios o ser estos inadecuados o",7,4.4999999999999998E-2,1.2E-2]
[null,"7209 Falta de presencia de los recursos preventivos requeridos",7,4.4999999999999998E-2,1.2E-2]
[null,"8102 Incumplimiento de procedimientos e instrucciones de trabajo",7,4.4999999999999998E-2,1.2E-2]
[null,"8109 Adopción de una postura inadecuada en el puesto de trabajo",7,4.4999999999999998E-2,1.2E-2]
[null,"1110 Pavimento deficiente o inadecuado (discontinuo, resbaladizo, inestable, con  pendiente excesiva, etc.)",6,3.9E-2,0.01]
[null,"1115 Deficiencia/ausencia de señalización u otro tipo de elementos necesarios para la delimitación de la zona de trabajo",6,3.9E-2,0.01]
[null,"3201 Ausencia y/o deficiencia de resguardos y de dispositivos de protección",6,3.9E-2,0.01]
[null,"4203 Ausencia/deficiencia de protecciones colectivas frente a caídas de personas y objetos desde equipos de trabajo",6,3.9E-2,0.01]
[null,"6201 Operación inhabitual para el operario que la realiza, sea ordinaria o esporádica",6,3.9E-2,0.01]
[null,"6405 Utilización de la máquina de manera no prevista por el fabricante.",6,3.9E-2,0.01]
[null,"6408 No comprobación del estado de las maquinas, herramientas, equipos o medios auxiliares antes de su utilización",6,3.9E-2,0.01]
[null,"8999 Otras causas relativas a los factores personales-individuales",6,3.9E-2,0.01]
[null,"1199 Otras causas relativas a la configuración de los espacios de trabajo",5,3.2000000000000001E-2,8.9999999999999993E-3]
[null,"1201 Orden y limpieza deficientes",5,3.2000000000000001E-2,8.9999999999999993E-3]
[null,"6104 Apremio de tiempo o ritmo de trabajo elevado",5,3.2000000000000001E-2,8.9999999999999993E-3]
[null,"6108 Sobrecarga trabajador (fatiga física o mental)",5,3.2000000000000001E-2,8.9999999999999993E-3]
[null,"6109 Existencia de interferencias o falta de coordinación entre trabajadores que realizan la misma o distintas tareas",5,3.2000000000000001E-2,8.9999999999999993E-3]
[null,"7204 Falta de control del cumplimiento del Plan de seguridad y salud en Construcción.",5,3.2000000000000001E-2,8.9999999999999993E-3]
[null,"7210 Vigilancia de la salud inadecuada a los riesgos del puesto de trabajo",5,3.2000000000000001E-2,8.9999999999999993E-3]
[null,"1102 Superficies de trabajo habitualmente inestables, incluidos barcos.",4,2.5999999999999999E-2,7.0000000000000001E-3]
[null,"1307 Causas relativas a la temperatura y condiciones termo higrométricas",4,2.5999999999999999E-2,7.0000000000000001E-3]
[null,"3114 Visibilidad insuficiente en el puesto de conducción de la máquina ya sea por un mal diseño o por no disponer de de",4,2.5999999999999999E-2,7.0000000000000001E-3]
[null,"4106 Escalera de mano insegura (material no resistente, apoyos inadecuados ….)",4,2.5999999999999999E-2,7.0000000000000001E-3]
[null,"7104 Deficiencias en la organización de los recursos obligatorios (organización preventiva) para la realización de las a",4,2.5999999999999999E-2,7.0000000000000001E-3]
[null,"7199 Otras causas relativas a la gestión de la prevención",4,2.5999999999999999E-2,7.0000000000000001E-3]
[null,"8105 Uso indebido o no utilización de medios auxiliares de trabajo o de seguridad puestos a disposición por la empresa y",4,2.5999999999999999E-2,7.0000000000000001E-3]
[null,"9199 Otras causas",4,2.5999999999999999E-2,7.0000000000000001E-3]
[null,"1101 Deficiente diseño ergonómico del puesto de trabajo.",3,1.9E-2,5.0000000000000001E-3]
[null,"1105 Aberturas y huecos desprotegidos",3,1.9E-2,5.0000000000000001E-3]
[null,"4101 Diseño incorrecto del equipo que hace que no se cumplan los principios de la prevención intrínseca y/o de la ergono",3,1.9E-2,5.0000000000000001E-3]
[null,"4105 Partes del equipo accesibles peligrosas (atrapantes, cortantes, punzantes,etc.)",3,1.9E-2,5.0000000000000001E-3]
[null,"4199 Otras causas relativas al diseño, ubicación, construccion, montaje, y limpieza  de otros equipos de trabajo.",3,1.9E-2,5.0000000000000001E-3]
[null,"5104 Deficiente sistema de almacenamiento, empaquetado, paletizado, apilamiento atc",3,1.9E-2,5.0000000000000001E-3]
[null,"6106 Trabajos solitarios sin las medidas de prevención adecuadas",3,1.9E-2,5.0000000000000001E-3]
[null,"6202 Operación destinada a evitar averías o incidentes o recuperar incidentes.",3,1.9E-2,5.0000000000000001E-3]
[null,"6302 Instrucciones inexistentes",3,1.9E-2,5.0000000000000001E-3]
[null,"6399 Otras causas relativas a la formación, información, instrucciones y señalización sobre la tarea",3,1.9E-2,5.0000000000000001E-3]
[null,"6999 Otras causas relativas a la organización del trabajo",3,1.9E-2,5.0000000000000001E-3]
[null,"7999 Otras causas relativas a la gestión de la prevención",3,1.9E-2,5.0000000000000001E-3]
[null,"8107 Retirada o anulación de protecciones o dispositivos de seguridad",3,1.9E-2,5.0000000000000001E-3]
[null,"1109 Dificultad/deficiencia en el acceso al puesto de trabajo.",2,1.2999999999999999E-2,3.0000000000000001E-3]
[null,"1203 No delimitación entre las zonas de trabajo o tránsito y las de almacenamiento o no respetar las zonas establecidas.",2,1.2999999999999999E-2,3.0000000000000001E-3]
[null,"3101 Diseño incorrecto de la máquina o componente que hace que no se cumplan los principios de la prevención intrínseca",2,1.2999999999999999E-2,3.0000000000000001E-3]
[null,"3104 Defectos de estabilidad en equipos, maquinas o sus componentes",2,1.2999999999999999E-2,3.0000000000000001E-3]
[null,"3108 Fallos en el sistema neumático, hidráulico o eléctrico",2,1.2999999999999999E-2,3.0000000000000001E-3]
[null,"4202 Ausencia de elementos de protección de herramientas (protectores de empuñaduras, etc)",2,1.2999999999999999E-2,3.0000000000000001E-3]
[null,"4299 Otras causas relativas a los elementos y dispositivos de protección de otros equipos de trabajo",2,1.2999999999999999E-2,3.0000000000000001E-3]
[null,"4301 Deficiencia/ausencia del manual de instrucciones o señalización (nota: el fallo puede consistir en la inexistencia",2,1.2999999999999999E-2,3.0000000000000001E-3]
[null,"5207 Fugas o derrames de productos químicos (sustancias o preparados) (durante su fabricación, transporte, almacenamient",2,1.2999999999999999E-2,3.0000000000000001E-3]
[null,"6111 No organizar el trabajo teniendo en cuenta las condiciones meteorológicas adversas.",2,1.2999999999999999E-2,3.0000000000000001E-3]
[null,"6199 Otras causas relativas a los métodos de trabajo",2,1.2999999999999999E-2,3.0000000000000001E-3]
[null,"6299 Otras causas relativas a la organización de las tareas",2,1.2999999999999999E-2,3.0000000000000001E-3]
[null,"6307 Falta de señalista en caso necesario para organizar la circulación de personas y/o vehículos, así como manejo de ca",2,1.2999999999999999E-2,3.0000000000000001E-3]
[null,"6407 Utilización de materiales en general de manera no prevista por el fabricante..",2,1.2999999999999999E-2,3.0000000000000001E-3]
[null,"6499 Otras causas relativas a la selección y utilización de equipos y materiales",2,1.2999999999999999E-2,3.0000000000000001E-3]
[null,"7205 Mantenimiento preventivo inexistente o inadecuado o falta de revisiones periódicas oficiales.",2,1.2999999999999999E-2,3.0000000000000001E-3]
[null,"7211 Ausencia/deficiencias de permisos y/o procedimientos de trabajo en intervenciones peligrosas (por ejemplo soldadura",2,1.2999999999999999E-2,3.0000000000000001E-3]
[null,"8104 Uso indebido de materiales, herramientas o útiles de trabajo, puestos a disposición por la empresa",2,1.2999999999999999E-2,3.0000000000000001E-3]
[null,"1111 Escaleras fijas, de servicio o escala inseguras por falta de anchura, peldaño desigual, huella insufiente etc o en",1,6.0000000000000001E-3,2E-3]
[null,"1116 Vías de circulación deficientes (insuficentes, mal dimensionadas o faltas de separación entre ellas)",1,6.0000000000000001E-3,2E-3]
[null,"1118 Diseño incorrecto de puertas y pontones (sistema de cierre inseguro, sin parada de emergencia, falta previsión situ",1,6.0000000000000001E-3,2E-3]
[null,"1299 Otras causas relativas al orden y limpieza",1,6.0000000000000001E-3,2E-3]
[null,"1305 Iluminación insuficiente o inapropiada",1,6.0000000000000001E-3,2E-3]
[null,"3103 Deficiente ubicación de la máquina",1,6.0000000000000001E-3,2E-3]
[null,"3113 Deficiencia de los medios de acceso al puesto de trabajo o de conducción de la maquina",1,6.0000000000000001E-3,2E-3]
[null,"3117 Ausencia/deficiencia de elementos de montaje de máquinas",1,6.0000000000000001E-3,2E-3]
[null,"3199 Otras causas relativas al diseño, ubicación, construccion, montaje, mantenimiento reparación y limpieza de máquinas",1,6.0000000000000001E-3,2E-3]
[null,"3208 Ausencia/deficiencia o falta de uso de dispositivos que mantengan a los conductores o a los trabajadores transporta",1,6.0000000000000001E-3,2E-3]
[null,"3299 Otras causas relativas a los elementos y dispositivos de protección de máquinas.",1,6.0000000000000001E-3,2E-3]
[null,"3999 Otras causas relativas a las máquinas.",1,6.0000000000000001E-3,2E-3]
[null,"4103 Resistencia mecánica insuficiente del equipo de trabajo",1,6.0000000000000001E-3,2E-3]
[null,"4201 Ausencia/deficiencia de elementos de seguridad en los medios de elevación de cargas (pestillos de seguridad en ganc",1,6.0000000000000001E-3,2E-3]
[null,"5102 Materiales muy pesados, voluminosos, de gran superficie, inestables o con aristas/perfiles cortantes, en relación c",1,6.0000000000000001E-3,2E-3]
[null,"5105 Zonas de almacenamiento inadecuadas o no previstas.",1,6.0000000000000001E-3,2E-3]
[null,"5106 Falta de planificación y/o vigilancia en operaciones de levantamiento de cargas",1,6.0000000000000001E-3,2E-3]
[null,"5199 Otras causas relativas a la manipulación y almacenamiento de materiales",1,6.0000000000000001E-3,2E-3]
[null,"5201 Inhalación, ingestión o contacto con productos químicos (sustancias o preparados) presentes en el puesto de trabajo",1,6.0000000000000001E-3,2E-3]
[null,"6107 Sobrecarga de la máquina o equipo (respecto a sus características técnicas)",1,6.0000000000000001E-3,2E-3]
[null,"6203 Operación extraordinaria realizada en caso de incidentes, accidentes o emergencias.",1,6.0000000000000001E-3,2E-3]
[null,"6301 Deficiencias en el sistema de comunicación a nivel horizontal o vertical, incluyendo la incomprensión del idioma.",1,6.0000000000000001E-3,2E-3]
[null,"6303 Instrucciones respecto a la tarea confusas, contradictorias o insuficientes",1,6.0000000000000001E-3,2E-3]
[null,"6306 Deficiencia/ausencia de información o señalización visual o acústica obligatoria o necesaria, incluyendo la utiliza",1,6.0000000000000001E-3,2E-3]
[null,"6406 Utilización de útiles, herramientas y medios auxiliares de manera no prevista por el fabricante.",1,6.0000000000000001E-3,2E-3]
[null,"6409 Ausencia de medios organizativos o procedimientos para la consignación de máquinas, instalaciones y lugares de trab",1,6.0000000000000001E-3,2E-3]
[null,"7106 Inadecuada política de compras desde el punto de vista de la prevención.",1,6.0000000000000001E-3,2E-3]
[null,"7107 Sistema inadecuado de asignación de tareas por otras razones que no sean la falta de cualificación o experiencia",1,6.0000000000000001E-3,2E-3]
[null,"7108 No apreciar las características de los trabajadores para la realización de la tarea o en función de los riesgos",1,6.0000000000000001E-3,2E-3]
[null,"7212 Asignación de tarea a un trabajador con falta de cualificación o experiencia",1,6.0000000000000001E-3,2E-3]
[null,"7299 Otras causas relativas a las actividades preventivas",1,6.0000000000000001E-3,2E-3]
[null,"8101 Realización de tareas no asignadas",1,6.0000000000000001E-3,2E-3]
[null,"8299 Otras causas relativas a los factores intrinsecos, de salud o capacidades",1,6.0000000000000001E-3,2E-3]
[null,"9299 Hechos no causales",1,6.0000000000000001E-3,2E-3]
[null,"Total",580,3.725999999999992,1.0020000000000007]
[null,{"$f":"Nota","v":"(*) Accidentes asignados en 2018 para su investigación en el mismo periodo y durante el año 2019"}]

{"sheet":"Hoja3","index":6,"n_rows":26,"n_cols":10,"rows_kept":26,"cut":false,"hidden":true,"merged":[[2,0,2,2],[16,0,16,9],[17,0,18,0]]}
[]
[]
["Accidentes investigados según sector de actividad y porcentaje .(*)"]
[{"$f":"año_publi","v":2018},"Frecuencia","Porcentaje"]
["Agricultura y ganadería",1,6.0000000000000001E-3]
["Industria, energía y minería",22,0.14199999999999999]
["Construcción",56,0.36099999999999999]
["Servicios",67,0.432]
["No consta",9,5.8000000000000003E-2]
[{"$f":"Nota","v":"(*) Accidentes asignados en 2018 para su investigación en el mismo periodo y durante el año 2019"}]
[]
[]
[]
[]
[]
[]
["Bloques de causa de los accidentes graves, muy graves y mortales investigados según sector de actividad y porcentaje . (*)"]
[{"$f":"año_publi","v":2018},"Total","Prevención intrínseca","Protección, señalización","Materiales, productos o agentes","Espacios y superficies de trabajo","Organización del trabajo","Gestión de la prevención","Factores individuales","Otras causas"]
[null,"Porcentaje","Porcentaje","Porcentaje","Porcentaje","Porcentaje","Porcentaje","Porcentaje","Porcentaje","Porcentaje"]
["Total",1,0.22600000000000001,0.23899999999999999,6.5000000000000002E-2,0.27700000000000002,0.64500000000000002,0.52900000000000003,0.34200000000000003,0.11]
["Agricultura y ganaderia",1,1,0,0,0,1,1,0,0]
["Industria",1,0.40899999999999997,0.22700000000000001,4.4999999999999998E-2,0.22700000000000001,0.68200000000000005,0.54500000000000004,0.36399999999999999,0.182]
["Construcción",1,0.161,0.32100000000000001,5.3999999999999999E-2,0.35699999999999998,0.71399999999999997,0.5,0.33900000000000002,7.0999999999999994E-2]
["Servicios",1,0.20899999999999999,0.16400000000000001,0.09,0.224,0.58199999999999996,0.52200000000000002,0.32800000000000001,0.13400000000000001]
["No consta",1,0.222,0.33300000000000002,0,0.33300000000000002,0.55600000000000005,0.66700000000000004,0.44400000000000001,0]
[{"$f":"Nota","v":"(*) Accidentes asignados en 2018 para su investigación en el mismo periodo y durante el año 2019"}]

{"sheet":"Hoja4","index":7,"n_rows":14,"n_cols":16377,"rows_kept":7,"cut":true,"hidden":true,"merged":[[5,0,5,4],[6,0,7,1],[6,2,6,3],[6,4,7,4]],"bounds":{"rows_first":3,"rows_last":1,"rows_between":3,"halvings":9}}
[]
[]
[]
[]
[null,null,"Nº","Porcentaje",null,null,null,null,null,null,null,null,null,null,null,null,null,null,null,null,null,null,null,null,null,null,null,null,null,null,null,null,null,null,null,null,null,null,null,null,null,null,null,null,null,null,null,null,null,null,null,null,null,null,null,null,null,null,null,null,null,null,null,null,null,null,null,null,null,null,null,null,null,null,null,null,null,null,null,null,null,null,null,null,null,null,null,null,null,null,null,null,null,null,null,null,null,null,null,null,null,null,null,null,null,null,null,null,null,null,null,null,null,null,null,null,null,null,null,null,null,null,null,null,null,null,null,null,null,null,null,null,null,null,null,null,null,null,null,null,null,null,null,null,null,null,null,null,null,null,null,null,null,null,null,null,null,null,null,null,null,null,null,null,null,null,null,null,null,null,null,null,null,null,null,null,null,null,null,null,null,null,null,null,null,null,null,null,null,null,null,null,null,null,null,null,null,null,null,null,null,null,null,null,null,null,null,null,null,null,null,null,null,null,null,null,null,null,null,null,null,null,null,null,null,null,null,null,null,null,null,null,null,null,null,null,null,null,null,null,null,null,null,null,null,null,null,null,null,null,null,null,null,null,null,null,null,null,null,null,null,null,null,null,null,null,null,null,null,null,null,null,null,null,null,null,null,null,null,null,null,null,null,null,null,null,null,null,null,null,null,null,null,null,null,null,null,null,null,null,null,null,null,null,null,null,null,null,null,null,null,null,null,null,null,null,null,null,null,null,null,null,null,null,null,null,null,null,null,null,null,null,null,null,null,null,null,null,null,null,null,null,null,null,null,null,null,null,null,null,null,null,null,null,null,null,null,null,null,null,null,null,null,null,null,null,null,null,null,null,null,null,null,null,null,null,null,null,null,null,null,null,null,null,null,null,null,null,null,null,null,null,null,null,null,null,null,null,null,null,null,null,null,null,null,null,null,null,null,null,null,null,null,null,null,null,null,null,null,null,null,null,null,null,null,null,null,null,null,null,null,null,null,null,null,null,null,null,null,null,null,null,null,null,null,null,null,null,null,null,null,null,null,null,null,null,null,null,null,null,null,null,null,null,null,null,null,null,null,null,null,null,null,null,null,null,null,null,null,null,null,null,null,null,null,null,null,null,null,null,null,null,null,null,null,null,null,null,null,null,null,null,null,null,null,null,null,null,null,null,null,null,null,null,null,null,null,null,null,null,null,null,null,null,null,null,null,null,null,null,null,null,null,null,null,null,null,null,null,null,null,null,null,null,null,null,null,null,null,null,null,null,null,null,null,null,null,null,null,null,null,null,null,null,null,null,null,null,null,null,null,null,null,null,null,null,null,null,null,null,null,null,null,null,null,null,null,null,null,null,null,null,null,null,null,null,null,null,null,null,null,null,null,null,null,null,null,null,null,null,null,null,null,null,null,null,null,null,null,null,null,null,null,null,null,null,null,null,null,null,null,null,null,null,null,null,null,null,null,null,null,null,null,null,null,null,null,null,null,null,null,null,null,null,null,null,null,null,null,null,null,null,null,null,null,null,null,null,null,null,null,null,null,null,null,null,null,null,null,null,null,null,null,null,null,null,null,null,null,null,null,null,null,null,null,null,null,null,null,null,null,null,null,null,null,null,null,null,null,null,null,null,null,null,null,null,null,null,null,null,null,null,null,null,null,null,null,null,null,null,null,null,null,null,null,null,null,null,null,null,null,null,null,null,null,null,null,null,null,null,null,null,null,null,null,null,null,null,null,null,null,null,null,null,null,null,null,null,null,null,null,null,null,null,null,null,null,null,null,null,null,null,null,null,null,null,null,null,null,null,null,null,null,null,null,null,null,null,null,null,null,null,null,null,null,null,null,null,null,null,null,null,null,null,null,null,null,null,null,null,null,null,null,null,null,null,null,null,null,null,null,null,null,null,null,null,null,null,null,null,null,null,null,null,null,null,null,null,null,null,null,null,null,null,null,null,null,null,null,null,null,null,null,null,null,null,null,null,null,null,null,null,null,null,null,null,null,null,null,null,null,null,null,null,null,null,null,null,null,null,null,null,null,null,null,null,null,null,null,null,null,null,null,null,null,null,null,null,null,null,null,null,null,null,null,null,null,null,null,null,null,null,null,null,null,null,null,null,null,null,null,null,null,null,null,null,null,null,null,null,null,null,null,null,null,null,null,null,null,null,null,null,null,null,null,null,null,null,null,null,null,null,null,null,null,null,null,null,null,null,null,null,null,null,null,null,null,null,null,null,null,null,null,null,null,null,null,null,null,null,null,null,null,null,null,null,null,null,null,null,null,null,null,null,null,null,null,null,null,null,null,null,null,null,null,null,null,null,null,null,null,null,null,null,null,null,null,null,null,null,null,null,null,null,null,null,null,null,null,null,null,null,null,null,null,null,null,null,null,null,null,null,null,null,null,null,null,null,null,null,null,null,null,null,null,null,null,null,null,null,null,null,null,null,null,null,null,null,null,null,null,null,null,null,null,null,null,null,null,null,null,null,null,null,null,null,null,null,null,null,null,null,null,null,null,null,null,null,null,null,null,null,null,null,null,null,null,null,null,null,null,null,null,null,null,null,null,null,null,null,null,null,null,null,null,null,null,null,null,null,null,null,null,null,null,null,null,null,null,null,null,null,null,null,null,null,null,null,null,null,null,null,null,null,null,null,null,null,null,null,null,null,null,null,null,null,null,null,null,null,null,null,null,null,null,null,null,null,null,null,null,null,null,null,null,null,null,null,null,null,null,null,null,null,null,null,null,null,null,null,null,null,null,null,null,null,null,null,null,null,null,null,null,null,null,null,null,null,null,null,null,null,null,null,null,null,null,null,null,null,null,null,null,null,null,null,null,null,null,null,null,null,null,null,null,null,null,null,null,null,null,null,null,null,null,null,null,null,null,null,null,null,null,null,null,null,null,null,null,null,null,null,null,null,null,null,null,null,null,null,null,null,null,null,null,null,null,null,null,null,null,null,null,null,null,null,null,null,null,null,null,null,null,null,null,null,null,null,null,null,null,null,null,null,null,null,null,null,null,null,null,null,null,null,null,null,null,null,null,null,null,null,null,null,null,null,null,null,null,null,null,null,null,null,null,null,null,null,null,null,null,null,null,null,null,null,null,null,null,null,null,null,null,null,null,null,null,null,null,null,null,null,null,null,null,null,null,null,null,null,null,null,null,null,null,null,null,null,null,null,null,null,null,null,null,null,null,null,null,null,null,null,null,null,null,null,null,null,null,null,null,null,null,null,null,null,null,null,null,null,null,null,null,null,null,null,null,null,null,null,null,null,null,null,null,null,null,null,null,null,null,null,null,null,null,null,null,null,null,null,null,null,null,null,null,null,null,null,null,null,null,null,null,null,null,null,null,null,null,null,null,null,null,null,null,null,null,null,null,null,null,null,null,null,null,null,null,null,null,null,null,null,null,null,null,null,null,null,null,null,null,null,null,null,null,null,null,null,null,null,null,null,null,null,null,null,null,null,null,null,null,null,null,null,null,null,null,null,null,null,null,null,null,null,null,null,null,null,null,null,null,null,null,null,null,null,null,null,null,null,null,null,null,null,null,null,null,null,null,null,null,null,null,null,null,null,null,null,null,null,null,null,null,null,null,null,null,null,null,null,null,null,null,null,null,null,null,null,null,null,null,null,null,null,null,null,null,null,null,null,null,null,null,null,null,null,null,null,null,null,null,null,null,null,null,null,null,null,null,null,null,null,null,null,null,null,null,null,null,null,null,null,null,null,null,null,null,null,null,null,null,null,null,null,null,null,null,null,null,null,null,null,null,null,null,null,null,null,null,null,null,null,null,null,null,null,null,null,null,null,null,null,null,null,null,null,null,null,null,null,null,null,null,null,null,null,null,null,null,null,null,null,null,null,null,null,null,null,null,null,null,null,null,null,null,null,null,null,null,null,null,null,null,null,null,null,null,null,null,null,null,null,null,null,null,null,null,null,null,null,null,null,null,null,null,null,null,null,null,null,null,null,null,null,null,null,null,null,null,null,null,null,null,null,null,null,null,null,null,null,null,null,null,null,null,null,null,null,null,null,null,null,null,null,null,null,null,null,null,null,null,null,null,null,null,null,null,null,null,null,null,null,null,null,null,null,null,null,null,null,null,null,null,null,null,null,null,null,null,null,null,null,null,null,null,null,null,null,null,null,null,null,null,null,null,null,null,null,null,null,null,null,null,null,null,null,null,null,null,null,null,null,null,null,null,null,null,null,null,null,null,null,null,null,null,null,null,null,null,null,null,null,null,null,null,null,null,null,null,null,null,null,null,null,null,null,null,null,null,null,null,null,null,null,null,null,null,null,null,null,null,null,null,null,null,null,null,null,null,null,null,null,null,null,null,null,null,null,null,null,null,null,null,null,null,null,null,null,null,null,null,null,null,null,null,null,null,null,null,null,null,null,null,null,null,null,null,null,null,null,null,null,null,null,null,null,null,null,null,null,null,null,null,null,null,null,null,null,null,null,null,null,null,null,null,null,null,null,null,null,null,null,null,null,null,null,null,null,null,null,null,null,null,null,null,null,null,null,null,null,null,null,null,null,null,null,null,null,null,null,null,null,null,null,null,null,null,null,null,null,null,null,null,null,null,null,null,null,null,null,null,null,null,null,null,null,null,null,null,null,null,null,null,null,null,null,null,null,null,null,null,null,null,null,null,null,null,null,null,null,null,null,null,null,null,null,null,null,null,null,null,null,null,null,null,null,null,null,null,null,null,null,null,null,null,null,null,null,null,null,null,null,null,null,null,null,null,null,null,null,null,null,null,null,null,null,null,null,null,null,null,null,null,null,null,null,null,null,null,null,null,null,null,null,null,null,null,null,null,null,null,null,null,null,null,null,null,null,null,null,null,null,null,null,null,null,null,null,null,null,null,null,null,null,null,null,null,null,null,null,null,null,null,null,null,null,null,null,null,null,null,null,null,null,null,null,null,null,null,null,null,null,null,null,null,null,null,null,null,null,null,null,null,null,null,null,null,null,null,null,null,null,null,null,null,null,null,null,null,null,null,null,null,null,null,null,null,null,null,null,null,null,null,null,null,null,null,null,null,null,null,null,null,null,null,null,null,null,null,null,null,null,null,null,null,null,null,null,null,null,null,null,null,null,null,null,null,null,null,null,null,null,null,null,null,null,null,null,null,null,null,null,null,null,null,null,null,null,null,null,null,null,null,null,null,null,null,null,null,null,null,null,null,null,null,null,null,null,null,null,null,null,null,null,null,null,null,null,null,null,null,null,null,null,null,null,null,null,null,null,null,null,null,null,null,null,null,null,null,null,null,null,null,null,null,null,null,null,null,null,null,null,null,null,null,null,null,null,null,null,null,null,null,null,null,null,null,null,null,null,null,null,null,null,null,null,null,null,null,null,null,null,null,null,null,null,null,null,null,null,null,null,null,null,null,null,null,null,null,null,null,null,null,null,null,null,null,null,null,null,null,null,null,null,null,null,null,null,null,null,null,null,null,null,null,null,null,null,null,null,null,null,null,null,null,null,null,null,null,null,null,null,null,null,null,null,null,null,null,null,null,null,null,null,null,null,null,null,null,null,null,null,null,null,null,null,null,null,null,null,null,null,null,null,null,null,null,null,null,null,null,null,null,null,null,null,null,null,null,null,null,null,null,null,null,null,null,null,null,null,null,null,null,null,null,null,null,null,null,null,null,null,null,null,null,null,null,null,null,null,null,null,null,null,null,null,null,null,null,null,null,null,null,null,null,null,null,null,null,null,null,null,null,null,null,null,null,null,null,null,null,null,null,null,null,null,null,null,null,null,null,null,null,null,null,null,null,null,null,null,null,null,null,null,null,null,null,null,null,null,null,null,null,null,null,null,null,null,null,null,null,null,null,null,null,null,null,null,null,null,null,null,null,null,null,null,null,null,null,null,null,null,null,null,null,null,null,null,null,null,null,null,null,null,null,null,null,null,null,null,null,null,null,null,null,null,null,null,null,null,null,null,null,null,null,null,null,null,null,null,null,null,null,null,null,null,null,null,null,null,null,null,null,null,null,null,null,null,null,null,null,null,null,null,null,null,null,null,null,null,null,null,null,null,null,null,null,null,null,null,null,null,null,null,null,null,null,null,null,null,null,null,null,null,null,null,null,null,null,null,null,null,null,null,null,null,null,null,null,null,null,null,null,null,null,null,null,null,null,null,null,null,null,null,null,null,null,null,null,null,null,null,null,null,null,null,null,null,null,null,null,null,null,null,null,null,null,null,null,null,null,null,null,null,null,null,null,null,null,null,null,null,null,null,null,null,null,null,null,null,null,null,null,null,null,null,null,null,null,null,null,null,null,null,null,null,null,null,null,null,null,null,null,null,null,null,null,null,null,null,null,null,null,null,null,null,null,null,null,null,null,null,null,null,null,null,null,null,null,null,null,null,null,null,null,null,null,null,null,null,null,null,null,null,null,null,null,null,null,null,null,null,null,null,null,null,null,null,null,null,null,null,null,null,null,null,null,null,null,null,null,null,null,null,null,null,null,null,null,null,null,null,null,null,null,null,null,null,null,null,null,null,null,null,null,null,null,null,null,null,null,null,null,null,null,null,null,null,null,null,null,null,null,null,null,null,null,null,null,null,null,null,null,null,null,null,null,null,null,null,null,null,null,null,null,null,null,null,null,null,null,null,null,null,null,null,null,null,null,null,null,null,null,null,null,null,null,null,null,null,null,null,null,null,null,null,null,null,null,null,null,null,null,null,null,null,null,null,null,null,null,null,null,null,null,null,null,null,null,null,null,null,null,null,null,null,null,null,null,null,null,null,null,null,null,null,null,null,null,null,null,null,null,null,null,null,null,null,null,null,null,null,null,null,null,null,null,null,null,null,null,null,null,null,null,null,null,null,null,null,null,null,null,null,null,null,null,null,null,null,null,null,null,null,null,null,null,null,null,null,null,null,null,null,null,null,null,null,null,null,null,null,null,null,null,null,null,null,null,null,null,null,null,null,null,null,null,null,null,null,null,null,null,null,null,null,null,null,null,null,null,null,null,null,null,null,null,null,null,null,null,null,null,null,null,null,null,null,null,null,null,null,null,null,null,null,null,null,null,null,null,null,null,null,null,null,null,null,null,null,null,null,null,null,null,null,null,null,null,null,null,null,null,null,null,null,null,null,null,null,null,null,null,null,null,null,null,null,null,null,null,null,null,null,null,null,null,null,null,null,null,null,null,null,null,null,null,null,null,null,null,null,null,null,null,null,null,null,null,null,null,null,null,null,null,null,null,null,null,null,null,null,null,null,null,null,null,null,null,null,null,null,null,null,null,null,null,null,null,null,null,null,null,null,null,null,null,null,null,null,null,null,null,null,null,null,null,null,null,null,null,null,null,null,null,null,null,null,null,null,null,null,null,null,null,null,null,null,null,null,null,null,null,null,null,null,null,null,null,null,null,null,null,null,null,null,null,null,null,null,null,null,null,null,null,null,null,null,null,null,null,null,null,null,null,null,null,null,null,null,null,null,null,null,null,null,null,null,null,null,null,null,null,null,null,null,null,null,null,null,null,null,null,null,null,null,null,null,null,null,null,null,null,null,null,null,null,null,null,null,null,null,null,null,null,null,null,null,null,null,null,null,null,null,null,null,null,null,null,null,null,null,null,null,null,null,null,null,null,null,null,null,null,null,null,null,null,null,null,null,null,null,null,null,null,null,null,null,null,null,null,null,null,null,null,null,null,null,null,null,null,null,null,null,null,null,null,null,null,null,null,null,null,null,null,null,null,null,null,null,null,null,null,null,null,null,null,null,null,null,null,null,null,null,null,null,null,null,null,null,null,null,null,null,null,null,null,null,null,null,null,null,null,null,null,null,null,null,null,null,null,null,null,null,null,null,null,null,null,null,null,null,null,null,null,null,null,null,null,null,null,null,null,null,null,null,null,null,null,null,null,null,null,null,null,null,null,null,null,null,null,null,null,null,null,null,null,null,null,null,null,null,null,null,null,null,null,null,null,null,null,null,null,null,null,null,null,null,null,null,null,null,null,null,null,null,null,null,null,null,null,null,null,null,null,null,null,null,null,null,null,null,null,null,null,null,null,null,null,null,null,null,null,null,null,null,null,null,null,null,null,null,null,null,null,null,null,null,null,null,null,null,null,null,null,null,null,null,null,null,null,null,null,null,null,null,null,null,null,null,null,null,null,null,null,null,null,null,null,null,null,null,null,null,null,null,null,null,null,null,null,null,null,null,null,null,null,null,null,null,null,null,null,null,null,null,null,null,null,null,null,null,null,null,null,null,null,null,null,null,null,null,null,null,null,null,null,null,null,null,null,null,null,null,null,null,null,null,null,null,null,null,null,null,null,null,null,null,null,null,null,null,null,null,null,null,null,null,null,null,null,null,null,null,null,null,null,null,null,null,null,null,null,null,null,null,null,null,null,null,null,null,null,null,null,null,null,null,null,null,null,null,null,null,null,null,null,null,null,null,null,null,null,null,null,null,null,null,null,null,null,null,null,null,null,null,null,null,null,null,null,null,null,null,null,null,null,null,null,null,null,null,null,null,null,null,null,null,null,null,null,null,null,null,null,null,null,null,null,null,null,null,null,null,null,null,null,null,null,null,null,null,null,null,null,null,null,null,null,null,null,null,null,null,null,null,null,null,null,null,null,null,null,null,null,null,null,null,null,null,null,null,null,null,null,null,null,null,null,null,null,null,null,null,null,null,null,null,null,null,null,null,null,null,null,null,null,null,null,null,null,null,null,null,null,null,null,null,null,null,null,null,null,null,null,null,null,null,null,null,null,null,null,null,null,null,null,null,null,null,null,null,null,null,null,null,null,null,null,null,null,null,null,null,null,null,null,null,null,null,null,null,null,null,null,null,null,null,null,null,null,null,null,null,null,null,null,null,null,null,null,null,null,null,null,null,null,null,null,null,null,null,null,null,null,null,null,null,null,null,null,null,null,null,null,null,null,null,null,null,null,null,null,null,null,null,null,null,null,null,null,null,null,null,null,null,null,null,null,null,null,null,null,null,null,null,null,null,null,null,null,null,null,null,null,null,null,null,null,null,null,null,null,null,null,null,null,null,null,null,null,null,null,null,null,null,null,null,null,null,null,null,null,null,null,null,null,null,null,null,null,null,null,null,null,null,null,null,null,null,null,null,null,null,null,null,null,null,null,null,null,null,null,null,null,null,null,null,null,null,null,null,null,null,null,null,null,null,null,null,null,null,null,null,null,null,null,null,null,null,null,null,null,null,null,null,null,null,null,null,null,null,null,null,null,null,null,null,null,null,null,null,null,null,null,null,null,null,null,null,null,null,null,null,null,null,null,null,null,null,null,null,null,null,null,null,null,null,null,null,null,null,null,null,null,null,null,null,null,null,null,null,null,null,null,null,null,null,null,null,null,null,null,null,null,null,null,null,null,null,null,null,null,null,null,null,null,null,null,null,null,null,null,null,null,null,null,null,null,null,null,null,null,null,null,null,null,null,null,null,null,null,null,null,null,null,null,null,null,null,null,null,null,null,null,null,null,null,null,null,null,null,null,null,null,null,null,null,null,null,null,null,null,null,null,null,null,null,null,null,null,null,null,null,null,null,null,null,null,null,null,null,null,null,null,null,null,null,null,null,null,null,null,null,null,null,null,null,null,null,null,null,null,null,null,null,null,null,null,null,null,null,null,null,null,null,null,null,null,null,null,null,null,null,null,null,null,null,null,null,null,null,null,null,null,null,null,null,null,null,null,null,null,null,null,null,null,null,null,null,null,null,null,null,null,null,null,null,null,null,null,null,null,null,null,null,null,null,null,null,null,null,null,null,null,null,null,null,null,null,null,null,null,null,null,null,null,null,null,null,null,null,null,null,null,null,null,null,null,null,null,null,null,null,null,null,null,null,null,null,null,null,null,null,null,null,null,null,null,null,null,null,null,null,null,null,null,null,null,null,null,null,null,null,null,null,null,null,null,null,null,null,null,null,null,null,null,null,null,null,null,null,null,null,null,null,null,null,null,null,null,null,null,null,null,null,null,null,null,null,null,null,null,null,null,null,null,null,null,null,null,null,null,null,null,null,null,null,null,null,null,null,null,null,null,null,null,null,null,null,null,null,null,null,null,null,null,null,null,null,null,null,null,null,null,null,null,null,null,null,null,null,null,null,null,null,null,null,null,null,null,null,null,null,null,null,null,null,null,null,null,null,null,null,null,null,null,null,null,null,null,null,null,null,null,null,null,null,null,null,null,null,null,null,null,null,null,null,null,null,null,null,null,null,null,null,null,null,null,null,null,null,null,null,null,null,null,null,null,null,null,null,null,null,null,null,null,null,null,null,null,null,null,null,null,null,null,null,null,null,null,null,null,null,null,null,null,null,null,null,null,null,null,null,null,null,null,null,null,null,null,null,null,null,null,null,null,null,null,null,null,null,null,null,null,null,null,null,null,null,null,null,null,null,null,null,null,null,null,null,null,null,null,null,null,null,null,null,null,null,null,null,null,null,null,null,null,null,null,null,null,null,null,null,null,null,null,null,null,null,null,null,null,null,null,null,null,null,null,null,null,null,null,null,null,null,null,null,null,null,null,null,null,null,null,null,null,null,null,null,null,null,null,null,null,null,null,null,null,null,null,null,null,null,null,null,null,null,null,null,null,null,null,null,null,null,null,null,null,null,null,null,null,null,null,null,null,null,null,null,null,null,null,null,null,null,null,null,null,null,null,null,null,null,null,null,null,null,null,null,null,null,null,null,null,null,null,null,null,null,null,null,null,null,null,null,null,null,null,null,null,null,null,null,null,null,null,null,null,null,null,null,null,null,null,null,null,null,null,null,null,null,null,null,null,null,null,null,null,null,null,null,null,null,null,null,null,null,null,null,null,null,null,null,null,null,null,null,null,null,null,null,null,null,null,null,null,null,null,null,null,null,null,null,null,null,null,null,null,null,null,null,null,null,null,null,null,null,null,null,null,null,null,null,null,null,null,null,null,null,null,null,null,null,null,null,null,null,null,null,null,null,null,null,null,null,null,null,null,null,null,null,null,null,null,null,null,null,null,null,null,null,null,null,null,null,null,null,null,null,null,null,null,null,null,null,null,null,null,null,null,null,null,null,null,null,null,null,null,null,null,null,null,null,null,null,null,null,null,null,null,null,null,null,null,null,null,null,null,null,null,null,null,null,null,null,null,null,null,null,null,null,null,null,null,null,null,null,null,null,null,null,null,null,null,null,null,null,null,null,null,null,null,null,null,null,null,null,null,null,null,null,null,null,null,null,null,null,null,null,null,null,null,null,null,null,null,null,null,null,null,null,null,null,null,null,null,null,null,null,null,null,null,null,null,null,null,null,null,null,null,null,null,null,null,null,null,null,null,null,null,null,null,null,null,null,null,null,null,null,null,null,null,null,null,null,null,null,null,null,null,null,null,null,null,null,null,null,null,null,null,null,null,null,null,null,null,null,null,null,null,null,null,null,null,null,null,null,null,null,null,null,null,null,null,null,null,null,null,null,null,null,null,null,null,null,null,null,null,null,null,null,null,null,null,null,null,null,null,null,null,null,null,null,null,null,null,null,null,null,null,null,null,null,null,null,null,null,null,null,null,null,null,null,null,null,null,null,null,null,null,null,null,null,null,null,null,null,null,null,null,null,null,null,null,null,null,null,null,null,null,null,null,null,null,null,null,null,null,null,null,null,null,null,null,null,null,null,null,null,null,null,null,null,null,null,null,null,null,null,null,null,null,null,null,null,null,null,null,null,null,null,null,null,null,null,null,null,null,null,null,null,null,null,null,null,null,null,null,null,null,null,null,null,null,null,null,null,null,null,null,null,null,null,null,null,null,null,null,null,null,null,null,null,null,null,null,null,null,null,null,null,null,null,null,null,null,null,null,null,null,null,null,null,null,null,null,null,null,null,null,null,null,null,null,null,null,null,null,null,null,null,null,null,null,null,null,null,null,null,null,null,null,null,null,null,null,null,null,null,null,null,null,null,null,null,null,null,null,null,null,null,null,null,null,null,null,null,null,null,null,null,null,null,null,null,null,null,null,null,null,null,null,null,null,null,null,null,null,null,null,null,null,null,null,null,null,null,null,null,null,null,null,null,null,null,null,null,null,null,null,null,null,null,null,null,null,null,null,null,null,null,null,null,null,null,null,null,null,null,null,null,null,null,null,null,null,null,null,null,null,null,null,null,null,null,null,null,null,null,null,null,null,null,null,null,null,null,null,null,null,null,null,null,null,null,null,null,null,null,null,null,null,null,null,null,null,null,null,null,null,null,null,null,null,null,null,null,null,null,null,null,null,null,null,null,null,null,null,null,null,null,null,null,null,null,null,null,null,null,null,null,null,null,null,null,null,null,null,null,null,null,null,null,null,null,null,null,null,null,null,null,null,null,null,null,null,null,null,null,null,null,null,null,null,null,null,null,null,null,null,null,null,null,null,null,null,null,null,null,null,null,null,null,null,null,null,null,null,null,null,null,null,null,null,null,null,null,null,null,null,null,null,null,null,null,null,null,null,null,null,null,null,null,null,null,null,null,null,null,null,null,null,null,null,null,null,null,null,null,null,null,null,null,null,null,null,null,null,null,null,null,null,null,null,null,null,null,null,null,null,null,null,null,null,null,null,null,null,null,null,null,null,null,null,null,null,null,null,null,null,null,null,null,null,null,null,null,null,null,null,null,null,null,null,null,null,null,null,null,null,null,null,null,null,null,null,null,null,null,null,null,null,null,null,null,null,null,null,null,null,null,null,null,null,null,null,null,null,null,null,null,null,null,null,null,null,null,null,null,null,null,null,null,null,null,null,null,null,null,null,null,null,null,null,null,null,null,null,null,null,null,null,null,null,null,null,null,null,null,null,null,null,null,null,null,null,null,null,null,null,null,null,null,null,null,null,null,null,null,null,null,null,null,null,null,null,null,null,null,null,null,null,null,null,null,null,null,null,null,null,null,null,null,null,null,null,null,null,null,null,null,null,null,null,null,null,null,null,null,null,null,null,null,null,null,null,null,null,null,null,null,null,null,null,null,null,null,null,null,null,null,null,null,null,null,null,null,null,null,null,null,null,null,null,null,null,null,null,null,null,null,null,null,null,null,null,null,null,null,null,null,null,null,null,null,null,null,null,null,null,null,null,null,null,null,null,null,null,null,null,null,null,null,null,null,null,null,null,null,null,null,null,null,null,null,null,null,null,null,null,null,null,null,null,null,null,null,null,null,null,null,null,null,null,null,null,null,null,null,null,null,null,null,null,null,null,null,null,null,null,null,null,null,null,null,null,null,null,null,null,null,null,null,null,null,null,null,null,null,null,null,null,null,null,null,null,null,null,null,null,null,null,null,null,null,null,null,null,null,null,null,null,null,null,null,null,null,null,null,null,null,null,null,null,null,null,null,null,null,null,null,null,null,null,null,null,null,null,null,null,null,null,null,null,null,null,null,null,null,null,null,null,null,null,null,null,null,null,null,null,null,null,null,null,null,null,null,null,null,null,null,null,null,null,null,null,null,null,null,null,null,null,null,null,null,null,null,null,null,null,null,null,null,null,null,null,null,null,null,null,null,null,null,null,null,null,null,null,null,null,null,null,null,null,null,null,null,null,null,null,null,null,null,null,null,null,null,null,null,null,null,null,null,null,null,null,null,null,null,null,null,null,null,null,null,null,null,null,null,null,null,null,null,null,null,null,null,null,null,null,null,null,null,null,null,null,null,null,null,null,null,null,null,null,null,null,null,null,null,null,null,null,null,null,null,null,null,null,null,null,null,null,null,null,null,null,null,null,null,null,null,null,null,null,null,null,null,null,null,null,null,null,null,null,null,null,null,null,null,null,null,null,null,null,null,null,null,null,null,null,null,null,null,null,null,null,null,null,null,null,null,null,null,null,null,null,null,null,null,null,null,null,null,null,null,null,null,null,null,null,null,null,null,null,null,null,null,null,null,null,null,null,null,null,null,null,null,null,null,null,null,null,null,null,null,null,null,null,null,null,null,null,null,null,null,null,null,null,null,null,null,null,null,null,null,null,null,null,null,null,null,null,null,null,null,null,null,null,null,null,null,null,null,null,null,null,null,null,null,null,null,null,null,null,null,null,null,null,null,null,null,null,null,null,null,null,null,null,null,null,null,null,null,null,null,null,null,null,null,null,null,null,null,null,null,null,null,null,null,null,null,null,null,null,null,null,null,null,null,null,null,null,null,null,null,null,null,null,null,null,null,null,null,null,null,null,null,null,null,null,null,null,null,null,null,null,null,null,null,null,null,null,null,null,null,null,null,null,null,null,null,null,null,null,null,null,null,null,null,null,null,null,null,null,null,null,null,null,null,null,null,null,null,null,null,null,null,null,null,null,null,null,null,null,null,null,null,null,null,null,null,null,null,null,null,null,null,null,null,null,null,null,null,null,null,null,null,null,null,null,null,null,null,null,null,null,null,null,null,null,null,null,null,null,null,null,null,null,null,null,null,null,null,null,null,null,null,null,null,null,null,null,null,null,null,null,null,null,null,null,null,null,null,null,null,null,null,null,null,null,null,null,null,null,null,null,null,null,null,null,null,null,null,null,null,null,null,null,null,null,null,null,null,null,null,null,null,null,null,null,null,null,null,null,null,null,null,null,null,null,null,null,null,null,null,null,null,null,null,null,null,null,null,null,null,null,null,null,null,null,null,null,null,null,null,null,null,null,null,null,null,null,null,null,null,null,null,null,null,null,null,null,null,null,null,null,null,null,null,null,null,null,null,null,null,null,null,null,null,null,null,null,null,null,null,null,null,null,null,null,null,null,null,null,null,null,null,null,null,null,null,null,null,null,null,null,null,null,null,null,null,null,null,null,null,null,null,null,null,null,null,null,null,null,null,null,null,null,null,null,null,null,null,null,null,null,null,null,null,null,null,null,null,null,null,null,null,null,null,null,null,null,null,null,null,null,null,null,null,null,null,null,null,null,null,null,null,null,null,null,null,null,null,null,null,null,null,null,null,null,null,null,null,null,null,null,null,null,null,null,null,null,null,null,null,null,null,null,null,null,null,null,null,null,null,null,null,null,null,null,null,null,null,null,null,null,null,null,null,null,null,null,null,null,null,null,null,null,null,null,null,null,null,null,null,null,null,null,null,null,null,null,null,null,null,null,null,null,null,null,null,null,null,null,null,null,null,null,null,null,null,null,null,null,null,null,null,null,null,null,null,null,null,null,null,null,null,null,null,null,null,null,null,null,null,null,null,null,null,null,null,null,null,null,null,null,null,null,null,null,null,null,null,null,null,null,null,null,null,null,null,null,null,null,null,null,null,null,null,null,null,null,null,null,null,null,null,null,null,null,null,null,null,null,null,null,null,null,null,null,null,null,null,null,null,null,null,null,null,null,null,null,null,null,null,null,null,null,null,null,null,null,null,null,null,null,null,null,null,null,null,null,null,null,null,null,null,null,null,null,null,null,null,null,null,null,null,null,null,null,null,null,null,null,null,null,null,null,null,null,null,null,null,null,null,null,null,null,null,null,null,null,null,null,null,null,null,null,null,null,null,null,null,null,null,null,null,null,null,null,null,null,null,null,null,null,null,null,null,null,null,null,null,null,null,null,null,null,null,null,null,null,null,null,null,null,null,null,null,null,null,null,null,null,null,null,null,null,null,null,null,null,null,null,null,null,null,null,null,null,null,null,null,null,null,null,null,null,null,null,null,null,null,null,null,null,null,null,null,null,null,null,null,null,null,null,null,null,null,null,null,null,null,null,null,null,null,null,null,null,null,null,null,null,null,null,null,null,null,null,null,null,null,null,null,null,null,null,null,null,null,null,null,null,null,null,null,null,null,null,null,null,null,null,null,null,null,null,null,null,null,null,null,null,null,null,null,null,null,null,null,null,null,null,null,null,null,null,null,null,null,null,null,null,null,null,null,null,null,null,null,null,null,null,null,null,null,null,null,null,null,null,null,null,null,null,null,null,null,null,null,null,null,null,null,null,null,null,null,null,null,null,null,null,null,null,null,null,null,null,null,null,null,null,null,null,null,null,null,null,null,null,null,null,null,null,null,null,null,null,null,null,null,null,null,null,null,null,null,null,null,null,null,null,null,null,null,null,null,null,null,null,null,null,null,null,null,null,null,null,null,null,null,null,null,null,null,null,null,null,null,null,null,null,null,null,null,null,null,null,null,null,null,null,null,null,null,null,null,null,null,null,null,null,null,null,null,null,null,null,null,null,null,null,null,null,null,null,null,null,null,null,null,null,null,null,null,null,null,null,null,null,null,null,null,null,null,null,null,null,null,null,null,null,null,null,null,null,null,null,null,null,null,null,null,null,null,null,null,null,null,null,null,null,null,null,null,null,null,null,null,null,null,null,null,null,null,null,null,null,null,null,null,null,null,null,null,null,null,null,null,null,null,null,null,null,null,null,null,null,null,null,null,null,null,null,null,null,null,null,null,null,null,null,null,null,null,null,null,null,null,null,null,null,null,null,null,null,null,null,null,null,null,null,null,null,null,null,null,null,null,null,null,null,null,null,null,null,null,null,null,null,null,null,null,null,null,null,null,null,null,null,null,null,null,null,null,null,null,null,null,null,null,null,null,null,null,null,null,null,null,null,null,null,null,null,null,null,null,null,null,null,null,null,null,null,null,null,null,null,null,null,null,null,null,null,null,null,null,null,null,null,null,null,null,null,null,null,null,null,null,null,null,null,null,null,null,null,null,null,null,null,null,null,null,null,null,null,null,null,null,null,null,null,null,null,null,null,null,null,null,null,null,null,null,null,null,null,null,null,null,null,null,null,null,null,null,null,null,null,null,null,null,null,null,null,null,null,null,null,null,null,null,null,null,null,null,null,null,null,null,null,null,null,null,null,null,null,null,null,null,null,null,null,null,null,null,null,null,null,null,null,null,null,null,null,null,null,null,null,null,null,null,null,null,null,null,null,null,null,null,null,null,null,null,null,null,null,null,null,null,null,null,null,null,null,null,null,null,null,null,null,null,null,null,null,null,null,null,null,null,null,null,null,null,null,null,null,null,null,null,null,null,null,null,null,null,null,null,null,null,null,null,null,null,null,null,null,null,null,null,null,null,null,null,null,null,null,null,null,null,null,null,null,null,null,null,null,null,null,null,null,null,null,null,null,null,null,null,null,null,null,null,null,null,null,null,null,null,null,null,null,null,null,null,null,null,null,null,null,null,null,null,null,null,null,null,null,null,null,null,null,null,null,null,null,null,null,null,null,null,null,null,null,null,null,null,null,null,null,null,null,null,null,null,null,null,null,null,null,null,null,null,null,null,null,null,null,null,null,null,null,null,null,null,null,null,null,null,null,null,null,null,null,null,null,null,null,null,null,null,null,null,null,null,null,null,null,null,null,null,null,null,null,null,null,null,null,null,null,null,null,null,null,null,null,null,null,null,null,null,null,null,null,null,null,null,null,null,null,null,null,null,null,null,null,null,null,null,null,null,null,null,null,null,null,null,null,null,null,null,null,null,null,null,null,null,null,null,null,null,null,null,null,null,null,null,null,null,null,null,null,null,null,null,null,null,null,null,null,null,null,null,null,null,null,null,null,null,null,null,null,null,null,null,null,null,null,null,null,null,null,null,null,null,null,null,null,null,null,null,null,null,null,null,null,null,null,null,null,null,null,null,null,null,null,null,null,null,null,null,null,null,null,null,null,null,null,null,null,null,null,null,null,null,null,null,null,null,null,null,null,null,null,null,null,null,null,null,null,null,null,null,null,null,null,null,null,null,null,null,null,null,null,null,null,null,null,null,null,null,null,null,null,null,null,null,null,null,null,null,null,null,null,null,null,null,null,null,null,null,null,null,null,null,null,null,null,null,null,null,null,null,null,null,null,null,null,null,null,null,null,null,null,null,null,null,null,null,null,null,null,null,null,null,null,null,null,null,null,null,null,null,null,null,null,null,null,null,null,null,null,null,null,null,null,null,null,null,null,null,null,null,null,null,null,null,null,null,null,null,null,null,null,null,null,null,null,null,null,null,null,null,null,null,null,null,null,null,null,null,null,null,null,null,null,null,null,null,null,null,null,null,null,null,null,null,null,null,null,null,null,null,null,null,null,null,null,null,null,null,null,null,null,null,null,null,null,null,null,null,null,null,null,null,null,null,null,null,null,null,null,null,null,null,null,null,null,null,null,null,null,null,null,null,null,null,null,null,null,null,null,null,null,null,null,null,null,null,null,null,null,null,null,null,null,null,null,null,null,null,null,null,null,null,null,null,null,null,null,null,null,null,null,null,null,null,null,null,null,null,null,null,null,null,null,null,null,null,null,null,null,null,null,null,null,null,null,null,null,null,null,null,null,null,null,null,null,null,null,null,null,null,null,null,null,null,null,null,null,null,null,null,null,null,null,null,null,null,null,null,null,null,null,null,null,null,null,null,null,null,null,null,null,null,null,null,null,null,null,null,null,null,null,null,null,null,null,null,null,null,null,null,null,null,null,null,null,null,null,null,null,null,null,null,null,null,null,null,null,null,null,null,null,null,null,null,null,null,null,null,null,null,null,null,null,null,null,null,null,null,null,null,null,null,null,null,null,null,null,null,null,null,null,null,null,null,null,null,null,null,null,null,null,null,null,null,null,null,null,null,null,null,null,null,null,null,null,null,null,null,null,null,null,null,null,null,null,null,null,null,null,null,null,null,null,null,null,null,null,null,null,null,null,null,null,null,null,null,null,null,null,null,null,null,null,null,null,null,null,null,null,null,null,null,null,null,null,null,null,null,null,null,null,null,null,null,null,null,null,null,null,null,null,null,null,null,null,null,null,null,null,null,null,null,null,null,null,null,null,null,null,null,null,null,null,null,null,null,null,null,null,null,null,null,null,null,null,null,null,null,null,null,null,null,null,null,null,null,null,null,null,null,null,null,null,null,null,null,null,null,null,null,null,null,null,null,null,null,null,null,null,null,null,null,null,null,null,null,null,null,null,null,null,null,null,null,null,null,null,null,null,null,null,null,null,null,null,null,null,null,null,null,null,null,null,null,null,null,null,null,null,null,null,null,null,null,null,null,null,null,null,null,null,null,null,null,null,null,null,null,null,null,null,null,null,null,null,null,null,null,null,null,null,null,null,null,null,null,null,null,null,null,null,null,null,null,null,null,null,null,null,null,null,null,null,null,null,null,null,null,null,null,null,null,null,null,null,null,null,null,null,null,null,null,null,null,null,null,null,null,null,null,null,null,null,null,null,null,null,null,null,null,null,null,null,null,null,null,null,null,null,null,null,null,null,null,null,null,null,null,null,null,null,null,null,null,null,null,null,null,null,null,null,null,null,null,null,null,null,null,null,null,null,null,null,null,null,null,null,null,null,null,null,null,null,null,null,null,null,null,null,null,null,null,null,null,null,null,null,null,null,null,null,null,null,null,null,null,null,null,null,null,null,null,null,null,null,null,null,null,null,null,null,null,null,null,null,null,null,null,null,null,null,null,null,null,null,null,null,null,null,null,null,null,null,null,null,null,null,null,null,null,null,null,null,null,null,null,null,null,null,null,null,null,null,null,null,null,null,null,null,null,null,null,null,null,null,null,null,null,null,null,null,null,null,null,null,null,null,null,null,null,null,null,null,null,null,null,null,null,null,null,null,null,null,null,null,null,null,null,null,null,null,null,null,null,null,null,null,null,null,null,null,null,null,null,null,null,null,null,null,null,null,null,null,null,null,null,null,null,null,null,null,null,null,null,null,null,null,null,null,null,null,null,null,null,null,null,null,null,null,null,null,null,null,null,null,null,null,null,null,null,null,null,null,null,null,null,null,null,null,null,null,null,null,null,null,null,null,null,null,null,null,null,null,null,null,null,null,null,null,null,null,null,null,null,null,null,null,null,null,null,null,null,null,null,null,null,null,null,null,null,null,null,null,null,null,null,null,null,null,null,null,null,null,null,null,null,null,null,null,null,null,null,null,null,null,null,null,null,null,null,null,null,null,null,null,null,null,null,null,null,null,null,null,null,null,null,null,null,null,null,null,null,null,null,null,null,null,null,null,null,null,null,null,null,null,null,null,null,null,null,null,null,null,null,null,null,null,null,null,null,null,null,null,null,null,null,null,null,null,null,null,null,null,null,null,null,null,null,null,null,null,null,null,null,null,null,null,null,null,null,null,null,null,null,null,null,null,null,null,null,null,null,null,null,null,null,null,null,null,null,null,null,null,null,null,null,null,null,null,null,null,null,null,null,null,null,null,null,null,null,null,null,null,null,null,null,null,null,null,null,null,null,null,null,null,null,null,null,null,null,null,null,null,null,null,null,null,null,null,null,null,null,null,null,null,null,null,null,null,null,null,null,null,null,null,null,null,null,null,null,null,null,null,null,null,null,null,null,null,null,null,null,null,null,null,null,null,null,null,null,null,null,null,null,null,null,null,null,null,null,null,null,null,null,null,null,null,null,null,null,null,null,null,null,null,null,null,null,null,null,null,null,null,null,null,null,null,null,null,null,null,null,null,null,null,null,null,null,null,null,null,null,null,null,null,null,null,null,null,null,null,null,null,null,null,null,null,null,null,null,null,null,null,null,null,null,null,null,null,null,null,null,null,null,null,null,null,null,null,null,null,null,null,null,null,null,null,null,null,null,null,null,null,null,null,null,null,null,null,null,null,null,null,null,null,null,null,null,null,null,null,null,null,null,null,null,null,null,null,null,null,null,null,null,null,null,null,null,null,null,null,null,null,null,null,null,null,null,null,null,null,null,null,null,null,null,null,null,null,null,null,null,null,null,null,null,null,null,null,null,null,null,null,null,null,null,null,null,null,null,null,null,null,null,null,null,null,null,null,null,null,null,null,null,null,null,null,null,null,null,null,null,null,null,null,null,null,null,null,null,null,null,null,null,null,null,null,null,null,null,null,null,null,null,null,null,null,null,null,null,null,null,null,null,null,null,null,null,null,null,null,null,null,null,null,null,null,null,null,null,null,null,null,null,null,null,null,null,null,null,null,null,null,null,null,null,null,null,null,null,null,null,null,null,null,null,null,null,null,null,null,null,null,null,null,null,null,null,null,null,null,null,null,null,null,null,null,null,null,null,null,null,null,null,null,null,null,null,null,null,null,null,null,null,null,null,null,null,null,null,null,null,null,null,null,null,null,null,null,null,null,null,null,null,null,null,null,null,null,null,null,null,null,null,null,null,null,null,null,null,null,null,null,null,null,null,null,null,null,null,null,null,null,null,null,null,null,null,null,null,null,null,null,null,null,null,null,null,null,null,null,null,null,null,null,null,null,null,null,null,null,null,null,null,null,null,null,null,null,null,null,null,null,null,null,null,null,null,null,null,null,null,null,null,null,null,null,null,null,null,null,null,null,null,null,null,null,null,null,null,null,null,null,null,null,null,null,null,null,null,null,null,null,null,null,null,null,null,null,null,null,null,null,null,null,null,null,null,null,null,null,null,null,null,null,null,null,null,null,null,null,null,null,null,null,null,null,null,null,null,null,null,null,null,null,null,null,null,null,null,null,null,null,null,null,null,null,null,null,null,null,null,null,null,null,null,null,null,null,null,null,null,null,null,null,null,null,null,null,null,null,null,null,null,null,null,null,null,null,null,null,null,null,null,null,null,null,null,null,null,null,null,null,null,null,null,null,null,null,null,null,null,null,null,null,null,null,null,null,null,null,null,null,null,null,null,null,null,null,null,null,null,null,null,null,null,null,null,null,null,null,null,null,null,null,null,null,null,null,null,null,null,null,null,null,null,null,null,null,null,null,null,null,null,null,null,null,null,null,null,null,null,null,null,null,null,null,null,null,null,null,null,null,null,null,null,null,null,null,null,null,null,null,null,null,null,null,null,null,null,null,null,null,null,null,null,null,null,null,null,null,null,null,null,null,null,null,null,null,null,null,null,null,null,null,null,null,null,null,null,null,null,null,null,null,null,null,null,null,null,null,null,null,null,null,null,null,null,null,null,null,null,null,null,null,null,null,null,null,null,null,null,null,null,null,null,null,null,null,null,null,null,null,null,null,null,null,null,null,null,null,null,null,null,null,null,null,null,null,null,null,null,null,null,null,null,null,null,null,null,null,null,null,null,null,null,null,null,null,null,null,null,null,null,null,null,null,null,null,null,null,null,null,null,null,null,null,null,null,null,null,null,null,null,null,null,null,null,null,null,null,null,null,null,null,null,null,null,null,null,null,null,null,null,null,null,null,null,null,null,null,null,null,null,null,null,null,null,null,null,null,null,null,null,null,null,null,null,null,null,null,null,null,null,null,null,null,null,null,null,null,null,null,null,null,null,null,null,null,null,null,null,null,null,null,null,null,null,null,null,null,null,null,null,null,null,null,null,null,null,null,null,null,null,null,null,null,null,null,null,null,null,null,null,null,null,null,null,null,null,null,null,null,null,null,null,null,null,null,null,null,null,null,null,null,null,null,null,null,null,null,null,null,null,null,null,null,null,null,null,null,null,null,null,null,null,null,null,null,null,null,null,null,null,null,null,null,null,null,null,null,null,null,null,null,null,null,null,null,null,null,null,null,null,null,null,null,null,null,null,null,null,null,null,null,null,null,null,null,null,null,null,null,null,null,null,null,null,null,null,null,null,null,null,null,null,null,null,null,null,null,null,null,null,null,null,null,null,null,null,null,null,null,null,null,null,null,null,null,null,null,null,null,null,null,null,null,null,null,null,null,null,null,null,null,null,null,null,null,null,null,null,null,null,null,null,null,null,null,null,null,null,null,null,null,null,null,null,null,null,null,null,null,null,null,null,null,null,null,null,null,null,null,null,null,null,null,null,null,null,null,null,null,null,null,null,null,null,null,null,null,null,null,null,null,null,null,null,null,null,null,null,null,null,null,null,null,null,null,null,null,null,null,null,null,null,null,null,null,null,null,null,null,null,null,null,null,null,null,null,null,null,null,null,null,null,null,null,null,null,null,null,null,null,null,null,null,null,null,null,null,null,null,null,null,null,null,null,null,null,null,null,null,null,null,null,null,null,null,null,null,null,null,null,null,null,null,null,null,null,null,null,null,null,null,null,null,null,null,null,null,null,null,null,null,null,null,null,null,null,null,null,null,null,null,null,null,null,null,null,null,null,null,null,null,null,null,null,null,null,null,null,null,null,null,null,null,null,null,null,null,null,null,null,null,null,null,null,null,null,null,null,null,null,null,null,null,null,null,null,null,null,null,null,null,null,null,null,null,null,null,null,null,null,null,null,null,null,null,null,null,null,null,null,null,null,null,null,null,null,null,null,null,null,null,null,null,null,null,null,null,null,null,null,null,null,null,null,null,null,null,null,null,null,null,null,null,null,null,null,null,null,null,null,null,null,null,null,null,null,null,null,null,null,null,null,null,null,null,null,null,null,null,null,null,null,null,null,null,null,null,null,null,null,null,null,null,null,null,null,null,null,null,null,null,null,null,null,null,null,null,null,null,null,null,null,null,null,null,null,null,null,null,null,null,null,null,null,null,null,null,null,null,null,null,null,null,null,null,null,null,null,null,null,null,null,null,null,null,null,null,null,null,null,null,null,null,null,null,null,null,null,null,null,null,null,null,null,null,null,null,null,null,null,null,null,null,null,null,null,null,null,null,null,null,null,null,null,null,null,null,null,null,null,null,null,null,null,null,null,null,null,null,null,null,null,null,null,null,null,null,null,null,null,null,null,null,null,null,null,null,null,null,null,null,null,null,null,null,null,null,null,null,null,null,null,null,null,null,null,null,null,null,null,null,null,null,null,null,null,null,null,null,null,null,null,null,null,null,null,null,null,null,null,null,null,null,null,null,null,null,null,null,null,null,null,null,null,null,null,null,null,null,null,null,null,null,null,null,null,null,null,null,null,null,null,null,null,null,null,null,null,null,null,null,null,null,null,null,null,null,null,null,null,null,null,null,null,null,null,null,null,null,null,null,null,null,null,null,null,null,null,null,null,null,null,null,null,null,null,null,null,null,null,null,null,null,null,null,null,null,null,null,null,null,null,null,null,null,null,null,null,null,null,null,null,null,null,null,null,null,null,null,null,null,null,null,null,null,null,null,null,null,null,null,null,null,null,null,null,null,null,null,null,null,null,null,null,null,null,null,null,null,null,null,null,null,null,null,null,null,null,null,null,null,null,null,null,null,null,null,null,null,null,null,null,null,null,null,null,null,null,null,null,null,null,null,null,null,null,null,null,null,null,null,null,null,null,null,null,null,null,null,null,null,null,null,null,null,null,null,null,null,null,null,null,null,null,null,null,null,null,null,null,null,null,null,null,null,null,null,null,null,null,null,null,null,null,null,null,null,null,null,null,null,null,null,null,null,null,null,null,null,null,null,null,null,null,null,null,null,null,null,null,null,null,null,null,null,null,null,null,null,null,null,null,null,null,null,null,null,null,null,null,null,null,null,null,null,null,null,null,null,null,null,null,null,null,null,null,null,null,null,null,null,null,null,null,null,null,null,null,null,null,null,null,null,null,null,null,null,null,null,null,null,null,null,null,null,null,null,null,null,null,null,null,null,null,null,null,null,null,null,null,null,null,null,null,null,null,null,null,null,null,null,null,null,null,null,null,null,null,null,null,null,null,null,null,null,null,null,null,null,null,null,null,null,null,null,null,null,null,null,null,null,null,null,null,null,null,null,null,null,null,null,null,null,null,null,null,null,null,null,null,null,null,null,null,null,null,null,null,null,null,null,null,null,null,null,null,null,null,null,null,null,null,null,null,null,null,null,null,null,null,null,null,null,null,null,null,null,null,null,null,null,null,null,null,null,null,null,null,null,null,null,null,null,null,null,null,null,null,null,null,null,null,null,null,null,null,null,null,null,null,null,null,null,null,null,null,null,null,null,null,null,null,null,null,null,null,null,null,null,null,null,null,null,null,null,null,null,null,null,null,null,null,null,null,null,null,null,null,null,null,null,null,null,null,null,null,null,null,null,null,null,null,null,null,null,null,null,null,null,null,null,null,null,null,null,null,null,null,null,null,null,null,null,null,null,null,null,null,null,null,null,null,null,null,null,null,null,null,null,null,null,null,null,null,null,null,null,null,null,null,null,null,null,null,null,null,null,null,null,null,null,null,null,null,null,null,null,null,null,null,null,null,null,null,null,null,null,null,null,null,null,null,null,null,null,null,null,null,null,null,null,null,null,null,null,null,null,null,null,null,null,null,null,null,null,null,null,null,null,null,null,null,null,null,null,null,null,null,null,null,null,null,null,null,null,null,null,null,null,null,null,null,null,null,null,null,null,null,null,null,null,null,null,null,null,null,null,null,null,null,null,null,null,null,null,null,null,null,null,null,null,null,null,null,null,null,null,null,null,null,null,null,null,null,null,null,null,null,null,null,null,null,null,null,null,null,null,null,null,null,null,null,null,null,null,null,null,null,null,null,null,null,null,null,null,null,null,null,null,null,null,null,null,null,null,null,null,null,null,null,null,null,null,null,null,null,null,null,null,null,null,null,null,null,null,null,null,null,null,null,null,null,null,null,null,null,null,null,null,null,null,null,null,null,null,null,null,null,null,null,null,null,null,null,null,null,null,null,null,null,null,null,null,null,null,null,null,null,null,null,null,null,null,null,null,null,null,null,null,null,null,null,null,null,null,null,null,null,null,null,null,null,null,null,null,null,null,null,null,null,null,null,null,null,null,null,null,null,null,null,null,null,null,null,null,null,null,null,null,null,null,null,null,null,null,null,null,null,null,null,null,null,null,null,null,null,null,null,null,null,null,null,null,null,null,null,null,null,null,null,null,null,null,null,null,null,null,null,null,null,null,null,null,null,null,null,null,null,null,null,null,null,null,null,null,null,null,null,null,null,null,null,null,null,null,null,null,null,null,null,null,null,null,null,null,null,null,null,null,null,null,null,null,null,null,null,null,null,null,null,null,null,null,null,null,null,null,null,null,null,null,null,null,null,null,null,null,null,null,null,null,null,null,null,null,null,null,null,null,null,null,null,null,null,null,null,null,null,null,null,null,null,null,null,null,null,null,null,null,null,null,null,null,null,null,null,null,null,null,null,null,null,null,null,null,null,null,null,null,null,null,null,null,null,null,null,null,null,null,null,null,null,null,null,null,null,null,null,null,null,null,null,null,null,null,null,null,null,null,null,null,null,null,null,null,null,null,null,null,null,null,null,null,null,null,null,null,null,null,null,null,null,null,null,null,null,null,null,null,null,null,null,null,null,null,null,null,null,null,null,null,null,null,null,null,null,null,null,null,null,null,null,null,null,null,null,null,null,null,null,null,null,null,null,null,null,null,null,null,null,null,null,null,null,null,null,null,null,null,null,null,null,null,null,null,null,null,null,null,null,null,null,null,null,null,null,null,null,null,null,null,null,null,null,null,null,null,null,null,null,null,null,null,null,null,null,null,null,null,null,null,null,null,null,null,null,null,null,null,null,null,null,null,null,null,null,null,null,null,null,null,null,null,null,null,null,null,null,null,null,null,null,null,null,null,null,null,null,null,null,null,null,null,null,null,null,null,null,null,null,null,null,null,null,null,null,null,null,null,null,null,null,null,null,null,null,null,null,null,null,null,null,null,null,null,null,null,null,null,null,null,null,null,null,null,null,null,null,null,null,null,null,null,null,null,null,null,null,null,null,null,null,null,null,null,null,null,null,null,null,null,null,null,null,null,null,null,null,null,null,null,null,null,null,null,null,null,null,null,null,null,null,null,null,null,null,null,null,null,null,null,null,null,null,null,null,null,null,null,null,null,null,null,null,null,null,null,null,null,null,null,null,null,null,null,null,null,null,null,null,null,null,null,null,null,null,null,null,null,null,null,null,null,null,null,null,null,null,null,null,null,null,null,null,null,null,null,null,null,null,null,null,null,null,null,null,null,null,null,null,null,null,null,null,null,null,null,null,null,null,null,null,null,null,null,null,null,null,null,null,null,null,null,null,null,null,null,null,null,null,null,null,null,null,null,null,null,null,null,null,null,null,null,null,null,null,null,null,null,null,null,null,null,null,null,null,null,null,null,null,null,null,null,null,null,null,null,null,null,null,null,null,null,null,null,null,null,null,null,null,null,null,null,null,null,null,null,null,null,null,null,null,null,null,null,null,null,null,null,null,null,null,null,null,null,null,null,null,null,null,null,null,null,null,null,null,null,null,null,null,null,null,null,null,null,null,null,null,null,null,null,null,null,null,null,null,null,null,null,null,null,null,null,null,null,null,null,null,null,null,null,null,null,null,null,null,null,null,null,null,null,null,null,null,null,null,null,null,null,null,null,null,null,null,null,null,null,null,null,null,null,null,null,null,null,null,null,null,null,null,null,null,null,null,null,null,null,null,null,null,null,null,null,null,null,null,null,null,null,null,null,null,null,null,null,null,null,null,null,null,null,null,null,null,null,null,null,null,null,null,null,null,null,null,null,null,null,null,null,null,null,null,null,null,null,null,null,null,null,null,null,null,null,null,null,null,null,null,null,null,null,null,null,null,null,null,null,null,null,null,null,null,null,null,null,null,null,null,null,null,null,null,null,null,null,null,null,null,null,null,null,null,null,null,null,null,null,null,null,null,null,null,null,null,null,null,null,null,null,null,null,null,null,null,null,null,null,null,null,null,null,null,null,null,null,null,null,null,null,null,null,null,null,null,null,null,null,null,null,null,null,null,null,null,null,null,null,null,null,null,null,null,null,null,null,null,null,null,null,null,null,null,null,null,null,null,null,null,null,null,null,null,null,null,null,null,null,null,null,null,null,null,null,null,null,null,null,null,null,null,null,null,null,null,null,null,null,null,null,null,null,null,null,null,null,null,null,null,null,null,null,null,null,null,null,null,null,null,null,null,null,null,null,null,null,null,null,null,null,null,null,null,null,null,null,null,null,null,null,null,null,null,null,null,null,null,null,null,null,null,null,null,null,null,null,null,null,null,null,null,null,null,null,null,null,null,null,null,null,null,null,null,null,null,null,null,null,null,null,null,null,null,null,null,null,null,null,null,null,null,null,null,null,null,null,null,null,null,null,null,null,null,null,null,null,null,null,null,null,null,null,null,null,null,null,null,null,null,null,null,null,null,null,null,null,null,null,null,null,null,null,null,null,null,null,null,null,null,null,null,null,null,null,null,null,null,null,null,null,null,null,null,null,null,null,null,null,null,null,null,null,null,null,null,null,null,null,null,null,null,null,null,null,null,null,null,null,null,null,null,null,null,null,null,null,null,null,null,null,null,null,null,null,null,null,null,null,null,null,null,null,null,null,null,null,null,null,null,null,null,null,null,null,null,null,null,null,null,null,null,null,null,null,null,null,null,null,null,null,null,null,null,null,null,null,null,null,null,null,null,null,null,null,null,null,null,null,null,null,null,null,null,null,null,null,null,null,null,null,null,null,null,null,null,null,null,null,null,null,null,null,null,null,null,null,null,null,null,null,null,null,null,null,null,null,null,null,null,null,null,null,null,null,null,null,null,null,null,null,null,null,null,null,null,null,null,null,null,null,null,null,null,null,null,null,null,null,null,null,null,null,null,null,null,null,null,null,null,null,null,null,null,null,null,null,null,null,null,null,null,null,null,null,null,null,null,null,null,null,null,null,null,null,null,null,null,null,null,null,null,null,null,null,null,null,null,null,null,null,null,null,null,null,null,null,null,null,null,null,null,null,null,null,null,null,null,null,null,null,null,null,null,null,null,null,null,null,null,null,null,null,null,null,null,null,null,null,null,null,null,null,null,null,null,null,null,null,null,null,null,null,null,null,null,null,null,null,null,null,null,null,null,null,null,null,null,null,null,null,null,null,null,null,null,null,null,null,null,null,null,null,null,null,null,null,null,null,null,null,null,null,null,null,null,null,null,null,null,null,null,null,null,null,null,null,null,null,null,null,null,null,null,null,null,null,null,null,null,null,null,null,null,null,null,null,null,null,null,null,null,null,null,null,null,null,null,null,null,null,null,null,null,null,null,null,null,null,null,null,null,null,null,null,null,null,null,null,null,null,null,null,null,null,null,null,null,null,null,null,null,null,null,null,null,null,null,null,null,null,null,null,null,null,null,null,null,null,null,null,null,null,null,null,null,null,null,null,null,null,null,null,null,null,null,null,null,null,null,null,null,null,null,null,null,null,null,null,null,null,null,null,null,null,null,null,null,null,null,null,null,null,null,null,null,null,null,null,null,null,null,null,null,null,null,null,null,null,null,null,null,null,null,null,null,null,null,null,null,null,null,null,null,null,null,null,null,null,null,null,null,null,null,null,null,null,null,null,null,null,null,null,null,null,null,null,null,null,null,null,null,null,null,null,null,null,null,null,null,null,null,null,null,null,null,null,null,null,null,null,null,null,null,null,null,null,null,null,null,null,null,null,null,null,null,null,null,null,null,null,null,null,null,null,null,null,null,null,null,null,null,null,null,null,null,null,null,null,null,null,null,null,null,null,null,null,null,null,null,null,null,null,null,null,null,null,null,null,null,null,null,null,null,null,null,null,null,null,null,null,null,null,null,null,null,null,null,null,null,null,null,null,null,null,null,null,null,null,null,null,null,null,null,null,null,null,null,null,null,null,null,null,null,null,null,null,null,null,null,null,null,null,null,null,null,null,null,null,null,null,null,null,null,null,null,null,null,null,null,null,null,null,null,null,null,null,null,null,null,null,null,null,null,null,null,null,null,null,null,null,null,null,null,null,null,null,null,null,null,null,null,null,null,null,null,null,null,null,null,null,null,null,null,null,null,null,null,null,null,null,null,null,null,null,null,null,null,null,null,null,null,null,null,null,null,null,null,null,null,null,null,null,null,null,null,null,null,null,null,null,null,null,null,null,null,null,null,null,null,null,null,null,null,null,null,null,null,null,null,null,null,null,null,null,null,null,null,null,null,null,null,null,null,null,null,null,null,null,null,null,null,null,null,null,null,null,null,null,null,null,null,null,null,null,null,null,null,null,null,null,null,null,null,null,null,null,null,null,null,null,null,null,null,null,null,null,null,null,null,null,null,null,null,null,null,null,null,null,null,null,null,null,null,null,null,null,null,null,null,null,null,null,null,null,null,null,null,null,null,null,null,null,null,null,null,null,null,null,null,null,null,null,null,null,null,null,null,null,null,null,null,null,null,null,null,null,null,null,null,null,null,null,null,null,null,null,null,null,null,null,null,null,null,null,null,null,null,null,null,null,null,null,null,null,null,null,null,null,null,null,null,null,null,null,null,null,null,null,null,null,null,null,null,null,null,null,null,null,null,null,null,null,null,null,null,null,null,null,null,null,null,null,null,null,null,null,null,null,null,null,null,null,null,null,null,null,null,null,null,null,null,null,null,null,null,null,null,null,null,null,null,null,null,null,null,null,null,null,null,null,null,null,null,null,null,null,null,null,null,null,null,null,null,null,null,null,null,null,null,null,null,null,null,null,null,null,null,null,null,null,null,null,null,null,null,null,null,null,null,null,null,null,null,null,null,null,null,null,null,null,null,null,null,null,null,null,null,null,null,null,null,null,null,null,null,null,null,null,null,null,null,null,null,null,null,null,null,null,null,null,null,null,null,null,null,null,null,null,null,null,null,null,null,null,null,null,null,null,null,null,null,null,null,null,null,null,null,null,null,null,null,null,null,null,null,null,null,null,null,null,null,null,null,null,null,null,null,null,null,null,null,null,null,null,null,null,null,null,null,null,null,null,null,null,null,null,null,null,null,null,null,null,null,null,null,null,null,null,null,null,null,null,null,null,null,null,null,null,null,null,null,null,null,null,null,null,null,null,null,null,null,null,null,null,null,null,null,null,null,null,null,null,null,null,null,null,null,null,null,null,null,null,null,null,null,null,null,null,null,null,null,null,null,null,null,null,null,null,null,null,null,null,null,null,null,null,null,null,null,null,null,null,null,null,null,null,null,null,null,null,null,null,null,null,null,null,null,null,null,null,null,null,null,null,null,null,null,null,null,null,null,null,null,null,null,null,null,null,null,null,null,null,null,null,null,null,null,null,null,null,null,null,null,null,null,null,null,null,null,null,null,null,null,null,null,null,null,null,null,null,null,null,null,null,null,null,null,null,null,null,null,null,null,null,null,null,null,null,null,null,null,null,null,null,null,null,null,null,null,null,null,null,null,null,null,null,null,null,null,null,null,null,null,null,null,null,null,null,null,null,null,null,null,null,null,null,null,null,null,null,null,null,null,null,null,null,null,null,null,null,null,null,null,null,null,null,null,null,null,null,null,null,null,null,null,null,null,null,null,null,null,null,null,null,null,null,null,null,null,null,null,null,null,null,null,null,null,null,null,null,null,null,null,null,null,null,null,null,null,null,null,null,null,null,null,null,null,null,null,null,null,null,null,null,null,null,null,null,null,null,null,null,null,null,null,null,null,null,null,null,null,null,null,null,null,null,null,null,null,null,null,null,null,null,null,null,null,null,null,null,null,null,null,null,null,null,null,null,null,null,null,null,null,null,null,null,null,null,null,null,null,null,null,null,null,null,null,null,null,null,null,null,null,null,null,null,null,null,null,null,null,null,null,null,null,null,null,null,null,null,null,null,null,null,null,null,null,null,null,null,null,null,null,null,null,null,null,null,null,null,null,null,null,null,null,null,null,null,null,null,null,null,null,null,null,null,null,null,null,null,null,null,null,null,null,null,null,null,null,null,null,null,null,null,null,null,null,null,null,null,null,null,null,null,null,null,null,null,null,null,null,null,null,null,null,null,null,null,null,null,null,null,null,null,null,null,null,null,null,null,null,null,null,null,null,null,null,null,null,null,null,null,null,null,null,null,null,null,null,null,null,null,null,null,null,null,null,null,null,null,null,null,null,null,null,null,null,null,null,null,null,null,null,null,null,null,null,null,null,null,null,null,null,null,null,null,null,null,null,null,null,null,null,null,null,null,null,null,null,null,null,null,null,null,null,null,null,null,null,null,null,null,null,null,null,null,null,null,null,null,null,null,null,null,null,null,null,null,null,null,null,null,null,null,null,null,null,null,null,null,null,null,null,null,null,null,null,null,null,null,null,null,null,null,null,null,null,null,null,null,null,null,null,null,null,null,null,null,null,null,null,null,null,null,null,null,null,null,null,null,null,null,null,null,null,null,null,null,null,null,null,null,null,null,null,null,null,null,null,null,null,null,null,null,null,null,null,null,null,null,null,null,null,null,null,null,null,null,null,null,null,null,null,null,null,null,null,null,null,null,null,null,null,null,null,null,null,null,null,null,null,null,null,null,null,null,null,null,null,null,null,null,null,null,null,null,null,null,null,null,null,null,null,null,null,null,null,null,null,null,null,null,null,null,null,null,null,null,null,null,null,null,null,null,null,null,null,null,null,null,null,null,null,null,null,null,null,null,null,null,null,null,null,null,null,null,null,null,null,null,null,null,null,null,null,null,null,null,null,null,null,null,null,null,null,null,null,null,null,null,null,null,null,null,null,null,null,null,null,null,null,null,null,null,null,null,null,null,null,null,null,null,null,null,null,null,null,null,null,null,null,null,null,null,null,null,null,null,null,null,null,null,null,null,null,null,null,null,null,null,null,null,null,null,null,null,null,null,null,null,null,null,null,null,null,null,null,null,null,null,null,null,null,null,null,null,null,null,null,null,null,null,null,null,null,null,null,null,null,null,null,null,null,null,null,null,null,null,null,null,null,null,null,null,null,null,null,null,null,null,null,null,null,null,null,null,null,null,null,null,null,null,null,null,null,null,null,null,null,null,null,null,null,null,null,null,null,null,null,null,null,null,null,null,null,null,null,null,null,null,null,null,null,null,null,null,null,null,null,null,null,null,null,null,null,null,null,null,null,null,null,null,null,null,null,null,null,null,null,null,null,null,null,null,null,null,null,null,null,null,null,null,null,null,null,null,null,null,null,null,null,null,null,null,null,null,null,null,null,null,null,null,null,null,null,null,null,null,null,null,null,null,null,null,null,null,null,null,null,null,null,null,null,null,null,null,null,null,null,null,null,null,null,null,null,null,null,null,null,null,null,null,null,null,null,null,null,null,null,null,null,null,null,null,null,null,null,null,null,null,null,null,null,null,null,null,null,null,null,null,null,null,null,null,null,null,null,null,null,null,null,null,null,null,null,null,null,null,null,null,null,null,null,null,null,null,null,null,null,null,null,null,null,null,null,null,null,null,null,null,null,null,null,null,null,null,null,null,null,null,null,null,null,null,null,null,null,null,null,null,null,null,null,null,null,null,null,null,null,null,null,null,null,null,null,null,null,null,null,null,null,null,null,null,null,null,null,null,null,null,null,null,null,null,null,null,null,null,null,null,null,null,null,null,null,null,null,null,null,null,null,null,null,null,null,null,null,null,null,null,null,null,null,null,null,null,null,null,null,null,null,null,null,null,null,null,null,null,null,null,null,null,null,null,null,null,null,null,null,null,null,null,null,null,null,null,null,null,null,null,null,null,null,null,null,null,null,null,null,null,null,null,null,null,null,null,null,null,null,null,null,null,null,null,null,null,null,null,null,null,null,null,null,null,null,null,null,null,null,null,null,null,null,null,null,null,null,null,null,null,null,null,null,null,null,null,null,null,null,null,null,null,null,null,null,null,null,null,null,null,null,null,null,null,null,null,null,null,null,null,null,null,null,null,null,null,null,null,null,null,null,null,null,null,null,null,null,null,null,null,null,null,null,null,null,null,null,null,null,null,null,null,null,null,null,null,null,null,null,null,null,null,null,null,null,null,null,null,null,null,null,null,null,null,null,null,null,null,null,null,null,null,null,null,null,null,null,null,null,null,null,null,null,null,null,null,null,null,null,null,null,null,null,null,null,null,null,null,null,null,null,null,null,null,null,null,null,null,null,null,null,null,null,null,null,null,null,null,null,null,null,null,null,null,null,null,null,null,null,null,null,null,null,null,null,null,null,null,null,null,null,null,null,null,null,null,null,null,null,null,null,null,null,null,null,null,null,null,null,null,null,null,null,null,null,null,null,null,null,null,null,null,null,null,null,null,null,null,null,null,null,null,null,null,null,null,null,null,null,null,null,null,null,null,null,null,null,null,null,null,null,null,null,null,null,null,null,null,null,null,null,null,null,null,null,null,null,null,null,null,null,null,null,null,null,null,null,null,null,null,null,null,null,null,null,null,null,null,null,null,null,null,null,null,null,null,null,null,null,null,null,null,null,null,null,null,null,null,null,null,null,null,null,null,null,null,null,null,null,null,null,null,null,null,null,null,null,null,null,null,null,null,null,null,null,null,null,null,null,null,null,null,null,null,null,null,null,null,null,null,null,null,null,null,null,null,null,null,null,null,null,null,null,null,null,null,null,null,null,null,null,null,null,null,null,null,null,null,null,null,null,null,null,null,null,null,null,null,null,null,null,null,null,null,null,null,null,null,null,null,null,null,null,null,null,null,null,null,null,null,null,null,null,null,null,null,null,null,null,null,null,null,null,null,null,null,null,null,null,null,null,null,null,null,null,null,null,null,null,null,null,null,null,null,null,null,null,null,null,null,null,null,null,null,null,null,null,null,null,null,null,null,null,null,null,null,null,null,null,null,null,null,null,null,null,null,null,null,null,null,null,null,null,null,null,null,null,null,null,null,null,null,null,null,null,null,null,null,null,null,null,null,null,null,null,null,null,null,null,null,null,null,null,null,null,null,null,null,null,null,null,null,null,null,null,null,null,null,null,null,null,null,null,null,null,null,null,null,null,null,null,null,null,null,null,null,null,null,null,null,null,null,null,null,null,null,null,null,null,null,null,null,null,null,null,null,null,null,null,null,null,null,null,null,null,null,null,null,null,null,null,null,null,null,null,null,null,null,null,null,null,null,null,null,null,null,null,null,null,null,null,null,null,null,null,null,null,null,null,null,null,null,null,null,null,null,null,null,null,null,null,null,null,null,null,null,null,null,null,null,null,null,null,null,null,null,null,null,null,null,null,null,null,null,null,null,null,null,null,null,null,null,null,null,null,null,null,null,null,null,null,null,null,null,null,null,null,null,null,null,null,null,null,null,null,null,null,null,null,null,null,null,null,null,null,null,null,null,null,null,null,null,null,null,null,null,null,null,null,null,null,null,null,null,null,null,null,null,null,null,null,null,null,null,null,null,null,null,null,null,null,null,null,null,null,null,null,null,null,null,null,null,null,null,null,null,null,null,null,null,null,null,null,null,null,null,null,null,null,null,null,null,null,null,null,null,null,null,null,null,null,null,null,null,null,null,null,null,null,null,null,null,null,null,null,null,null,null,null,null,null,null,null,null,null,null,null,null,null,null,null,null,null,null,null,null,null,null,null,null,null,null,null,null,null,null,null,null,null,null,null,null,null,null,null,null,null,null,null,null,null,null,null,null,null,null,null,null,null,null,null,null,null,null,null,null,null,null,null,null,null,null,null,null,null,null,null,null,null,null,null,null,null,null,null,null,null,null,null,null,null,null,null,null,null,null,null,null,null,null,null,null,null,null,null,null,null,null,null,null,null,null,null,null,null,null,null,null,null,null,null,null,null,null,null,null,null,null,null,null,null,null,null,null,null,null,null,null,null,null,null,null,null,null,null,null,null,null,null,null,null,null,null,null,null,null,null,null,null,null,null,null,null,null,null,null,null,null,null,null,null,null,null,null,null,null,null,null,null,null,null,null,null,null,null,null,null,null,null,null,null,null,null,null,null,null,null,null,null,null,null,null,null,null,null,null,null,null,null,null,null,null,null,null,null,null,null,null,null,null,null,null,null,null,null,null,null,null,null,null,null,null,null,null,null,null,null,null,null,null,null,null,null,null,null,null,null,null,null,null,null,null,null,null,null,null,null,null,null,null,null,null,null,null,null,null,null,null,null,null,null,null,null,null,null,null,null,null,null,null,null,null,null,null,null,null,null,null,null,null,null,null,null,null,null,null,null,null,null,null,null,null,null,null,null,null,null,null,null,null,null,null,null,null,null,null,null,null,null,null,null,null,null,null,null,null,null,null,null,null,null,null,null,null,null,null,null,null,null,null,null,null,null,null,null,null,null,null,null,null,null,null,null,null,null,null,null,null,null,null,null,null,null,null,null,null,null,null,null,null,null,null,null,null,null,null,null,null,null,null,null,null,null,null,null,null,null,null,null,null,null,null,null,null,null,null,null,null,null,null,null,null,null,null,null,null,null,null,null,null,null,null,null,null,null,null,null,null,null,null,null,null,null,null,null,null,null,null,null,null,null,null,null,null,null,null,null,null,null,null,null,null,null,null,null,null,null,null,null,null,null,null,null,null,null,null,null,null,null,null,null,null,null,null,null,null,null,null,null,null,null,null,null,null,null,null,null,null,null,null,null,null,null,null,null,null,null,null,null,null,null,null,null,null,null,null,null,null,null,null,null,null,null,null,null,null,null,null,null,null,null,null,null,null,null,null,null,null,null,null,null,null,null,null,null,null,null,null,null,null,null,null,null,null,null,null,null,null,null,null,null,null,null,null,null,null,null,null,null,null,null,null,null,null,null,null,null,null,null,null,null,null,null,null,null,null,null,null,null,null,null,null,null,null,null,null,null,null,null,null,null,null,null,null,null,null,null,null,null,null,null,null,null,null,null,null,null,null,null,null,null,null,null,null,null,null,null,null,null,null,null,null,null,null,null,null,null,null,null,null,null,null,null,null,null,null,null,null,null,null,null,null,null,null,null,null,null,null,null,null,null,null,null,null,null,null,null,null,null,null,null,null,null,null,null,null,null,null,null,null,null,null,null,null,null,null,null,null,null,null,null,null,null,null,null,null,null,null,null,null,null,null,null,null,null,null,null,null,null,null,null,null,null,null,null,null,null,null,null,null,null,null,null,null,null,null,null,null,null,null,null,null,null,null,null,null,null,null,null,null,null,null,null,null,null,null,null,null,null,null,null,null,null,null,null,null,null,null,null,null,null,null,null,null,null,null,null,null,null,null,null,null,null,null,null,null,null,null,null,null,null,null,null,null,null,null,null,null,null,null,null,null,null,null,null,null,null,null,null,null,null,null,null,null,null,null,null,null,null,null,null,null,null,null,null,null,null,null,null,null,null,null,null,null,null,null,null,null,null,null,null,null,null,null,null,null,null,null,null,null,null,null,null,null,null,null,null,null,null,null,null,null,null,null,null,null,null,null,null,null,null,null,null,null,null,null,null,null,null,null,null,null,null,null,null,null,"","Frecuencia","Porcentaje"]
[null,"Total",4,1,4,null,null,null,null,null,null,null,null,null,null,null,null,null,null,null,null,null,null,null,null,null,null,null,null,null,null,null,null,null,null,null,null,null,null,null,null,null,null,null,null,null,null,null,null,null,null,null,null,null,null,null,null,null,null,null,null,null,null,null,null,null,null,null,null,null,null,null,null,null,null,null,null,null,null,null,null,null,null,null,null,null,null,null,null,null,null,null,null,null,null,null,null,null,null,null,null,null,null,null,null,null,null,null,null,null,null,null,null,null,null,null,null,null,null,null,null,null,null,null,null,null,null,null,null,null,null,null,null,null,null,null,null,null,null,null,null,null,null,null,null,null,null,null,null,null,null,null,null,null,null,null,null,null,null,null,null,null,null,null,null,null,null,null,null,null,null,null,null,null,null,null,null,null,null,null,null,null,null,null,null,null,null,null,null,null,null,null,null,null,null,null,null,null,null,null,null,null,null,null,null,null,null,null,null,null,null,null,null,null,null,null,null,null,null,null,null,null,null,null,null,null,null,null,null,null,null,null,null,null,null,null,null,null,null,null,null,null,null,null,null,null,null,null,null,null,null,null,null,null,null,null,null,null,null,null,null,null,null,null,null,null,null,null,null,null,null,null,null,null,null,null,null,null,null,null,null,null,null,null,null,null,null,null,null,null,null,null,null,null,null,null,null,null,null,null,null,null,null,null,null,null,null,null,null,null,null,null,null,null,null,null,null,null,null,null,null,null,null,null,null,null,null,null,null,null,null,null,null,null,null,null,null,null,null,null,null,null,null,null,null,null,null,null,null,null,null,null,null,null,null,null,null,null,null,null,null,null,null,null,null,null,null,null,null,null,null,null,null,null,null,null,null,null,null,null,null,null,null,null,null,null,null,null,null,null,null,null,null,null,null,null,null,null,null,null,null,null,null,null,null,null,null,null,null,null,null,null,null,null,null,null,null,null,null,null,null,null,null,null,null,null,null,null,null,null,null,null,null,null,null,null,null,null,null,null,null,null,null,null,null,null,null,null,null,null,null,null,null,null,null,null,null,null,null,null,null,null,null,null,null,null,null,null,null,null,null,null,null,null,null,null,null,null,null,null,null,null,null,null,null,null,null,null,null,null,null,null,null,null,null,null,null,null,null,null,null,null,null,null,null,null,null,null,null,null,null,null,null,null,null,null,null,null,null,null,null,null,null,null,null,null,null,null,null,null,null,null,null,null,null,null,null,null,null,null,null,null,null,null,null,null,null,null,null,null,null,null,null,null,null,null,null,null,null,null,null,null,null,null,null,null,null,null,null,null,null,null,null,null,null,null,null,null,null,null,null,null,null,null,null,null,null,null,null,null,null,null,null,null,null,null,null,null,null,null,null,null,null,null,null,null,null,null,null,null,null,null,null,null,null,null,null,null,null,null,null,null,null,null,null,null,null,null,null,null,null,null,null,null,null,null,null,null,null,null,null,null,null,null,null,null,null,null,null,null,null,null,null,null,null,null,null,null,null,null,null,null,null,null,null,null,null,null,null,null,null,null,null,null,null,null,null,null,null,null,null,null,null,null,null,null,null,null,null,null,null,null,null,null,null,null,null,null,null,null,null,null,null,null,null,null,null,null,null,null,null,null,null,null,null,null,null,null,null,null,null,null,null,null,null,null,null,null,null,null,null,null,null,null,null,null,null,null,null,null,null,null,null,null,null,null,null,null,null,null,null,null,null,null,null,null,null,null,null,null,null,null,null,null,null,null,null,null,null,null,null,null,null,null,null,null,null,null,null,null,null,null,null,null,null,null,null,null,null,null,null,null,null,null,null,null,null,null,null,null,null,null,null,null,null,null,null,null,null,null,null,null,null,null,null,null,null,null,null,null,null,null,null,null,null,null,null,null,null,null,null,null,null,null,null,null,null,null,null,null,null,null,null,null,null,null,null,null,null,null,null,null,null,null,null,null,null,null,null,null,null,null,null,null,null,null,null,null,null,null,null,null,null,null,null,null,null,null,null,null,null,null,null,null,null,null,null,null,null,null,null,null,null,null,null,null,null,null,null,null,null,null,null,null,null,null,null,null,null,null,null,null,null,null,null,null,null,null,null,null,null,null,null,null,null,null,null,null,null,null,null,null,null,null,null,null,null,null,null,null,null,null,null,null,null,null,null,null,null,null,null,null,null,null,null,null,null,null,null,null,null,null,null,null,null,null,null,null,null,null,null,null,null,null,null,null,null,null,null,null,null,null,null,null,null,null,null,null,null,null,null,null,null,null,null,null,null,null,null,null,null,null,null,null,null,null,null,null,null,null,null,null,null,null,null,null,null,null,null,null,null,null,null,null,null,null,null,null,null,null,null,null,null,null,null,null,null,null,null,null,null,null,null,null,null,null,null,null,null,null,null,null,null,null,null,null,null,null,null,null,null,null,null,null,null,null,null,null,null,null,null,null,null,null,null,null,null,null,null,null,null,null,null,null,null,null,null,null,null,null,null,null,null,null,null,null,null,null,null,null,null,null,null,null,null,null,null,null,null,null,null,null,null,null,null,null,null,null,null,null,null,null,null,null,null,null,null,null,null,null,null,null,null,null,null,null,null,null,null,null,null,null,null,null,null,null,null,null,null,null,null,null,null,null,null,null,null,null,null,null,null,null,null,null,null,null,null,null,null,null,null,null,null,null,null,null,null,null,null,null,null,null,null,null,null,null,null,null,null,null,null,null,null,null,null,null,null,null,null,null,null,null,null,null,null,null,null,null,null,null,null,null,null,null,null,null,null,null,null,null,null,null,null,null,null,null,null,null,null,null,null,null,null,null,null,null,null,null,null,null,null,null,null,null,null,null,null,null,null,null,null,null,null,null,null,null,null,null,null,null,null,null,null,null,null,null,null,null,null,null,null,null,null,null,null,null,null,null,null,null,null,null,null,null,null,null,null,null,null,null,null,null,null,null,null,null,null,null,null,null,null,null,null,null,null,null,null,null,null,null,null,null,null,null,null,null,null,null,null,null,null,null,null,null,null,null,null,null,null,null,null,null,null,null,null,null,null,null,null,null,null,null,null,null,null,null,null,null,null,null,null,null,null,null,null,null,null,null,null,null,null,null,null,null,null,null,null,null,null,null,null,null,null,null,null,null,null,null,null,null,null,null,null,null,null,null,null,null,null,null,null,null,null,null,null,null,null,null,null,null,null,null,null,null,null,null,null,null,null,null,null,null,null,null,null,null,null,null,null,null,null,null,null,null,null,null,null,null,null,null,null,null,null,null,null,null,null,null,null,null,null,null,null,null,null,null,null,null,null,null,null,null,null,null,null,null,null,null,null,null,null,null,null,null,null,null,null,null,null,null,null,null,null,null,null,null,null,null,null,null,null,null,null,null,null,null,null,null,null,null,null,null,null,null,null,null,null,null,null,null,null,null,null,null,null,null,null,null,null,null,null,null,null,null,null,null,null,null,null,null,null,null,null,null,null,null,null,null,null,null,null,null,null,null,null,null,null,null,null,null,null,null,null,null,null,null,null,null,null,null,null,null,null,null,null,null,null,null,null,null,null,null,null,null,null,null,null,null,null,null,null,null,null,null,null,null,null,null,null,null,null,null,null,null,null,null,null,null,null,null,null,null,null,null,null,null,null,null,null,null,null,null,null,null,null,null,null,null,null,null,null,null,null,null,null,null,null,null,null,null,null,null,null,null,null,null,null,null,null,null,null,null,null,null,null,null,null,null,null,null,null,null,null,null,null,null,null,null,null,null,null,null,null,null,null,null,null,null,null,null,null,null,null,null,null,null,null,null,null,null,null,null,null,null,null,null,null,null,null,null,null,null,null,null,null,null,null,null,null,null,null,null,null,null,null,null,null,null,null,null,null,null,null,null,null,null,null,null,null,null,null,null,null,null,null,null,null,null,null,null,null,null,null,null,null,null,null,null,null,null,null,null,null,null,null,null,null,null,null,null,null,null,null,null,null,null,null,null,null,null,null,null,null,null,null,null,null,null,null,null,null,null,null,null,null,null,null,null,null,null,null,null,null,null,null,null,null,null,null,null,null,null,null,null,null,null,null,null,null,null,null,null,null,null,null,null,null,null,null,null,null,null,null,null,null,null,null,null,null,null,null,null,null,null,null,null,null,null,null,null,null,null,null,null,null,null,null,null,null,null,null,null,null,null,null,null,null,null,null,null,null,null,null,null,null,null,null,null,null,null,null,null,null,null,null,null,null,null,null,null,null,null,null,null,null,null,null,null,null,null,null,null,null,null,null,null,null,null,null,null,null,null,null,null,null,null,null,null,null,null,null,null,null,null,null,null,null,null,null,null,null,null,null,null,null,null,null,null,null,null,null,null,null,null,null,null,null,null,null,null,null,null,null,null,null,null,null,null,null,null,null,null,null,null,null,null,null,null,null,null,null,null,null,null,null,null,null,null,null,null,null,null,null,null,null,null,null,null,null,null,null,null,null,null,null,null,null,null,null,null,null,null,null,null,null,null,null,null,null,null,null,null,null,null,null,null,null,null,null,null,null,null,null,null,null,null,null,null,null,null,null,null,null,null,null,null,null,null,null,null,null,null,null,null,null,null,null,null,null,null,null,null,null,null,null,null,null,null,null,null,null,null,null,null,null,null,null,null,null,null,null,null,null,null,null,null,null,null,null,null,null,null,null,null,null,null,null,null,null,null,null,null,null,null,null,null,null,null,null,null,null,null,null,null,null,null,null,null,null,null,null,null,null,null,null,null,null,null,null,null,null,null,null,null,null,null,null,null,null,null,null,null,null,null,null,null,null,null,null,null,null,null,null,null,null,null,null,null,null,null,null,null,null,null,null,null,null,null,null,null,null,null,null,null,null,null,null,null,null,null,null,null,null,null,null,null,null,null,null,null,null,null,null,null,null,null,null,null,null,null,null,null,null,null,null,null,null,null,null,null,null,null,null,null,null,null,null,null,null,null,null,null,null,null,null,null,null,null,null,null,null,null,null,null,null,null,null,null,null,null,null,null,null,null,null,null,null,null,null,null,null,null,null,null,null,null,null,null,null,null,null,null,null,null,null,null,null,null,null,null,null,null,null,null,null,null,null,null,null,null,null,null,null,null,null,null,null,null,null,null,null,null,null,null,null,null,null,null,null,null,null,null,null,null,null,null,null,null,null,null,null,null,null,null,null,null,null,null,null,null,null,null,null,null,null,null,null,null,null,null,null,null,null,null,null,null,null,null,null,null,null,null,null,null,null,null,null,null,null,null,null,null,null,null,null,null,null,null,null,null,null,null,null,null,null,null,null,null,null,null,null,null,null,null,null,null,null,null,null,null,null,null,null,null,null,null,null,null,null,null,null,null,null,null,null,null,null,null,null,null,null,null,null,null,null,null,null,null,null,null,null,null,null,null,null,null,null,null,null,null,null,null,null,null,null,null,null,null,null,null,null,null,null,null,null,null,null,null,null,null,null,null,null,null,null,null,null,null,null,null,null,null,null,null,null,null,null,null,null,null,null,null,null,null,null,null,null,null,null,null,null,null,null,null,null,null,null,null,null,null,null,null,null,null,null,null,null,null,null,null,null,null,null,null,null,null,null,null,null,null,null,null,null,null,null,null,null,null,null,null,null,null,null,null,null,null,null,null,null,null,null,null,null,null,null,null,null,null,null,null,null,null,null,null,null,null,null,null,null,null,null,null,null,null,null,null,null,null,null,null,null,null,null,null,null,null,null,null,null,null,null,null,null,null,null,null,null,null,null,null,null,null,null,null,null,null,null,null,null,null,null,null,null,null,null,null,null,null,null,null,null,null,null,null,null,null,null,null,null,null,null,null,null,null,null,null,null,null,null,null,null,null,null,null,null,null,null,null,null,null,null,null,null,null,null,null,null,null,null,null,null,null,null,null,null,null,null,null,null,null,null,null,null,null,null,null,null,null,null,null,null,null,null,null,null,null,null,null,null,null,null,null,null,null,null,null,null,null,null,null,null,null,null,null,null,null,null,null,null,null,null,null,null,null,null,null,null,null,null,null,null,null,null,null,null,null,null,null,null,null,null,null,null,null,null,null,null,null,null,null,null,null,null,null,null,null,null,null,null,null,null,null,null,null,null,null,null,null,null,null,null,null,null,null,null,null,null,null,null,null,null,null,null,null,null,null,null,null,null,null,null,null,null,null,null,null,null,null,null,null,null,null,null,null,null,null,null,null,null,null,null,null,null,null,null,null,null,null,null,null,null,null,null,null,null,null,null,null,null,null,null,null,null,null,null,null,null,null,null,null,null,null,null,null,null,null,null,null,null,null,null,null,null,null,null,null,null,null,null,null,null,null,null,null,null,null,null,null,null,null,null,null,null,null,null,null,null,null,null,null,null,null,null,null,null,null,null,null,null,null,null,null,null,null,null,null,null,null,null,null,null,null,null,null,null,null,null,null,null,null,null,null,null,null,null,null,null,null,null,null,null,null,null,null,null,null,null,null,null,null,null,null,null,null,null,null,null,null,null,null,null,null,null,null,null,null,null,null,null,null,null,null,null,null,null,null,null,null,null,null,null,null,null,null,null,null,null,null,null,null,null,null,null,null,null,null,null,null,null,null,null,null,null,null,null,null,null,null,null,null,null,null,null,null,null,null,null,null,null,null,null,null,null,null,null,null,null,null,null,null,null,null,null,null,null,null,null,null,null,null,null,null,null,null,null,null,null,null,null,null,null,null,null,null,null,null,null,null,null,null,null,null,null,null,null,null,null,null,null,null,null,null,null,null,null,null,null,null,null,null,null,null,null,null,null,null,null,null,null,null,null,null,null,null,null,null,null,null,null,null,null,null,null,null,null,null,null,null,null,null,null,null,null,null,null,null,null,null,null,null,null,null,null,null,null,null,null,null,null,null,null,null,null,null,null,null,null,null,null,null,null,null,null,null,null,null,null,null,null,null,null,null,null,null,null,null,null,null,null,null,null,null,null,null,null,null,null,null,null,null,null,null,null,null,null,null,null,null,null,null,null,null,null,null,null,null,null,null,null,null,null,null,null,null,null,null,null,null,null,null,null,null,null,null,null,null,null,null,null,null,null,null,null,null,null,null,null,null,null,null,null,null,null,null,null,null,null,null,null,null,null,null,null,null,null,null,null,null,null,null,null,null,null,null,null,null,null,null,null,null,null,null,null,null,null,null,null,null,null,null,null,null,null,null,null,null,null,null,null,null,null,null,null,null,null,null,null,null,null,null,null,null,null,null,null,null,null,null,null,null,null,null,null,null,null,null,null,null,null,null,null,null,null,null,null,null,null,null,null,null,null,null,null,null,null,null,null,null,null,null,null,null,null,null,null,null,null,null,null,null,null,null,null,null,null,null,null,null,null,null,null,null,null,null,null,null,null,null,null,null,null,null,null,null,null,null,null,null,null,null,null,null,null,null,null,null,null,null,null,null,null,null,null,null,null,null,null,null,null,null,null,null,null,null,null,null,null,null,null,null,null,null,null,null,null,null,null,null,null,null,null,null,null,null,null,null,null,null,null,null,null,null,null,null,null,null,null,null,null,null,null,null,null,null,null,null,null,null,null,null,null,null,null,null,null,null,null,null,null,null,null,null,null,null,null,null,null,null,null,null,null,null,null,null,null,null,null,null,null,null,null,null,null,null,null,null,null,null,null,null,null,null,null,null,null,null,null,null,null,null,null,null,null,null,null,null,null,null,null,null,null,null,null,null,null,null,null,null,null,null,null,null,null,null,null,null,null,null,null,null,null,null,null,null,null,null,null,null,null,null,null,null,null,null,null,null,null,null,null,null,null,null,null,null,null,null,null,null,null,null,null,null,null,null,null,null,null,null,null,null,null,null,null,null,null,null,null,null,null,null,null,null,null,null,null,null,null,null,null,null,null,null,null,null,null,null,null,null,null,null,null,null,null,null,null,null,null,null,null,null,null,null,null,null,null,null,null,null,null,null,null,null,null,null,null,null,null,null,null,null,null,null,null,null,null,null,null,null,null,null,null,null,null,null,null,null,null,null,null,null,null,null,null,null,null,null,null,null,null,null,null,null,null,null,null,null,null,null,null,null,null,null,null,null,null,null,null,null,null,null,null,null,null,null,null,null,null,null,null,null,null,null,null,null,null,null,null,null,null,null,null,null,null,null,null,null,null,null,null,null,null,null,null,null,null,null,null,null,null,null,null,null,null,null,null,null,null,null,null,null,null,null,null,null,null,null,null,null,null,null,null,null,null,null,null,null,null,null,null,null,null,null,null,null,null,null,null,null,null,null,null,null,null,null,null,null,null,null,null,null,null,null,null,null,null,null,null,null,null,null,null,null,null,null,null,null,null,null,null,null,null,null,null,null,null,null,null,null,null,null,null,null,null,null,null,null,null,null,null,null,null,null,null,null,null,null,null,null,null,null,null,null,null,null,null,null,null,null,null,null,null,null,null,null,null,null,null,null,null,null,null,null,null,null,null,null,null,null,null,null,null,null,null,null,null,null,null,null,null,null,null,null,null,null,null,null,null,null,null,null,null,null,null,null,null,null,null,null,null,null,null,null,null,null,null,null,null,null,null,null,null,null,null,null,null,null,null,null,null,null,null,null,null,null,null,null,null,null,null,null,null,null,null,null,null,null,null,null,null,null,null,null,null,null,null,null,null,null,null,null,null,null,null,null,null,null,null,null,null,null,null,null,null,null,null,null,null,null,null,null,null,null,null,null,null,null,null,null,null,null,null,null,null,null,null,null,null,null,null,null,null,null,null,null,null,null,null,null,null,null,null,null,null,null,null,null,null,null,null,null,null,null,null,null,null,null,null,null,null,null,null,null,null,null,null,null,null,null,null,null,null,null,null,null,null,null,null,null,null,null,null,null,null,null,null,null,null,null,null,null,null,null,null,null,null,null,null,null,null,null,null,null,null,null,null,null,null,null,null,null,null,null,null,null,null,null,null,null,null,null,null,null,null,null,null,null,null,null,null,null,null,null,null,null,null,null,null,null,null,null,null,null,null,null,null,null,null,null,null,null,null,null,null,null,null,null,null,null,null,null,null,null,null,null,null,null,null,null,null,null,null,null,null,null,null,null,null,null,null,null,null,null,null,null,null,null,null,null,null,null,null,null,null,null,null,null,null,null,null,null,null,null,null,null,null,null,null,null,null,null,null,null,null,null,null,null,null,null,null,null,null,null,null,null,null,null,null,null,null,null,null,null,null,null,null,null,null,null,null,null,null,null,null,null,null,null,null,null,null,null,null,null,null,null,null,null,null,null,null,null,null,null,null,null,null,null,null,null,null,null,null,null,null,null,null,null,null,null,null,null,null,null,null,null,null,null,null,null,null,null,null,null,null,null,null,null,null,null,null,null,null,null,null,null,null,null,null,null,null,null,null,null,null,null,null,null,null,null,null,null,null,null,null,null,null,null,null,null,null,null,null,null,null,null,null,null,null,null,null,null,null,null,null,null,null,null,null,null,null,null,null,null,null,null,null,null,null,null,null,null,null,null,null,null,null,null,null,null,null,null,null,null,null,null,null,null,null,null,null,null,null,null,null,null,null,null,null,null,null,null,null,null,null,null,null,null,null,null,null,null,null,null,null,null,null,null,null,null,null,null,null,null,null,null,null,null,null,null,null,null,null,null,null,null,null,null,null,null,null,null,null,null,null,null,null,null,null,null,null,null,null,null,null,null,null,null,null,null,null,null,null,null,null,null,null,null,null,null,null,null,null,null,null,null,null,null,null,null,null,null,null,null,null,null,null,null,null,null,null,null,null,null,null,null,null,null,null,null,null,null,null,null,null,null,null,null,null,null,null,null,null,null,null,null,null,null,null,null,null,null,null,null,null,null,null,null,null,null,null,null,null,null,null,null,null,null,null,null,null,null,null,null,null,null,null,null,null,null,null,null,null,null,null,null,null,null,null,null,null,null,null,null,null,null,null,null,null,null,null,null,null,null,null,null,null,null,null,null,null,null,null,null,null,null,null,null,null,null,null,null,null,null,null,null,null,null,null,null,null,null,null,null,null,null,null,null,null,null,null,null,null,null,null,null,null,null,null,null,null,null,null,null,null,null,null,null,null,null,null,null,null,null,null,null,null,null,null,null,null,null,null,null,null,null,null,null,null,null,null,null,null,null,null,null,null,null,null,null,null,null,null,null,null,null,null,null,null,null,null,null,null,null,null,null,null,null,null,null,null,null,null,null,null,null,null,null,null,null,null,null,null,null,null,null,null,null,null,null,null,null,null,null,null,null,null,null,null,null,null,null,null,null,null,null,null,null,null,null,null,null,null,null,null,null,null,null,null,null,null,null,null,null,null,null,null,null,null,null,null,null,null,null,null,null,null,null,null,null,null,null,null,null,null,null,null,null,null,null,null,null,null,null,null,null,null,null,null,null,null,null,null,null,null,null,null,null,null,null,null,null,null,null,null,null,null,null,null,null,null,null,null,null,null,null,null,null,null,null,null,null,null,null,null,null,null,null,null,null,null,null,null,null,null,null,null,null,null,null,null,null,null,null,null,null,null,null,null,null,null,null,null,null,null,null,null,null,null,null,null,null,null,null,null,null,null,null,null,null,null,null,null,null,null,null,null,null,null,null,null,null,null,null,null,null,null,null,null,null,null,null,null,null,null,null,null,null,null,null,null,null,null,null,null,null,null,null,null,null,null,null,null,null,null,null,null,null,null,null,null,null,null,null,null,null,null,null,null,null,null,null,null,null,null,null,null,null,null,null,null,null,null,null,null,null,null,null,null,null,null,null,null,null,null,null,null,null,null,null,null,null,null,null,null,null,null,null,null,null,null,null,null,null,null,null,null,null,null,null,null,null,null,null,null,null,null,null,null,null,null,null,null,null,null,null,null,null,null,null,null,null,null,null,null,null,null,null,null,null,null,null,null,null,null,null,null,null,null,null,null,null,null,null,null,null,null,null,null,null,null,null,null,null,null,null,null,null,null,null,null,null,null,null,null,null,null,null,null,null,null,null,null,null,null,null,null,null,null,null,null,null,null,null,null,null,null,null,null,null,null,null,null,null,null,null,null,null,null,null,null,null,null,null,null,null,null,null,null,null,null,null,null,null,null,null,null,null,null,null,null,null,null,null,null,null,null,null,null,null,null,null,null,null,null,null,null,null,null,null,null,null,null,null,null,null,null,null,null,null,null,null,null,null,null,null,null,null,null,null,null,null,null,null,null,null,null,null,null,null,null,null,null,null,null,null,null,null,null,null,null,null,null,null,null,null,null,null,null,null,null,null,null,null,null,null,null,null,null,null,null,null,null,null,null,null,null,null,null,null,null,null,null,null,null,null,null,null,null,null,null,null,null,null,null,null,null,null,null,null,null,null,null,null,null,null,null,null,null,null,null,null,null,null,null,null,null,null,null,null,null,null,null,null,null,null,null,null,null,null,null,null,null,null,null,null,null,null,null,null,null,null,null,null,null,null,null,null,null,null,null,null,null,null,null,null,null,null,null,null,null,null,null,null,null,null,null,null,null,null,null,null,null,null,null,null,null,null,null,null,null,null,null,null,null,null,null,null,null,null,null,null,null,null,null,null,null,null,null,null,null,null,null,null,null,null,null,null,null,null,null,null,null,null,null,null,null,null,null,null,null,null,null,null,null,null,null,null,null,null,null,null,null,null,null,null,null,null,null,null,null,null,null,null,null,null,null,null,null,null,null,null,null,null,null,null,null,null,null,null,null,null,null,null,null,null,null,null,null,null,null,null,null,null,null,null,null,null,null,null,null,null,null,null,null,null,null,null,null,null,null,null,null,null,null,null,null,null,null,null,null,null,null,null,null,null,null,null,null,null,null,null,null,null,null,null,null,null,null,null,null,null,null,null,null,null,null,null,null,null,null,null,null,null,null,null,null,null,null,null,null,null,null,null,null,null,null,null,null,null,null,null,null,null,null,null,null,null,null,null,null,null,null,null,null,null,null,null,null,null,null,null,null,null,null,null,null,null,null,null,null,null,null,null,null,null,null,null,null,null,null,null,null,null,null,null,null,null,null,null,null,null,null,null,null,null,null,null,null,null,null,null,null,null,null,null,null,null,null,null,null,null,null,null,null,null,null,null,null,null,null,null,null,null,null,null,null,null,null,null,null,null,null,null,null,null,null,null,null,null,null,null,null,null,null,null,null,null,null,null,null,null,null,null,null,null,null,null,null,null,null,null,null,null,null,null,null,null,null,null,null,null,null,null,null,null,null,null,null,null,null,null,null,null,null,null,null,null,null,null,null,null,null,null,null,null,null,null,null,null,null,null,null,null,null,null,null,null,null,null,null,null,null,null,null,null,null,null,null,null,null,null,null,null,null,null,null,null,null,null,null,null,null,null,null,null,null,null,null,null,null,null,null,null,null,null,null,null,null,null,null,null,null,null,null,null,null,null,null,null,null,null,null,null,null,null,null,null,null,null,null,null,null,null,null,null,null,null,null,null,null,null,null,null,null,null,null,null,null,null,null,null,null,null,null,null,null,null,null,null,null,null,null,null,null,null,null,null,null,null,null,null,null,null,null,null,null,null,null,null,null,null,null,null,null,null,null,null,null,null,null,null,null,null,null,null,null,null,null,null,null,null,null,null,null,null,null,null,null,null,null,null,null,null,null,null,null,null,null,null,null,null,null,null,null,null,null,null,null,null,null,null,null,null,null,null,null,null,null,null,null,null,null,null,null,null,null,null,null,null,null,null,null,null,null,null,null,null,null,null,null,null,null,null,null,null,null,null,null,null,null,null,null,null,null,null,null,null,null,null,null,null,null,null,null,null,null,null,null,null,null,null,null,null,null,null,null,null,null,null,null,null,null,null,null,null,null,null,null,null,null,null,null,null,null,null,null,null,null,null,null,null,null,null,null,null,null,null,null,null,null,null,null,null,null,null,null,null,null,null,null,null,null,null,null,null,null,null,null,null,null,null,null,null,null,null,null,null,null,null,null,null,null,null,null,null,null,null,null,null,null,null,null,null,null,null,null,null,null,null,null,null,null,null,null,null,null,null,null,null,null,null,null,null,null,null,null,null,null,null,null,null,null,null,null,null,null,null,null,null,null,null,null,null,null,null,null,null,null,null,null,null,null,null,null,null,null,null,null,null,null,null,null,null,null,null,null,null,null,null,null,null,null,null,null,null,null,null,null,null,null,null,null,null,null,null,null,null,null,null,null,null,null,null,null,null,null,null,null,null,null,null,null,null,null,null,null,null,null,null,null,null,null,null,null,null,null,null,null,null,null,null,null,null,null,null,null,null,null,null,null,null,null,null,null,null,null,null,null,null,null,null,null,null,null,null,null,null,null,null,null,null,null,null,null,null,null,null,null,null,null,null,null,null,null,null,null,null,null,null,null,null,null,null,null,null,null,null,null,null,null,null,null,null,null,null,null,null,null,null,null,null,null,null,null,null,null,null,null,null,null,null,null,null,null,null,null,null,null,null,null,null,null,null,null,null,null,null,null,null,null,null,null,null,null,null,null,null,null,null,null,null,null,null,null,null,null,null,null,null,null,null,null,null,null,null,null,null,null,null,null,null,null,null,null,null,null,null,null,null,null,null,null,null,null,null,null,null,null,null,null,null,null,null,null,null,null,null,null,null,null,null,null,null,null,null,null,null,null,null,null,null,null,null,null,null,null,null,null,null,null,null,null,null,null,null,null,null,null,null,null,null,null,null,null,null,null,null,null,null,null,null,null,null,null,null,null,null,null,null,null,null,null,null,null,null,null,null,null,null,null,null,null,null,null,null,null,null,null,null,null,null,null,null,null,null,null,null,null,null,null,null,null,null,null,null,null,null,null,null,null,null,null,null,null,null,null,null,null,null,null,null,null,null,null,null,null,null,null,null,null,null,null,null,null,null,null,null,null,null,null,null,null,null,null,null,null,null,null,null,null,null,null,null,null,null,null,null,null,null,null,null,null,null,null,null,null,null,null,null,null,null,null,null,null,null,null,null,null,null,null,null,null,null,null,null,null,null,null,null,null,null,null,null,null,null,null,null,null,null,null,null,null,null,null,null,null,null,null,null,null,null,null,null,null,null,null,null,null,null,null,null,null,null,null,null,null,null,null,null,null,null,null,null,null,null,null,null,null,null,null,null,null,null,null,null,null,null,null,null,null,null,null,null,null,null,null,null,null,null,null,null,null,null,null,null,null,null,null,null,null,null,null,null,null,null,null,null,null,null,null,null,null,null,null,null,null,null,null,null,null,null,null,null,null,null,null,null,null,null,null,null,null,null,null,null,null,null,null,null,null,null,null,null,null,null,null,null,null,null,null,null,null,null,null,null,null,null,null,null,null,null,null,null,null,null,null,null,null,null,null,null,null,null,null,null,null,null,null,null,null,null,null,null,null,null,null,null,null,null,null,null,null,null,null,null,null,null,null,null,null,null,null,null,null,null,null,null,null,null,null,null,null,null,null,null,null,null,null,null,null,null,null,null,null,null,null,null,null,null,null,null,null,null,null,null,null,null,null,null,null,null,null,null,null,null,null,null,null,null,null,null,null,null,null,null,null,null,null,null,null,null,null,null,null,null,null,null,null,null,null,null,null,null,null,null,null,null,null,null,null,null,null,null,null,null,null,null,null,null,null,null,null,null,null,null,null,null,null,null,null,null,null,null,null,null,null,null,null,null,null,null,null,null,null,null,null,null,null,null,null,null,null,null,null,null,null,null,null,null,null,null,null,null,null,null,null,null,null,null,null,null,null,null,null,null,null,null,null,null,null,null,null,null,null,null,null,null,null,null,null,null,null,null,null,null,null,null,null,null,null,null,null,null,null,null,null,null,null,null,null,null,null,null,null,null,null,null,null,null,null,null,null,null,null,null,null,null,null,null,null,null,null,null,null,null,null,null,null,null,null,null,null,null,null,null,null,null,null,null,null,null,null,null,null,null,null,null,null,null,null,null,null,null,null,null,null,null,null,null,null,null,null,null,null,null,null,null,null,null,null,null,null,null,null,null,null,null,null,null,null,null,null,null,null,null,null,null,null,null,null,null,null,null,null,null,null,null,null,null,null,null,null,null,null,null,null,null,null,null,null,null,null,null,null,null,null,null,null,null,null,null,null,null,null,null,null,null,null,null,null,null,null,null,null,null,null,null,null,null,null,null,null,null,null,null,null,null,null,null,null,null,null,null,null,null,null,null,null,null,null,null,null,null,null,null,null,null,null,null,null,null,null,null,null,null,null,null,null,null,null,null,null,null,null,null,null,null,null,null,null,null,null,null,null,null,null,null,null,null,null,null,null,null,null,null,null,null,null,null,null,null,null,null,null,null,null,null,null,null,null,null,null,null,null,null,null,null,null,null,null,null,null,null,null,null,null,null,null,null,null,null,null,null,null,null,null,null,null,null,null,null,null,null,null,null,null,null,null,null,null,null,null,null,null,null,null,null,null,null,null,null,null,null,null,null,null,null,null,null,null,null,null,null,null,null,null,null,null,null,null,null,null,null,null,null,null,null,null,null,null,null,null,null,null,null,null,null,null,null,null,null,null,null,null,null,null,null,null,null,null,null,null,null,null,null,null,null,null,null,null,null,null,null,null,null,null,null,null,null,null,null,null,null,null,null,null,null,null,null,null,null,null,null,null,null,null,null,null,null,null,null,null,null,null,null,null,null,null,null,null,null,null,null,null,null,null,null,null,null,null,null,null,null,null,null,null,null,null,null,null,null,null,null,null,null,null,null,null,null,null,null,null,null,null,null,null,null,null,null,null,null,null,null,null,null,null,null,null,null,null,null,null,null,null,null,null,null,null,null,null,null,null,null,null,null,null,null,null,null,null,null,null,null,null,null,null,null,null,null,null,null,null,null,null,null,null,null,null,null,null,null,null,null,null,null,null,null,null,null,null,null,null,null,null,null,null,null,null,null,null,null,null,null,null,null,null,null,null,null,null,null,null,null,null,null,null,null,null,null,null,null,null,null,null,null,null,null,null,null,null,null,null,null,null,null,null,null,null,null,null,null,null,null,null,null,null,null,null,null,null,null,null,null,null,null,null,null,null,null,null,null,null,null,null,null,null,null,null,null,null,null,null,null,null,null,null,null,null,null,null,null,null,null,null,null,null,null,null,null,null,null,null,null,null,null,null,null,null,null,null,null,null,null,null,null,null,null,null,null,null,null,null,null,null,null,null,null,null,null,null,null,null,null,null,null,null,null,null,null,null,null,null,null,null,null,null,null,null,null,null,null,null,null,null,null,null,null,null,null,null,null,null,null,null,null,null,null,null,null,null,null,null,null,null,null,null,null,null,null,null,null,null,null,null,null,null,null,null,null,null,null,null,null,null,null,null,null,null,null,null,null,null,null,null,null,null,null,null,null,null,null,null,null,null,null,null,null,null,null,null,null,null,null,null,null,null,null,null,null,null,null,null,null,null,null,null,null,null,null,null,null,null,null,null,null,null,null,null,null,null,null,null,null,null,null,null,null,null,null,null,null,null,null,null,null,null,null,null,null,null,null,null,null,null,null,null,null,null,null,null,null,null,null,null,null,null,null,null,null,null,null,null,null,null,null,null,null,null,null,null,null,null,null,null,null,null,null,null,null,null,null,null,null,null,null,null,null,null,null,null,null,null,null,null,null,null,null,null,null,null,null,null,null,null,null,null,null,null,null,null,null,null,null,null,null,null,null,null,null,null,null,null,null,null,null,null,null,null,null,null,null,null,null,null,null,null,null,null,null,null,null,null,null,null,null,null,null,null,null,null,null,null,null,null,null,null,null,null,null,null,null,null,null,null,null,null,null,null,null,null,null,null,null,null,null,null,null,null,null,null,null,null,null,null,null,null,null,null,null,null,null,null,null,null,null,null,null,null,null,null,null,null,null,null,null,null,null,null,null,null,null,null,null,null,null,null,null,null,null,null,null,null,null,null,null,null,null,null,null,null,null,null,null,null,null,null,null,null,null,null,null,null,null,null,null,null,null,null,null,null,null,null,null,null,null,null,null,null,null,null,null,null,null,null,null,null,null,null,null,null,null,null,null,null,null,null,null,null,null,null,null,null,null,null,null,null,null,null,null,null,null,null,null,null,null,null,null,null,null,null,null,null,null,null,null,null,null,null,null,null,null,null,null,null,null,null,null,null,null,null,null,null,null,null,null,null,null,null,null,null,null,null,null,null,null,null,null,null,null,null,null,null,null,null,null,null,null,null,null,null,null,null,null,null,null,null,null,null,null,null,null,null,null,null,null,null,null,null,null,null,null,null,null,null,null,null,null,null,null,null,null,null,null,null,null,null,null,null,null,null,null,null,null,null,null,null,null,null,null,null,null,null,null,null,null,null,null,null,null,null,null,null,null,null,null,null,null,null,null,null,null,null,null,null,null,null,null,null,null,null,null,null,null,null,null,null,null,null,null,null,null,null,null,null,null,null,null,null,null,null,null,null,null,null,null,null,null,null,null,null,null,null,null,null,null,null,null,null,null,null,null,null,null,null,null,null,null,null,null,null,null,null,null,null,null,null,null,null,null,null,null,null,null,null,null,null,null,null,null,null,null,null,null,null,null,null,null,null,null,null,null,null,null,null,null,null,null,null,null,null,null,null,null,null,null,null,null,null,null,null,null,null,null,null,null,null,null,null,null,null,null,null,null,null,null,null,null,null,null,null,null,null,null,null,null,null,null,null,null,null,null,null,null,null,null,null,null,null,null,null,null,null,null,null,null,null,null,null,null,null,null,null,null,null,null,null,null,null,null,null,null,null,null,null,null,null,null,null,null,null,null,null,null,null,null,null,null,null,null,null,null,null,null,null,null,null,null,null,null,null,null,null,null,null,null,null,null,null,null,null,null,null,null,null,null,null,null,null,null,null,null,null,null,null,null,null,null,null,null,null,null,null,null,null,null,null,null,null,null,null,null,null,null,null,null,null,null,null,null,null,null,null,null,null,null,null,null,null,null,null,null,null,null,null,null,null,null,null,null,null,null,null,null,null,null,null,null,null,null,null,null,null,null,null,null,null,null,null,null,null,null,null,null,null,null,null,null,null,null,null,null,null,null,null,null,null,null,null,null,null,null,null,null,null,null,null,null,null,null,null,null,null,null,null,null,null,null,null,null,null,null,null,null,null,null,null,null,null,null,null,null,null,null,null,null,null,null,null,null,null,null,null,null,null,null,null,null,null,null,null,null,null,null,null,null,null,null,null,null,null,null,null,null,null,null,null,null,null,null,null,null,null,null,null,null,null,null,null,null,null,null,null,null,null,null,null,null,null,null,null,null,null,null,null,null,null,null,null,null,null,null,null,null,null,null,null,null,null,null,null,null,null,null,null,null,null,null,null,null,null,null,null,null,null,null,null,null,null,null,null,null,null,null,null,null,null,null,null,null,null,null,null,null,null,null,null,null,null,null,null,null,null,null,null,null,null,null,null,null,null,null,null,null,null,null,null,null,null,null,null,null,null,null,null,null,null,null,null,null,null,null,null,null,null,null,null,null,null,null,null,null,null,null,null,null,null,null,null,null,null,null,null,null,null,null,null,null,null,null,null,null,null,null,null,null,null,null,null,null,null,null,null,null,null,null,null,null,null,null,null,null,null,null,null,null,null,null,null,null,null,null,null,null,null,null,null,null,null,null,null,null,null,null,null,null,null,null,null,null,null,null,null,null,null,null,null,null,null,null,null,null,null,null,null,null,null,null,null,null,null,null,null,null,null,null,null,null,null,null,null,null,null,null,null,null,null,null,null,null,null,null,null,null,null,null,null,null,null,null,null,null,null,null,null,null,null,null,null,null,null,null,null,null,null,null,null,null,null,null,null,null,null,null,null,null,null,null,null,null,null,null,null,null,null,null,null,null,null,null,null,null,null,null,null,null,null,null,null,null,null,null,null,null,null,null,null,null,null,null,null,null,null,null,null,null,null,null,null,null,null,null,null,null,null,null,null,null,null,null,null,null,null,null,null,null,null,null,null,null,null,null,null,null,null,null,null,null,null,null,null,null,null,null,null,null,null,null,null,null,null,null,null,null,null,null,null,null,null,null,null,null,null,null,null,null,null,null,null,null,null,null,null,null,null,null,null,null,null,null,null,null,null,null,null,null,null,null,null,null,null,null,null,null,null,null,null,null,null,null,null,null,null,null,null,null,null,null,null,null,null,null,null,null,null,null,null,null,null,null,null,null,null,null,null,null,null,null,null,null,null,null,null,null,null,null,null,null,null,null,null,null,null,null,null,null,null,null,null,null,null,null,null,null,null,null,null,null,null,null,null,null,null,null,null,null,null,null,null,null,null,null,null,null,null,null,null,null,null,null,null,null,null,null,null,null,null,null,null,null,null,null,null,null,null,null,null,null,null,null,null,null,null,null,null,null,null,null,null,null,null,null,null,null,null,null,null,null,null,null,null,null,null,null,null,null,null,null,null,null,null,null,null,null,null,null,null,null,null,null,null,null,null,null,null,null,null,null,null,null,null,null,null,null,null,null,null,null,null,null,null,null,null,null,null,null,null,null,null,null,null,null,null,null,null,null,null,null,null,null,null,null,null,null,null,null,null,null,null,null,null,null,null,null,null,null,null,null,null,null,null,null,null,null,null,null,null,null,null,null,null,null,null,null,null,null,null,null,null,null,null,null,null,null,null,null,null,null,null,null,null,null,null,null,null,null,null,null,null,null,null,null,null,null,null,null,null,null,null,null,null,null,null,null,null,null,null,null,null,null,null,null,null,null,null,null,null,null,null,null,null,null,null,null,null,null,null,null,null,null,null,null,null,null,null,null,null,null,null,null,null,null,null,null,null,null,null,null,null,null,null,null,null,null,null,null,null,null,null,null,null,null,null,null,null,null,null,null,null,null,null,null,null,null,null,null,null,null,null,null,null,null,null,null,null,null,null,null,null,null,null,null,null,null,null,null,null,null,null,null,null,null,null,null,null,null,null,null,null,null,null,null,null,null,null,null,null,null,null,null,null,null,null,null,null,null,null,null,null,null,null,null,null,null,null,null,null,null,null,null,null,null,null,null,null,null,null,null,null,null,null,null,null,null,null,null,null,null,null,null,null,null,null,null,null,null,null,null,null,null,null,null,null,null,null,null,null,null,null,null,null,null,null,null,null,null,null,null,null,null,null,null,null,null,null,null,null,null,null,null,null,null,null,null,null,null,null,null,null,null,null,null,null,null,null,null,null,null,null,null,null,null,null,null,null,null,null,null,null,null,null,null,null,null,null,null,null,null,null,null,null,null,null,null,null,null,null,null,null,null,null,null,null,null,null,null,null,null,null,null,null,null,null,null,null,null,null,null,null,null,null,null,null,null,null,null,null,null,null,null,null,null,null,null,null,null,null,null,null,null,null,null,null,null,null,null,null,null,null,null,null,null,null,null,null,null,null,null,null,null,null,null,null,null,null,null,null,null,null,null,null,null,null,null,null,null,null,null,null,null,null,null,null,null,null,null,null,null,null,null,null,null,null,null,null,null,null,null,null,null,null,null,null,null,null,null,null,null,null,null,null,null,null,null,null,null,null,null,null,null,null,null,null,null,null,null,null,null,null,null,null,null,null,null,null,null,null,null,null,null,null,null,null,null,null,null,null,null,null,null,null,null,null,null,null,null,null,null,null,null,null,null,null,null,null,null,null,null,null,null,null,null,null,null,null,null,null,null,null,null,null,null,null,null,null,null,null,null,null,null,null,null,null,null,null,null,null,null,null,null,null,null,null,null,null,null,null,null,null,null,null,null,null,null,null,null,null,null,null,null,null,null,null,null,null,null,null,null,null,null,null,null,null,null,null,null,null,null,null,null,null,null,null,null,null,null,null,null,null,null,null,null,null,null,null,null,null,null,null,null,null,null,null,null,null,null,null,null,null,null,null,null,null,null,null,null,null,null,null,null,null,null,null,null,null,null,null,null,null,null,null,null,null,null,null,null,null,null,null,null,null,null,null,null,null,null,null,null,null,null,null,null,null,null,null,null,null,null,null,null,null,null,null,null,null,null,null,null,null,null,null,null,null,null,null,null,null,null,null,null,null,null,null,null,null,null,null,null,null,null,null,null,null,null,null,null,null,null,null,null,null,null,null,null,null,null,null,null,null,null,null,null,null,null,null,null,null,null,null,null,null,null,null,null,null,null,null,null,null,null,null,null,null,null,null,null,null,null,null,null,null,null,null,null,null,null,null,null,null,null,null,null,null,null,null,null,null,null,null,null,null,null,null,null,null,null,null,null,null,null,null,null,null,null,null,null,null,null,null,null,null,null,null,null,null,null,null,null,null,null,null,null,null,null,null,null,null,null,null,null,null,null,null,null,null,null,null,null,null,null,null,null,null,null,null,null,null,null,null,null,null,null,null,null,null,null,null,null,null,null,null,null,null,null,null,null,null,null,null,null,null,null,null,null,null,null,null,null,null,null,null,null,null,null,null,null,null,null,null,null,null,null,null,null,null,null,null,null,null,null,null,null,null,null,null,null,null,null,null,null,null,null,null,null,null,null,null,null,null,null,null,null,null,null,null,null,null,null,null,null,null,null,null,null,null,null,null,null,null,null,null,null,null,null,null,null,null,null,null,null,null,null,null,null,null,null,null,null,null,null,null,null,null,null,null,null,null,null,null,null,null,null,null,null,null,null,null,null,null,null,null,null,null,null,null,null,null,null,null,null,null,null,null,null,null,null,null,null,null,null,null,null,null,null,null,null,null,null,null,null,null,null,null,null,null,null,null,null,null,null,null,null,null,null,null,null,null,null,null,null,null,null,null,null,null,null,null,null,null,null,null,null,null,null,null,null,null,null,null,null,null,null,null,null,null,null,null,null,null,null,null,null,null,null,null,null,null,null,null,null,null,null,null,null,null,null,null,null,null,null,null,null,null,null,null,null,null,null,null,null,null,null,null,null,null,null,null,null,null,null,null,null,null,null,null,null,null,null,null,null,null,null,null,null,null,null,null,null,null,null,null,null,null,null,null,null,null,null,null,null,null,null,null,null,null,null,null,null,null,null,null,null,null,null,null,null,null,null,null,null,null,null,null,null,null,null,null,null,null,null,null,null,null,null,null,null,null,null,null,null,null,null,null,null,null,null,null,null,null,null,null,null,null,null,null,null,null,null,null,null,null,null,null,null,null,null,null,null,null,null,null,null,null,null,null,null,null,null,null,null,null,null,null,null,null,null,null,null,null,null,null,null,null,null,null,null,null,null,null,null,null,null,null,null,null,null,null,null,null,null,null,null,null,null,null,null,null,null,null,null,null,null,null,null,null,null,null,null,null,null,null,null,null,null,null,null,null,null,null,null,null,null,null,null,null,null,null,null,null,null,null,null,null,null,null,null,null,null,null,null,null,null,null,null,null,null,null,null,null,null,null,null,null,null,null,null,null,null,null,null,null,null,null,null,null,null,null,null,null,null,null,null,null,null,null,null,null,null,null,null,null,null,null,null,null,null,null,null,null,null,null,null,null,null,null,null,null,null,null,null,null,null,null,null,null,null,null,null,null,null,null,null,null,null,null,null,null,null,null,null,null,null,null,null,null,null,null,null,null,null,null,null,null,null,null,null,null,null,null,null,null,null,null,null,null,null,null,null,null,null,null,null,null,null,null,null,null,null,null,null,null,null,null,null,null,null,null,null,null,null,null,null,null,null,null,null,null,null,null,null,null,null,null,null,null,null,null,null,null,null,null,null,null,null,null,null,null,null,null,null,null,null,null,null,null,null,null,null,null,null,null,null,null,null,null,null,null,null,null,null,null,null,null,null,null,null,null,null,null,null,null,null,null,null,null,null,null,null,null,null,null,null,null,null,null,null,null,null,null,null,null,null,null,null,null,null,null,null,null,null,null,null,null,null,null,null,null,null,null,null,null,null,null,null,null,null,null,null,null,null,null,null,null,null,null,null,null,null,null,null,null,null,null,null,null,null,null,null,null,null,null,null,null,null,null,null,null,null,null,null,null,null,null,null,null,null,null,null,null,null,null,null,null,null,null,null,null,null,null,null,null,null,null,null,null,null,null,null,null,null,null,null,null,null,null,null,null,null,null,null,null,null,null,null,null,null,null,null,null,null,null,null,null,null,null,null,null,null,null,null,null,null,null,null,null,null,null,null,null,null,null,null,null,null,null,null,null,null,null,null,null,null,null,null,null,null,null,null,null,null,null,null,null,null,null,null,null,null,null,null,null,null,null,null,null,null,null,null,null,null,null,null,null,null,null,null,null,null,null,null,null,null,null,null,null,null,null,null,null,null,null,null,null,null,null,null,null,null,null,null,null,null,null,null,null,null,null,null,null,null,null,null,null,null,null,null,null,null,null,null,null,null,null,null,null,null,null,null,null,null,null,null,null,null,null,null,null,null,null,null,null,null,null,null,null,null,null,null,null,null,null,null,null,null,null,null,null,null,null,null,null,null,null,null,null,null,null,null,null,null,null,null,null,null,null,null,null,null,null,null,null,null,null,null,null,null,null,null,null,null,null,null,null,null,null,null,null,null,null,null,null,null,null,null,null,null,null,null,null,null,null,null,null,null,null,null,null,null,null,null,null,null,null,null,null,null,null,null,null,null,null,null,null,null,null,null,null,null,null,null,null,null,null,null,null,null,null,null,null,null,null,null,null,null,null,null,null,null,null,null,null,null,null,null,null,null,null,null,null,null,null,null,null,null,null,null,null,null,null,null,null,null,null,null,null,null,null,null,null,null,null,null,null,null,null,null,null,null,null,null,null,null,null,null,null,null,null,null,null,null,null,null,null,null,null,null,null,null,null,null,null,null,null,null,null,null,null,null,null,null,null,null,null,null,null,null,null,null,null,null,null,null,null,null,null,null,null,null,null,null,null,null,null,null,null,null,null,null,null,null,null,null,null,null,null,null,null,null,null,null,null,null,null,null,null,null,null,null,null,null,null,null,null,null,null,null,null,null,null,null,null,null,null,null,null,null,null,null,null,null,null,null,null,null,null,null,null,null,null,null,null,null,null,null,null,null,null,null,null,null,null,null,null,null,null,null,null,null,null,null,null,null,null,null,null,null,null,null,null,null,null,null,null,null,null,null,null,null,null,null,null,null,null,null,null,null,null,null,null,null,null,null,null,null,null,null,null,null,null,null,null,null,null,null,null,null,null,null,null,null,null,null,null,null,null,null,null,null,null,null,null,null,null,null,null,null,null,null,null,null,null,null,null,null,null,null,null,null,null,null,null,null,null,null,null,null,null,null,null,null,null,null,null,null,null,null,null,null,null,null,null,null,null,null,null,null,null,null,null,null,null,null,null,null,null,null,null,null,null,null,null,null,null,null,null,null,null,null,null,null,null,null,null,null,null,null,null,null,null,null,null,null,null,null,null,null,null,null,null,null,null,null,null,null,null,null,null,null,null,null,null,null,null,null,null,null,null,null,null,null,null,null,null,null,null,null,null,null,null,null,null,null,null,null,null,null,null,null,null,null,null,null,null,null,null,null,null,null,null,null,null,null,null,null,null,null,null,null,null,null,null,null,null,null,null,null,null,null,null,null,null,null,null,null,null,null,null,null,null,null,null,null,null,null,null,null,null,null,null,null,null,null,null,null,null,null,null,null,null,null,null,null,null,null,null,null,null,null,null,null,null,null,null,null,null,null,null,null,null,null,null,null,null,null,null,null,null,null,null,null,null,null,null,null,null,null,null,null,null,null,null,null,null,null,null,null,null,null,null,null,null,null,null,null,null,null,null,null,null,null,null,null,null,null,null,null,null,null,null,null,null,null,null,null,null,null,null,null,null,null,null,null,null,null,null,null,null,null,null,null,null,null,null,null,null,null,null,null,null,null,null,null,null,null,null,null,null,null,null,null,null,null,null,null,null,null,null,null,null,null,null,null,null,null,null,null,null,null,null,null,null,null,null,null,null,null,null,null,null,null,null,null,null,null,null,null,null,null,null,null,null,null,null,null,null,null,null,null,null,null,null,null,null,null,null,null,null,null,null,null,null,null,null,null,null,null,null,null,null,null,null,null,null,null,null,null,null,null,null,null,null,null,null,null,null,null,null,null,null,null,null,null,null,null,null,null,null,null,null,null,null,null,null,null,null,null,null,null,null,null,null,null,null,null,null,null,null,null,null,null,null,null,null,null,null,null,null,null,null,null,null,null,null,null,null,null,null,null,null,null,null,null,null,null,null,null,null,null,null,null,null,null,null,null,null,null,null,null,null,null,null,null,null,null,null,null,null,null,null,null,null,null,null,null,null,null,null,null,null,null,null,null,null,null,null,null,null,null,null,null,null,null,null,null,null,null,null,null,null,null,null,null,null,null,null,null,null,null,null,null,null,null,null,null,null,null,null,null,null,null,null,null,null,null,null,null,null,null,null,null,null,null,null,null,null,null,null,null,null,null,null,null,null,null,null,null,null,null,null,null,null,null,null,null,null,null,null,null,null,null,null,null,null,null,null,null,null,null,null,null,null,null,null,null,null,null,null,null,null,null,null,null,null,null,null,null,null,null,null,null,null,null,null,null,null,null,null,null,null,null,null,null,null,null,null,null,null,null,null,null,null,null,null,null,null,null,null,null,null,null,null,null,null,null,null,null,null,null,null,null,null,null,null,null,null,null,null,null,null,null,null,null,null,null,null,null,null,null,null,null,null,null,null,null,null,null,null,null,null,null,null,null,null,null,null,null,null,null,null,null,null,null,null,null,null,null,null,null,null,null,null,null,null,null,null,null,null,null,null,null,null,null,null,null,null,null,null,null,null,null,null,null,null,null,null,null,null,null,null,null,null,null,null,null,null,null,null,null,null,null,null,null,null,null,null,null,null,null,null,null,null,null,null,null,null,null,null,null,null,null,null,null,null,null,null,null,null,null,null,null,null,null,null,null,null,null,null,null,null,null,null,null,null,null,null,null,null,null,null,null,null,null,null,null,null,null,null,null,null,null,null,null,null,null,null,null,null,null,null,null,null,null,null,null,null,null,null,null,null,null,null,null,null,null,null,null,null,null,null,null,null,null,null,null,null,null,null,null,null,null,null,null,null,null,null,null,null,null,null,null,null,null,null,null,null,null,null,null,null,null,null,null,null,null,null,null,null,null,null,null,null,null,null,null,null,null,null,null,null,null,null,null,null,null,null,null,null,null,null,null,null,null,null,null,null,null,null,null,null,null,null,null,null,null,null,null,null,null,null,null,null,null,null,null,null,null,null,null,null,null,null,null,null,null,null,null,null,null,null,null,null,null,null,null,null,null,null,null,null,null,null,null,null,null,null,null,null,null,null,null,null,null,null,null,null,null,null,null,null,null,null,null,null,null,null,null,null,null,null,null,null,null,null,null,null,null,null,null,null,null,null,null,null,null,null,null,null,null,null,null,null,null,null,null,null,null,null,null,null,null,null,null,null,null,null,null,null,null,null,null,null,null,null,null,null,null,null,null,null,null,null,null,null,null,null,null,null,null,null,null,null,null,null,null,null,null,null,null,null,null,null,null,null,null,null,null,null,null,null,null,null,null,null,null,null,null,null,null,null,null,null,null,null,null,null,null,null,null,null,null,null,null,null,null,null,null,null,null,null,null,null,null,null,null,null,null,null,null,null,null,null,null,null,null,null,null,null,null,null,null,null,null,null,null,null,null,null,null,null,null,null,null,null,null,null,null,null,null,null,null,null,null,null,null,null,null,null,null,null,null,null,null,null,null,null,null,null,null,null,null,null,null,null,null,null,null,null,null,null,null,null,null,null,null,null,null,null,null,null,null,null,null,null,null,null,null,null,null,null,null,null,null,null,null,null,null,null,null,null,null,null,null,null,null,null,null,null,null,null,null,null,null,null,null,null,null,null,null,null,null,null,null,null,null,null,null,null,null,null,null,null,null,null,null,null,null,null,null,null,null,null,null,null,null,null,null,null,null,null,null,null,null,null,null,null,null,null,null,null,null,null,null,null,null,null,null,null,null,null,null,null,null,null,null,null,null,null,null,null,null,null,null,null,null,null,null,null,null,null,null,null,null,null,null,null,null,null,null,null,null,null,null,null,null,null,null,null,null,null,null,null,null,null,null,null,null,null,null,null,null,null,null,null,null,null,null,null,null,null,null,null,null,null,null,null,null,null,null,null,null,null,null,null,null,null,null,null,null,null,null,null,null,null,null,null,null,null,null,null,null,null,null,null,null,null,null,null,null,null,null,null,null,null,null,null,null,null,null,null,null,null,null,null,null,null,null,null,null,null,null,null,null,null,null,null,null,null,null,null,null,null,null,null,null,null,null,null,null,null,null,null,null,null,null,null,null,null,null,null,null,null,null,null,null,null,null,null,null,null,null,null,null,null,null,null,null,null,null,null,null,null,null,null,null,null,null,null,null,null,null,null,null,null,null,null,null,null,null,null,null,null,null,null,null,null,null,null,null,null,null,null,null,null,null,null,null,null,null,null,null,null,null,null,null,null,null,null,null,null,null,null,null,null,null,null,null,null,null,null,null,null,null,null,null,null,null,null,null,null,null,null,null,null,null,null,null,null,null,null,null,null,null,null,null,null,null,null,null,null,null,null,null,null,null,null,null,null,null,null,null,null,null,null,null,null,null,null,null,null,null,null,null,null,null,null,null,null,null,null,null,null,null,null,null,null,null,null,null,null,null,null,null,null,null,null,null,null,null,null,null,null,null,null,null,null,null,null,null,null,null,null,null,null,null,null,null,null,null,null,null,null,null,null,null,null,null,null,null,null,null,null,null,null,null,null,null,null,null,null,null,null,null,null,null,null,null,null,null,null,null,null,null,null,null,null,null,null,null,null,null,null,null,null,null,null,null,null,null,null,null,null,null,null,null,null,null,null,null,null,null,null,null,null,null,null,null,null,null,null,null,null,null,null,null,null,null,null,null,null,null,null,null,null,null,null,null,null,null,null,null,null,null,null,null,null,null,null,null,null,null,null,null,null,null,null,null,null,null,null,null,null,null,null,null,null,null,null,null,null,null,null,null,null,null,null,null,null,null,null,null,null,null,null,null,null,null,null,null,null,null,null,null,null,null,null,null,null,null,null,null,null,null,null,null,null,null,null,null,null,null,null,null,null,null,null,null,null,null,null,null,null,null,null,null,null,null,null,null,null,null,null,null,null,null,null,null,null,null,null,null,null,null,null,null,null,null,null,null,null,null,null,null,null,null,null,null,null,null,null,null,null,null,null,null,null,null,null,null,null,null,null,null,null,null,null,null,null,null,null,null,null,null,null,null,null,null,null,null,null,null,null,null,null,null,null,null,null,null,null,null,null,null,null,null,null,null,null,null,null,null,null,null,null,null,null,null,null,null,null,null,null,null,null,null,null,null,null,null,null,null,null,null,null,null,null,null,null,null,null,null,null,null,null,null,null,null,null,null,null,null,null,null,null,null,null,null,null,null,null,null,null,null,null,null,null,null,null,null,null,null,null,null,null,null,null,null,null,null,null,null,null,null,null,null,null,null,null,null,null,null,null,null,null,null,null,null,null,null,null,null,null,null,null,null,null,null,null,null,null,null,null,null,null,null,null,null,null,null,null,null,null,null,null,null,null,null,null,null,null,null,null,null,null,null,null,null,null,null,null,null,null,null,null,null,null,null,null,null,null,null,null,null,null,null,null,null,null,null,null,null,null,null,null,null,null,null,null,null,null,null,null,null,null,null,null,null,null,null,null,null,null,null,null,null,null,null,null,null,null,null,null,null,null,null,null,null,null,null,null,null,null,null,null,null,null,null,null,null,null,null,null,null,null,null,null,null,null,null,null,null,null,null,null,null,null,null,null,null,null,null,null,null,null,null,null,null,null,null,null,null,null,null,null,null,null,null,null,null,null,null,null,null,null,null,null,null,null,null,null,null,null,null,null,null,null,null,null,null,null,null,null,null,null,null,null,null,null,null,null,null,null,null,null,null,null,null,null,null,null,null,null,null,null,null,null,null,null,null,null,null,null,null,null,null,null,null,null,null,null,null,null,null,null,null,null,null,null,null,null,null,null,null,null,null,null,null,null,null,null,null,null,null,null,null,null,null,null,null,null,null,null,null,null,null,null,null,null,null,null,null,null,null,null,null,null,null,null,null,null,null,null,null,null,null,null,null,null,null,null,null,null,null,null,null,null,null,null,null,null,null,null,null,null,null,null,null,null,null,null,null,null,null,null,null,null,null,null,null,null,null,null,null,null,null,null,null,null,null,null,null,null,null,null,null,null,null,null,null,null,null,null,null,null,null,null,null,null,null,null,null,null,null,null,null,null,null,null,null,null,null,null,null,null,null,null,null,null,null,null,null,null,null,null,null,null,null,null,null,null,null,null,null,null,null,null,null,null,null,null,null,null,null,null,null,null,null,null,null,null,null,null,null,null,null,null,null,null,null,null,null,null,null,null,null,null,null,null,null,null,null,null,null,null,null,null,null,null,null,null,null,null,null,null,null,null,null,null,null,null,null,null,null,null,null,null,null,null,null,null,null,null,null,null,null,null,null,null,null,null,null,null,null,null,null,null,null,null,null,null,null,null,null,null,null,null,null,null,null,null,null,null,null,null,null,null,null,null,null,null,null,null,null,null,null,null,null,null,null,null,null,null,null,null,null,null,null,null,null,null,null,null,null,null,null,null,null,null,null,null,null,null,null,null,null,null,null,null,null,null,null,null,null,null,null,null,null,null,null,null,null,null,null,null,null,null,null,null,null,null,null,null,null,null,null,null,null,null,null,null,null,null,null,null,null,null,null,null,null,null,null,null,null,null,null,null,null,null,null,null,null,null,null,null,null,null,null,null,null,null,null,null,null,null,null,null,null,null,null,null,null,null,null,null,null,null,null,null,null,null,null,null,null,null,null,null,null,null,null,null,null,null,null,null,null,null,null,null,null,null,null,null,null,null,null,null,null,null,null,null,null,null,null,null,null,null,null,null,null,null,null,null,null,null,null,null,null,null,null,null,null,null,null,null,null,null,null,null,null,null,null,null,null,null,null,null,null,null,null,null,null,null,null,null,null,null,null,null,null,null,null,null,null,null,null,null,null,null,null,null,null,null,null,null,null,null,null,null,null,null,null,null,null,null,null,null,null,null,null,null,null,null,null,null,null,null,null,null,null,null,null,null,null,null,null,null,null,null,null,null,null,null,null,null,null,null,null,null,null,null,null,null,null,null,null,null,null,null,null,null,null,null,null,null,null,null,null,null,null,null,null,null,null,null,null,null,null,null,null,null,null,null,null,null,null,null,null,null,null,null,null,null,null,null,null,null,null,null,null,null,null,null,null,null,null,null,null,null,null,null,null,null,null,null,null,null,null,null,null,null,null,null,null,null,null,null,null,null,null,null,null,null,null,null,null,null,null,null,null,null,null,null,null,null,null,null,null,null,null,null,null,null,null,null,null,null,null,null,null,null,null,null,null,null,null,null,null,null,null,null,null,null,null,null,null,null,null,null,null,null,null,null,null,null,null,null,null,null,null,null,null,null,null,null,null,null,null,null,null,null,null,null,null,null,null,null,null,null,null,null,null,null,null,null,null,null,null,null,null,null,null,null,null,null,null,null,null,null,null,null,null,null,null,null,null,null,null,null,null,null,null,null,null,null,null,null,null,null,null,null,null,null,null,null,null,null,null,null,null,null,null,null,null,null,null,null,null,null,null,null,null,null,null,null,null,null,null,null,null,null,null,null,null,null,null,null,null,null,null,null,null,null,null,null,null,null,null,null,null,null,null,null,null,null,null,null,null,null,null,null,null,null,null,null,null,null,null,null,null,null,null,null,null,null,null,null,null,null,null,null,null,null,null,null,null,null,null,null,null,null,null,null,null,null,null,null,null,null,null,null,null,null,null,null,null,null,null,null,null,null,null,null,null,null,null,null,null,null,null,null,null,null,null,null,null,null,null,null,null,null,null,null,null,null,null,null,null,null,null,null,null,null,null,null,null,null,null,null,null,null,null,null,null,null,null,null,null,null,null,null,null,null,null,null,null,null,null,null,null,null,null,null,null,null,null,null,null,null,null,null,null,null,null,null,null,null,null,null,null,null,null,null,null,null,null,null,null,null,null,null,null,null,null,null,null,null,null,null,null,null,null,null,null,null,null,null,null,null,null,null,null,null,null,null,null,null,null,null,null,null,null,null,null,null,null,null,null,null,null,null,null,null,null,null,null,null,null,null,null,null,null,null,null,null,null,null,null,null,null,null,null,null,null,null,null,null,null,null,null,null,null,null,null,null,null,null,null,null,null,null,null,null,null,null,null,null,null,null,null,null,null,null,null,null,null,null,null,null,null,null,null,null,null,null,null,null,null,null,null,null,null,null,null,null,null,null,null,null,null,null,null,null,null,null,null,null,null,null,null,null,null,null,null,null,null,null,null,null,null,null,null,null,null,null,null,null,null,null,null,null,null,null,null,null,null,null,null,null,null,null,null,null,null,null,null,null,null,null,null,null,null,null,null,null,null,null,null,null,null,null,null,null,null,null,null,null,null,null,null,null,null,null,null,null,null,null,null,null,null,null,null,null,null,null,null,null,null,null,null,null,null,null,null,null,null,null,null,null,null,null,null,null,null,null,null,null,null,null,null,null,null,null,null,null,null,null,null,null,null,null,null,null,null,null,null,null,null,null,null,null,null,null,null,null,null,null,null,null,null,null,null,null,null,null,null,null,null,null,null,null,null,null,null,null,null,null,null,null,null,null,null,null,null,null,null,null,null,null,null,null,null,null,null,null,null,null,null,null,null,null,null,null,null,null,null,null,null,null,null,null,null,null,null,null,null,null,null,null,null,null,null,null,null,null,null,null,null,null,null,null,null,null,null,null,null,null,null,null,null,null,null,null,null,null,null,null,null,null,null,null,null,null,null,null,null,null,null,null,null,null,null,null,null,null,null,null,null,null,null,null,null,null,null,null,null,null,null,null,null,null,null,null,null,null,null,null,null,null,null,null,null,null,null,null,null,null,null,null,null,null,null,null,null,null,null,null,null,null,null,null,null,null,null,null,null,null,null,null,null,null,null,null,null,null,null,null,null,null,null,null,null,null,null,null,null,null,null,null,null,null,null,null,null,null,null,null,null,null,null,null,null,null,null,null,null,null,null,null,null,null,null,null,null,null,null,null,null,null,null,null,null,null,null,null,null,null,null,null,null,null,null,null,null,null,null,null,null,null,null,null,null,null,null,null,null,null,null,null,null,null,null,null,null,null,null,null,null,null,null,null,null,null,null,null,null,null,null,null,null,null,null,null,null,null,null,null,null,null,null,null,null,null,null,null,null,null,null,null,null,null,null,null,null,null,null,null,null,null,null,null,null,null,null,null,null,null,null,null,null,null,null,null,null,null,null,null,null,null,null,null,null,null,null,null,null,null,null,null,null,null,null,null,null,null,null,null,null,null,null,null,null,null,null,null,null,null,null,null,null,null,null,null,null,null,null,null,null,null,null,null,null,null,null,null,null,null,null,null,null,null,null,null,null,null,null,null,null,null,null,null,null,null,null,null,null,null,null,null,null,null,null,null,null,null,null,null,null,null,null,null,null,null,null,null,null,null,null,null,null,null,null,null,null,null,null,null,null,null,null,null,null,null,null,null,null,null,null,null,null,null,null,null,null,null,null,null,null,null,null,null,null,null,null,null,null,null,null,null,null,null,null,null,null,null,null,null,null,null,null,null,null,null,null,null,null,null,null,null,null,null,null,null,null,null,null,null,null,null,null,null,null,null,null,null,null,null,null,null,null,null,null,null,null,null,null,null,null,null,null,null,null,null,null,null,null,null,null,null,null,null,null,null,null,null,null,null,null,null,null,null,null,null,null,null,null,null,null,null,null,null,null,null,null,null,null,null,null,null,null,null,null,null,null,null,null,null,null,null,null,null,null,null,null,null,null,null,null,null,null,null,null,null,null,null,null,null,null,null,null,null,null,null,null,null,null,null,null,null,null,null,null,null,null,null,null,null,null,null,null,null,null,null,null,null,null,null,null,null,null,null,null,null,null,null,null,null,null,null,null,null,null,null,null,null,null,null,null,null,null,null,null,null,null,null,null,null,null,null,null,null,null,null,null,null,null,null,null,null,null,null,null,null,null,null,null,null,null,null,null,null,null,null,null,null,null,null,null,null,null,null,null,null,null,null,null,null,null,null,null,null,null,null,null,null,null,null,null,null,null,null,null,null,null,null,null,null,null,null,null,null,null,null,null,null,null,null,null,null,null,null,null,null,null,null,null,null,null,null,null,null,null,null,null,null,null,null,null,null,null,null,null,null,null,null,null,null,null,null,null,null,null,null,null,null,null,null,null,null,null,null,null,null,null,null,null,null,null,null,null,null,null,null,null,null,null,null,null,null,null,null,null,null,null,null,null,null,null,null,null,null,null,null,null,null,null,null,null,null,null,null,null,null,null,null,null,null,null,null,null,null,null,null,null,null,null,null,null,null,null,null,null,null,null,null,null,null,null,null,null,null,null,null,null,null,null,null,null,null,null,null,null,null,null,null,null,null,null,null,null,null,null,null,null,null,null,null,null,null,null,null,null,null,null,null,null,null,null,null,null,null,null,null,null,null,null,null,null,null,null,null,null,null,null,null,null,null,null,null,null,null,null,null,null,null,null,null,null,null,null,null,null,null,null,null,null,null,null,null,null,null,null,null,null,null,null,null,null,null,null,null,null,null,null,null,null,null,null,null,null,null,null,null,null,null,null,null,null,null,null,null,null,null,null,null,null,null,null,null,null,null,null,null,null,null,null,null,null,null,null,null,null,null,null,null,null,null,null,null,null,null,null,null,null,null,null,null,null,null,null,null,null,null,null,null,null,null,null,null,null,null,null,null,null,null,null,null,null,null,null,null,null,null,null,null,null,null,null,null,null,null,null,null,null,null,null,null,null,null,null,null,null,null,null,null,null,null,null,null,null,null,null,null,null,null,null,null,null,null,null,null,null,null,null,null,null,null,null,null,null,null,null,null,null,null,null,null,null,null,null,null,null,null,null,null,null,null,null,null,null,null,null,null,null,null,null,null,null,null,null,null,null,null,null,null,null,null,null,null,null,null,null,null,null,null,null,null,null,null,null,null,null,null,null,null,null,null,null,null,null,null,null,null,null,null,null,null,null,null,null,null,null,null,null,null,null,null,null,null,null,null,null,null,null,null,null,null,null,null,null,null,null,null,null,null,null,null,null,null,null,null,null,null,null,null,null,null,null,null,null,null,null,null,null,null,null,null,null,null,null,null,null,null,null,null,null,null,null,null,null,null,null,null,null,null,null,null,null,null,null,null,null,null,null,null,null,null,null,null,null,null,null,null,null,null,null,null,null,null,null,null,null,null,null,null,null,null,null,null,null,null,null,null,null,null,null,null,null,null,null,null,null,null,null,null,null,null,null,null,null,null,null,null,null,null,null,null,null,null,null,null,null,null,null,null,null,null,null,null,null,null,null,null,null,null,null,null,null,null,null,null,null,null,null,null,null,null,null,null,null,null,null,null,null,null,null,null,null,null,null,null,null,null,null,null,null,null,null,null,null,null,null,null,null,null,null,null,null,null,null,null,null,null,null,null,null,null,null,null,null,null,null,null,null,null,null,null,null,null,null,null,null,null,null,null,null,null,null,null,null,null,null,null,null,null,null,null,null,null,null,null,null,null,null,null,null,null,null,null,null,null,null,null,null,null,null,null,null,null,null,null,null,null,null,null,null,null,null,null,null,null,null,null,null,null,null,null,null,null,null,null,null,null,null,null,null,null,null,null,null,null,null,null,null,null,null,null,null,null,null,null,null,null,null,null,null,null,null,null,null,null,null,null,null,null,null,null,null,null,null,null,null,null,null,null,null,null,null,null,null,null,null,null,null,null,null,null,null,null,null,null,null,null,null,null,null,null,null,null,null,null,null,null,null,null,null,null,null,null,null,null,null,null,null,null,null,null,null,null,null,null,null,null,null,null,null,null,null,null,null,null,null,null,null,null,null,null,null,null,null,null,null,null,null,null,null,null,null,null,null,null,null,null,null,null,null,null,null,null,null,null,null,null,null,null,null,null,null,null,null,null,null,null,null,null,null,null,null,null,null,null,null,null,null,null,null,null,null,null,null,null,null,null,null,null,null,null,null,null,null,null,null,null,null,null,null,null,null,null,null,null,null,null,null,null,null,null,null,null,null,null,null,null,null,null,null,null,null,null,null,null,null,null,null,null,null,null,null,null,null,null,null,null,null,null,null,null,null,null,null,null,null,null,null,null,null,null,null,null,null,null,null,null,null,null,null,null,null,null,null,null,null,null,null,null,null,null,null,null,null,null,null,null,null,null,null,null,null,null,null,null,null,null,null,null,null,null,null,null,null,null,null,null,null,null,null,null,null,null,null,null,null,null,null,null,null,null,null,null,null,null,null,null,null,null,null,null,null,null,null,null,null,null,null,null,null,null,null,null,null,null,null,null,null,null,null,null,null,null,null,null,null,null,null,null,null,null,null,null,null,null,null,null,null,null,null,null,null,null,null,null,null,null,null,null,null,null,null,null,null,null,null,null,null,null,null,null,null,null,null,null,null,null,null,null,null,null,null,null,null,null,null,null,null,null,null,null,null,null,null,null,null,null,null,null,null,null,null,null,null,null,null,null,null,null,null,null,null,null,null,null,null,null,null,null,null,null,null,null,null,null,null,null,null,null,null,null,null,null,null,null,null,null,null,null,null,null,null,null,null,null,null,null,null,null,null,null,null,null,null,null,null,null,null,null,null,null,null,null,null,null,null,null,null,null,null,null,null,null,null,null,null,null,null,null,null,null,null,null,null,null,null,null,null,null,null,null,null,null,null,null,null,null,null,null,null,null,null,null,null,null,null,null,null,null,null,null,null,null,null,null,null,null,null,null,null,null,null,null,null,null,null,null,null,null,null,null,null,null,null,null,null,null,null,null,null,null,null,null,null,null,null,null,null,null,null,null,null,null,null,null,null,null,null,null,null,null,null,null,null,null,null,null,null,null,null,null,null,null,null,null,null,null,null,null,null,null,null,null,null,null,null,null,null,null,null,null,null,null,null,null,null,null,null,null,null,null,null,null,null,null,null,null,null,null,null,null,null,null,null,null,null,null,null,null,null,null,null,null,null,null,null,null,null,null,null,null,null,null,null,null,null,null,null,null,null,null,null,null,null,null,null,null,null,null,null,null,null,null,null,null,null,null,null,null,null,null,null,null,null,null,null,null,null,null,null,null,null,null,null,null,null,null,null,null,null,null,null,null,null,null,null,null,null,null,null,null,null,null,null,null,null,null,null,null,null,null,null,null,null,null,null,null,null,null,null,null,null,null,null,null,null,null,null,null,null,null,null,null,null,null,null,null,null,null,null,null,null,null,null,null,null,null,null,null,null,null,null,null,null,null,null,null,null,null,null,null,null,null,null,null,null,null,null,null,null,null,null,null,null,null,null,null,null,null,null,null,null,null,null,null,null,null,null,null,null,null,null,null,null,null,null,null,null,null,null,null,null,null,null,null,null,null,null,null,null,null,null,null,null,null,null,null,null,null,null,null,null,null,null,null,null,null,null,null,null,null,null,null,null,null,null,null,null,null,null,null,null,null,null,null,null,null,null,null,null,null,null,null,null,null,null,null,null,null,null,null,null,null,null,null,null,null,null,null,null,null,null,null,null,null,null,null,null,null,null,null,null,null,null,null,null,null,null,null,null,null,null,null,null,null,null,null,null,null,null,null,null,null,null,null,null,null,null,null,null,null,null,null,null,null,null,null,null,null,null,null,null,null,null,null,null,null,null,null,null,null,null,null,null,null,null,null,null,null,null,null,null,null,null,null,null,null,null,null,null,null,null,null,null,null,null,null,null,null,null,null,null,null,null,null,null,null,null,null,null,null,null,null,null,null,null,null,null,null,null,null,null,null,null,null,null,null,null,null,null,null,null,null,null,null,null,null,null,null,null,null,null,null,null,null,null,null,null,null,null,null,null,null,null,null,null,null,null,null,null,null,null,null,null,null,null,null,null,null,null,null,null,null,null,null,null,null,null,null,null,null,null,null,null,null,null,null,null,null,null,null,null,null,null,null,null,null,null,null,null,null,null,null,null,null,null,null,null,null,null,null,null,null,null,null,null,null,null,null,null,null,null,null,null,null,null,null,null,null,null,null,"(*) Accidentes asignados en 2016 para su investigación en el mismo periodo y durante el año 2017"]
[{"$f":"Nota","v":"(*) Accidentes asignados en 2018 para su investigación en el mismo periodo y durante el año 2019"}]

{"sheet":"Hoja5","index":8,"n_rows":58,"n_cols":75,"rows_kept":58,"cut":false,"hidden":true,"merged":[[17,72,17,74],[6,72,6,74],[16,72,16,74],[5,0,5,4],[6,0,7,1],[6,2,6,3],[6,4,7,4]]}
[]
[]
[]
[]
[]
["Causas y porcentajes de los accidentes investigados graves, muy graves, mortales del sector Industria (*)"]
[{"$f":"año_publi","v":2018},null,"Respuestas",null,"Porcentaje de casos",null,null,null,null,null,null,null,null,null,null,null,null,null,null,null,null,null,null,null,null,null,null,null,null,null,null,null,null,null,null,null,null,null,null,null,null,null,null,null,null,null,null,null,null,null,null,null,null,null,null,null,null,null,null,null,null,null,null,null,null,null,null,null,null,null,null,null,"Bloques de causa de accidentes graves, muy graves y mortales investigados del sector industria y porcentaje . Año 2015 (*)"]
[null,null,"Nº","Porcentaje",null,null,null,null,null,null,null,null,null,null,null,null,null,null,null,null,null,null,null,null,null,null,null,null,null,null,null,null,null,null,null,null,null,null,null,null,null,null,null,null,null,null,null,null,null,null,null,null,null,null,null,null,null,null,null,null,null,null,null,null,null,null,null,null,null,null,null,null," ","Frecuencia","Porcentaje"]
[null,"7206 Formación/información inadecuada, inexistente sobre riesgos o medidas preventivas",6,7.0999999999999994E-2,0.27300000000000002,null,null,null,null,null,null,null,null,null,null,null,null,null,null,null,null,null,null,null,null,null,null,null,null,null,null,null,null,null,null,null,null,null,null,null,null,null,null,null,null,null,null,null,null,null,null,null,null,null,null,null,null,null,null,null,null,null,null,null,null,null,null,null,null,null,null,null,"Total",25,1]
[null,"3111 Accesibilidad a órganos de la máquina peligrosos (atrapantes, cortantes, punzantes, o con posibilidad de ocasionar",5,5.8999999999999997E-2,0.22700000000000001,null,null,null,null,null,null,null,null,null,null,null,null,null,null,null,null,null,null,null,null,null,null,null,null,null,null,null,null,null,null,null,null,null,null,null,null,null,null,null,null,null,null,null,null,null,null,null,null,null,null,null,null,null,null,null,null,null,null,null,null,null,null,null,null,null,null,null,"Prevención intrínseca",10,0.4]
[null,"6102 Método de trabajo inadecuado",5,5.8999999999999997E-2,0.22700000000000001,null,null,null,null,null,null,null,null,null,null,null,null,null,null,null,null,null,null,null,null,null,null,null,null,null,null,null,null,null,null,null,null,null,null,null,null,null,null,null,null,null,null,null,null,null,null,null,null,null,null,null,null,null,null,null,null,null,null,null,null,null,null,null,null,null,null,null,"Protección, señalización",5,0.2]
[null,"6304 Formación/información inadecuada o inexistente sobre la tarea",4,4.7E-2,0.182,null,null,null,null,null,null,null,null,null,null,null,null,null,null,null,null,null,null,null,null,null,null,null,null,null,null,null,null,null,null,null,null,null,null,null,null,null,null,null,null,null,null,null,null,null,null,null,null,null,null,null,null,null,null,null,null,null,null,null,null,null,null,null,null,null,null,null,"Espacios y superficies de trabajo",2,0.08]
[null,"7201 No identificación del/los riesgos que han materializado el accidente",4,4.7E-2,0.182,null,null,null,null,null,null,null,null,null,null,null,null,null,null,null,null,null,null,null,null,null,null,null,null,null,null,null,null,null,null,null,null,null,null,null,null,null,null,null,null,null,null,null,null,null,null,null,null,null,null,null,null,null,null,null,null,null,null,null,null,null,null,null,null,null,null,null,"Organización del trabajo",19,0.76]
[null,"3201 Ausencia y/o deficiencia de resguardos y de dispositivos de protección",3,3.5000000000000003E-2,0.13600000000000001,null,null,null,null,null,null,null,null,null,null,null,null,null,null,null,null,null,null,null,null,null,null,null,null,null,null,null,null,null,null,null,null,null,null,null,null,null,null,null,null,null,null,null,null,null,null,null,null,null,null,null,null,null,null,null,null,null,null,null,null,null,null,null,null,null,null,null,"Gestión de la prevención",14,0.56000000000000005]
[null,"3302 Deficiencia/ausencia del manual de instrucciones de máquinas",3,3.5000000000000003E-2,0.13600000000000001,null,null,null,null,null,null,null,null,null,null,null,null,null,null,null,null,null,null,null,null,null,null,null,null,null,null,null,null,null,null,null,null,null,null,null,null,null,null,null,null,null,null,null,null,null,null,null,null,null,null,null,null,null,null,null,null,null,null,null,null,null,null,null,null,null,null,null,"Factores individuales",6,0.24]
[null,"6305 Procedimientos inexistentes o insuficientes para formar o informar a los trabajadores  acerca de la utilización o m",3,3.5000000000000003E-2,0.13600000000000001,null,null,null,null,null,null,null,null,null,null,null,null,null,null,null,null,null,null,null,null,null,null,null,null,null,null,null,null,null,null,null,null,null,null,null,null,null,null,null,null,null,null,null,null,null,null,null,null,null,null,null,null,null,null,null,null,null,null,null,null,null,null,null,null,null,null,null,"Otras causas",1,0.04]
[null,"7199 Otras causas relativas a la gestión de la prevención",3,3.5000000000000003E-2,0.13600000000000001,null,null,null,null,null,null,null,null,null,null,null,null,null,null,null,null,null,null,null,null,null,null,null,null,null,null,null,null,null,null,null,null,null,null,null,null,null,null,null,null,null,null,null,null,null,null,null,null,null,null,null,null,null,null,null,null,null,null,null,null,null,null,null,null,null,null,null,"(*) Accidentes asignados en 2015 para su investigación en el mismo periodo y durante el año 2016"]
[null,"1110 Pavimento deficiente o inadecuado (discontinuo, resbaladizo, inestable, con  pendiente excesiva, etc.)",2,2.4E-2,9.0999999999999998E-2,null,null,null,null,null,null,null,null,null,null,null,null,null,null,null,null,null,null,null,null,null,null,null,null,null,null,null,null,null,null,null,null,null,null,null,null,null,null,null,null,null,null,null,null,null,null,null,null,null,null,null,null,null,null,null,null,null,null,null,null,null,null,null,null,null,null,null,"(*) Accidentes asignados en 2014 para su investigación en el mismo periodo y durante el año 2015"]
[null,"1115 Deficiencia/ausencia de señalización u otro tipo de elementos necesarios para la delimitación de la zona de trabajo",2,2.4E-2,9.0999999999999998E-2]
[null,"3108 Fallos en el sistema neumático, hidráulico o eléctrico",2,2.4E-2,9.0999999999999998E-2]
[null,"6101 Método de trabajo  inexistente",2,2.4E-2,9.0999999999999998E-2]
[null,"6399 Otras causas relativas a la formación, información, instrucciones y señalización sobre la tarea",2,2.4E-2,9.0999999999999998E-2]
[null,"6499 Otras causas relativas a la selección y utilización de equipos y materiales",2,2.4E-2,9.0999999999999998E-2]
[null,"8108 Permanencia del trabajador dentro de una zona peligrosa",2,2.4E-2,9.0999999999999998E-2]
[null,"8109 Adopción de una postura inadecuada en el puesto de trabajo",2,2.4E-2,9.0999999999999998E-2]
[null,"8199 Otras causas relativas a los factores de comportamiento",2,2.4E-2,9.0999999999999998E-2]
[null,"8999 Otras causas relativas a los factores personales-individuales",2,2.4E-2,9.0999999999999998E-2]
[null,"1103 Espacio insuficiente en lugares de trabajo o en las zonas de tránsito",1,1.2E-2,4.4999999999999998E-2]
[null,"1104 Ausencia/deficiencia de protecciones colectivas frente a caídas de personas",1,1.2E-2,4.4999999999999998E-2]
[null,"1106 Falta de seguridad estructural o estabilidad de paramentos, etc.",1,1.2E-2,4.4999999999999998E-2]
[null,"1201 Orden y limpieza deficientes",1,1.2E-2,4.4999999999999998E-2]
[null,"3101 Diseño incorrecto de la máquina o componente que hace que no se cumplan los principios de la prevención intrínseca",1,1.2E-2,4.4999999999999998E-2]
[null,"4102 Deficiente ubicación, defectos de estabilidad en equipos de trabajo debido a una incorrecta construcción, montaje y",1,1.2E-2,4.4999999999999998E-2]
[null,"4105 Partes del equipo accesibles peligrosas (atrapantes, cortantes, punzantes,etc.)",1,1.2E-2,4.4999999999999998E-2]
[null,"4199 Otras causas relativas al diseño, ubicación, construccion, montaje, y limpieza  de otros equipos de trabajo.",1,1.2E-2,4.4999999999999998E-2]
[null,"4203 Ausencia/deficiencia de protecciones colectivas frente a caídas de personas y objetos desde equipos de trabajo",1,1.2E-2,4.4999999999999998E-2]
[null,"5102 Materiales muy pesados, voluminosos, de gran superficie, inestables o con aristas/perfiles cortantes, en relación c",1,1.2E-2,4.4999999999999998E-2]
[null,"6103 Diseño inadecuado del trabajo o tarea",1,1.2E-2,4.4999999999999998E-2]
[null,"6104 Apremio de tiempo o ritmo de trabajo elevado",1,1.2E-2,4.4999999999999998E-2]
[null,"6106 Trabajos solitarios sin las medidas de prevención adecuadas",1,1.2E-2,4.4999999999999998E-2]
[null,"6108 Sobrecarga trabajador (fatiga física o mental)",1,1.2E-2,4.4999999999999998E-2]
[null,"6201 Operación inhabitual para el operario que la realiza, sea ordinaria o esporádica",1,1.2E-2,4.4999999999999998E-2]
[null,"6306 Deficiencia/ausencia de información o señalización visual o acústica obligatoria o necesaria, incluyendo la utiliza",1,1.2E-2,4.4999999999999998E-2]
[null,"6401 No poner a disposición de los trabajadores las máquinas, equipos y medios auxiliares necesarios o adecuados.",1,1.2E-2,4.4999999999999998E-2]
[null,"6403 Selección de útiles, herramientas y medios auxiliares no adecuados al trabajo a realizar",1,1.2E-2,4.4999999999999998E-2]
[null,"6408 No comprobación del estado de las maquinas, herramientas, equipos o medios auxiliares antes de su utilización",1,1.2E-2,4.4999999999999998E-2]
[null,"6999 Otras causas relativas a la organización del trabajo",1,1.2E-2,4.4999999999999998E-2]
[null,"7101 Inexistencia o insuficiencia de un procedimiento que regule la realización de las actividades dirigidas a la identi",1,1.2E-2,4.4999999999999998E-2]
[null,"7106 Inadecuada política de compras desde el punto de vista de la prevención.",1,1.2E-2,4.4999999999999998E-2]
[null,"7202 Medidas preventivas propuestas en la planificación derivada de la evaluación de riesgos insuficientes o inadecuadas",1,1.2E-2,4.4999999999999998E-2]
[null,"7209 Falta de presencia de los recursos preventivos requeridos",1,1.2E-2,4.4999999999999998E-2]
[null,"7211 Ausencia/deficiencias de permisos y/o procedimientos de trabajo en intervenciones peligrosas (por ejemplo soldadura",1,1.2E-2,4.4999999999999998E-2]
[null,"7999 Otras causas relativas a la gestión de la prevención",1,1.2E-2,4.4999999999999998E-2]
[null,"8102 Incumplimiento de procedimientos e instrucciones de trabajo",1,1.2E-2,4.4999999999999998E-2]
[null,"8103 Incumplimiento de normas de seguridad establecidas",1,1.2E-2,4.4999999999999998E-2]
[null,"8105 Uso indebido o no utilización de medios auxiliares de trabajo o de seguridad puestos a disposición por la empresa y",1,1.2E-2,4.4999999999999998E-2]
[null,"Total",85,1,3.8639999999999999]
[null,{"$f":"Nota","v":"(*) Accidentes asignados en 2018 para su investigación en el mismo periodo y durante el año 2019"}]

{"sheet":"Hoja6","index":9,"n_rows":94,"n_cols":69,"rows_kept":94,"cut":false,"hidden":true,"merged":[[5,0,6,4],[7,2,7,3]]}
[]
[]
[]
[]
[null,null,null,null,null,null,null,null,null,null,null,null,null,null,null,null,null,null,null,null,null,null,null,null,null,null,null,null,null,null,null,null,null,null,null,null,null,null,null,null,null,null,null,null,null,null,null,null,null,null,null,null,null,null,null,null,null,null,null,null,null,null,null,null,null,null,"Bloque de causa de los accidentes graves, muy graves y mortales investigados del sector construcción y por porcentaje . Año 2014 (*)"]
["Causas de los accidentes investigados graves, muy graves y mortales sector Construcción y porcentaje. (*)",null,null,null,null,null,null,null,null,null,null,null,null,null,null,null,null,null,null,null,null,null,null,null,null,null,null,null,null,null,null,null,null,null,null,null,null,null,null,null,null,null,null,null,null,null,null,null,null,null,null,null,null,null,null,null,null,null,null,null,null,null,null,null,null,null,null,"Frecuencia","Porcentaje"]
[null,null,null,null,null,null,null,null,null,null,null,null,null,null,null,null,null,null,null,null,null,null,null,null,null,null,null,null,null,null,null,null,null,null,null,null,null,null,null,null,null,null,null,null,null,null,null,null,null,null,null,null,null,null,null,null,null,null,null,null,null,null,null,null,null,null,"Total",38,1]
[" ",{"$f":"año_publi","v":2018},"Respuestas",null,"Porcentaje de casos",null,null,null,null,null,null,null,null,null,null,null,null,null,null,null,null,null,null,null,null,null,null,null,null,null,null,null,null,null,null,null,null,null,null,null,null,null,null,null,null,null,null,null,null,null,null,null,null,null,null,null,null,null,null,null,null,null,null,null,null,null,"Prevención intrínseca",4,0.10526315789473685]
[null,null,"Nº","Porcentaje",null,null,null,null,null,null,null,null,null,null,null,null,null,null,null,null,null,null,null,null,null,null,null,null,null,null,null,null,null,null,null,null,null,null,null,null,null,null,null,null,null,null,null,null,null,null,null,null,null,null,null,null,null,null,null,null,null,null,null,null,null,null,"Protección, señalización",12,0.31578947368421051]
[null,"6102 Método de trabajo inadecuado",14,6.3E-2,0.25,null,null,null,null,null,null,null,null,null,null,null,null,null,null,null,null,null,null,null,null,null,null,null,null,null,null,null,null,null,null,null,null,null,null,null,null,null,null,null,null,null,null,null,null,null,null,null,null,null,null,null,null,null,null,null,null,null,null,null,null,null,"Materiales, productos o agentes",3,7.8947368421052627E-2]
[null,"1104 Ausencia/deficiencia de protecciones colectivas frente a caídas de personas",10,4.4999999999999998E-2,0.17899999999999999,null,null,null,null,null,null,null,null,null,null,null,null,null,null,null,null,null,null,null,null,null,null,null,null,null,null,null,null,null,null,null,null,null,null,null,null,null,null,null,null,null,null,null,null,null,null,null,null,null,null,null,null,null,null,null,null,null,null,null,null,null,"Espacios y superficies de trabajo",6,0.15789473684210525]
[null,"7206 Formación/información inadecuada, inexistente sobre riesgos o medidas preventivas",10,4.4999999999999998E-2,0.17899999999999999,null,null,null,null,null,null,null,null,null,null,null,null,null,null,null,null,null,null,null,null,null,null,null,null,null,null,null,null,null,null,null,null,null,null,null,null,null,null,null,null,null,null,null,null,null,null,null,null,null,null,null,null,null,null,null,null,null,null,null,null,null,"Organización del trabajo",23,0.60526315789473684]
[null,"7201 No identificación del/los riesgos que han materializado el accidente",9,4.1000000000000002E-2,0.161,null,null,null,null,null,null,null,null,null,null,null,null,null,null,null,null,null,null,null,null,null,null,null,null,null,null,null,null,null,null,null,null,null,null,null,null,null,null,null,null,null,null,null,null,null,null,null,null,null,null,null,null,null,null,null,null,null,null,null,null,null,"Gestión de la prevención",22,0.57894736842105265]
[null,"1106 Falta de seguridad estructural o estabilidad de paramentos, etc.",7,3.2000000000000001E-2,0.125,null,null,null,null,null,null,null,null,null,null,null,null,null,null,null,null,null,null,null,null,null,null,null,null,null,null,null,null,null,null,null,null,null,null,null,null,null,null,null,null,null,null,null,null,null,null,null,null,null,null,null,null,null,null,null,null,null,null,null,null,null,"Factores individuales",12,0.31578947368421051]
[null,"6110 Ausencia de vigilancia, control y dirección de persona competente",6,2.7E-2,0.107,null,null,null,null,null,null,null,null,null,null,null,null,null,null,null,null,null,null,null,null,null,null,null,null,null,null,null,null,null,null,null,null,null,null,null,null,null,null,null,null,null,null,null,null,null,null,null,null,null,null,null,null,null,null,null,null,null,null,null,null,null,"Otras causas",4,0.10526315789473685]
[null,"6403 Selección de útiles, herramientas y medios auxiliares no adecuados al trabajo a realizar",6,2.7E-2,0.107,null,null,null,null,null,null,null,null,null,null,null,null,null,null,null,null,null,null,null,null,null,null,null,null,null,null,null,null,null,null,null,null,null,null,null,null,null,null,null,null,null,null,null,null,null,null,null,null,null,null,null,null,null,null,null,null,null,null,null,null,null,"(*) Accidentes asignados en 2014 para su investigación en el mismo periodo y durante el año 2015"]
[null,"6405 Utilización de la máquina de manera no prevista por el fabricante.",6,2.7E-2,0.107]
[null,"7105 Procedimientos inexistentes, insuficientes o deficientes. para la coordinación de actividades realizadas por varias",6,2.7E-2,0.107]
[null,"8103 Incumplimiento de normas de seguridad establecidas",6,2.7E-2,0.107]
[null,"8106 No utilización de equipos de protección individual puestas a disposición por la empresa y de uso obligatorio.",6,2.7E-2,0.107]
[null,"6103 Diseño inadecuado del trabajo o tarea",5,2.3E-2,8.8999999999999996E-2]
[null,"6401 No poner a disposición de los trabajadores las máquinas, equipos y medios auxiliares necesarios o adecuados.",5,2.3E-2,8.8999999999999996E-2]
[null,"7203 Medidas preventivas propuestas en la planificación derivada de la evaluación de riesgos insuficientes o inadecuadas",5,2.3E-2,8.8999999999999996E-2]
[null,"7209 Falta de presencia de los recursos preventivos requeridos",5,2.3E-2,8.8999999999999996E-2]
[null,"4102 Deficiente ubicación, defectos de estabilidad en equipos de trabajo debido a una incorrecta construcción, montaje y",4,1.7999999999999999E-2,7.0999999999999994E-2]
[null,"6304 Formación/información inadecuada o inexistente sobre la tarea",4,1.7999999999999999E-2,7.0999999999999994E-2]
[null,"7204 Falta de control del cumplimiento del Plan de seguridad y salud en Construcción.",4,1.7999999999999999E-2,7.0999999999999994E-2]
[null,"8199 Otras causas relativas a los factores de comportamiento",4,1.7999999999999999E-2,7.0999999999999994E-2]
[null,"1103 Espacio insuficiente en lugares de trabajo o en las zonas de tránsito",3,1.4E-2,5.3999999999999999E-2]
[null,"1110 Pavimento deficiente o inadecuado (discontinuo, resbaladizo, inestable, con  pendiente excesiva, etc.)",3,1.4E-2,5.3999999999999999E-2]
[null,"1307 Causas relativas a la temperatura y condiciones termo higrométricas",3,1.4E-2,5.3999999999999999E-2]
[null,"6305 Procedimientos inexistentes o insuficientes para formar o informar a los trabajadores  acerca de la utilización o m",3,1.4E-2,5.3999999999999999E-2]
[null,"6408 No comprobación del estado de las maquinas, herramientas, equipos o medios auxiliares antes de su utilización",3,1.4E-2,5.3999999999999999E-2]
[null,"7102 Inexistencia o deficiencia de un procedimiento que regule la planificación de la implantación de las medidas preven",3,1.4E-2,5.3999999999999999E-2]
[null,"7202 Medidas preventivas propuestas en la planificación derivada de la evaluación de riesgos insuficientes o inadecuadas",3,1.4E-2,5.3999999999999999E-2]
[null,"8107 Retirada o anulación de protecciones o dispositivos de seguridad",3,1.4E-2,5.3999999999999999E-2]
[null,"1102 Superficies de trabajo habitualmente inestables, incluidos barcos.",2,8.9999999999999993E-3,3.5999999999999997E-2]
[null,"1201 Orden y limpieza deficientes",2,8.9999999999999993E-3,3.5999999999999997E-2]
[null,"1203 No delimitación entre las zonas de trabajo o tránsito y las de almacenamiento o no respetar las zonas establecidas.",2,8.9999999999999993E-3,3.5999999999999997E-2]
[null,"4106 Escalera de mano insegura (material no resistente, apoyos inadecuados ….)",2,8.9999999999999993E-3,3.5999999999999997E-2]
[null,"4203 Ausencia/deficiencia de protecciones colectivas frente a caídas de personas y objetos desde equipos de trabajo",2,8.9999999999999993E-3,3.5999999999999997E-2]
[null,"4299 Otras causas relativas a los elementos y dispositivos de protección de otros equipos de trabajo",2,8.9999999999999993E-3,3.5999999999999997E-2]
[null,"6101 Método de trabajo  inexistente",2,8.9999999999999993E-3,3.5999999999999997E-2]
[null,"6104 Apremio de tiempo o ritmo de trabajo elevado",2,8.9999999999999993E-3,3.5999999999999997E-2]
[null,"6109 Existencia de interferencias o falta de coordinación entre trabajadores que realizan la misma o distintas tareas",2,8.9999999999999993E-3,3.5999999999999997E-2]
[null,"6111 No organizar el trabajo teniendo en cuenta las condiciones meteorológicas adversas.",2,8.9999999999999993E-3,3.5999999999999997E-2]
[null,"6199 Otras causas relativas a los métodos de trabajo",2,8.9999999999999993E-3,3.5999999999999997E-2]
[null,"6202 Operación destinada a evitar averías o incidentes o recuperar incidentes.",2,8.9999999999999993E-3,3.5999999999999997E-2]
[null,"6299 Otras causas relativas a la organización de las tareas",2,8.9999999999999993E-3,3.5999999999999997E-2]
[null,"6407 Utilización de materiales en general de manera no prevista por el fabricante..",2,8.9999999999999993E-3,3.5999999999999997E-2]
[null,"7101 Inexistencia o insuficiencia de un procedimiento que regule la realización de las actividades dirigidas a la identi",2,8.9999999999999993E-3,3.5999999999999997E-2]
[null,"7208 No poner a disposición de los trabajadores las prendas o equipos de protección necesarios o ser estos inadecuados o",2,8.9999999999999993E-3,3.5999999999999997E-2]
[null,"7210 Vigilancia de la salud inadecuada a los riesgos del puesto de trabajo",2,8.9999999999999993E-3,3.5999999999999997E-2]
[null,"8102 Incumplimiento de procedimientos e instrucciones de trabajo",2,8.9999999999999993E-3,3.5999999999999997E-2]
[null,"8108 Permanencia del trabajador dentro de una zona peligrosa",2,8.9999999999999993E-3,3.5999999999999997E-2]
[null,"1101 Deficiente diseño ergonómico del puesto de trabajo.",1,5.0000000000000001E-3,1.7999999999999999E-2]
[null,"1105 Aberturas y huecos desprotegidos",1,5.0000000000000001E-3,1.7999999999999999E-2]
[null,"1109 Dificultad/deficiencia en el acceso al puesto de trabajo.",1,5.0000000000000001E-3,1.7999999999999999E-2]
[null,"1111 Escaleras fijas, de servicio o escala inseguras por falta de anchura, peldaño desigual, huella insufiente etc o en",1,5.0000000000000001E-3,1.7999999999999999E-2]
[null,"1115 Deficiencia/ausencia de señalización u otro tipo de elementos necesarios para la delimitación de la zona de trabajo",1,5.0000000000000001E-3,1.7999999999999999E-2]
[null,"1199 Otras causas relativas a la configuración de los espacios de trabajo",1,5.0000000000000001E-3,1.7999999999999999E-2]
[null,"1299 Otras causas relativas al orden y limpieza",1,5.0000000000000001E-3,1.7999999999999999E-2]
[null,"3101 Diseño incorrecto de la máquina o componente que hace que no se cumplan los principios de la prevención intrínseca",1,5.0000000000000001E-3,1.7999999999999999E-2]
[null,"3103 Deficiente ubicación de la máquina",1,5.0000000000000001E-3,1.7999999999999999E-2]
[null,"3104 Defectos de estabilidad en equipos, maquinas o sus componentes",1,5.0000000000000001E-3,1.7999999999999999E-2]
[null,"3111 Accesibilidad a órganos de la máquina peligrosos (atrapantes, cortantes, punzantes, o con posibilidad de ocasionar",1,5.0000000000000001E-3,1.7999999999999999E-2]
[null,"3208 Ausencia/deficiencia o falta de uso de dispositivos que mantengan a los conductores o a los trabajadores transporta",1,5.0000000000000001E-3,1.7999999999999999E-2]
[null,"3299 Otras causas relativas a los elementos y dispositivos de protección de máquinas.",1,5.0000000000000001E-3,1.7999999999999999E-2]
[null,"3302 Deficiencia/ausencia del manual de instrucciones de máquinas",1,5.0000000000000001E-3,1.7999999999999999E-2]
[null,"4101 Diseño incorrecto del equipo que hace que no se cumplan los principios de la prevención intrínseca y/o de la ergono",1,5.0000000000000001E-3,1.7999999999999999E-2]
[null,"4105 Partes del equipo accesibles peligrosas (atrapantes, cortantes, punzantes,etc.)",1,5.0000000000000001E-3,1.7999999999999999E-2]
[null,"4199 Otras causas relativas al diseño, ubicación, construccion, montaje, y limpieza  de otros equipos de trabajo.",1,5.0000000000000001E-3,1.7999999999999999E-2]
[null,"4202 Ausencia de elementos de protección de herramientas (protectores de empuñaduras, etc)",1,5.0000000000000001E-3,1.7999999999999999E-2]
[null,"4301 Deficiencia/ausencia del manual de instrucciones o señalización (nota: el fallo puede consistir en la inexistencia",1,5.0000000000000001E-3,1.7999999999999999E-2]
[null,"5104 Deficiente sistema de almacenamiento, empaquetado, paletizado, apilamiento atc",1,5.0000000000000001E-3,1.7999999999999999E-2]
[null,"5105 Zonas de almacenamiento inadecuadas o no previstas.",1,5.0000000000000001E-3,1.7999999999999999E-2]
[null,"5106 Falta de planificación y/o vigilancia en operaciones de levantamiento de cargas",1,5.0000000000000001E-3,1.7999999999999999E-2]
[null,"6106 Trabajos solitarios sin las medidas de prevención adecuadas",1,5.0000000000000001E-3,1.7999999999999999E-2]
[null,"6108 Sobrecarga trabajador (fatiga física o mental)",1,5.0000000000000001E-3,1.7999999999999999E-2]
[null,"6201 Operación inhabitual para el operario que la realiza, sea ordinaria o esporádica",1,5.0000000000000001E-3,1.7999999999999999E-2]
[null,"6302 Instrucciones inexistentes",1,5.0000000000000001E-3,1.7999999999999999E-2]
[null,"6307 Falta de señalista en caso necesario para organizar la circulación de personas y/o vehículos, así como manejo de ca",1,5.0000000000000001E-3,1.7999999999999999E-2]
[null,"6406 Utilización de útiles, herramientas y medios auxiliares de manera no prevista por el fabricante.",1,5.0000000000000001E-3,1.7999999999999999E-2]
[null,"6999 Otras causas relativas a la organización del trabajo",1,5.0000000000000001E-3,1.7999999999999999E-2]
[null,"7103 Procedimientos inexistentes, insuficientes o deficientes para informar a los trabajadores de los riesgos y las medi",1,5.0000000000000001E-3,1.7999999999999999E-2]
[null,"7211 Ausencia/deficiencias de permisos y/o procedimientos de trabajo en intervenciones peligrosas (por ejemplo soldadura",1,5.0000000000000001E-3,1.7999999999999999E-2]
[null,"7299 Otras causas relativas a las actividades preventivas",1,5.0000000000000001E-3,1.7999999999999999E-2]
[null,"7999 Otras causas relativas a la gestión de la prevención",1,5.0000000000000001E-3,1.7999999999999999E-2]
[null,"8104 Uso indebido de materiales, herramientas o útiles de trabajo, puestos a disposición por la empresa",1,5.0000000000000001E-3,1.7999999999999999E-2]
[null,"8109 Adopción de una postura inadecuada en el puesto de trabajo",1,5.0000000000000001E-3,1.7999999999999999E-2]
[null,"8999 Otras causas relativas a los factores personales-individuales",1,5.0000000000000001E-3,1.7999999999999999E-2]
[null,"9199 Otras causas",1,5.0000000000000001E-3,1.7999999999999999E-2]
[null,"Total",221,1,3.9460000000000002]
[null,{"$f":"Nota","v":"(*) Accidentes asignados en 2018 para su investigación en el mismo periodo y durante el año 2019"}]

{"sheet":"Hoja7","index":10,"n_rows":98,"n_cols":35,"rows_kept":98,"cut":false,"hidden":true,"merged":[[9,32,9,34],[20,32,20,34],[4,0,4,4],[23,32,23,34],[34,32,34,34],[5,0,6,1],[5,2,5,3],[5,4,6,4]]}
[]
[]
[]
[]
["Causas de los accidentes investigados graves, muy graves y mortales sector Servicios y porcentaje. (*)"]
[{"$f":"año_publi","v":2018},null,"Respuestas",null,"Porcentaje de casos"]
[null,null,"Nº","Porcentaje"]
[null,"7206 Formación/información inadecuada, inexistente sobre riesgos o medidas preventivas",17,7.2999999999999995E-2,0.254]
[null,"7201 No identificación del/los riesgos que han materializado el accidente",12,5.1999999999999998E-2,0.17899999999999999]
[null,"6102 Método de trabajo inadecuado",10,4.2999999999999997E-2,0.14899999999999999,null,null,null,null,null,null,null,null,null,null,null,null,null,null,null,null,null,null,null,null,null,null,null,null,null,null,null,"Bloque de causas de los accidentes graves, muy graves y mortales investigados del sector servicios y porcentaje . Año 2014 (*)"]
[null,"6304 Formación/información inadecuada o inexistente sobre la tarea",8,3.4000000000000002E-2,0.11899999999999999,null,null,null,null,null,null,null,null,null,null,null,null,null,null,null,null,null,null,null,null,null,null,null,null,null,null,null,null,"Frecuencia","Porcentaje"]
[null,"7103 Procedimientos inexistentes, insuficientes o deficientes para informar a los trabajadores de los riesgos y las medi",8,3.4000000000000002E-2,0.11899999999999999,null,null,null,null,null,null,null,null,null,null,null,null,null,null,null,null,null,null,null,null,null,null,null,null,null,null,null,"Total",66,1]
[null,"8108 Permanencia del trabajador dentro de una zona peligrosa",7,0.03,0.104,null,null,null,null,null,null,null,null,null,null,null,null,null,null,null,null,null,null,null,null,null,null,null,null,null,null,null,"Prevención intrínseca",13,0.19696969696969696]
[null,"1104 Ausencia/deficiencia de protecciones colectivas frente a caídas de personas",5,2.1999999999999999E-2,7.4999999999999997E-2,null,null,null,null,null,null,null,null,null,null,null,null,null,null,null,null,null,null,null,null,null,null,null,null,null,null,null,"Protección, señalización",11,0.16666666666666669]
[null,"6101 Método de trabajo  inexistente",5,2.1999999999999999E-2,7.4999999999999997E-2,null,null,null,null,null,null,null,null,null,null,null,null,null,null,null,null,null,null,null,null,null,null,null,null,null,null,null,"Materiales, productos o agentes",5,7.575757575757576E-2]
[null,"6401 No poner a disposición de los trabajadores las máquinas, equipos y medios auxiliares necesarios o adecuados.",5,2.1999999999999999E-2,7.4999999999999997E-2,null,null,null,null,null,null,null,null,null,null,null,null,null,null,null,null,null,null,null,null,null,null,null,null,null,null,null,"Espacios y superficies de trabajo",8,0.12121212121212122]
[null,"7105 Procedimientos inexistentes, insuficientes o deficientes. para la coordinación de actividades realizadas por varias",5,2.1999999999999999E-2,7.4999999999999997E-2,null,null,null,null,null,null,null,null,null,null,null,null,null,null,null,null,null,null,null,null,null,null,null,null,null,null,null,"Organización del trabajo",48,0.72727272727272729]
[null,"3302 Deficiencia/ausencia del manual de instrucciones de máquinas",4,1.7000000000000001E-2,0.06,null,null,null,null,null,null,null,null,null,null,null,null,null,null,null,null,null,null,null,null,null,null,null,null,null,null,null,"Gestión de la prevención",32,0.48484848484848486]
[null,"6201 Operación inhabitual para el operario que la realiza, sea ordinaria o esporádica",4,1.7000000000000001E-2,0.06,null,null,null,null,null,null,null,null,null,null,null,null,null,null,null,null,null,null,null,null,null,null,null,null,null,null,null,"Factores individuales",24,0.36363636363636365]
[null,"7101 Inexistencia o insuficiencia de un procedimiento que regule la realización de las actividades dirigidas a la identi",4,1.7000000000000001E-2,0.06,null,null,null,null,null,null,null,null,null,null,null,null,null,null,null,null,null,null,null,null,null,null,null,null,null,null,null,"Otras causas",8,0.12121212121212122]
[null,"7203 Medidas preventivas propuestas en la planificación derivada de la evaluación de riesgos insuficientes o inadecuadas",4,1.7000000000000001E-2,0.06,null,null,null,null,null,null,null,null,null,null,null,null,null,null,null,null,null,null,null,null,null,null,null,null,null,null,null,"(*) Accidentes asignados en 2014 para su investigación en el mismo periodo y durante el año 2015"]
[null,"7208 No poner a disposición de los trabajadores las prendas o equipos de protección necesarios o ser estos inadecuados o",4,1.7000000000000001E-2,0.06]
[null,"8106 No utilización de equipos de protección individual puestas a disposición por la empresa y de uso obligatorio.",4,1.7000000000000001E-2,0.06]
[null,"8109 Adopción de una postura inadecuada en el puesto de trabajo",4,1.7000000000000001E-2,0.06,null,null,null,null,null,null,null,null,null,null,null,null,null,null,null,null,null,null,null,null,null,null,null,null,null,null,null,"Bloque de causas de los accidentes graves, muy graves y mortales investigados del sector servicios y porcentaje . Año 2015 (*)"]
[null,"8199 Otras causas relativas a los factores de comportamiento",4,1.7000000000000001E-2,0.06,null,null,null,null,null,null,null,null,null,null,null,null,null,null,null,null,null,null,null,null,null,null,null,null,null,null,null," ","Frecuencia","Porcentaje"]
[null,"1103 Espacio insuficiente en lugares de trabajo o en las zonas de tránsito",3,1.2999999999999999E-2,4.4999999999999998E-2,null,null,null,null,null,null,null,null,null,null,null,null,null,null,null,null,null,null,null,null,null,null,null,null,null,null,null,"Total",66,1]
[null,"1106 Falta de seguridad estructural o estabilidad de paramentos, etc.",3,1.2999999999999999E-2,4.4999999999999998E-2,null,null,null,null,null,null,null,null,null,null,null,null,null,null,null,null,null,null,null,null,null,null,null,null,null,null,null,"Prevención intrínseca",13,0.19696969696969696]
[null,"1199 Otras causas relativas a la configuración de los espacios de trabajo",3,1.2999999999999999E-2,4.4999999999999998E-2,null,null,null,null,null,null,null,null,null,null,null,null,null,null,null,null,null,null,null,null,null,null,null,null,null,null,null,"Protección, señalización",11,0.16666666666666669]
[null,"4102 Deficiente ubicación, defectos de estabilidad en equipos de trabajo debido a una incorrecta construcción, montaje y",3,1.2999999999999999E-2,4.4999999999999998E-2,null,null,null,null,null,null,null,null,null,null,null,null,null,null,null,null,null,null,null,null,null,null,null,null,null,null,null,"Materiales, productos o agentes",5,7.575757575757576E-2]
[null,"4203 Ausencia/deficiencia de protecciones colectivas frente a caídas de personas y objetos desde equipos de trabajo",3,1.2999999999999999E-2,4.4999999999999998E-2,null,null,null,null,null,null,null,null,null,null,null,null,null,null,null,null,null,null,null,null,null,null,null,null,null,null,null,"Espacios y superficies de trabajo",8,0.12121212121212122]
[null,"6103 Diseño inadecuado del trabajo o tarea",3,1.2999999999999999E-2,4.4999999999999998E-2,null,null,null,null,null,null,null,null,null,null,null,null,null,null,null,null,null,null,null,null,null,null,null,null,null,null,null,"Organización del trabajo",48,0.72727272727272729]
[null,"6108 Sobrecarga trabajador (fatiga física o mental)",3,1.2999999999999999E-2,4.4999999999999998E-2,null,null,null,null,null,null,null,null,null,null,null,null,null,null,null,null,null,null,null,null,null,null,null,null,null,null,null,"Gestión de la prevención",32,0.48484848484848486]
[null,"6110 Ausencia de vigilancia, control y dirección de persona competente",3,1.2999999999999999E-2,4.4999999999999998E-2,null,null,null,null,null,null,null,null,null,null,null,null,null,null,null,null,null,null,null,null,null,null,null,null,null,null,null,"Factores individuales",24,0.36363636363636365]
[null,"7102 Inexistencia o deficiencia de un procedimiento que regule la planificación de la implantación de las medidas preven",3,1.2999999999999999E-2,4.4999999999999998E-2,null,null,null,null,null,null,null,null,null,null,null,null,null,null,null,null,null,null,null,null,null,null,null,null,null,null,null,"Otras causas",8,0.12121212121212122]
[null,"7104 Deficiencias en la organización de los recursos obligatorios (organización preventiva) para la realización de las a",3,1.2999999999999999E-2,4.4999999999999998E-2,null,null,null,null,null,null,null,null,null,null,null,null,null,null,null,null,null,null,null,null,null,null,null,null,null,null,null,"(*) Accidentes asignados en 2015 para su investigación en el mismo periodo y durante el año 2016"]
[null,"7210 Vigilancia de la salud inadecuada a los riesgos del puesto de trabajo",3,1.2999999999999999E-2,4.4999999999999998E-2]
[null,"8102 Incumplimiento de procedimientos e instrucciones de trabajo",3,1.2999999999999999E-2,4.4999999999999998E-2]
[null,"8105 Uso indebido o no utilización de medios auxiliares de trabajo o de seguridad puestos a disposición por la empresa y",3,1.2999999999999999E-2,4.4999999999999998E-2]
[null,"8999 Otras causas relativas a los factores personales-individuales",3,1.2999999999999999E-2,4.4999999999999998E-2]
[null,"9199 Otras causas",3,1.2999999999999999E-2,4.4999999999999998E-2]
[null,"1101 Deficiente diseño ergonómico del puesto de trabajo.",2,8.9999999999999993E-3,0.03]
[null,"1115 Deficiencia/ausencia de señalización u otro tipo de elementos necesarios para la delimitación de la zona de trabajo",2,8.9999999999999993E-3,0.03]
[null,"1201 Orden y limpieza deficientes",2,8.9999999999999993E-3,0.03]
[null,"3111 Accesibilidad a órganos de la máquina peligrosos (atrapantes, cortantes, punzantes, o con posibilidad de ocasionar",2,8.9999999999999993E-3,0.03]
[null,"3114 Visibilidad insuficiente en el puesto de conducción de la máquina ya sea por un mal diseño o por no disponer de de",2,8.9999999999999993E-3,0.03]
[null,"3201 Ausencia y/o deficiencia de resguardos y de dispositivos de protección",2,8.9999999999999993E-3,0.03]
[null,"4101 Diseño incorrecto del equipo que hace que no se cumplan los principios de la prevención intrínseca y/o de la ergono",2,8.9999999999999993E-3,0.03]
[null,"4106 Escalera de mano insegura (material no resistente, apoyos inadecuados ….)",2,8.9999999999999993E-3,0.03]
[null,"5104 Deficiente sistema de almacenamiento, empaquetado, paletizado, apilamiento atc",2,8.9999999999999993E-3,0.03]
[null,"5207 Fugas o derrames de productos químicos (sustancias o preparados) (durante su fabricación, transporte, almacenamient",2,8.9999999999999993E-3,0.03]
[null,"6104 Apremio de tiempo o ritmo de trabajo elevado",2,8.9999999999999993E-3,0.03]
[null,"6109 Existencia de interferencias o falta de coordinación entre trabajadores que realizan la misma o distintas tareas",2,8.9999999999999993E-3,0.03]
[null,"6305 Procedimientos inexistentes o insuficientes para formar o informar a los trabajadores  acerca de la utilización o m",2,8.9999999999999993E-3,0.03]
[null,"6403 Selección de útiles, herramientas y medios auxiliares no adecuados al trabajo a realizar",2,8.9999999999999993E-3,0.03]
[null,"6408 No comprobación del estado de las maquinas, herramientas, equipos o medios auxiliares antes de su utilización",2,8.9999999999999993E-3,0.03]
[null,"7202 Medidas preventivas propuestas en la planificación derivada de la evaluación de riesgos insuficientes o inadecuadas",2,8.9999999999999993E-3,0.03]
[null,"7205 Mantenimiento preventivo inexistente o inadecuado o falta de revisiones periódicas oficiales.",2,8.9999999999999993E-3,0.03]
[null,"1102 Superficies de trabajo habitualmente inestables, incluidos barcos.",1,4.0000000000000001E-3,1.4999999999999999E-2]
[null,"1105 Aberturas y huecos desprotegidos",1,4.0000000000000001E-3,1.4999999999999999E-2]
[null,"1109 Dificultad/deficiencia en el acceso al puesto de trabajo.",1,4.0000000000000001E-3,1.4999999999999999E-2]
[null,"1116 Vías de circulación deficientes (insuficentes, mal dimensionadas o faltas de separación entre ellas)",1,4.0000000000000001E-3,1.4999999999999999E-2]
[null,"1118 Diseño incorrecto de puertas y pontones (sistema de cierre inseguro, sin parada de emergencia, falta previsión situ",1,4.0000000000000001E-3,1.4999999999999999E-2]
[null,"1305 Iluminación insuficiente o inapropiada",1,4.0000000000000001E-3,1.4999999999999999E-2]
[null,"1307 Causas relativas a la temperatura y condiciones termo higrométricas",1,4.0000000000000001E-3,1.4999999999999999E-2]
[null,"3104 Defectos de estabilidad en equipos, maquinas o sus componentes",1,4.0000000000000001E-3,1.4999999999999999E-2]
[null,"3113 Deficiencia de los medios de acceso al puesto de trabajo o de conducción de la maquina",1,4.0000000000000001E-3,1.4999999999999999E-2]
[null,"3117 Ausencia/deficiencia de elementos de montaje de máquinas",1,4.0000000000000001E-3,1.4999999999999999E-2]
[null,"3199 Otras causas relativas al diseño, ubicación, construccion, montaje, mantenimiento reparación y limpieza de máquinas",1,4.0000000000000001E-3,1.4999999999999999E-2]
[null,"3999 Otras causas relativas a las máquinas.",1,4.0000000000000001E-3,1.4999999999999999E-2]
[null,"4103 Resistencia mecánica insuficiente del equipo de trabajo",1,4.0000000000000001E-3,1.4999999999999999E-2]
[null,"4105 Partes del equipo accesibles peligrosas (atrapantes, cortantes, punzantes,etc.)",1,4.0000000000000001E-3,1.4999999999999999E-2]
[null,"4201 Ausencia/deficiencia de elementos de seguridad en los medios de elevación de cargas (pestillos de seguridad en ganc",1,4.0000000000000001E-3,1.4999999999999999E-2]
[null,"4202 Ausencia de elementos de protección de herramientas (protectores de empuñaduras, etc)",1,4.0000000000000001E-3,1.4999999999999999E-2]
[null,"4301 Deficiencia/ausencia del manual de instrucciones o señalización (nota: el fallo puede consistir en la inexistencia",1,4.0000000000000001E-3,1.4999999999999999E-2]
[null,"5199 Otras causas relativas a la manipulación y almacenamiento de materiales",1,4.0000000000000001E-3,1.4999999999999999E-2]
[null,"5201 Inhalación, ingestión o contacto con productos químicos (sustancias o preparados) presentes en el puesto de trabajo",1,4.0000000000000001E-3,1.4999999999999999E-2]
[null,"6106 Trabajos solitarios sin las medidas de prevención adecuadas",1,4.0000000000000001E-3,1.4999999999999999E-2]
[null,"6107 Sobrecarga de la máquina o equipo (respecto a sus características técnicas)",1,4.0000000000000001E-3,1.4999999999999999E-2]
[null,"6202 Operación destinada a evitar averías o incidentes o recuperar incidentes.",1,4.0000000000000001E-3,1.4999999999999999E-2]
[null,"6203 Operación extraordinaria realizada en caso de incidentes, accidentes o emergencias.",1,4.0000000000000001E-3,1.4999999999999999E-2]
[null,"6301 Deficiencias en el sistema de comunicación a nivel horizontal o vertical, incluyendo la incomprensión del idioma.",1,4.0000000000000001E-3,1.4999999999999999E-2]
[null,"6302 Instrucciones inexistentes",1,4.0000000000000001E-3,1.4999999999999999E-2]
[null,"6303 Instrucciones respecto a la tarea confusas, contradictorias o insuficientes",1,4.0000000000000001E-3,1.4999999999999999E-2]
[null,"6307 Falta de señalista en caso necesario para organizar la circulación de personas y/o vehículos, así como manejo de ca",1,4.0000000000000001E-3,1.4999999999999999E-2]
[null,"6399 Otras causas relativas a la formación, información, instrucciones y señalización sobre la tarea",1,4.0000000000000001E-3,1.4999999999999999E-2]
[null,"6409 Ausencia de medios organizativos o procedimientos para la consignación de máquinas, instalaciones y lugares de trab",1,4.0000000000000001E-3,1.4999999999999999E-2]
[null,"7107 Sistema inadecuado de asignación de tareas por otras razones que no sean la falta de cualificación o experiencia",1,4.0000000000000001E-3,1.4999999999999999E-2]
[null,"7108 No apreciar las características de los trabajadores para la realización de la tarea o en función de los riesgos",1,4.0000000000000001E-3,1.4999999999999999E-2]
[null,"7204 Falta de control del cumplimiento del Plan de seguridad y salud en Construcción.",1,4.0000000000000001E-3,1.4999999999999999E-2]
[null,"7212 Asignación de tarea a un trabajador con falta de cualificación o experiencia",1,4.0000000000000001E-3,1.4999999999999999E-2]
[null,"7999 Otras causas relativas a la gestión de la prevención",1,4.0000000000000001E-3,1.4999999999999999E-2]
[null,"8101 Realización de tareas no asignadas",1,4.0000000000000001E-3,1.4999999999999999E-2]
[null,"8103 Incumplimiento de normas de seguridad establecidas",1,4.0000000000000001E-3,1.4999999999999999E-2]
[null,"8104 Uso indebido de materiales, herramientas o útiles de trabajo, puestos a disposición por la empresa",1,4.0000000000000001E-3,1.4999999999999999E-2]
[null,"8299 Otras causas relativas a los factores intrinsecos, de salud o capacidades",1,4.0000000000000001E-3,1.4999999999999999E-2]
[null,"9299 Hechos no causales",1,4.0000000000000001E-3,1.4999999999999999E-2]
[null,"Total",232,1,3.4630000000000001]
[null,"(*) Accidentes asignados en 2018 para su investigación en el mismo periodo y durante el año 2019"]

{"sheet":"Hoja8","index":11,"n_rows":42,"n_cols":19,"rows_kept":42,"cut":false,"hidden":true,"merged":[[16,12,16,18],[3,0,3,10],[4,0,5,0],[4,1,4,2],[4,3,4,4],[4,5,4,6],[4,7,4,8],[4,12,4,18],[5,13,5,14],[5,15,5,16],[5,17,5,18],[4,9,4,10]]}
[]
[]
[]
["Accidentes investigados según sexo  y gravedad por porcentaje . (*)"]
[{"$f":"año_publi","v":2018},"Total",null,"Grave",null,"Muy grave",null,"Mortal",null,"Sin clasificar",null,null,"Bloque de causas de los accidentes graves, muy graves y mortales investigados según sexo y porcentaje . (*)"]
[null,"Frecuencia"," Porcentaje","Frecuencia"," Porcentaje","Frecuencia"," Porcentaje","Frecuencia"," Porcentaje","Frecuencia"," Porcentaje",null," ","Total",null,"Hombre",null,"Mujer"]
["Total",151,1,130,1,5,1,16,1,4,1,null,null," Frecuencia"," Porcentaje"," Frecuencia"," Porcentaje"," Frecuencia"," Porcentaje"]
["Hombre",139,0.92100000000000004,119,0.91500000000000004,4,0.8,16,1,4,1,null,"Total",155,1,143,1,12,1]
["Mujer",12,7.9000000000000001E-2,11,8.5000000000000006E-2,1,0.2,0,0,0,0,null,"Prevención intrínseca",35,0.22600000000000001,33,0.23100000000000001,2,0.16700000000000001]
[{"$f":"Nota","v":"(*) Accidentes asignados en 2018 para su investigación en el mismo periodo y durante el año 2019"},null,null,null,null,null,null,null,null,null,null,null,"Protección, señalización",37,0.23899999999999999,35,0.245,2,0.16700000000000001]
[null,null,null,null,null,null,null,null,null,null,null,null,"Materiales, productos o agentes",10,6.5000000000000002E-2,7,4.9000000000000002E-2,3,0.25]
[null,null,null,null,null,null,null,null,null,null,null,null,"Espacios y superficies de trabajo",43,0.27700000000000002,41,0.28699999999999998,2,0.16700000000000001]
[null,null,null,null,null,null,null,null,null,null,null,null,"Organización del trabajo",100,0.64500000000000002,93,0.65,7,0.58299999999999996]
[null,null,null,null,null,null,null,null,null,null,null,null,"Gestión de la prevención",82,0.52900000000000003,76,0.53100000000000003,6,0.5]
[null,null,null,null,null,null,null,null,null,null,null,null,"Factores individuales",53,0.34200000000000003,48,0.33600000000000002,5,0.41699999999999998]
[null,null,null,null,null,null,null,null,null,null,null,null,"Otras causas",17,0.11,14,9.8000000000000004E-2,3,0.25]
[null,null,null,null,null,null,null,null,null,null,null,null,{"$f":"Nota","v":"(*) Accidentes asignados en 2018 para su investigación en el mismo periodo y durante el año 2019"}]
[]
[]
[]
[]
[]
[]
[]
[]
[]
[]
[]
[]
[]
[]
[]
[]
[]
[]
[]
[]
[]
[]
[]
[83,0.93258426966292129,14,1,14,1,111,0.94871794871794879]
[6,6.741573033707865E-2,0,0,0,0,6,5.1282051282051287E-2]

{"sheet":"Hoja9","index":12,"n_rows":28,"n_cols":7,"rows_kept":28,"cut":false,"hidden":true,"merged":[[4,0,4,8],[5,0,6,0],[5,1,5,2],[5,3,5,4],[5,5,5,6],[16,1,16,2],[16,3,16,4],[16,5,16,6],[15,0,15,6],[16,0,17,0]]}
[]
[]
[]
[]
["Accidentes graves, muy graves y mortales investigados según sector de la actividad y nacionalidad por porcentaje .  (*)"]
[{"$f":"año_publi","v":2018},"Total",null,"1_Españoles",null,"2_Extranjeros"]
[null,"Frecuencia"," Porcentaje","Frecuencia"," Porcentaje","Frecuencia"," Porcentaje"]
["Total",155,1,117,1,38,1]
["Agricultura y ganaderia",1,6.0000000000000001E-3,1,8.9999999999999993E-3,0,0]
["Industria",22,0.14199999999999999,17,0.14499999999999999,5,0.13200000000000001]
["Construcción",56,0.36099999999999999,38,0.32500000000000001,18,0.47399999999999998]
["Servicios",67,0.432,55,0.47,12,0.316]
["No consta",9,5.8000000000000003E-2,6,5.0999999999999997E-2,3,7.9000000000000001E-2]
[]
[]
["Bloque de causa y nacionalidad de los accidentes graves, muy graves y mortales investigados y porcentaje .  (*)"]
[{"$f":"año_publi","v":2018},"Total",null,"1_Españoles",null,"2_Extranjeros"]
[null,"Frecuencia","Porcentaje","Frecuencia","Porcentaje","Frecuencia","Porcentaje"]
["Total",155,1,117,1,38,1]
["Prevención intrínseca",35,0.22600000000000001,28,0.23899999999999999,7,0.184]
["Protección, señalización",37,0.23899999999999999,24,0.20499999999999999,13,0.34200000000000003]
["Materiales, productos o agentes",10,6.5000000000000002E-2,8,6.8000000000000005E-2,2,5.2999999999999999E-2]
["Espacios y superficies de trabajo",43,0.27700000000000002,27,0.23100000000000001,16,0.42099999999999999]
["Organización del trabajo",100,0.64500000000000002,75,0.64100000000000001,25,0.65800000000000003]
["Gestión de la prevención",82,0.52900000000000003,59,0.504,23,0.60499999999999998]
["Factores individuales",53,0.34200000000000003,40,0.34200000000000003,13,0.34200000000000003]
["Otras causas",17,0.11,13,0.111,4,0.105]
[{"$f":"Nota","v":"(*) Accidentes asignados en 2018 para su investigación en el mismo periodo y durante el año 2019"}]

{"sheet":"Hoja10","index":13,"n_rows":162,"n_cols":11,"rows_kept":162,"cut":false,"hidden":true,"merged":[[21,0,21,6],[23,0,23,7],[3,0,3,6],[4,0,5,0],[4,1,4,2],[4,3,4,4],[4,5,4,6],[40,0,41,0],[39,0,39,6],[25,0,25,10],[26,0,27,0],[26,1,26,2],[26,7,26,8],[26,9,26,10],[26,3,26,4],[26,5,26,6]]}
[]
[]
[]
["Accidentes graves, muy graves y mortales investigados según grupos de edad y sexo por porcentaje . (*)"]
[{"$f":"año_publi","v":2018},"Total",null,"Hombre",null,"Mujer"]
[null," Frecuencia","Porcentaje"," Frecuencia","Porcentaje"," Frecuencia","Porcentaje"]
["Total",155,1,143,1,12,1]
["De 16 a 19 años",3,1.9E-2,3,2.1000000000000001E-2,0,0]
["De 20 a 24 años",6,3.9E-2,6,4.2000000000000003E-2,0,0]
["De 25 a 29 años",8,5.1999999999999998E-2,7,4.9000000000000002E-2,1,8.3000000000000004E-2]
["De 30 a 34 años",11,7.0999999999999994E-2,11,7.6999999999999999E-2,0,0]
["De 35 a 39 años",19,0.123,16,0.112,3,0.25]
["De 40 a 44 años",19,0.123,19,0.13300000000000001,0,0]
["De 45 a 49 años",22,0.14199999999999999,21,0.14699999999999999,1,8.3000000000000004E-2]
["De 50 a 54 años",23,0.14799999999999999,20,0.14000000000000001,3,0.25]
["De 55 a 59 años",23,0.14799999999999999,20,0.14000000000000001,3,0.25]
["De 60 a 64 años",16,0.10299999999999999,15,0.105,1,8.3000000000000004E-2]
["65 y más años",2,1.2999999999999999E-2,2,1.4E-2,0,0]
["No consta",3,1.9E-2,3,2.1000000000000001E-2,0,0]
[{"$f":"Nota","v":"(*) Accidentes asignados en 2018 para su investigación en el mismo periodo y durante el año 2019"}]
[]
[]
[]
[]
[]
["Bloques de causa de los accidentes investigados según grupos de edad y porcentaje . (*)"]
[{"$f":"año_publi","v":2018},"Total",null,"Menores de 25 años",null,"de 25 a 49 años",null,"50 años y más",null,"No consta"]
[null,"Frecuencia","Porcentaje","Frecuencia","Porcentaje","Frecuencia","Porcentaje","Frecuencia","Porcentaje","Frecuencia","Porcentaje"]
["Total",155,1,9,1,79,1,64,1,3,1]
["Prevención intrínseca",35,0.22600000000000001,4,0.44400000000000001,14,0.17699999999999999,17,0.26600000000000001,0,0]
["Protección, señalización",37,0.23899999999999999,1,0.111,21,0.26600000000000001,14,0.219,1,0.33300000000000002]
["Materiales, productos o agentes",10,6.5000000000000002E-2,0,0,4,5.0999999999999997E-2,6,9.4E-2,0,0]
["Espacios y superficies de trabajo",43,0.27700000000000002,2,0.222,22,0.27800000000000002,18,0.28100000000000003,1,0.33300000000000002]
["Organización del trabajo",100,0.64500000000000002,3,0.33300000000000002,49,0.62,46,0.71899999999999997,2,0.66700000000000004]
["Gestión de la prevención",82,0.52900000000000003,5,0.55600000000000005,33,0.41799999999999998,42,0.65600000000000003,2,0.66700000000000004]
["Factores individuales",53,0.34200000000000003,4,0.44400000000000001,27,0.34200000000000003,19,0.29699999999999999,3,1]
["Otras causas",17,0.11,0,0,8,0.10100000000000001,9,0.14099999999999999,0,0]
[{"$f":"Nota","v":"(*) Accidentes asignados en 2018 para su investigación en el mismo periodo y durante el año 2019"}]
[]
["Causa y grupos de edad de los accidentes graves, muy graves y mortales investigados y porcentaje . (*)"]
[{"$f":"año_publi","v":2018},"Total","No consta","Menores de 25 años","de 25 a 49 años","50 años y más"]
[null,"Porcentaje","Porcentaje","Porcentaje","Porcentaje","Porcentaje"]
["Total",1,1,1,1,1]
["1101 Deficiente diseño ergonómico del puesto de trabajo.",1.9E-2,0,0,1.2999999999999999E-2,3.1E-2]
["1102 Superficies de trabajo habitualmente inestables, incluidos barcos.",2.5999999999999999E-2,0.33300000000000002,0,2.5000000000000001E-2,1.6E-2]
["1103 Espacio insuficiente en lugares de trabajo o en las zonas de tránsito",4.4999999999999998E-2,0,0,5.0999999999999997E-2,4.7E-2]
["1104 Ausencia/deficiencia de protecciones colectivas frente a caídas de personas",0.11600000000000001,0.33300000000000002,0,0.127,0.109]
["1105 Aberturas y huecos desprotegidos",1.9E-2,0.33300000000000002,0,1.2999999999999999E-2,1.6E-2]
["1106 Falta de seguridad estructural o estabilidad de paramentos, etc.",7.6999999999999999E-2,0.33300000000000002,0.111,0.10100000000000001,3.1E-2]
["1109 Dificultad/deficiencia en el acceso al puesto de trabajo.",1.2999999999999999E-2,0,0,2.5000000000000001E-2,0]
["1110 Pavimento deficiente o inadecuado (discontinuo, resbaladizo, inestable, con  pendiente excesiva, etc.)",3.9E-2,0,0,3.7999999999999999E-2,4.7E-2]
["1111 Escaleras fijas, de servicio o escala inseguras por falta de anchura, peldaño desigual, huella insufiente etc o en",6.0000000000000001E-3,0,0,1.2999999999999999E-2,0]
["1115 Deficiencia/ausencia de señalización u otro tipo de elementos necesarios para la delimitación de la zona de trabajo",3.9E-2,0,0,1.2999999999999999E-2,7.8E-2]
["1116 Vías de circulación deficientes (insuficentes, mal dimensionadas o faltas de separación entre ellas)",6.0000000000000001E-3,0,0,1.2999999999999999E-2,0]
["1118 Diseño incorrecto de puertas y pontones (sistema de cierre inseguro, sin parada de emergencia, falta previsión situ",6.0000000000000001E-3,0,0,0,1.6E-2]
["1199 Otras causas relativas a la configuración de los espacios de trabajo",3.2000000000000001E-2,0,0,2.5000000000000001E-2,4.7E-2]
["1201 Orden y limpieza deficientes",3.2000000000000001E-2,0,0.111,2.5000000000000001E-2,3.1E-2]
["1203 No delimitación entre las zonas de trabajo o tránsito y las de almacenamiento o no respetar las zonas establecidas.",1.2999999999999999E-2,0,0,1.2999999999999999E-2,1.6E-2]
["1299 Otras causas relativas al orden y limpieza",6.0000000000000001E-3,0,0,0,1.6E-2]
["1305 Iluminación insuficiente o inapropiada",6.0000000000000001E-3,0,0,0,1.6E-2]
["1307 Causas relativas a la temperatura y condiciones termo higrométricas",2.5999999999999999E-2,0,0,2.5000000000000001E-2,3.1E-2]
["3101 Diseño incorrecto de la máquina o componente que hace que no se cumplan los principios de la prevención intrínseca",1.2999999999999999E-2,0,0,1.2999999999999999E-2,1.6E-2]
["3103 Deficiente ubicación de la máquina",6.0000000000000001E-3,0,0,0,1.6E-2]
["3104 Defectos de estabilidad en equipos, maquinas o sus componentes",1.2999999999999999E-2,0,0,0,3.1E-2]
["3108 Fallos en el sistema neumático, hidráulico o eléctrico",1.2999999999999999E-2,0,0,0,3.1E-2]
["3111 Accesibilidad a órganos de la máquina peligrosos (atrapantes, cortantes, punzantes, o con posibilidad de ocasionar",5.1999999999999998E-2,0,0.111,3.7999999999999999E-2,6.3E-2]
["3113 Deficiencia de los medios de acceso al puesto de trabajo o de conducción de la maquina",6.0000000000000001E-3,0,0,0,1.6E-2]
["3114 Visibilidad insuficiente en el puesto de conducción de la máquina ya sea por un mal diseño o por no disponer de de",2.5999999999999999E-2,0,0,2.5000000000000001E-2,3.1E-2]
["3117 Ausencia/deficiencia de elementos de montaje de máquinas",6.0000000000000001E-3,0,0,0,1.6E-2]
["3199 Otras causas relativas al diseño, ubicación, construccion, montaje, mantenimiento reparación y limpieza de máquinas",6.0000000000000001E-3,0,0.111,0,0]
["3201 Ausencia y/o deficiencia de resguardos y de dispositivos de protección",3.9E-2,0,0.111,2.5000000000000001E-2,4.7E-2]
["3208 Ausencia/deficiencia o falta de uso de dispositivos que mantengan a los conductores o a los trabajadores transporta",6.0000000000000001E-3,0,0,0,1.6E-2]
["3299 Otras causas relativas a los elementos y dispositivos de protección de máquinas.",6.0000000000000001E-3,0,0,0,1.6E-2]
["3302 Deficiencia/ausencia del manual de instrucciones de máquinas",5.1999999999999998E-2,0,0,1.2999999999999999E-2,0.109]
["3999 Otras causas relativas a las máquinas.",6.0000000000000001E-3,0,0,0,1.6E-2]
["4101 Diseño incorrecto del equipo que hace que no se cumplan los principios de la prevención intrínseca y/o de la ergono",1.9E-2,0,0,2.5000000000000001E-2,1.6E-2]
["4102 Deficiente ubicación, defectos de estabilidad en equipos de trabajo debido a una incorrecta construcción, montaje y",5.1999999999999998E-2,0,0,3.7999999999999999E-2,7.8E-2]
["4103 Resistencia mecánica insuficiente del equipo de trabajo",6.0000000000000001E-3,0,0,0,1.6E-2]
["4105 Partes del equipo accesibles peligrosas (atrapantes, cortantes, punzantes,etc.)",1.9E-2,0,0.222,0,1.6E-2]
["4106 Escalera de mano insegura (material no resistente, apoyos inadecuados ….)",2.5999999999999999E-2,0,0,3.7999999999999999E-2,1.6E-2]
["4199 Otras causas relativas al diseño, ubicación, construccion, montaje, y limpieza  de otros equipos de trabajo.",1.9E-2,0,0,1.2999999999999999E-2,3.1E-2]
["4201 Ausencia/deficiencia de elementos de seguridad en los medios de elevación de cargas (pestillos de seguridad en ganc",6.0000000000000001E-3,0,0,1.2999999999999999E-2,0]
["4202 Ausencia de elementos de protección de herramientas (protectores de empuñaduras, etc)",1.2999999999999999E-2,0,0,2.5000000000000001E-2,0]
["4203 Ausencia/deficiencia de protecciones colectivas frente a caídas de personas y objetos desde equipos de trabajo",3.9E-2,0,0,5.0999999999999997E-2,3.1E-2]
["4299 Otras causas relativas a los elementos y dispositivos de protección de otros equipos de trabajo",1.2999999999999999E-2,0,0,1.2999999999999999E-2,1.6E-2]
["4301 Deficiencia/ausencia del manual de instrucciones o señalización (nota: el fallo puede consistir en la inexistencia",1.2999999999999999E-2,0,0,2.5000000000000001E-2,0]
["5102 Materiales muy pesados, voluminosos, de gran superficie, inestables o con aristas/perfiles cortantes, en relación c",6.0000000000000001E-3,0,0,0,1.6E-2]
["5104 Deficiente sistema de almacenamiento, empaquetado, paletizado, apilamiento atc",1.9E-2,0,0,2.5000000000000001E-2,1.6E-2]
["5105 Zonas de almacenamiento inadecuadas o no previstas.",6.0000000000000001E-3,0,0,1.2999999999999999E-2,0]
["5106 Falta de planificación y/o vigilancia en operaciones de levantamiento de cargas",6.0000000000000001E-3,0,0,1.2999999999999999E-2,0]
["5199 Otras causas relativas a la manipulación y almacenamiento de materiales",6.0000000000000001E-3,0,0,1.2999999999999999E-2,0]
["5201 Inhalación, ingestión o contacto con productos químicos (sustancias o preparados) presentes en el puesto de trabajo",6.0000000000000001E-3,0,0,1.2999999999999999E-2,0]
["5207 Fugas o derrames de productos químicos (sustancias o preparados) (durante su fabricación, transporte, almacenamient",1.2999999999999999E-2,0,0,0,3.1E-2]
["6101 Método de trabajo  inexistente",5.8000000000000003E-2,0.33300000000000002,0,2.5000000000000001E-2,9.4E-2]
["6102 Método de trabajo inadecuado",0.187,0,0.111,0.24099999999999999,0.14099999999999999]
["6103 Diseño inadecuado del trabajo o tarea",5.8000000000000003E-2,0,0,3.7999999999999999E-2,9.4E-2]
["6104 Apremio de tiempo o ritmo de trabajo elevado",3.2000000000000001E-2,0,0,1.2999999999999999E-2,6.3E-2]
["6106 Trabajos solitarios sin las medidas de prevención adecuadas",1.9E-2,0,0.111,1.2999999999999999E-2,1.6E-2]
["6107 Sobrecarga de la máquina o equipo (respecto a sus características técnicas)",6.0000000000000001E-3,0,0,1.2999999999999999E-2,0]
["6108 Sobrecarga trabajador (fatiga física o mental)",3.2000000000000001E-2,0,0,2.5000000000000001E-2,4.7E-2]
["6109 Existencia de interferencias o falta de coordinación entre trabajadores que realizan la misma o distintas tareas",3.2000000000000001E-2,0,0,2.5000000000000001E-2,4.7E-2]
["6110 Ausencia de vigilancia, control y dirección de persona competente",5.8000000000000003E-2,0.33300000000000002,0,6.3E-2,4.7E-2]
["6111 No organizar el trabajo teniendo en cuenta las condiciones meteorológicas adversas.",1.2999999999999999E-2,0,0,1.2999999999999999E-2,1.6E-2]
["6199 Otras causas relativas a los métodos de trabajo",1.2999999999999999E-2,0,0,0,3.1E-2]
["6201 Operación inhabitual para el operario que la realiza, sea ordinaria o esporádica",3.9E-2,0,0.111,2.5000000000000001E-2,4.7E-2]
["6202 Operación destinada a evitar averías o incidentes o recuperar incidentes.",1.9E-2,0,0,1.2999999999999999E-2,3.1E-2]
["6203 Operación extraordinaria realizada en caso de incidentes, accidentes o emergencias.",6.0000000000000001E-3,0,0,0,1.6E-2]
["6299 Otras causas relativas a la organización de las tareas",1.2999999999999999E-2,0,0,1.2999999999999999E-2,1.6E-2]
["6301 Deficiencias en el sistema de comunicación a nivel horizontal o vertical, incluyendo la incomprensión del idioma.",6.0000000000000001E-3,0,0,0,1.6E-2]
["6302 Instrucciones inexistentes",1.9E-2,0,0,1.2999999999999999E-2,3.1E-2]
["6303 Instrucciones respecto a la tarea confusas, contradictorias o insuficientes",6.0000000000000001E-3,0,0,0,1.6E-2]
["6304 Formación/información inadecuada o inexistente sobre la tarea",0.129,0.33300000000000002,0.111,6.3E-2,0.20300000000000001]
["6305 Procedimientos inexistentes o insuficientes para formar o informar a los trabajadores  acerca de la utilización o m",6.5000000000000002E-2,0.33300000000000002,0,5.0999999999999997E-2,7.8E-2]
["6306 Deficiencia/ausencia de información o señalización visual o acústica obligatoria o necesaria, incluyendo la utiliza",6.0000000000000001E-3,0,0,0,1.6E-2]
["6307 Falta de señalista en caso necesario para organizar la circulación de personas y/o vehículos, así como manejo de ca",1.2999999999999999E-2,0,0,2.5000000000000001E-2,0]
["6399 Otras causas relativas a la formación, información, instrucciones y señalización sobre la tarea",1.9E-2,0,0.111,1.2999999999999999E-2,1.6E-2]
["6401 No poner a disposición de los trabajadores las máquinas, equipos y medios auxiliares necesarios o adecuados.",7.0999999999999994E-2,0,0,0.114,3.1E-2]
["6403 Selección de útiles, herramientas y medios auxiliares no adecuados al trabajo a realizar",5.8000000000000003E-2,0,0,8.8999999999999996E-2,3.1E-2]
["6405 Utilización de la máquina de manera no prevista por el fabricante.",3.9E-2,0,0,2.5000000000000001E-2,6.3E-2]
["6406 Utilización de útiles, herramientas y medios auxiliares de manera no prevista por el fabricante.",6.0000000000000001E-3,0,0,1.2999999999999999E-2,0]
["6407 Utilización de materiales en general de manera no prevista por el fabricante..",1.2999999999999999E-2,0,0,1.2999999999999999E-2,1.6E-2]
["6408 No comprobación del estado de las maquinas, herramientas, equipos o medios auxiliares antes de su utilización",3.9E-2,0,0,6.3E-2,1.6E-2]
["6409 Ausencia de medios organizativos o procedimientos para la consignación de máquinas, instalaciones y lugares de trab",6.0000000000000001E-3,0,0,0,1.6E-2]
["6499 Otras causas relativas a la selección y utilización de equipos y materiales",1.2999999999999999E-2,0,0,1.2999999999999999E-2,1.6E-2]
["6999 Otras causas relativas a la organización del trabajo",1.9E-2,0,0,3.7999999999999999E-2,0]
["7101 Inexistencia o insuficiencia de un procedimiento que regule la realización de las actividades dirigidas a la identi",5.8000000000000003E-2,0.33300000000000002,0,2.5000000000000001E-2,9.4E-2]
["7102 Inexistencia o deficiencia de un procedimiento que regule la planificación de la implantación de las medidas preven",4.4999999999999998E-2,0,0,2.5000000000000001E-2,7.8E-2]
["7103 Procedimientos inexistentes, insuficientes o deficientes para informar a los trabajadores de los riesgos y las medi",7.6999999999999999E-2,0.33300000000000002,0.222,2.5000000000000001E-2,0.109]
["7104 Deficiencias en la organización de los recursos obligatorios (organización preventiva) para la realización de las a",2.5999999999999999E-2,0.33300000000000002,0.111,1.2999999999999999E-2,1.6E-2]
["7105 Procedimientos inexistentes, insuficientes o deficientes. para la coordinación de actividades realizadas por varias",8.4000000000000005E-2,0.33300000000000002,0,6.3E-2,0.109]
["7106 Inadecuada política de compras desde el punto de vista de la prevención.",6.0000000000000001E-3,0,0,0,1.6E-2]
["7107 Sistema inadecuado de asignación de tareas por otras razones que no sean la falta de cualificación o experiencia",6.0000000000000001E-3,0,0,0,1.6E-2]
["7108 No apreciar las características de los trabajadores para la realización de la tarea o en función de los riesgos",6.0000000000000001E-3,0,0,0,1.6E-2]
["7199 Otras causas relativas a la gestión de la prevención",2.5999999999999999E-2,0,0.111,0,4.7E-2]
["7201 No identificación del/los riesgos que han materializado el accidente",0.18099999999999999,0.33300000000000002,0.222,0.16500000000000001,0.188]
["7202 Medidas preventivas propuestas en la planificación derivada de la evaluación de riesgos insuficientes o inadecuadas",4.4999999999999998E-2,0,0,3.7999999999999999E-2,6.3E-2]
["7203 Medidas preventivas propuestas en la planificación derivada de la evaluación de riesgos insuficientes o inadecuadas",5.8000000000000003E-2,0,0,7.5999999999999998E-2,4.7E-2]
["7204 Falta de control del cumplimiento del Plan de seguridad y salud en Construcción.",3.2000000000000001E-2,0,0,2.5000000000000001E-2,4.7E-2]
["7205 Mantenimiento preventivo inexistente o inadecuado o falta de revisiones periódicas oficiales.",1.2999999999999999E-2,0,0,1.2999999999999999E-2,1.6E-2]
["7206 Formación/información inadecuada, inexistente sobre riesgos o medidas preventivas",0.219,0,0.44400000000000001,0.19,0.23400000000000001]
["7208 No poner a disposición de los trabajadores las prendas o equipos de protección necesarios o ser estos inadecuados o",4.4999999999999998E-2,0,0.111,5.0999999999999997E-2,3.1E-2]
["7209 Falta de presencia de los recursos preventivos requeridos",4.4999999999999998E-2,0,0,3.7999999999999999E-2,6.3E-2]
["7210 Vigilancia de la salud inadecuada a los riesgos del puesto de trabajo",3.2000000000000001E-2,0,0,2.5000000000000001E-2,4.7E-2]
["7211 Ausencia/deficiencias de permisos y/o procedimientos de trabajo en intervenciones peligrosas (por ejemplo soldadura",1.2999999999999999E-2,0,0.111,0,1.6E-2]
["7212 Asignación de tarea a un trabajador con falta de cualificación o experiencia",6.0000000000000001E-3,0,0,0,1.6E-2]
["7299 Otras causas relativas a las actividades preventivas",6.0000000000000001E-3,0,0,1.2999999999999999E-2,0]
["7999 Otras causas relativas a la gestión de la prevención",1.9E-2,0,0,2.5000000000000001E-2,1.6E-2]
["8101 Realización de tareas no asignadas",6.0000000000000001E-3,0,0,1.2999999999999999E-2,0]
["8102 Incumplimiento de procedimientos e instrucciones de trabajo",4.4999999999999998E-2,0,0,5.0999999999999997E-2,4.7E-2]
["8103 Incumplimiento de normas de seguridad establecidas",5.1999999999999998E-2,0.33300000000000002,0,5.0999999999999997E-2,4.7E-2]
["8104 Uso indebido de materiales, herramientas o útiles de trabajo, puestos a disposición por la empresa",1.2999999999999999E-2,0,0.111,1.2999999999999999E-2,0]
["8105 Uso indebido o no utilización de medios auxiliares de trabajo o de seguridad puestos a disposición por la empresa y",2.5999999999999999E-2,0.33300000000000002,0,2.5000000000000001E-2,1.6E-2]
["8106 No utilización de equipos de protección individual puestas a disposición por la empresa y de uso obligatorio.",7.0999999999999994E-2,0.66700000000000004,0.111,7.5999999999999998E-2,3.1E-2]
["8107 Retirada o anulación de protecciones o dispositivos de seguridad",1.9E-2,0,0,1.2999999999999999E-2,3.1E-2]
["8108 Permanencia del trabajador dentro de una zona peligrosa",8.4000000000000005E-2,0.66700000000000004,0.111,6.3E-2,7.8E-2]
["8109 Adopción de una postura inadecuada en el puesto de trabajo",4.4999999999999998E-2,0,0,6.3E-2,3.1E-2]
["8199 Otras causas relativas a los factores de comportamiento",6.5000000000000002E-2,0,0.111,5.0999999999999997E-2,7.8E-2]
["8299 Otras causas relativas a los factores intrinsecos, de salud o capacidades",6.0000000000000001E-3,0,0,1.2999999999999999E-2,0]
["8999 Otras causas relativas a los factores personales-individuales",3.9E-2,0,0,1.2999999999999999E-2,7.8E-2]
["9199 Otras causas",2.5999999999999999E-2,0,0,2.5000000000000001E-2,3.1E-2]
["9299 Hechos no causales",6.0000000000000001E-3,0,0,1.2999999999999999E-2,0]
["(*) Accidentes asignados en 2018 para su investigación en el mismo periodo y durante el año 2019"]

{"sheet":"Hoja11","index":14,"n_rows":154,"n_cols":13,"rows_kept":154,"cut":false,"hidden":true,"merged":[[3,11,3,12],[2,0,2,3],[38,0,39,0],[20,0,20,10],[21,0,22,0],[37,0,37,5],[3,3,3,4],[3,0,4,0],[3,1,3,2],[3,5,3,6],[3,7,3,8],[3,9,3,10]]}
[]
[]
["Accidentes graves, muy graves y mortales investigados según sector de actividad y ocupación por porcentaje .(*)"]
[{"$f":"año_publi","v":2018},"Total",null,"Agricultura y ganadería",null,"Industria",null,"Construcción",null,"Servicios",null,"No consta"]
[null,"Porcentaje","Frecuencia",null,null,"Porcentaje","Frecuencia","Porcentaje","Frecuencia","Porcentaje","Frecuencia","Porcentaje","Frecuencia"]
["Total",1,155,1,1,1,22,1,56,1,67,1,9]
["1_Directores y gerentes",1.2999999999999999E-2,2,0,0,0,0,0,0,0.03,2,0,0]
["2_Técnicos y profesionales científicos e intelectuales",2.5999999999999999E-2,4,0,0,4.4999999999999998E-2,1,0,0,4.4999999999999998E-2,3,0,0]
["3_Técnicos y profesionales de apoyo",4.4999999999999998E-2,7,0,0,0,0,5.3999999999999999E-2,3,0.06,4,0,0]
["4_Empleados contables, administrativos y otros empelados de oficina",1.2999999999999999E-2,2,0,0,0,0,0,0,0.03,2,0,0]
["5_Trabajadores de los servicios de restauración, personales, protección y vendedores",8.4000000000000005E-2,13,0,0,4.4999999999999998E-2,1,0,0,0.17899999999999999,12,0,0]
["6_Tabajadores cualificados en el sector agrícola, ganadero, forestal y pesquero",1.2999999999999999E-2,2,1,1,0,0,0,0,1.4999999999999999E-2,1,0,0]
["7_Artesanos y trabajadores cualificados de las industrias manufactureras y la construccion (excepto los operadores de ma",0.45800000000000002,71,0,0,0.54500000000000004,12,0.80400000000000005,45,0.14899999999999999,10,0.44400000000000001,4]
["8_Operadores  y conductores de instalaciones y maquinaria, y montadores",0.14799999999999999,23,0,0,0.182,4,5.3999999999999999E-2,3,0.20899999999999999,14,0.222,2]
["9_Trabajadores no cualificados en servicios (excepto conductores) y peones",0.18099999999999999,28,0,0,0.182,4,8.8999999999999996E-2,5,0.28399999999999997,19,0,0]
["99_No consta",1.9E-2,3,0,0,0,0,0,0,0,0,0.33300000000000002,3]
["(*) Accidentes asignados en 2018 para su investigación en el mismo periodo y durante el año 2019"]
[]
[]
[]
["Bloque de causa de los accidentes graves, muy graves y mortales según ocupación y porcentaje .  (*)"]
[{"$f":"año_publi","v":2018},"Total","2_Técnicos y profesionales científicos e intelectuales","4_Empleados contables, administrativos y otros empleados de oficina","5_Trabajadores de los servicios de restauración, personales, protección y vendedores","6_Tabajadores cualificados en el sector agrícola, ganadero, forestal y pesquero","7_Artesanos y trabajadores cualificados de las industrias manufactureras y la construcción","8_Operadores  y conductores de instalaciones y maquinaria, y montadores","9_Trabajadores no cualificados en servicios (excepto conductores) y peones"]
[null,"Porcentaje","Porcentaje","Porcentaje","Porcentaje","Porcentaje","Porcentaje","Porcentaje","Porcentaje"]
["Total",1,1,1,1,1,1,1,1]
["Prevención intrínseca",0.221,0,0,0.25,0,0.192,0.25,0.36399999999999999]
["Protección, señalización",0.26700000000000002,0,0.33300000000000002,0.125,0.33300000000000002,0.32900000000000001,0.2,0.182]
["Materiales, productos o agentes",9.1999999999999998E-2,0,0,0,0,9.6000000000000002E-2,0,0.22700000000000001]
["Espacios y superficies de trabajo",0.19800000000000001,0,0.33300000000000002,0,0.33300000000000002,0.23300000000000001,0.2,0.13600000000000001]
["Organización del trabajo",0.626,0,0.33300000000000002,0.875,0.66700000000000004,0.56200000000000006,0.7,0.77300000000000002]
["Gestión de la prevención",0.504,0,0.33300000000000002,0.375,0.33300000000000002,0.53400000000000003,0.45,0.59099999999999997]
["Factores individuales",0.36599999999999999,1,0,0.25,0.66700000000000004,0.39700000000000002,0.35,0.27300000000000002]
["Otras causas",9.1999999999999998E-2,0,0.33300000000000002,0.125,0.33300000000000002,9.6000000000000002E-2,0.1,0]
[{"$f":"Nota","v":"(*) Accidentes asignados en 2018 para su investigación en el mismo periodo y durante el año 2019"}]
[]
[]
[]
[]
["Causas de los accidentes graves, muy graves y mortales según las ocupaciones más frecuentes por porcentaje .(*)"]
[" ","7_Artesanos y trabajadores cualificados de las industrias manufactureras y la construccion (excepto los operadores de ma","8_Operadores  y conductores de instalaciones y maquinaria, y montadores","9_Trabajadores no cualificados en servicios (excepto conductores) y peones","5_Trabajadores de los servicios de restauración, personales, protección y vendedores"]
[null,"Porcentaje","Porcentaje","Porcentaje","Porcentaje"]
["Total",1,1,1,1]
["1101 Deficiente diseño ergonómico del puesto de trabajo.",1.2E-2,5.6000000000000001E-2,0,0]
["1102 Superficies de trabajo habitualmente inestables, incluidos barcos.",2.4E-2,0,0,0]
["1103 Espacio insuficiente en lugares de trabajo o en las zonas de tránsito",0,5.6000000000000001E-2,0,0]
["1104 Ausencia/deficiencia de protecciones colectivas frente a caídas de personas",0.157,0,0.17100000000000001,0]
["1105 Aberturas y huecos desprotegidos",2.4E-2,0,2.9000000000000001E-2,0]
["1106 Falta de seguridad estructural o estabilidad de paramentos, etc.",4.8000000000000001E-2,0,2.9000000000000001E-2,0]
["1108 Falta/deficiencia de entibación o taludes inadecuados",1.2E-2,0,0,0]
["1109 Dificultad/deficiencia en el acceso al puesto de trabajo.",1.2E-2,0,2.9000000000000001E-2,0]
["1110 Pavimento deficiente o inadecuado (discontinuo, resbaladizo, inestable, con  pendiente excesiva, etc.)",0,5.6000000000000001E-2,0,0.14299999999999999]
["1115 Deficiencia/ausencia de señalización u otro tipo de elementos necesarios para la delimitación de la zona de trabajo",3.5999999999999997E-2,5.6000000000000001E-2,0,0]
["1116 Vías de circulación deficientes (insuficentes, mal dimensionadas o faltas de separación entre ellas)",0,5.6000000000000001E-2,0,0]
["1199 Otras causas relativas a la configuración de los espacios de trabajo",1.2E-2,5.6000000000000001E-2,5.7000000000000002E-2,0]
["1201 Orden y limpieza deficientes",2.4E-2,0,0,7.0999999999999994E-2]
["1203 No delimitación entre las zonas de trabajo o tránsito y las de almacenamiento o no respetar las zonas establecidas.",2.4E-2,5.6000000000000001E-2,0,7.0999999999999994E-2]
["1301 Causas relativas al nivel de ruido ambiental",1.2E-2,0,0,0]
["2108 Dificultad para efectuar un adecuado mantenimiento o limpieza de instalaciones de servicio o protección",1.2E-2,0,0,0]
["2201 Ausencia/deficiencia de medios para evitar los contactos eléctricos directos",1.2E-2,0,0,0]
["2299 Otras causas relativas los elementos y dispositivos de protección de instalaciones de servicio y protección",1.2E-2,0,0,0]
["3103 Deficiente ubicación de la máquina",0,0,2.9000000000000001E-2,0]
["3104 Defectos de estabilidad en equipos, maquinas o sus componentes",2.4E-2,5.6000000000000001E-2,5.7000000000000002E-2,0]
["3108 Fallos en el sistema neumático, hidráulico o eléctrico",0,0,0,7.0999999999999994E-2]
["3111 Accesibilidad a órganos de la máquina peligrosos (atrapantes, cortantes, punzantes, o con posibilidad de ocasionar",1.2E-2,5.6000000000000001E-2,0,0]
["3114 Visibilidad insuficiente en el puesto de conducción de la máquina ya sea por un mal diseño o por no disponer de de",1.2E-2,0,0,0]
["3118 Deficiencia en el dispositivo de enganche/desenganche entre maquinas",0,5.6000000000000001E-2,0,0]
["3199 Otras causas relativas al diseño, ubicación, construccion, montaje, mantenimiento reparación y limpieza de máquinas",0,0,0,7.0999999999999994E-2]
["3201 Ausencia y/o deficiencia de resguardos y de dispositivos de protección",1.2E-2,5.6000000000000001E-2,2.9000000000000001E-2,0]
["3203 Ausencia/deficiencia de protecciones colectivas frente a caídas de personas y objetos desde máquinas",1.2E-2,0,0,0]
["3302 Deficiencia/ausencia del manual de instrucciones de máquinas",0,5.6000000000000001E-2,0,0]
["4101 Diseño incorrecto del equipo que hace que no se cumplan los principios de la prevención intrínseca y/o de la ergono",0,0,2.9000000000000001E-2,0]
["4102 Deficiente ubicación, defectos de estabilidad en equipos de trabajo debido a una incorrecta construcción, montaje y",8.4000000000000005E-2,0.111,2.9000000000000001E-2,7.0999999999999994E-2]
["4103 Resistencia mecánica insuficiente del equipo de trabajo",1.2E-2,0,0,0]
["4105 Partes del equipo accesibles peligrosas (atrapantes, cortantes, punzantes,etc.)",2.4E-2,5.6000000000000001E-2,2.9000000000000001E-2,0]
["4106 Escalera de mano insegura (material no resistente, apoyos inadecuados ….)",2.4E-2,0,5.7000000000000002E-2,7.0999999999999994E-2]
["4199 Otras causas relativas al diseño, ubicación, construccion, montaje, y limpieza  de otros equipos de trabajo.",2.4E-2,0,0,0]
["4201 Ausencia/deficiencia de elementos de seguridad en los medios de elevación de cargas (pestillos de seguridad en ganc",0,0,2.9000000000000001E-2,0]
["4202 Ausencia de elementos de protección de herramientas (protectores de empuñaduras, etc)",1.2E-2,0,0,0]
["4203 Ausencia/deficiencia de protecciones colectivas frente a caídas de personas y objetos desde equipos de trabajo",3.5999999999999997E-2,0,0,0]
["4299 Otras causas relativas a los elementos y dispositivos de protección de otros equipos de trabajo",1.2E-2,0,0,0]
["4301 Deficiencia/ausencia del manual de instrucciones o señalización (nota: el fallo puede consistir en la inexistencia",2.4E-2,0,0,0]
["4399 Otras causas relativas a la señalización e información de otros equipos de trabajo",1.2E-2,0,0,0]
["4999 Otras causas relativas a otros equipos de trabajo",1.2E-2,0,0,0]
["5101 Defectos en los materiales utilizados de forma general, excluídos los que conforman una máquina, instalación y equi",1.2E-2,0,0,0]
["5102 Materiales muy pesados, voluminosos, de gran superficie, inestables o con aristas/perfiles cortantes, en relación c",2.4E-2,5.6000000000000001E-2,2.9000000000000001E-2,0]
["5103 No mecanización o automatización de las operaciones de carga/descarga",1.2E-2,0,0,0]
["5104 Deficiente sistema de almacenamiento, empaquetado, paletizado, apilamiento atc",0,0,2.9000000000000001E-2,7.0999999999999994E-2]
["5106 Falta de planificación y/o vigilancia en operaciones de levantamiento de cargas",2.4E-2,0,0,0]
["5199 Otras causas relativas a la manipulación y almacenamiento de materiales",1.2E-2,0,2.9000000000000001E-2,7.0999999999999994E-2]
["6101 Método de trabajo  inexistente",3.5999999999999997E-2,0.111,0.114,0]
["6102 Método de trabajo inadecuado",0.22900000000000001,0.44400000000000001,0.28599999999999998,0.14299999999999999]
["6103 Diseño inadecuado del trabajo o tarea",4.8000000000000001E-2,0,2.9000000000000001E-2,7.0999999999999994E-2]
["6104 Apremio de tiempo o ritmo de trabajo elevado",2.4E-2,0,8.5999999999999993E-2,0]
["6105 Trabajo monótono o rutinario, sin medidas para evitar su efecto nocivo",1.2E-2,0,0,0]
["6106 Trabajos solitarios sin las medidas de prevención adecuadas",1.2E-2,0,0,0]
["6107 Sobrecarga de la máquina o equipo (respecto a sus características técnicas)",0,5.6000000000000001E-2,0,0]
["6108 Sobrecarga trabajador (fatiga física o mental)",1.2E-2,0.111,2.9000000000000001E-2,0]
["6109 Existencia de interferencias o falta de coordinación entre trabajadores que realizan la misma o distintas tareas",0.06,5.6000000000000001E-2,5.7000000000000002E-2,0]
["6110 Ausencia de vigilancia, control y dirección de persona competente",0.108,5.6000000000000001E-2,0,0]
["6111 No organizar el trabajo teniendo en cuenta las condiciones meteorológicas adversas.",1.2E-2,0,0,0]
["6199 Otras causas relativas a los métodos de trabajo",2.4E-2,0,2.9000000000000001E-2,7.0999999999999994E-2]
["6201 Operación inhabitual para el operario que la realiza, sea ordinaria o esporádica",0,0,0.114,0]
["6202 Operación destinada a evitar averías o incidentes o recuperar incidentes.",0,0,0,7.0999999999999994E-2]
["6299 Otras causas relativas a la organización de las tareas",1.2E-2,0,0,0]
["6301 Deficiencias en el sistema de comunicación a nivel horizontal o vertical, incluyendo la incomprensión del idioma.",1.2E-2,5.6000000000000001E-2,0,0]
["6302 Instrucciones inexistentes",2.4E-2,5.6000000000000001E-2,5.7000000000000002E-2,0]
["6303 Instrucciones respecto a la tarea confusas, contradictorias o insuficientes",1.2E-2,5.6000000000000001E-2,0,0]
["6304 Formación/información inadecuada o inexistente sobre la tarea",0.12,0.27800000000000002,0.28599999999999998,0.14299999999999999]
["6305 Procedimientos inexistentes o insuficientes para formar o informar a los trabajadores  acerca de la utilización o m",0,0,2.9000000000000001E-2,0]
["6307 Falta de señalista en caso necesario para organizar la circulación de personas y/o vehículos, así como manejo de ca",2.4E-2,0,0,0]
["6399 Otras causas relativas a la formación, información, instrucciones y señalización sobre la tarea",2.4E-2,0,0,0]
["6401 No poner a disposición de los trabajadores las máquinas, equipos y medios auxiliares necesarios o adecuados.",9.6000000000000002E-2,0.222,0.114,7.0999999999999994E-2]
["6402 Selección de máquinas no adecuadas al trabajo a realizar",0,5.6000000000000001E-2,0,0]
["6403 Selección de útiles, herramientas y medios auxiliares no adecuados al trabajo a realizar",0.13300000000000001,5.6000000000000001E-2,5.7000000000000002E-2,0]
["6404 Selección de materiales no adecuados al trabajo a realizar",1.2E-2,0,0,0]
["6405 Utilización de la máquina de manera no prevista por el fabricante.",0,0,2.9000000000000001E-2,0]
["6406 Utilización de útiles, herramientas y medios auxiliares de manera no prevista por el fabricante.",2.4E-2,0,0,7.0999999999999994E-2]
["6408 No comprobación del estado de las maquinas, herramientas, equipos o medios auxiliares antes de su utilización",1.2E-2,0,0,0]
["6409 Ausencia de medios organizativos o procedimientos para la consignación de máquinas, instalaciones y lugares de trab",1.2E-2,0,0,0]
["6499 Otras causas relativas a la selección y utilización de equipos y materiales",3.5999999999999997E-2,0,0,0]
["7101 Inexistencia o insuficiencia de un procedimiento que regule la realización de las actividades dirigidas a la identi",0.06,0,0,7.0999999999999994E-2]
["7102 Inexistencia o deficiencia de un procedimiento que regule la planificación de la implantación de las medidas preven",2.4E-2,0,5.7000000000000002E-2,0]
["7103 Procedimientos inexistentes, insuficientes o deficientes para informar a los trabajadores de los riesgos y las medi",0,5.6000000000000001E-2,5.7000000000000002E-2,0]
["7104 Deficiencias en la organización de los recursos obligatorios (organización preventiva) para la realización de las a",2.4E-2,0,2.9000000000000001E-2,0]
["7105 Procedimientos inexistentes, insuficientes o deficientes. para la coordinación de actividades realizadas por varias",8.4000000000000005E-2,0.222,5.7000000000000002E-2,0]
["7106 Inadecuada política de compras desde el punto de vista de la prevención.",1.2E-2,0,0,0]
["7108 No apreciar las características de los trabajadores para la realización de la tarea o en función de los riesgos",0,0,2.9000000000000001E-2,0]
["7199 Otras causas relativas a la gestión de la prevención",2.4E-2,0,5.7000000000000002E-2,0]
["7201 No identificación del/los riesgos que han materializado el accidente",0.157,0.33300000000000002,0.17100000000000001,0.214]
["7202 Medidas preventivas propuestas en la planificación derivada de la evaluación de riesgos insuficientes o inadecuadas",0.13300000000000001,0.111,8.5999999999999993E-2,7.0999999999999994E-2]
["7203 Medidas preventivas propuestas en la planificación derivada de la evaluación de riesgos insuficientes o inadecuadas",0.14499999999999999,5.6000000000000001E-2,8.5999999999999993E-2,7.0999999999999994E-2]
["7204 Falta de control del cumplimiento del Plan de seguridad y salud en Construcción.",0.108,0,5.7000000000000002E-2,0]
["7205 Mantenimiento preventivo inexistente o inadecuado o falta de revisiones periódicas oficiales.",0,0,5.7000000000000002E-2,0]
["7206 Formación/información inadecuada, inexistente sobre riesgos o medidas preventivas",9.6000000000000002E-2,0.16700000000000001,0.2,0.214]
["7207 Inexistencia o inadecuación de plan y/o medidas de emergencia.",1.2E-2,0,0,0]
["7208 No poner a disposición de los trabajadores las prendas o equipos de protección necesarios o ser estos inadecuados o",7.1999999999999995E-2,0,0.14299999999999999,0]
["7209 Falta de presencia de los recursos preventivos requeridos",8.4000000000000005E-2,0,8.5999999999999993E-2,0]
["7210 Vigilancia de la salud inadecuada a los riesgos del puesto de trabajo",1.2E-2,5.6000000000000001E-2,0.114,0]
["7211 Ausencia/deficiencias de permisos y/o procedimientos de trabajo en intervenciones peligrosas (por ejemplo soldadura",1.2E-2,0.111,0,0.14299999999999999]
["7212 Asignación de tarea a un trabajador con falta de cualificación o experiencia",0,0,8.5999999999999993E-2,0]
["7299 Otras causas relativas a las actividades preventivas",0,0,2.9000000000000001E-2,0]
["8101 Realización de tareas no asignadas",4.8000000000000001E-2,5.6000000000000001E-2,5.7000000000000002E-2,0]
["8102 Incumplimiento de procedimientos e instrucciones de trabajo",4.8000000000000001E-2,5.6000000000000001E-2,5.7000000000000002E-2,7.0999999999999994E-2]
["8103 Incumplimiento de normas de seguridad establecidas",3.5999999999999997E-2,0,0,7.0999999999999994E-2]
["8104 Uso indebido de materiales, herramientas o útiles de trabajo, puestos a disposición por la empresa",4.8000000000000001E-2,0,2.9000000000000001E-2,0]
["8105 Uso indebido o no utilización de medios auxiliares de trabajo o de seguridad puestos a disposición por la empresa y",4.8000000000000001E-2,0,0,0]
["8106 No utilización de equipos de protección individual puestas a disposición por la empresa y de uso obligatorio.",0.13300000000000001,5.6000000000000001E-2,0,0]
["8107 Retirada o anulación de protecciones o dispositivos de seguridad",1.2E-2,5.6000000000000001E-2,0,0]
["8108 Permanencia del trabajador dentro de una zona peligrosa",7.1999999999999995E-2,0.16700000000000001,8.5999999999999993E-2,7.0999999999999994E-2]
["8109 Adopción de una postura inadecuada en el puesto de trabajo",3.5999999999999997E-2,0,5.7000000000000002E-2,0]
["8199 Otras causas relativas a los factores de comportamiento",8.4000000000000005E-2,5.6000000000000001E-2,2.9000000000000001E-2,0]
["8299 Otras causas relativas a los factores intrinsecos, de salud o capacidades",0,0,2.9000000000000001E-2,0]
["8999 Otras causas relativas a los factores personales-individuales",1.2E-2,0,2.9000000000000001E-2,0]
["9299 Hechos no causales",2.4E-2,0,0,7.0999999999999994E-2]
["(*) Accidentes asignados en 2019 para su investigación en el mismo periodo y durante el año 2020"]

{"sheet":"Hoja12","index":15,"n_rows":27,"n_cols":13,"rows_kept":27,"cut":false,"hidden":true,"merged":[[15,0,16,0],[5,5,5,6],[5,7,5,8],[5,9,5,10],[4,0,4,12],[5,0,6,0],[5,1,5,2],[5,3,5,4],[14,0,14,4],[5,11,5,12]]}
[]
[]
[]
[]
["Accidentes graves, muy graves y mortales investigados según tipo de contrato y sector de actividad.(*)"]
[" ","Total",null,"Agricultura y ganaderia",null,"Industria",null,"Construcción",null,"Servicios",null,"No consta"]
[null,"Porcentaje","Frecuencia","Porcentaje","Frecuencia","Porcentaje","Frecuencia","Porcentaje","Frecuencia","Porcentaje","Frecuencia","Porcentaje","Frecuencia"]
["Total",1,155,1,1,1,22,1,56,1,67,1,9]
["Contrato Indefinido",0.497,77,0,0,0.63600000000000001,14,0.33900000000000002,19,0.61199999999999999,41,0.33300000000000002,3]
["Contrato Temporal",0.432,67,1,1,0.36399999999999999,8,0.58899999999999997,33,0.35799999999999998,24,0.111,1]
["No consta/No procede",7.0999999999999994E-2,11,0,0,0,0,7.0999999999999994E-2,4,0.03,2,0.55600000000000005,5]
["(*) Accidentes asignados en 2018 para su investigación en el mismo periodo y durante el año 2019"]
[]
[]
["Bloque de causa accidentes graves, muy graves y mortales según tipo de contrato. (*)"]
[{"$f":"año_publi","v":2018},"Total","Contrato Indefinido","Contrato Temporal","No consta/No procede"]
[null,"Porcentaje","Porcentaje","Porcentaje","Porcentaje"]
["Total",1,1,1,1]
["Prevención intrínseca",0.22600000000000001,0.247,0.224,9.0999999999999998E-2]
["Protección, señalización",0.23899999999999999,0.20799999999999999,0.254,0.36399999999999999]
["Materiales, productos o agentes",6.5000000000000002E-2,6.5000000000000002E-2,7.4999999999999997E-2,0]
["Espacios y superficies de trabajo",0.27700000000000002,0.26,0.29899999999999999,0.27300000000000002]
["Organización del trabajo",0.64500000000000002,0.61,0.67200000000000004,0.72699999999999998]
["Gestión de la prevención",0.52900000000000003,0.54500000000000004,0.46300000000000002,0.81799999999999995]
["Factores individuales",0.34200000000000003,0.312,0.35799999999999998,0.45500000000000002]
["Otras causas",0.11,0.156,7.4999999999999997E-2,0]
[{"$f":"Nota","v":"(*) Accidentes asignados en 2018 para su investigación en el mismo periodo y durante el año 2019"}]

{"sheet":"Hoja13","index":16,"n_rows":33,"n_cols":13,"rows_kept":33,"cut":false,"hidden":true,"merged":[[4,7,4,12],[5,7,6,7],[4,0,4,2]]}
[]
[]
[]
[]
["Accidentes graves, muy graves y mortales investigados según lugar del accidente ordenados por frecuencia.(*)",null,null,null,null,null,null,"Bloque de causas de los accidentes graves, muy graves y mortales investigados según lugar del accidente de mayor frecuencia (*)"]
[{"$f":"año_publi","v":2018},"Porcentaje","Frecuencia",null,null,null,null,{"$f":"año_publi","v":2018},"011 Lugar de producción, taller, fábrica","013 Áreas destinadas principalmente a almacenamiento, carga, descarga","021 Obras - edificio en construcción","022 Obras - edificio en demolición, renovación o mantenimiento","061 Lugares públicos, vías de acceso, de circulación, aeropuerto, estación, etc.)"]
["Total",1,155,null,null,null,null,null,"Porcentaje","Porcentaje","Porcentaje","Porcentaje","Porcentaje"]
["011 Lugar de producción, taller, fábrica",0.2,31,null,null,null,null,"Total",1,1,1,1,1]
["021 Obras - edificio en construcción",0.17399999999999999,27,null,null,null,null,"Prevención intrínseca",0.35499999999999998,0.14299999999999999,0.25900000000000001,0,0.182]
["013 Áreas destinadas principalmente a almacenamiento, carga, descarga",0.13500000000000001,21,null,null,null,null,"Protección, señalización",0.25800000000000001,0.19,0.33300000000000002,0.313,0]
["022 Obras - edificio en demolición, renovación o mantenimiento",0.10299999999999999,16,null,null,null,null,"Materiales, productos o agentes",3.2000000000000001E-2,4.8000000000000001E-2,3.6999999999999998E-2,0,0.36399999999999999]
["061 Lugares públicos, vías de acceso, de circulación, aeropuerto, estación, etc.)",7.0999999999999994E-2,11,null,null,null,null,"Espacios y superficies de trabajo",0.22600000000000001,0.19,0.40699999999999997,0.375,9.0999999999999998E-2]
["044 Restaurantes, lugares de ocio, de alojamiento (incluidos museos, ferias etc.)",4.4999999999999998E-2,7,null,null,null,null,"Organización del trabajo",0.71,0.57099999999999995,0.70399999999999996,0.68799999999999994,0.45500000000000002]
["012 Área de mantenimiento, taller de reparación",4.4999999999999998E-2,7,null,null,null,null,"Gestión de la prevención",0.51600000000000001,0.42899999999999999,0.51900000000000002,0.75,9.0999999999999998E-2]
["072 Partes comunes, anexos, jardines colindantes privados",3.2000000000000001E-2,5,null,null,null,null,"Factores individuales",0.38700000000000001,0.42899999999999999,0.25900000000000001,0.5,9.0999999999999998E-2]
["071 Domicilio privado",2.5999999999999999E-2,4,null,null,null,null,"Otras causas",0.129,9.5000000000000001E-2,3.6999999999999998E-2,6.3E-2,0.182]
["042 Centros de enseñanza, escuelas, institutos, universidades, guarderías",1.9E-2,3,null,null,null,null,{"$f":"Nota","v":"(*) Accidentes asignados en 2018 para su investigación en el mismo periodo y durante el año 2019"}]
["041 Oficinas, salas de reunión, bibliotecas, etc.",1.9E-2,3]
["092 Elevados - mástiles, torres, plataformas suspendidas",1.2999999999999999E-2,2]
["091 Elevados - en una superficie fija (tejados, terrazas, etc.)",1.2999999999999999E-2,2]
["082 En el exterior - terrenos de deporte, piscinas, pistas de esquí",1.2999999999999999E-2,2]
["049 Otros Tipos de lugar conocidos del grupo 04, no mencionados anteriormente",1.2999999999999999E-2,2]
["043 Lugares de venta, pequeños o grandes (incluida la venta ambulante)",1.2999999999999999E-2,2]
["036 Jardines, parques, jardines florales, parques zoológicos",1.2999999999999999E-2,2]
["081 En el interior - salas actividades deportivas, gimnasios, piscinas cubiertas",6.0000000000000001E-3,1]
["063 Zona aneja a lugares públicos con acceso reservado al personal autorizado",6.0000000000000001E-3,1]
["062 Medio de transporte terrestre: carretera o ferrocarril - privado o público",6.0000000000000001E-3,1]
["051 Centros sanitarios, clínicas, hospitales, centros geriátricos",6.0000000000000001E-3,1]
["034 Zonas forestales",6.0000000000000001E-3,1]
["032 Lugares agrícolas - cultivo del suelo",6.0000000000000001E-3,1]
["029 Otros Tipos de lugar conocidos del grupo 02 no mencionados anteriormente",6.0000000000000001E-3,1]
["019 Otros Tipos de lugar conocidos del grupo 01 no mencionados anteriormente",6.0000000000000001E-3,1]
[{"$f":"Nota","v":"(*) Accidentes asignados en 2018 para su investigación en el mismo periodo y durante el año 2019"}]

{"sheet":"Hoja14","index":17,"n_rows":31,"n_cols":10,"rows_kept":31,"cut":false,"hidden":true,"merged":[[1,4,2,9],[4,0,4,2],[3,4,4,4]]}
[]
[null,null,null,null,"Bloque de causas de losaccidentes graves, muy graves y mortales investigados según tipo de trabajo de mayor frecuencia. (*)"]
[]
[null,null,null,null,{"$f":"año_publi","v":2018},"11 Producción, transformación, tratamiento - de todo tipo","12 Almacenamiento - de todo tipo","22 Nueva construcción - edificios","51 Instalación, colocación, preparación","52 Mantenimiento, reparación, reglaje, puesta a punto"]
["Accidentes graves, muy graves y mortales investigados según tipo de trabajo ordenados por frecuencia. (*)",null,null,null,null,"Porcentaje","Porcentaje","Porcentaje","Porcentaje","Porcentaje"]
[{"$f":"año_publi","v":2018},"Porcentaje","Frecuencia",null,"Total",1,1,1,1,1]
["Total",1,155,null,"Prevención intrínseca",0.33300000000000002,0.23499999999999999,0.27300000000000002,0.28599999999999998,0.13600000000000001]
["51 Instalación, colocación, preparación",0.14199999999999999,22,null,"Protección, señalización",0.28599999999999998,0.17599999999999999,0.36399999999999999,0,0.36399999999999999]
["22 Nueva construcción - edificios",0.14199999999999999,22,null,"Materiales, productos o agentes",9.5000000000000001E-2,5.8999999999999997E-2,4.4999999999999998E-2,7.0999999999999994E-2,0]
["11 Producción, transformación, tratamiento - de todo tipo",0.13500000000000001,21,null,"Espacios y superficies de trabajo",0.14299999999999999,0.23499999999999999,0.40899999999999997,0.14299999999999999,0.45500000000000002]
["12 Almacenamiento - de todo tipo",0.11,17,null,"Organización del trabajo",0.81,0.41199999999999998,0.68200000000000005,0.71399999999999997,0.54500000000000004]
["52 Mantenimiento, reparación, reglaje, puesta a punto",0.09,14,null,"Gestión de la prevención",0.57099999999999995,0.23499999999999999,0.5,0.78600000000000003,0.54500000000000004]
["24 Renovación, reparación, agregación, mantenimiento - de todo tipo de construc",7.0999999999999994E-2,11,null,"Factores individuales",0.47599999999999998,0.41199999999999998,0.22700000000000001,0.214,0.36399999999999999]
["53 Limpieza de locales, de máquinas - industrial o manual",5.1999999999999998E-2,8,null,"Otras causas",4.8000000000000001E-2,5.8999999999999997E-2,4.4999999999999998E-2,7.0999999999999994E-2,4.4999999999999998E-2]
["61 Circulación, incluso en los medios de transporte",3.9E-2,6,null,{"$f":"Nota","v":"(*) Accidentes asignados en 2018 para su investigación en el mismo periodo y durante el año 2019"}]
["59 Otros Tipos de trabajo conocidos del grupo 5 no mencionados anteriormente",3.2000000000000001E-2,5]
["43 Actividades comerciales - compra, venta, servicios relacionados",3.2000000000000001E-2,5]
["41 Servicios, atención sanitaria, asistencia a personas",2.5999999999999999E-2,4]
["34 Labores de tipo forestal",1.9E-2,3]
["54 Gestión de residuos, desecho, tratamiento de residuos de todo tipo",1.2999999999999999E-2,2]
["49 Otros Tipos de trabajo conocidos del grupo 4 no mencionados anteriormente",1.2999999999999999E-2,2]
["42 Actividades intelectuales, oficinas, enseñanza, tratamiento de la información",1.2999999999999999E-2,2]
["19 Otros Tipos de trabajo conocidos del grupo 1 no mencionados anteriormente",1.2999999999999999E-2,2]
["10 Tareas de producción, transformación, almacenamiento",1.2999999999999999E-2,2]
["No consta",1.2999999999999999E-2,2]
["62 Actividades deportivas y artísticas",6.0000000000000001E-3,1]
["55 Vigilancia, inspección procesos de fabricación, locales, medios de transporte",6.0000000000000001E-3,1]
["32 Labores de tipo agrícola - con vegetales, horticultura",6.0000000000000001E-3,1]
["31 Labores de tipo agrícola - trabajos de la tierra",6.0000000000000001E-3,1]
["25 Demolición de todo tipo de construcciones",6.0000000000000001E-3,1]
[{"$f":"Nota","v":"(*) Accidentes asignados en 2018 para su investigación en el mismo periodo y durante el año 2019"}]

{"sheet":"Hoja15","index":18,"n_rows":140,"n_cols":10,"rows_kept":140,"cut":false,"hidden":true,"merged":[[16,0,16,2],[3,0,3,2],[3,4,3,9],[20,0,20,4]]}
[]
[]
[]
["Accidentes graves, muy graves y mortales investigados según desviación ordenados por frecuencia. (*)",null,null,null,"Bloque de causas de los accidentes graves, muy graves y mortales investigados según desviación de mayor frecuencia. (*)"]
[" ","Porcentaje","Frecuencia",null,null,"5_Resbalón o tropezón con caída (de personas)","4_Pérdida (total o parcial) de control de máquinas, medios de transporte -equipo de carga, herramienta manual, animal","3_Rotura, fractura, estallido, resbalón, caída, derrumbamiento de agente material","6_Movimiento del cuerpo sin esfuerzo físico (por lo general provoca una lesión externa)","1_Desviación por problema eléctrico, explosión, fuego"]
["Total",1,155,null,null,"Porcentaje","Porcentaje","Porcentaje","Porcentaje","Porcentaje"]
["5_Resbalón o tropezón con caída (de personas)",0.28999999999999998,45,null,"Total",1,1,1,1,1]
["3_Rotura, fractura, estallido, resbalón, caída, derrumbamiento de agente material",0.25800000000000001,40,null,"Prevención intrínseca",0.111,0.375,0.27500000000000002,0.29199999999999998,0]
["6_Movimiento del cuerpo sin esfuerzo físico (por lo general provoca una lesión externa)",0.155,24,null,"Protección, señalización",0.28899999999999998,0.20799999999999999,0.32500000000000001,0.16700000000000001,0]
["4_Pérdida (total o parcial) de control de máquinas, medios de transporte -equipo de carga, herramienta manual, animal",0.155,24,null,"Materiales, productos o agentes",2.1999999999999999E-2,4.2000000000000003E-2,2.5000000000000001E-2,4.2000000000000003E-2,0.3]
["1_Desviación por problema eléctrico, explosión, fuego",6.5000000000000002E-2,10,null,"Espacios y superficies de trabajo",0.44400000000000001,0.125,0.32500000000000001,0.20799999999999999,0]
["7_Movimiento del cuerpo como consecuencia de o con esfuerzo físico (por lo general provoca una lesión interna)",5.1999999999999998E-2,8,null,"Organización del trabajo",0.68899999999999995,0.66700000000000004,0.7,0.625,0.3]
["2_Desviación por desbordamiento, vuelco, escape, derrame, vaporización, emanación",1.2999999999999999E-2,2,null,"Gestión de la prevención",0.57799999999999996,0.625,0.57499999999999996,0.45800000000000002,0.4]
["8_Sorpresa, miedo, violencia, agresión, amenaza, presencia",6.0000000000000001E-3,1,null,"Factores individuales",0.311,0.33300000000000002,0.27500000000000002,0.375,0.7]
["11_No consta",6.0000000000000001E-3,1,null,"Otras causas",0.222,4.2000000000000003E-2,2.5000000000000001E-2,8.3000000000000004E-2,0.2]
[{"$f":"Nota","v":"(*) Accidentes asignados en 2018 para su investigación en el mismo periodo y durante el año 2019"},null,null,null,{"$f":"Nota","v":"(*) Accidentes asignados en 2018 para su investigación en el mismo periodo y durante el año 2019"}]
[]
[]
[]
[]
["Causas de los accidentes graves, muy graves y mortales investigados según desviación de mayor frecuencia. (*)"]
[null,"5_Resbalón o tropezón con caída (de personas)","4_Pérdida (total o parcial) de control de máquinas, medios de transporte -equipo de carga, herramienta manual, animal","3_Rotura, fractura, estallido, resbalón, caída, derrumbamiento de agente material","6_Movimiento del cuerpo sin esfuerzo físico (por lo general provoca una lesión externa)","1_Desviación por problema eléctrico, explosión, fuego"]
[null,"Porcentaje","Porcentaje","Porcentaje","Porcentaje","Porcentaje"]
["Total",1,1,1,1,1]
["1101 Deficiente diseño ergonómico del puesto de trabajo.",0,0,0.05,0,0]
["1102 Superficies de trabajo habitualmente inestables, incluidos barcos.",6.7000000000000004E-2,0,2.5000000000000001E-2,0,0]
["1103 Espacio insuficiente en lugares de trabajo o en las zonas de tránsito",0.111,0,2.5000000000000001E-2,4.2000000000000003E-2,0]
["1104 Ausencia/deficiencia de protecciones colectivas frente a caídas de personas",0.17799999999999999,0,0.22500000000000001,0,0]
["1105 Aberturas y huecos desprotegidos",4.3999999999999997E-2,0,0,0,0]
["1106 Falta de seguridad estructural o estabilidad de paramentos, etc.",8.8999999999999996E-2,0,0.17499999999999999,4.2000000000000003E-2,0]
["1109 Dificultad/deficiencia en el acceso al puesto de trabajo.",2.1999999999999999E-2,0,0,4.2000000000000003E-2,0]
["1110 Pavimento deficiente o inadecuado (discontinuo, resbaladizo, inestable, con  pendiente excesiva, etc.)",8.8999999999999996E-2,0,2.5000000000000001E-2,0,0]
["1111 Escaleras fijas, de servicio o escala inseguras por falta de anchura, peldaño desigual, huella insufiente etc o en",2.1999999999999999E-2,0,0,0,0]
["1115 Deficiencia/ausencia de señalización u otro tipo de elementos necesarios para la delimitación de la zona de trabajo",6.7000000000000004E-2,4.2000000000000003E-2,2.5000000000000001E-2,4.2000000000000003E-2,0]
["1116 Vías de circulación deficientes (insuficentes, mal dimensionadas o faltas de separación entre ellas)",0,4.2000000000000003E-2,0,0,0]
["1118 Diseño incorrecto de puertas y pontones (sistema de cierre inseguro, sin parada de emergencia, falta previsión situ",0,0,2.5000000000000001E-2,0,0]
["1199 Otras causas relativas a la configuración de los espacios de trabajo",4.3999999999999997E-2,4.2000000000000003E-2,0,8.3000000000000004E-2,0]
["1201 Orden y limpieza deficientes",4.3999999999999997E-2,4.2000000000000003E-2,2.5000000000000001E-2,4.2000000000000003E-2,0]
["1203 No delimitación entre las zonas de trabajo o tránsito y las de almacenamiento o no respetar las zonas establecidas.",2.1999999999999999E-2,0,0,0,0]
["1299 Otras causas relativas al orden y limpieza",2.1999999999999999E-2,0,0,0,0]
["1305 Iluminación insuficiente o inapropiada",2.1999999999999999E-2,0,0,0,0]
["1307 Causas relativas a la temperatura y condiciones termo higrométricas",0,4.2000000000000003E-2,0,4.2000000000000003E-2,0.1]
["3101 Diseño incorrecto de la máquina o componente que hace que no se cumplan los principios de la prevención intrínseca",0,4.2000000000000003E-2,0,4.2000000000000003E-2,0]
["3103 Deficiente ubicación de la máquina",0,4.2000000000000003E-2,0,0,0]
["3104 Defectos de estabilidad en equipos, maquinas o sus componentes",0,4.2000000000000003E-2,2.5000000000000001E-2,0,0]
["3108 Fallos en el sistema neumático, hidráulico o eléctrico",0,0,0.05,0,0]
["3111 Accesibilidad a órganos de la máquina peligrosos (atrapantes, cortantes, punzantes, o con posibilidad de ocasionar",2.1999999999999999E-2,0.125,0,0.16700000000000001,0]
["3113 Deficiencia de los medios de acceso al puesto de trabajo o de conducción de la maquina",0,0,2.5000000000000001E-2,0,0]
["3114 Visibilidad insuficiente en el puesto de conducción de la máquina ya sea por un mal diseño o por no disponer de de",0,0.125,0,0,0]
["3117 Ausencia/deficiencia de elementos de montaje de máquinas",0,0,2.5000000000000001E-2,0,0]
["3199 Otras causas relativas al diseño, ubicación, construccion, montaje, mantenimiento reparación y limpieza de máquinas",0,0,2.5000000000000001E-2,0,0]
["3201 Ausencia y/o deficiencia de resguardos y de dispositivos de protección",2.1999999999999999E-2,0.125,0,8.3000000000000004E-2,0]
["3208 Ausencia/deficiencia o falta de uso de dispositivos que mantengan a los conductores o a los trabajadores transporta",0,4.2000000000000003E-2,0,0,0]
["3299 Otras causas relativas a los elementos y dispositivos de protección de máquinas.",0,4.2000000000000003E-2,0,0,0]
["3302 Deficiencia/ausencia del manual de instrucciones de máquinas",2.1999999999999999E-2,8.3000000000000004E-2,0.1,4.2000000000000003E-2,0]
["3999 Otras causas relativas a las máquinas.",2.1999999999999999E-2,0,0,0,0]
["4101 Diseño incorrecto del equipo que hace que no se cumplan los principios de la prevención intrínseca y/o de la ergono",0,4.2000000000000003E-2,0,4.2000000000000003E-2,0]
["4102 Deficiente ubicación, defectos de estabilidad en equipos de trabajo debido a una incorrecta construcción, montaje y",2.1999999999999999E-2,4.2000000000000003E-2,0.15,0,0]
["4103 Resistencia mecánica insuficiente del equipo de trabajo",0,0,2.5000000000000001E-2,0,0]
["4105 Partes del equipo accesibles peligrosas (atrapantes, cortantes, punzantes,etc.)",0,0,0,0.125,0]
["4106 Escalera de mano insegura (material no resistente, apoyos inadecuados ….)",8.8999999999999996E-2,0,0,0,0]
["4199 Otras causas relativas al diseño, ubicación, construccion, montaje, y limpieza  de otros equipos de trabajo.",2.1999999999999999E-2,0,2.5000000000000001E-2,0,0]
["4201 Ausencia/deficiencia de elementos de seguridad en los medios de elevación de cargas (pestillos de seguridad en ganc",0,0,2.5000000000000001E-2,0,0]
["4202 Ausencia de elementos de protección de herramientas (protectores de empuñaduras, etc)",0,0,2.5000000000000001E-2,0,0]
["4203 Ausencia/deficiencia de protecciones colectivas frente a caídas de personas y objetos desde equipos de trabajo",4.3999999999999997E-2,0,7.4999999999999997E-2,4.2000000000000003E-2,0]
["4299 Otras causas relativas a los elementos y dispositivos de protección de otros equipos de trabajo",2.1999999999999999E-2,0,0,4.2000000000000003E-2,0]
["4301 Deficiencia/ausencia del manual de instrucciones o señalización (nota: el fallo puede consistir en la inexistencia",0,4.2000000000000003E-2,2.5000000000000001E-2,0,0]
["5102 Materiales muy pesados, voluminosos, de gran superficie, inestables o con aristas/perfiles cortantes, en relación c",0,0,2.5000000000000001E-2,0,0]
["5104 Deficiente sistema de almacenamiento, empaquetado, paletizado, apilamiento atc",2.1999999999999999E-2,0,0.05,0,0]
["5105 Zonas de almacenamiento inadecuadas o no previstas.",2.1999999999999999E-2,0,0,0,0]
["5106 Falta de planificación y/o vigilancia en operaciones de levantamiento de cargas",0,0,0,4.2000000000000003E-2,0]
["5207 Fugas o derrames de productos químicos (sustancias o preparados) (durante su fabricación, transporte, almacenamient",0,0,0,0,0.2]
["6101 Método de trabajo  inexistente",6.7000000000000004E-2,4.2000000000000003E-2,7.4999999999999997E-2,4.2000000000000003E-2,0.1]
["6102 Método de trabajo inadecuado",0.17799999999999999,0.25,0.2,0.25,0]
["6103 Diseño inadecuado del trabajo o tarea",8.8999999999999996E-2,4.2000000000000003E-2,7.4999999999999997E-2,4.2000000000000003E-2,0]
["6104 Apremio de tiempo o ritmo de trabajo elevado",4.3999999999999997E-2,0,2.5000000000000001E-2,0,0]
["6106 Trabajos solitarios sin las medidas de prevención adecuadas",4.3999999999999997E-2,4.2000000000000003E-2,0,0,0]
["6107 Sobrecarga de la máquina o equipo (respecto a sus características técnicas)",0,4.2000000000000003E-2,0,0,0]
["6108 Sobrecarga trabajador (fatiga física o mental)",2.1999999999999999E-2,0,0,4.2000000000000003E-2,0]
["6109 Existencia de interferencias o falta de coordinación entre trabajadores que realizan la misma o distintas tareas",2.1999999999999999E-2,4.2000000000000003E-2,7.4999999999999997E-2,0,0]
["6110 Ausencia de vigilancia, control y dirección de persona competente",2.1999999999999999E-2,4.2000000000000003E-2,0.1,8.3000000000000004E-2,0.1]
["6111 No organizar el trabajo teniendo en cuenta las condiciones meteorológicas adversas.",2.1999999999999999E-2,0,0,0,0]
["6199 Otras causas relativas a los métodos de trabajo",4.3999999999999997E-2,0,0,0,0]
["6201 Operación inhabitual para el operario que la realiza, sea ordinaria o esporádica",0,4.2000000000000003E-2,7.4999999999999997E-2,8.3000000000000004E-2,0]
["6202 Operación destinada a evitar averías o incidentes o recuperar incidentes.",2.1999999999999999E-2,0,2.5000000000000001E-2,0,0]
["6203 Operación extraordinaria realizada en caso de incidentes, accidentes o emergencias.",0,0,2.5000000000000001E-2,0,0]
["6299 Otras causas relativas a la organización de las tareas",2.1999999999999999E-2,4.2000000000000003E-2,0,0,0]
["6301 Deficiencias en el sistema de comunicación a nivel horizontal o vertical, incluyendo la incomprensión del idioma.",0,4.2000000000000003E-2,0,0,0]
["6302 Instrucciones inexistentes",0,0,7.4999999999999997E-2,0,0]
["6303 Instrucciones respecto a la tarea confusas, contradictorias o insuficientes",2.1999999999999999E-2,0,0,0,0]
["6304 Formación/información inadecuada o inexistente sobre la tarea",0.111,0.16700000000000001,0.15,8.3000000000000004E-2,0.1]
["6305 Procedimientos inexistentes o insuficientes para formar o informar a los trabajadores  acerca de la utilización o m",6.7000000000000004E-2,0,0.1,8.3000000000000004E-2,0]
["6306 Deficiencia/ausencia de información o señalización visual o acústica obligatoria o necesaria, incluyendo la utiliza",0,0,0,4.2000000000000003E-2,0]
["6307 Falta de señalista en caso necesario para organizar la circulación de personas y/o vehículos, así como manejo de ca",2.1999999999999999E-2,4.2000000000000003E-2,0,0,0]
["6399 Otras causas relativas a la formación, información, instrucciones y señalización sobre la tarea",4.3999999999999997E-2,0,0,0,0.1]
["6401 No poner a disposición de los trabajadores las máquinas, equipos y medios auxiliares necesarios o adecuados.",6.7000000000000004E-2,4.2000000000000003E-2,0.1,8.3000000000000004E-2,0]
["6403 Selección de útiles, herramientas y medios auxiliares no adecuados al trabajo a realizar",6.7000000000000004E-2,8.3000000000000004E-2,2.5000000000000001E-2,8.3000000000000004E-2,0.1]
["6405 Utilización de la máquina de manera no prevista por el fabricante.",2.1999999999999999E-2,8.3000000000000004E-2,2.5000000000000001E-2,8.3000000000000004E-2,0]
["6406 Utilización de útiles, herramientas y medios auxiliares de manera no prevista por el fabricante.",0,0,2.5000000000000001E-2,0,0]
["6407 Utilización de materiales en general de manera no prevista por el fabricante..",2.1999999999999999E-2,0,0,4.2000000000000003E-2,0]
["6408 No comprobación del estado de las maquinas, herramientas, equipos o medios auxiliares antes de su utilización",2.1999999999999999E-2,8.3000000000000004E-2,7.4999999999999997E-2,0,0]
["6409 Ausencia de medios organizativos o procedimientos para la consignación de máquinas, instalaciones y lugares de trab",0,0,0,0,0.1]
["6499 Otras causas relativas a la selección y utilización de equipos y materiales",2.1999999999999999E-2,0,0,0,0.1]
["6999 Otras causas relativas a la organización del trabajo",0,0,0,0,0.2]
["7101 Inexistencia o insuficiencia de un procedimiento que regule la realización de las actividades dirigidas a la identi",2.1999999999999999E-2,4.2000000000000003E-2,0.1,8.3000000000000004E-2,0.1]
["7102 Inexistencia o deficiencia de un procedimiento que regule la planificación de la implantación de las medidas preven",4.3999999999999997E-2,0,0.125,0,0]
["7103 Procedimientos inexistentes, insuficientes o deficientes para informar a los trabajadores de los riesgos y las medi",6.7000000000000004E-2,0.125,0.125,4.2000000000000003E-2,0]
["7104 Deficiencias en la organización de los recursos obligatorios (organización preventiva) para la realización de las a",4.3999999999999997E-2,4.2000000000000003E-2,2.5000000000000001E-2,0,0]
["7105 Procedimientos inexistentes, insuficientes o deficientes. para la coordinación de actividades realizadas por varias",6.7000000000000004E-2,0.16700000000000001,0.05,4.2000000000000003E-2,0.2]
["7106 Inadecuada política de compras desde el punto de vista de la prevención.",2.1999999999999999E-2,0,0,0,0]
["7107 Sistema inadecuado de asignación de tareas por otras razones que no sean la falta de cualificación o experiencia",0,0,2.5000000000000001E-2,0,0]
["7108 No apreciar las características de los trabajadores para la realización de la tarea o en función de los riesgos",2.1999999999999999E-2,0,0,0,0]
["7199 Otras causas relativas a la gestión de la prevención",4.3999999999999997E-2,4.2000000000000003E-2,2.5000000000000001E-2,0,0]
["7201 No identificación del/los riesgos que han materializado el accidente",0.111,0.16700000000000001,0.375,0.125,0]
["7202 Medidas preventivas propuestas en la planificación derivada de la evaluación de riesgos insuficientes o inadecuadas",4.3999999999999997E-2,0,0.1,0,0.1]
["7203 Medidas preventivas propuestas en la planificación derivada de la evaluación de riesgos insuficientes o inadecuadas",8.8999999999999996E-2,4.2000000000000003E-2,2.5000000000000001E-2,4.2000000000000003E-2,0]
["7204 Falta de control del cumplimiento del Plan de seguridad y salud en Construcción.",6.7000000000000004E-2,0,2.5000000000000001E-2,0,0.1]
["7205 Mantenimiento preventivo inexistente o inadecuado o falta de revisiones periódicas oficiales.",2.1999999999999999E-2,0,2.5000000000000001E-2,0,0]
["7206 Formación/información inadecuada, inexistente sobre riesgos o medidas preventivas",0.222,0.375,0.17499999999999999,0.25,0.2]
["7208 No poner a disposición de los trabajadores las prendas o equipos de protección necesarios o ser estos inadecuados o",6.7000000000000004E-2,0,0.1,0,0]
["7209 Falta de presencia de los recursos preventivos requeridos",2.1999999999999999E-2,0,0.1,8.3000000000000004E-2,0]
["7210 Vigilancia de la salud inadecuada a los riesgos del puesto de trabajo",4.3999999999999997E-2,0,0.05,0,0]
["7211 Ausencia/deficiencias de permisos y/o procedimientos de trabajo en intervenciones peligrosas (por ejemplo soldadura",2.1999999999999999E-2,0,0,4.2000000000000003E-2,0]
["7212 Asignación de tarea a un trabajador con falta de cualificación o experiencia",0,0,2.5000000000000001E-2,0,0]
["7299 Otras causas relativas a las actividades preventivas",0,0,2.5000000000000001E-2,0,0]
["7999 Otras causas relativas a la gestión de la prevención",6.7000000000000004E-2,0,0,0,0]
["8101 Realización de tareas no asignadas",0,4.2000000000000003E-2,0,0,0]
["8102 Incumplimiento de procedimientos e instrucciones de trabajo",4.3999999999999997E-2,0,2.5000000000000001E-2,4.2000000000000003E-2,0.3]
["8103 Incumplimiento de normas de seguridad establecidas",2.1999999999999999E-2,0,0.1,8.3000000000000004E-2,0.1]
["8104 Uso indebido de materiales, herramientas o útiles de trabajo, puestos a disposición por la empresa",0,4.2000000000000003E-2,0,4.2000000000000003E-2,0]
["8105 Uso indebido o no utilización de medios auxiliares de trabajo o de seguridad puestos a disposición por la empresa y",4.3999999999999997E-2,0,2.5000000000000001E-2,0,0.1]
["8106 No utilización de equipos de protección individual puestas a disposición por la empresa y de uso obligatorio.",4.3999999999999997E-2,8.3000000000000004E-2,0.05,8.3000000000000004E-2,0.3]
["8107 Retirada o anulación de protecciones o dispositivos de seguridad",2.1999999999999999E-2,0,2.5000000000000001E-2,4.2000000000000003E-2,0]
["8108 Permanencia del trabajador dentro de una zona peligrosa",0.13300000000000001,4.2000000000000003E-2,0.125,0,0.1]
["8109 Adopción de una postura inadecuada en el puesto de trabajo",4.3999999999999997E-2,4.2000000000000003E-2,0,8.3000000000000004E-2,0]
["8199 Otras causas relativas a los factores de comportamiento",2.1999999999999999E-2,0.125,2.5000000000000001E-2,8.3000000000000004E-2,0.2]
["8999 Otras causas relativas a los factores personales-individuales",6.7000000000000004E-2,4.2000000000000003E-2,2.5000000000000001E-2,0,0]
["9199 Otras causas",4.3999999999999997E-2,0,0,8.3000000000000004E-2,0]
["9299 Hechos no causales",2.1999999999999999E-2,0,0,0,0]
[{"$f":"Nota","v":"(*) Accidentes asignados en 2018 para su investigación en el mismo periodo y durante el año 2019"}]

{"sheet":"Hoja16","index":19,"n_rows":135,"n_cols":20,"rows_kept":135,"cut":false,"hidden":true,"merged":[[15,0,15,4],[1,0,1,2],[1,8,1,17],[2,8,3,8],[12,0,13,1]]}
[]
["Accidentes investigados según forma del accidente ordenado por frecuencia. (*)",null,null,null,null,null,null,null,"Accidentes investigados según bloque de causas y forma del accidente. (*)"]
[" ","Porcentaje","Frecuencia",null,null,null,null,null," ","1_Contacto con corriente eléctrica, fuego, temperatura o sustancias peligrosas","2_Ahogamiento, quedar sepultado, quedar envuelto","3_Aplastamiento sobre o contra un objeto inmóvil (el trabajador está en movimiento vertical u horizontal)","4_Choque o golpe contra un objeto en movimiento, colisión","5_Contacto con \"agente material\" cortante, punzante, duro, rugoso","6_Quedar atrapado, ser aplastado, sufrir una amputación","7_Sobreesfuerzo físico, trauma psíquico, exposición a radiaciones, ruido, luz o presión","8_Mordeduras, patadas (de animales o personas)","9_Infartos, derrames cerebrales y otras patologías no traumáticas","10_Otro contacto -tipo de lesión no codificado en la presente clasificación","11_No consta"]
["Total",1,155,null,null,null,null,null,null,"Porcentaje","Porcentaje","Porcentaje","Porcentaje","Porcentaje","Porcentaje","Porcentaje","Porcentaje","Porcentaje","Porcentaje","Porcentaje"]
["3_Aplastamiento sobre o contra un objeto inmóvil (el trabajador está en movimiento vertical u horizontal)",0.42599999999999999,66,null,null,null,null,null,"Total",1,1,1,1,1,1,1,0,1,0,0]
["6_Quedar atrapado, ser aplastado, sufrir una amputación",0.2,31,null,null,null,null,null,"Prevención intrínseca",0,0,9.0999999999999998E-2,0.38700000000000001,0.625,0.38700000000000001,0,0,0,0,0]
["4_Choque o golpe contra un objeto en movimiento, colisión",0.2,31,null,null,null,null,null,"Protección, señalización",0,0,0.34799999999999998,0.19400000000000001,0.125,0.22600000000000001,0,0,0,0,0]
["1_Contacto con corriente eléctrica, fuego, temperatura o sustancias peligrosas",6.5000000000000002E-2,10,null,null,null,null,null,"Materiales, productos o agentes",0.4,0,4.4999999999999998E-2,6.5000000000000002E-2,0,0,0.2,0,0,0,0]
["5_Contacto con \"agente material\" cortante, punzante, duro, rugoso",5.1999999999999998E-2,8,null,null,null,null,null,"Espacios y superficies de trabajo",0,0.5,0.39400000000000002,0.22600000000000001,0.125,0.22600000000000001,0.2,0,0,0,0]
["7_Sobreesfuerzo físico, trauma psíquico, expoisición a radiaciones, ruido, luz o presión",3.2000000000000001E-2,5,null,null,null,null,null,"Organización del trabajo",0.5,0.5,0.63600000000000001,0.67700000000000005,0.875,0.64500000000000002,0.6,0,0.5,0,0]
["9_Infartos, derrames cerebrales y otras patologías no traumáticas",1.2999999999999999E-2,2,null,null,null,null,null,"Gestión de la prevención",0.3,0.5,0.56100000000000005,0.67700000000000005,0.375,0.48399999999999999,0.4,0,0,0,0]
["2_Ahogamiento, quedar sepultado, quedar envuelto",1.2999999999999999E-2,2,null,null,null,null,null,"Factores individuales",0.5,0,0.33300000000000002,0.22600000000000001,0.5,0.38700000000000001,0.6,0,0,0,0]
[{"$f":"Nota","v":"(*) Accidentes asignados en 2018 para su investigación en el mismo periodo y durante el año 2019"},null,null,null,null,null,null,null,"Otras causas",0.1,0,0.182,3.2000000000000001E-2,0,3.2000000000000001E-2,0,0,1,0,0]
[null,null,null,null,null,null,null,null,{"$f":"Nota","v":"(*) Accidentes asignados en 2018 para su investigación en el mismo periodo y durante el año 2019"}]
[]
["Causas de los accidentes graves, muy graves y mortales investigados según forma del accidente de mayor frecuencia. (*)"]
[null,"03_Aplastamiento sobre o contra un objeto inmóvil (el trabajador está en movimiento vertical u horizontal)","06_Quedar atrapado, ser aplastado, sufrir una amputación","04_Choque o golpe contra un objeto en movimiento, colisión","01_Contacto con corriente eléctrica, fuego, temperatura o sustancias peligrosas","05_Contacto con \"agente material\" cortante, punzante, duro, rugoso"]
[null,"Porcentaje","Porcentaje","Porcentaje","Porcentaje","Porcentaje"]
["Total",1,1,1,1,1]
["1101 Deficiente diseño ergonómico del puesto de trabajo.",0,0,3.2000000000000001E-2,0,0.125]
["1102 Superficies de trabajo habitualmente inestables, incluidos barcos.",6.0999999999999999E-2,0,0,0,0]
["1103 Espacio insuficiente en lugares de trabajo o en las zonas de tránsito",7.5999999999999998E-2,3.2000000000000001E-2,3.2000000000000001E-2,0,0]
["1104 Ausencia/deficiencia de protecciones colectivas frente a caídas de personas",0.22700000000000001,3.2000000000000001E-2,6.5000000000000002E-2,0,0]
["1105 Aberturas y huecos desprotegidos",4.4999999999999998E-2,0,0,0,0]
["1106 Falta de seguridad estructural o estabilidad de paramentos, etc.",9.0999999999999998E-2,6.5000000000000002E-2,9.7000000000000003E-2,0,0]
["1109 Dificultad/deficiencia en el acceso al puesto de trabajo.",1.4999999999999999E-2,3.2000000000000001E-2,0,0,0]
["1110 Pavimento deficiente o inadecuado (discontinuo, resbaladizo, inestable, con  pendiente excesiva, etc.)",7.5999999999999998E-2,3.2000000000000001E-2,0,0,0]
["1111 Escaleras fijas, de servicio o escala inseguras por falta de anchura, peldaño desigual, huella insufiente etc o en",1.4999999999999999E-2,0,0,0,0]
["1115 Deficiencia/ausencia de señalización u otro tipo de elementos necesarios para la delimitación de la zona de trabajo",0.03,6.5000000000000002E-2,6.5000000000000002E-2,0,0]
["1116 Vías de circulación deficientes (insuficentes, mal dimensionadas o faltas de separación entre ellas)",0,0,3.2000000000000001E-2,0,0]
["1118 Diseño incorrecto de puertas y pontones (sistema de cierre inseguro, sin parada de emergencia, falta previsión situ",0,0,3.2000000000000001E-2,0,0]
["1199 Otras causas relativas a la configuración de los espacios de trabajo",4.4999999999999998E-2,6.5000000000000002E-2,0,0,0]
["1201 Orden y limpieza deficientes",6.0999999999999999E-2,3.2000000000000001E-2,0,0,0]
["1203 No delimitación entre las zonas de trabajo o tránsito y las de almacenamiento o no respetar las zonas establecidas.",0.03,0,0,0,0]
["1299 Otras causas relativas al orden y limpieza",1.4999999999999999E-2,0,0,0,0]
["1305 Iluminación insuficiente o inapropiada",1.4999999999999999E-2,0,0,0,0]
["1307 Causas relativas a la temperatura y condiciones termo higrométricas",0.03,0,3.2000000000000001E-2,0.1,0]
["3101 Diseño incorrecto de la máquina o componente que hace que no se cumplan los principios de la prevención intrínseca",0,3.2000000000000001E-2,0,0,0.125]
["3103 Deficiente ubicación de la máquina",0,0,3.2000000000000001E-2,0,0]
["3104 Defectos de estabilidad en equipos, maquinas o sus componentes",0,0,6.5000000000000002E-2,0,0]
["3108 Fallos en el sistema neumático, hidráulico o eléctrico",0,0,6.5000000000000002E-2,0,0]
["3111 Accesibilidad a órganos de la máquina peligrosos (atrapantes, cortantes, punzantes, o con posibilidad de ocasionar",0,0.19400000000000001,0,0,0.25]
["3113 Deficiencia de los medios de acceso al puesto de trabajo o de conducción de la maquina",0,0,0,0,0.125]
["3114 Visibilidad insuficiente en el puesto de conducción de la máquina ya sea por un mal diseño o por no disponer de de",0,6.5000000000000002E-2,6.5000000000000002E-2,0,0]
["3117 Ausencia/deficiencia de elementos de montaje de máquinas",0,0,3.2000000000000001E-2,0,0]
["3199 Otras causas relativas al diseño, ubicación, construccion, montaje, mantenimiento reparación y limpieza de máquinas",0,0,0,0,0.125]
["3201 Ausencia y/o deficiencia de resguardos y de dispositivos de protección",0,0.161,0,0,0.125]
["3208 Ausencia/deficiencia o falta de uso de dispositivos que mantengan a los conductores o a los trabajadores transporta",0,0,3.2000000000000001E-2,0,0]
["3299 Otras causas relativas a los elementos y dispositivos de protección de máquinas.",0,0,3.2000000000000001E-2,0,0]
["3302 Deficiencia/ausencia del manual de instrucciones de máquinas",1.4999999999999999E-2,3.2000000000000001E-2,0.129,0,0.25]
["3999 Otras causas relativas a las máquinas.",1.4999999999999999E-2,0,0,0,0]
["4101 Diseño incorrecto del equipo que hace que no se cumplan los principios de la prevención intrínseca y/o de la ergono",0,6.5000000000000002E-2,3.2000000000000001E-2,0,0]
["4102 Deficiente ubicación, defectos de estabilidad en equipos de trabajo debido a una incorrecta construcción, montaje y",4.4999999999999998E-2,0,0.161,0,0]
["4103 Resistencia mecánica insuficiente del equipo de trabajo",0,0,3.2000000000000001E-2,0,0]
["4105 Partes del equipo accesibles peligrosas (atrapantes, cortantes, punzantes,etc.)",0,9.7000000000000003E-2,0,0,0]
["4106 Escalera de mano insegura (material no resistente, apoyos inadecuados ….)",6.0999999999999999E-2,0,0,0,0]
["4199 Otras causas relativas al diseño, ubicación, construccion, montaje, y limpieza  de otros equipos de trabajo.",0.03,0,3.2000000000000001E-2,0,0]
["4201 Ausencia/deficiencia de elementos de seguridad en los medios de elevación de cargas (pestillos de seguridad en ganc",0,0,3.2000000000000001E-2,0,0]
["4202 Ausencia de elementos de protección de herramientas (protectores de empuñaduras, etc)",1.4999999999999999E-2,3.2000000000000001E-2,0,0,0]
["4203 Ausencia/deficiencia de protecciones colectivas frente a caídas de personas y objetos desde equipos de trabajo",4.4999999999999998E-2,3.2000000000000001E-2,6.5000000000000002E-2,0,0]
["4299 Otras causas relativas a los elementos y dispositivos de protección de otros equipos de trabajo",0.03,0,0,0,0]
["4301 Deficiencia/ausencia del manual de instrucciones o señalización (nota: el fallo puede consistir en la inexistencia",1.4999999999999999E-2,0,0,0,0.125]
["5102 Materiales muy pesados, voluminosos, de gran superficie, inestables o con aristas/perfiles cortantes, en relación c",0,0,3.2000000000000001E-2,0,0]
["5104 Deficiente sistema de almacenamiento, empaquetado, paletizado, apilamiento atc",0,6.5000000000000002E-2,3.2000000000000001E-2,0,0]
["5105 Zonas de almacenamiento inadecuadas o no previstas.",0,0,3.2000000000000001E-2,0,0]
["5201 Inhalación, ingestión o contacto con productos químicos (sustancias o preparados) presentes en el puesto de trabajo",0,0,0,0.1,0]
["5207 Fugas o derrames de productos químicos (sustancias o preparados) (durante su fabricación, transporte, almacenamient",0,0,0,0.2,0]
["6101 Método de trabajo  inexistente",4.4999999999999998E-2,6.5000000000000002E-2,9.7000000000000003E-2,0.1,0]
["6102 Método de trabajo inadecuado",0.182,0.161,0.19400000000000001,0.1,0.5]
["6103 Diseño inadecuado del trabajo o tarea",9.0999999999999998E-2,3.2000000000000001E-2,3.2000000000000001E-2,0,0.125]
["6104 Apremio de tiempo o ritmo de trabajo elevado",4.4999999999999998E-2,0,0,0,0]
["6106 Trabajos solitarios sin las medidas de prevención adecuadas",0.03,0,3.2000000000000001E-2,0,0]
["6107 Sobrecarga de la máquina o equipo (respecto a sus características técnicas)",0,0,3.2000000000000001E-2,0,0]
["6108 Sobrecarga trabajador (fatiga física o mental)",1.4999999999999999E-2,0,0,0.1,0]
["6109 Existencia de interferencias o falta de coordinación entre trabajadores que realizan la misma o distintas tareas",1.4999999999999999E-2,3.2000000000000001E-2,6.5000000000000002E-2,0,0]
["6110 Ausencia de vigilancia, control y dirección de persona competente",7.5999999999999998E-2,6.5000000000000002E-2,3.2000000000000001E-2,0.1,0]
["6111 No organizar el trabajo teniendo en cuenta las condiciones meteorológicas adversas.",0.03,0,0,0,0]
["6199 Otras causas relativas a los métodos de trabajo",0.03,0,0,0,0]
["6201 Operación inhabitual para el operario que la realiza, sea ordinaria o esporádica",1.4999999999999999E-2,9.7000000000000003E-2,3.2000000000000001E-2,0,0.125]
["6202 Operación destinada a evitar averías o incidentes o recuperar incidentes.",0.03,0,3.2000000000000001E-2,0,0]
["6203 Operación extraordinaria realizada en caso de incidentes, accidentes o emergencias.",0,0,3.2000000000000001E-2,0,0]
["6299 Otras causas relativas a la organización de las tareas",1.4999999999999999E-2,0,0,0,0.125]
["6301 Deficiencias en el sistema de comunicación a nivel horizontal o vertical, incluyendo la incomprensión del idioma.",0,0,3.2000000000000001E-2,0,0]
["6302 Instrucciones inexistentes",0.03,3.2000000000000001E-2,0,0,0]
["6303 Instrucciones respecto a la tarea confusas, contradictorias o insuficientes",1.4999999999999999E-2,0,0,0,0]
["6304 Formación/información inadecuada o inexistente sobre la tarea",0.121,6.5000000000000002E-2,0.19400000000000001,0.2,0.125]
["6305 Procedimientos inexistentes o insuficientes para formar o informar a los trabajadores  acerca de la utilización o m",6.0999999999999999E-2,6.5000000000000002E-2,0.129,0,0]
["6306 Deficiencia/ausencia de información o señalización visual o acústica obligatoria o necesaria, incluyendo la utiliza",0,0,3.2000000000000001E-2,0,0]
["6307 Falta de señalista en caso necesario para organizar la circulación de personas y/o vehículos, así como manejo de ca",1.4999999999999999E-2,0,3.2000000000000001E-2,0,0]
["6399 Otras causas relativas a la formación, información, instrucciones y señalización sobre la tarea",1.4999999999999999E-2,0,3.2000000000000001E-2,0.1,0]
["6401 No poner a disposición de los trabajadores las máquinas, equipos y medios auxiliares necesarios o adecuados.",6.0999999999999999E-2,0.161,3.2000000000000001E-2,0.1,0]
["6403 Selección de útiles, herramientas y medios auxiliares no adecuados al trabajo a realizar",6.0999999999999999E-2,0,3.2000000000000001E-2,0.1,0.25]
["6405 Utilización de la máquina de manera no prevista por el fabricante.",0.03,6.5000000000000002E-2,3.2000000000000001E-2,0,0.125]
["6406 Utilización de útiles, herramientas y medios auxiliares de manera no prevista por el fabricante.",1.4999999999999999E-2,0,0,0,0]
["6407 Utilización de materiales en general de manera no prevista por el fabricante..",1.4999999999999999E-2,0,3.2000000000000001E-2,0,0]
["6408 No comprobación del estado de las maquinas, herramientas, equipos o medios auxiliares antes de su utilización",0.03,6.5000000000000002E-2,3.2000000000000001E-2,0,0.125]
["6409 Ausencia de medios organizativos o procedimientos para la consignación de máquinas, instalaciones y lugares de trab",1.4999999999999999E-2,0,0,0,0]
["6499 Otras causas relativas a la selección y utilización de equipos y materiales",1.4999999999999999E-2,0,0,0.1,0]
["6999 Otras causas relativas a la organización del trabajo",1.4999999999999999E-2,0,3.2000000000000001E-2,0.1,0]
["7101 Inexistencia o insuficiencia de un procedimiento que regule la realización de las actividades dirigidas a la identi",0.03,9.7000000000000003E-2,6.5000000000000002E-2,0.1,0]
["7102 Inexistencia o deficiencia de un procedimiento que regule la planificación de la implantación de las medidas preven",4.4999999999999998E-2,3.2000000000000001E-2,3.2000000000000001E-2,0,0.125]
["7103 Procedimientos inexistentes, insuficientes o deficientes para informar a los trabajadores de los riesgos y las medi",4.4999999999999998E-2,6.5000000000000002E-2,0.22600000000000001,0,0]
["7104 Deficiencias en la organización de los recursos obligatorios (organización preventiva) para la realización de las a",0.03,6.5000000000000002E-2,0,0,0]
["7105 Procedimientos inexistentes, insuficientes o deficientes. para la coordinación de actividades realizadas por varias",7.5999999999999998E-2,3.2000000000000001E-2,0.129,0.1,0]
["7106 Inadecuada política de compras desde el punto de vista de la prevención.",1.4999999999999999E-2,0,0,0,0]
["7107 Sistema inadecuado de asignación de tareas por otras razones que no sean la falta de cualificación o experiencia",0,3.2000000000000001E-2,0,0,0]
["7108 No apreciar las características de los trabajadores para la realización de la tarea o en función de los riesgos",1.4999999999999999E-2,0,0,0,0]
["7199 Otras causas relativas a la gestión de la prevención",0.03,0,6.5000000000000002E-2,0,0]
["7201 No identificación del/los riesgos que han materializado el accidente",0.19700000000000001,0.19400000000000001,0.25800000000000001,0,0]
["7202 Medidas preventivas propuestas en la planificación derivada de la evaluación de riesgos insuficientes o inadecuadas",6.0999999999999999E-2,0,3.2000000000000001E-2,0.1,0]
["7203 Medidas preventivas propuestas en la planificación derivada de la evaluación de riesgos insuficientes o inadecuadas",9.0999999999999998E-2,0,3.2000000000000001E-2,0,0]
["7204 Falta de control del cumplimiento del Plan de seguridad y salud en Construcción.",6.0999999999999999E-2,0,0,0.1,0]
["7205 Mantenimiento preventivo inexistente o inadecuado o falta de revisiones periódicas oficiales.",1.4999999999999999E-2,3.2000000000000001E-2,0,0,0]
["7206 Formación/información inadecuada, inexistente sobre riesgos o medidas preventivas",0.21199999999999999,0.35499999999999998,0.129,0.2,0.25]
["7208 No poner a disposición de los trabajadores las prendas o equipos de protección necesarios o ser estos inadecuados o",7.5999999999999998E-2,0,3.2000000000000001E-2,0,0.125]
["7209 Falta de presencia de los recursos preventivos requeridos",9.0999999999999998E-2,3.2000000000000001E-2,0,0,0]
["7210 Vigilancia de la salud inadecuada a los riesgos del puesto de trabajo",6.0999999999999999E-2,0,0,0,0]
["7211 Ausencia/deficiencias de permisos y/o procedimientos de trabajo en intervenciones peligrosas (por ejemplo soldadura",1.4999999999999999E-2,0,3.2000000000000001E-2,0,0]
["7212 Asignación de tarea a un trabajador con falta de cualificación o experiencia",0,3.2000000000000001E-2,0,0,0]
["7299 Otras causas relativas a las actividades preventivas",1.4999999999999999E-2,0,0,0,0]
["7999 Otras causas relativas a la gestión de la prevención",4.4999999999999998E-2,0,0,0,0]
["8101 Realización de tareas no asignadas",0,0,0,0,0.125]
["8102 Incumplimiento de procedimientos e instrucciones de trabajo",4.4999999999999998E-2,6.5000000000000002E-2,0,0.2,0]
["8103 Incumplimiento de normas de seguridad establecidas",6.0999999999999999E-2,3.2000000000000001E-2,6.5000000000000002E-2,0.1,0]
["8104 Uso indebido de materiales, herramientas o útiles de trabajo, puestos a disposición por la empresa",0,3.2000000000000001E-2,3.2000000000000001E-2,0,0]
["8105 Uso indebido o no utilización de medios auxiliares de trabajo o de seguridad puestos a disposición por la empresa y",0.03,3.2000000000000001E-2,0,0.1,0]
["8106 No utilización de equipos de protección individual puestas a disposición por la empresa y de uso obligatorio.",9.0999999999999998E-2,0,0,0.2,0.375]
["8107 Retirada o anulación de protecciones o dispositivos de seguridad",4.4999999999999998E-2,0,0,0,0]
["8108 Permanencia del trabajador dentro de una zona peligrosa",9.0999999999999998E-2,9.7000000000000003E-2,6.5000000000000002E-2,0.1,0.125]
["8109 Adopción de una postura inadecuada en el puesto de trabajo",0.03,9.7000000000000003E-2,0,0,0]
["8199 Otras causas relativas a los factores de comportamiento",6.0999999999999999E-2,6.5000000000000002E-2,6.5000000000000002E-2,0.2,0]
["8999 Otras causas relativas a los factores personales-individuales",4.4999999999999998E-2,3.2000000000000001E-2,3.2000000000000001E-2,0,0]
["9199 Otras causas",4.4999999999999998E-2,0,0,0,0]
["9299 Hechos no causales",1.4999999999999999E-2,0,0,0,0]
[{"$f":"Nota","v":"(*) Accidentes asignados en 2018 para su investigación en el mismo periodo y durante el año 2019"}]

{"sheet":"Hoja17","index":20,"n_rows":42,"n_cols":9,"rows_kept":42,"cut":false,"hidden":true,"merged":[]}
[]
[]
[]
[]
[]
[]
["Accidentes graves, muy graves y mortales investigados según organización preventiva. (*)"]
[{"$f":"año_publi","v":2018},"Frecuencia","Porcentaje"]
["Total",155,1]
["2_Servicio de prevención propio",15,9.7000000000000003E-2]
["3_Servicio de prevención ajeno",95,0.61299999999999999]
["4_Trabajador/s designado/s",2,1.2999999999999999E-2]
["5_Servicio de prevención mancomunado",12,7.6999999999999999E-2]
["6_No procede",2,1.2999999999999999E-2]
["7_Ninguna",1,6.0000000000000001E-3]
["9_No consta",28,0.18099999999999999]
[{"$f":"Nota","v":"(*) Accidentes asignados en 2018 para su investigación en el mismo periodo y durante el año 2019"}]
[]
[]
[]
[]
[]
[]
[]
[]
[]
[]
[]
[]
[]
["Bloque de causas de accidentes graves, muy graves y mortales investigados según organización preventiva.(*)"]
[null,"Total","2_Servicio de prevención propio","3_Servicio de prevención ajeno","4_Trabajador/s designado/s","5_Servicio de prevención mancomunado","6_No procede","7_Ninguna","9_No consta"]
["Total",1,1,1,1,1,1,1,1]
["Prevención intrínseca",0.22600000000000001,0.33300000000000002,0.2,0.5,0.33300000000000002,0,0,0.214]
["Protección, señalización",0.23899999999999999,6.7000000000000004E-2,0.23200000000000001,0.5,0.25,0.5,1,0.28599999999999998]
["Materiales, productos o agentes",6.5000000000000002E-2,0.2,5.2999999999999999E-2,0,8.3000000000000004E-2,0,0,3.5999999999999997E-2]
["Espacios y superficies de trabajo",0.27700000000000002,0.13300000000000001,0.29499999999999998,0.5,8.3000000000000004E-2,0.5,0,0.35699999999999998]
["Organización del trabajo",0.64500000000000002,0.6,0.67400000000000004,0.5,0.5,0.5,0,0.67900000000000005]
["Gestión de la prevención",0.52900000000000003,0.53300000000000003,0.51600000000000001,0.5,0.33300000000000002,1,1,0.60699999999999998]
["Factores individuales",0.34200000000000003,0.26700000000000002,0.32600000000000001,0,0.41699999999999998,0.5,0,0.42899999999999999]
["Otras causas",0.11,6.7000000000000004E-2,0.11600000000000001,0,0.25,0,0,7.0999999999999994E-2]
[{"$f":"Nota","v":"(*) Accidentes asignados en 2018 para su investigación en el mismo periodo y durante el año 2019"}]

{"sheet":"Hoja18","index":21,"n_rows":52,"n_cols":13,"rows_kept":52,"cut":false,"hidden":true,"merged":[[36,0,37,4],[51,7,53,11]]}
[]
[]
[]
[]
[]
[]
["Accidentes graves, muy graves y mortales investigados según evaluación de riesgos. (*)"]
[]
[{"$f":"año_publi","v":2018},"Frecuencia","Porcentaje"]
["Total",155,1]
["1_Habían sido detectados los riesgos en la ERL",32,0.20599999999999999]
["2_No habían sido detectados los riesgos en la ERL",92,0.59399999999999997]
["3_No procede",2,1.2999999999999999E-2]
["4_No consta",29,0.187]
[{"$f":"Nota","v":"(*) Accidentes asignados en 2018 para su investigación en el mismo periodo y durante el año 2019"}]
[]
[]
[]
[]
[]
[]
[]
[]
[]
["Bloque de causas de los accidentes graves, muy graves y mortales investigados según evaluación de riesgos. (*)"]
[null,"Total","1_Habían sido detectados los riesgos en la ERL","2_No habían sido detectados los riesgos en la ERL","3_No procede","4_No consta"]
[null,"Porcentaje","Porcentaje","Porcentaje","Porcentaje","Porcentaje"]
["Total",1,1,1,1,1]
["Prevención intrínseca",0.22600000000000001,0.219,0.22800000000000001,0,0.24099999999999999]
["Protección, señalización",0.23899999999999999,0.156,0.23899999999999999,0.5,0.31]
["Materiales, productos o agentes",6.5000000000000002E-2,9.4E-2,6.5000000000000002E-2,0,3.4000000000000002E-2]
["Espacios y superficies de trabajo",0.27700000000000002,0.34399999999999997,0.217,0.5,0.379]
["Organización del trabajo",0.64500000000000002,0.375,0.72799999999999998,0.5,0.69]
["Gestión de la prevención",0.52900000000000003,0.25,0.58699999999999997,1,0.621]
["Factores individuales",0.34200000000000003,0.375,0.29299999999999998,0.5,0.44800000000000001]
["Otras causas",0.11,9.4E-2,0.12,0,0.10299999999999999]
[{"$f":"Nota","v":"(*) Accidentes asignados en 2018 para su investigación en el mismo periodo y durante el año 2019"}]
[]
[]
["Accidentes graves, muy graves y mortales investigados según asunción de medidas preventivas. (*)",null,null,null,null,null,null,"Bloque de causas de los accidentes graves, muy graves y mortales investigados según asunción de medidas preventivas. (*)"]
[{"$f":"año_publi","v":2018},"Frecuencia","Porcentaje",null,null,null,null,{"$f":"año_publi","v":2018},"Total","1_Habían sido previstas medidas preventivas","2_No habían sido previstas medidas preventivas","3_No procede","4_No consta"]
["Total",155,1,null,null,null,null,null,"Porcentaje","Porcentaje","Porcentaje","Porcentaje","Porcentaje"]
["1_Habían sido previstas medidas preventivas",32,0.20599999999999999,null,null,null,null,"Total",1,1,1,1,1]
["2_No habían sido previstas medidas preventivas",92,0.59399999999999997,null,null,null,null,"Prevención intrínseca",0.22600000000000001,0.219,0.22800000000000001,0,0.24099999999999999]
["3_No procede",2,1.2999999999999999E-2,null,null,null,null,"Protección, señalización",0.23899999999999999,0.156,0.23899999999999999,0.5,0.31]
["4_No consta",29,0.187,null,null,null,null,"Materiales, productos o agentes",6.5000000000000002E-2,9.4E-2,6.5000000000000002E-2,0,3.4000000000000002E-2]
[{"$f":"Nota","v":"(*) Accidentes asignados en 2018 para su investigación en el mismo periodo y durante el año 2019"},null,null,null,null,null,null,"Espacios y superficies de trabajo",0.27700000000000002,0.34399999999999997,0.217,0.5,0.379]
[null,null,null,null,null,null,null,"Organización del trabajo",0.64500000000000002,0.375,0.72799999999999998,0.5,0.69]
[null,null,null,null,null,null,null,"Gestión de la prevención",0.52900000000000003,0.25,0.58699999999999997,1,0.621]
[null,null,null,null,null,null,null,"Factores individuales",0.34200000000000003,0.375,0.29299999999999998,0.5,0.44800000000000001]
[null,null,null,null,null,null,null,"Otras causas",0.11,9.4E-2,0.12,0,0.10299999999999999]
[null,null,null,null,null,null,null,{"$f":"Nota","v":"(*) Accidentes asignados en 2018 para su investigación en el mismo periodo y durante el año 2019"}]

{"sheet":"Hoja19","index":22,"n_rows":227,"n_cols":3,"rows_kept":227,"cut":false,"hidden":true,"merged":[]}
[]
["Ordenados por Código de causa"]
[]
["Literal de Bloque","Código Bloque"]
["Prevención intrínseca",1]
["Protección señalización",2]
["Materiales, productos o agentes",3]
["Espacios y superficies de trabajo",4]
["Organización del trabajo",5]
["Gestión de la prevención",6]
["Factores individuales",7]
["Otras causas",8]
[]
[]
[]
["Literal de Causa","Bloque","Causa Código"]
["'1101 Deficiente diseño ergonómico del puesto de trabajo.'",4,1101]
["'1102 Superficies de trabajo habitualmente inestables, incluidos barcos.'",4,1102]
["'1103 Espacio insuficiente en lugares de trabajo o en las zonas de tránsito'",4,1103]
["'1104 Ausencia/deficiencia de protecciones colectivas frente a caídas de personas'",2,1104]
["'1105 Aberturas y huecos desprotegidos'",4,1105]
["'1106 Falta de seguridad estructural o estabilidad de paramentos, etc.'",4,1106]
["'1107 Ausencia de señalización de límite de sobrecarga de uso de las superficies de trabajo'",2,1107]
["'1108 Falta/deficiencia de entibación o taludes inadecuados'",4,1108]
["'1109 Dificultad/deficiencia en el acceso al puesto de trabajo.'",4,1109]
["'1110 Pavimento deficiente o inadecuado (discontinuo, resbaladizo, inestable, con  pendiente excesiva, etc.)'",4,1110]
["'1111 Escaleras fijas, de servicio o escala inseguras por falta de anchura, peldaño desigual, huella insufiente etc o en mal estado.'",4,1111]
["'1112 Vías de evacuación o salida no señalizadas o señalizadas de forma insuficiente o incorrecta'",2,1112]
["'1113 Ausencia de vías de evacuación o insuficientes en número, mal dimensionadas, obstruidas o incorrectamente distribuida'",1,1113]
["'1114 Inexistencia, insuficiencia o ineficacia de sectorización o aislamiento de áreas de riesgos, como por ejemplo zonificación de atmósferas explosivas, espacios confinados, zonas extremadamente calientes o frias etc'",1,1114]
["'1115 Deficiencia/ausencia de señalización u otro tipo de elementos necesarios para la delimitación de la zona de trabajo (ej.: Maniobras o trabajos próximos a instalaciones de a.t., área de obra, movimientos de vehículos, etc...)'",2,1115]
["'1116 Vías de circulación deficientes (insuficentes, mal dimensionadas o faltas de separación entre ellas)'",1,1116]
["'1117 Diseño incorrecto de ventanas (sistema de cierre inseguro, falta previsión situaciones de limpieza y mantenimiento)'",1,1117]
["'1118 Diseño incorrecto de puertas y pontones (sistema de cierre inseguro, sin parada de emergencia, falta previsión situaciones de limpieza y mantenimiento)'",1,1118]
["'1199 Otras causas relativas a la configuración de los espacios de trabajo'",4,1199]
["'1201 Orden y limpieza deficientes'",4,1201]
["'1202 Ausencia o deficiencia de medios para drenaje de líquidos.'",4,1202]
["'1203 No delimitación entre las zonas de trabajo o tránsito y las de almacenamiento o no respetar las zonas establecidas.'",4,1203]
["'1299 Otras causas relativas al orden y limpieza'",4,1299]
["'1301 Causas relativas al nivel de ruido ambiental'",3,1301]
["'1302 Causas relativas a vibraciones'",3,1302]
["'1303 Causas relativas a radiaciones ionizantes'",3,1303]
["'1304 Causas relativas a radiaciones no ionizantes'",3,1304]
["'1305 Iluminación insuficiente o inapropiada'",3,1305]
["'1306 Deslumbramientos'",3,1306]
["'1307 Causas relativas a la temperatura y condiciones termo higrométricas '",3,1307]
["'1308 Causas relativas a los aspectos meteorológicos'",3,1308]
["'1309 Ausencia/deficiencia de protecciones para evitar la generación y propagación de agentes físicos.'",3,1309]
["'1399 Otras causas relativas a los agentes físicos en el ambiente'",3,1399]
["'1999 Otras causas relativas a las condiciones de los espacios de trabajo'",8,1999]
["'2101 Corte no debidamente previsto de suministro energético o de servicios (agua, electricidad, aire comprimido, gases etc.)'",1,2101]
["'2102 No uso de muy baja tensión de funcionamiento (compatible con el MI BT 036) estando establecido su uso obligatorio.'",1,2102]
["'2103 Defectos en el diseño, construcción, montaje, mantenimiento o uso de instalaciones eléctricas (ubicación de celdas de alta tensión, transformadores, aparallaje o instalaciones de baja tensión)'",1,2103]
["'2104 Ausencia/deficiencia de sistemas para evitar la generación de electricidad estática'",1,2104]
["'2105 Sistemas de detección de incendios-transmisión de alarma inexistentes, insuficientes o ineficaces'",1,2105]
["'2106 Almacenamiento de Sustancias y/o Preparados inflamables (“Clasificados como Clases A y B en la MIE-APQ 1”) en coexistencia con focos de ignición de distinta etiología (eléctricos, térmicos, mecánicos...), sin el control preciso.'",1,2106]
["'2107 Inexistencia de instalación anti-explosiva en atmósferas potencialmente explosivas (aplicable a equipos eléctricos, instrumentos neumáticos e hidráulicos).'",1,2107]
["'2108 Dificultad para efectuar un adecuado mantenimiento o limpieza de instalaciones de servicio o protección'",1,2108]
["'2109 Instalación de servicio o protección en mal estado-por otra causa'",2,2109]
["'2110 Ausencia de cubeto de retención de una Instalación de Almacenamiento de Productos Químicos'",1,2110]
["'2111 Tanques o Depósitos inadecuados (por diseño, construcción, ubicación, mantenimiento, uso etc) por ejemplo no estancos, fabricados con material inadecuado para la naturaleza de la sustancia almacenada.'",1,2111]
["'2112 Sistemas de conducción de sustancias o preparados inadecuados (por diseño, construcción, ubicación, mantenimiento, uso etc) por ejemplo no estancos, fabricados con material inadecuado para la naturaleza de la sustancia transportado.'",1,2112]
["'2199 Otras causas relativas al diseño, construcción, montaje, manteniemiento, reparación y limpieza de instalaciones de servicio y protección'",1,2199]
["'2201 Ausencia/deficiencia de medios para evitar los contactos eléctricos directos (defectos en el aislamiento de las partes activas, barreras o envolventes inexistentes o ineficaces, ausencia o deficiencia en los medios para obstaculizar el paso o incumplimiento en cuanto a las distancias que conforman el volumen de accesibilidad)'",2,2201]
["'2202 Deficiencias de aislamiento o inadecuado grado de protección (i.p.) en conductores, tomas de corriente, aparatos  o conexiones eléctricas defectuosas de la instalación'",2,2202]
["'2203 Ausencia o no funcionamiento de elementos constituyentes del sistema de prevención contra contactos indirectos (interruptores diferenciales por ser inadecuados o haber sido \"puenteados”, puesta a tierra, etc.) incluyendo dispositivos para la eliminación de electricidad estática'",2,2203]
["'2204 Ausencia o no funcionamiento de dispositivos para la eliminación de la electricidad estática'",1,2204]
["'2205 Imposibilidad de corte omnipolar simultáneo en Instalaciones eléctricas'",1,2205]
["'2206 Ausencia de protección contra sobre-intensidad, sobrecarga y cortocircuito en instalaciones eléctricas'",2,2206]
["'2207 Ausencia de protección contra sobrepresión(válvulas de presión,venteos, discos de rotura, válvulas de descarga,…)'",2,2207]
["'2208 Inexistencia, insuficiencia o ineficacia de medios de extinción.'",2,2208]
["'2209 Generación de atmósferas peligrosas por deficiencias de ventilación, natural o forzada'",1,2209]
["'2210 Dispositivos enclavamiento violados (puenteados, anulados, etc.)'",2,2210]
["'2299 Otras causas relativas los elementos y dispositivos de protección de instalaciones de servicio y protección'",2,2299]
["'2301 Defectos o insuficiencias en la identificación de conductores activos y de protección'",2,2301]
["'2302 Conducciones de fluidos peligrosos deficientemente señalizadas (inflamables, tóxicos, corrosivos, etc.)  '",2,2302]
["'2303 Medios de lucha contra incendios no señalizados o señalizados incorrectamente (pulsadores de alarma, extintores, bie´s...).'",2,2303]
["'2399 Otras causas relativas a la señalización e información de protección de instalaciones de servicio y protección'",2,2399]
["'2999 Otras causas relativas a las instalaciones de servicio y protección'",2,2999]
["'3101 Diseño incorrecto de la máquina o componente que hace que no se cumplan los principios de la prevención intrínseca y/o de la ergonomía'",1,3101]
["'3102 Modificaciones realizadas en la maquina que dan lugar a situaciones de riesgo no previstas por el fabricante.'",6,3102]
["'3103 Deficiente ubicación de la máquina'",4,3103]
["'3104 Defectos de estabilidad en equipos, maquinas o sus componentes  '",1,3104]
["'3105 Resistencia mecánica insuficiente de la máquina  '",1,3105]
["'3106 Diseño incorrecto de la máquina frente a presión interna o temperatura o agresión química'",1,3106]
["'3107 Focos de ignición no controlados (por causa mecánica, eléctrica, térmica o química)  '",1,3107]
["'3108 Fallos en el sistema neumático, hidráulico o eléctrico'",1,3108]
["'3109 Órganos de accionamiento inseguros (incorrecto diseño, no visibles o identificables, que posibilitan arranques intempestivos, imposibilitan la detención de partes móviles, variación incontrolada de velocidad, mal funcionamiento del modo manual, etc.).'",1,3109]
["'3110 Falta de dispositivos de parada, puesta en marcha y control en el punto de operación (en este epígrafe no se contempla la parada de emergencia).'",1,3110]
["'3111 Accesibilidad a órganos de la máquina peligrosos (atrapantes, cortantes, punzantes, o con posibilidad de ocasionar un contacto eléctrico)'",1,3111]
["'3112 Accesibilidad o falta de medios de aislamiento a zonas de la máquina en las que puede haber sustancias peligrosas por perdidas, fugas etc. o a zonas extremadamente calientes/frías'",1,3112]
["'3113 Deficiencia de los medios de acceso al puesto de trabajo o de conducción de la maquina'",1,3113]
["'3114 Visibilidad insuficiente en el puesto de conducción de la máquina ya sea por un mal diseño o por no disponer de de dispositivos auxiliares que mejoren la visibilidad cuando el campo de visión no es directo (espejos, cámaras de T.V.)'",1,3114]
["'3115 Defectos o ausencia en el sistema de dirección de la maquina automotriz, en el mecanismo de embrague, en el sistema de cambio de velocidades o en el sistema de frenos '",1,3115]
["'3116 Dificultad para efectuar un adecuado mantenimiento, reglaje o limpieza (accesibilidad a partes internas, dificultad de manipulación, dificultad de supervisión, ausencia de medios de diagnóstico)'",1,3116]
["'3117 Ausencia/deficiencia de elementos de montaje de máquinas'",1,3117]
["'3118 Deficiencia en el dispositivo de enganche/desenganche entre maquinas'",1,3118]
["'3119 Categoria insuficiente del dispositivo de mando o de protección '",1,3119]
["'3199 Otras causas relativas al diseño, ubicación, construccion, montaje, mantenimiento reparación y limpieza de máquinas.'",1,3199]
["'3201 Ausencia y/o deficiencia de resguardos y de dispositivos de protección (nota: el fallo puede consistir en la inexistencia de resguardos o de dispositivos de protección, en su mala instalación, en su aplicación en lugar de otros mas adecuados al riesgo que'",2,3201]
["'3202 Parada de emergencia inexistente, ineficaz o no accesible'",2,3202]
["'3203 Ausencia/deficiencia de protecciones colectivas frente a caídas de personas y objetos desde máquinas'",2,3203]
["'3204 Ausencia/deficiencia de protecciones antivuelco en maquinas automotrices (r.o.p.s.)'",2,3204]
["'3205 Ausencia/deficiencia de estructura de protección contra caída de materiales (f.o.p.s.)  '",2,3205]
["'3206 Ausencia de medios técnicos para la consignación (imposibilidad de puesta en marcha) de la máquina o vehículo'",2,3206]
["'3207 Ausencia de dispositivos que eviten que los trabajadores no autorizados utilicen los equipos de trabajo'",2,3207]
["'3208 Ausencia/deficiencia o falta de uso de dispositivos que mantengan a los conductores o a los trabajadores transportados en su posición correcta durante el desplazamiento.'",2,3208]
["'3299 Otras causas relativas a los elementos y dispositivos de protección de máquinas.'",2,3299]
["'3301 Ausencia de alarmas (puesta en marcha de maquinas peligrosas o marcha atrás de vehículos, etc.)'",2,3301]
["'3302 Deficiencia/ausencia del manual de instrucciones de máquinas '",6,3302]
["'3399 Otras causas relativas a la señalización e información de máquinas.'",2,3399]
["'3999 Otras causas relativas a las máquinas.'",8,3999]
["'4101 Diseño incorrecto del equipo que hace que no se cumplan los principios de la prevención intrínseca y/o de la ergonomía'",1,4101]
["'4102 Deficiente ubicación, defectos de estabilidad en equipos de trabajo debido a una incorrecta construcción, montaje y mantenimiento .'",1,4102]
["'4103 Resistencia mecánica insuficiente del equipo de trabajo  '",1,4103]
["'4104 Diseño incorrecto  del equipo de trabajo frente a presión interna o temperatura o agresión química'",1,4104]
["'4105 Partes del equipo accesibles peligrosas (atrapantes, cortantes, punzantes,etc.)'",1,4105]
["'4106 Escalera de mano insegura (material no resistente, apoyos inadecuados ….)'",1,4106]
["'4199 Otras causas relativas al diseño, ubicación, construccion, montaje, y limpieza  de otros equipos de trabajo.'",1,4199]
["'4201 Ausencia/deficiencia de elementos de seguridad en los medios de elevación de cargas (pestillos de seguridad en ganchos, etc) '",2,4201]
["'4202 Ausencia de elementos de protección de herramientas (protectores de empuñaduras, etc)'",2,4202]
["'4203 Ausencia/deficiencia de protecciones colectivas frente a caídas de personas y objetos desde equipos de trabajo'",2,4203]
["'4299 Otras causas relativas a los elementos y dispositivos de protección de otros equipos de trabajo'",2,4299]
["'4301 Deficiencia/ausencia del manual de instrucciones o señalización (nota: el fallo puede consistir en la inexistencia del manual de instrucciones o en la insuficiente o ininteligible información contenida en el o en la utilización de un idioma incomprensible'",2,4301]
["'4302 Falta de señalización e información acerca de la carga máxima en eslingas y otros accesorios de elevación'",2,4302]
["'4399 Otras causas relativas a la señalización e información de otros equipos de trabajo'",2,4399]
["'4999 Otras causas relativas a otros equipos de trabajo'",8,4999]
["'5101 Defectos en los materiales utilizados de forma general, excluídos los que conforman una máquina, instalación y equipo.'",3,5101]
["'5102 Materiales muy pesados, voluminosos, de gran superficie, inestables o con aristas/perfiles cortantes, en relación con los medios utilizados en su manejo.'",3,5102]
["'5103 No mecanización o automatización de las operaciones de carga/descarga                                '",5,5103]
["'5104 Deficiente sistema de almacenamiento, empaquetado, paletizado, apilamiento atc'",5,5104]
["'5105 Zonas de almacenamiento inadecuadas o no previstas.'",4,5105]
["'5106 Falta de planificación y/o vigilancia en operaciones de levantamiento de cargas'",5,5106]
["'5199 Otras causas relativas a la manipulación y almacenamiento de materiales '",3,5199]
["'5201 Inhalación, ingestión o contacto con productos químicos (sustancias o preparados) presentes en el puesto de trabajo.'",3,5201]
["'5202 Ausencia o deficiencia en los procedimientos de manipulado o almacenamiento de productos químicos (sustancias o preparados).'",5,5202]
["'5203 Presencia de productos químicos (sustancias o preparados) en el ambiente (tóxicos, irritantes, inflamables, etc...) en cualquier estado (polvos, vapores, gases, etc.), cuyo control o eliminación no está garantizado'",3,5203]
["'5204 Productos químicos (sustancias o preparados) capaces de producir reacciones peligrosas (exotérmicas, tóxicas, etc) cuyo control o eliminación no está garantizado'",3,5204]
["'5205 Productos químicos (sustancias o preparados) inflamable o explosiva, en cualquier estado físico, cuyo control o eliminación no está garantizado'",3,5205]
["'5206 Posibilidad de contacto o mezcla de productos químicos (sustancias o preparados) incompatibles o que pueden generar una reacción con desprendimiento de productos tóxicos, corrosivos y/o calor'",3,5206]
["'5207 Fugas o derrames de productos químicos (sustancias o preparados) (durante su fabricación, transporte, almacenamiento y manipulación).'",3,5207]
["'5208 Deficiente envasado y etiquetado de los productos químicos (sustancias o preparados) utilizados en caso de trasvase en la propia empresa'",5,5208]
["'5209 Deficiente envasado y etiquetado de los productos químicos (sustancias o preparados) utilizados (excluido los trasvasados en la propia empresa)'",6,5209]
["'5210 Ausencia/deficiencia de protecciones para evitar la generación y propagación de agentes químicos (estará incluida la ausencia/deficiencia de dispositivos de  encapsulamiento de la fuente y en general de aquellos que eviten o minimizen la liberación de agentes)'",2,5210]
["'5299 Otras causas relativas a los productos químicos'",3,5299]
["'5301 Contacto o presencia de animales'",3,5301]
["'5302 Agentes biológicos o seres vivos susceptibles de originar cualquier tipo de infección, alergia o toxicidad, cuyo control o eliminación no está garantizado'",3,5302]
["'5303 Ausencia/deficiencia de protecciones para evitar la generación y propagación de agentes biológicos (estará incluida la ausencia/deficiencia de dispositivos de  encapsulamiento de la fuente y en general de aquellos que eviten o minimizen la liberación de agentes)'",2,5303]
["'5304 Deficiencia de medidas de higiene personal adecuadas para la prevención de enfermedades infecciosas'",5,5304]
["'5399 Otras causas relativas a los agentes biologicos y seres vivos'",3,5399]
["'5999 Otras causas relativas a materiales y agentes contaminantes'",8,5999]
["'6101 Método de trabajo  inexistente '",5,6101]
["'6102 Método de trabajo inadecuado'",5,6102]
["'6103 Diseño inadecuado del trabajo o tarea'",5,6103]
["'6104 Apremio de tiempo o ritmo de trabajo elevado'",5,6104]
["'6105 Trabajo monótono o rutinario, sin medidas para evitar su efecto nocivo'",5,6105]
["'6106 Trabajos solitarios sin las medidas de prevención adecuadas'",5,6106]
["'6107 Sobrecarga de la máquina o equipo (respecto a sus características técnicas)'",5,6107]
["'6108 Sobrecarga trabajador (fatiga física o mental)'",5,6108]
["'6109 Existencia de interferencias o falta de coordinación entre trabajadores que realizan la misma o distintas tareas'",5,6109]
["'6110 Ausencia de vigilancia, control y dirección de persona competente'",5,6110]
["'6111 No organizar el trabajo teniendo en cuenta las condiciones meteorológicas adversas.'",5,6111]
["'6199 Otras causas relativas a los métodos de trabajo'",5,6199]
["'6201 Operación inhabitual para el operario que la realiza, sea ordinaria o esporádica'",5,6201]
["'6202 Operación destinada a evitar averías o incidentes o recuperar incidentes.'",5,6202]
["'6203 Operación extraordinaria realizada en caso de incidentes, accidentes o emergencias.'",5,6203]
["'6299 Otras causas relativas a la organización de las tareas'",5,6299]
["'6301 Deficiencias en el sistema de comunicación a nivel horizontal o vertical, incluyendo la incomprensión del idioma.'",5,6301]
["'6302 Instrucciones inexistentes'",5,6302]
["'6303 Instrucciones respecto a la tarea confusas, contradictorias o insuficientes'",5,6303]
["'6304 Formación/información inadecuada o inexistente sobre la tarea'",5,6304]
["'6305 Procedimientos inexistentes o insuficientes para formar o informar a los trabajadores  acerca de la utilización o manipulación de maquinaria, equipos, productos, materias primas y útiles de trabajo.'",5,6305]
["'6306 Deficiencia/ausencia de información o señalización visual o acústica obligatoria o necesaria, incluyendo la utilización de un idioma incomprensible para el trabajador'",2,6306]
["'6307 Falta de señalista en caso necesario para organizar la circulación de personas y/o vehículos, así como manejo de cargas.'",2,6307]
["'6308 Deficiencia/ausencia de señalización de \"prohibido maniobra\" en los órganos de accionamiento, en caso de trabajos a efectuar sin tensión, sin presión o sin otras energías.'",2,6308]
["'6399 Otras causas relativas a la formación, información, instrucciones y señalización sobre la tarea'",5,6399]
["'6401 No poner a disposición de los trabajadores las máquinas, equipos y medios auxiliares necesarios o adecuados.'",5,6401]
["'6402 Selección de máquinas no adecuadas al trabajo a realizar'",5,6402]
["'6403 Selección de útiles, herramientas y medios auxiliares no adecuados al trabajo a realizar'",5,6403]
["'6404 Selección de materiales no adecuados al trabajo a realizar'",5,6404]
["'6405 Utilización de la máquina de manera no prevista por el fabricante.'",5,6405]
["'6406 Utilización de útiles, herramientas y medios auxiliares de manera no prevista por el fabricante.'",5,6406]
["'6407 Utilización de materiales en general de manera no prevista por el fabricante..'",5,6407]
["'6408 No comprobación del estado de las maquinas, herramientas, equipos o medios auxiliares antes de su utilización'",5,6408]
["'6409 Ausencia de medios organizativos o procedimientos para la consignación de máquinas, instalaciones y lugares de trabajo.'",5,6409]
["'6499 Otras causas relativas a la selección y utilización de equipos y materiales'",5,6499]
["'6999 Otras causas relativas a la organización del trabajo'",8,6999]
["'7101 Inexistencia o insuficiencia de un procedimiento que regule la realización de las actividades dirigidas a la identificación y evaluación de riesgos, incluidas las referidas a los estudios requeridos en las Obras de Construcción'",6,7101]
["'7102 Inexistencia o deficiencia de un procedimiento que regule la planificación de la implantación de las medidas preventivas propuestas, incluidas las referidas a los planes de seguridad en las Obras de Construcción'",6,7102]
["'7103 Procedimientos inexistentes, insuficientes o deficientes para informar a los trabajadores de los riesgos y las medidas preventivas'",6,7103]
["'7104 Deficiencias en la organización de los recursos obligatorios (organización preventiva) para la realización de las actividades preventivas exigidas por la normativa'",6,7104]
["'7105 Procedimientos inexistentes, insuficientes o deficientes. para la coordinación de actividades realizadas por varias empresas '",6,7105]
["'7106 Inadecuada política de compras desde el punto de vista de la prevención.'",6,7106]
["'7107 Sistema inadecuado de asignación de tareas por otras razones que no sean la falta de cualificación o experiencia'",5,7107]
["'7108 No apreciar las características de los trabajadores para la realización de la tarea o en función de los riesgos '",6,7108]
["'7199 Otras causas relativas a la gestión de la prevención'",6,7199]
["'7201 No identificación del/los riesgos que han materializado el accidente'",6,7201]
["'7202 Medidas preventivas propuestas en la planificación derivada de la evaluación de riesgos insuficientes o inadecuadas, incluidas las referidas al Plan de Seguridad y salud en el Trabajo en Obras de Construcción'",6,7202]
["7203 No ejecución de medidas preventivas propuestas en la planificación derivada de la evaluación de riesgos. '",6,7203]
["'7204 Falta de control del cumplimiento del Plan de seguridad y salud en Construcción.'",6,7204]
["'7205 Mantenimiento preventivo inexistente o inadecuado o falta de revisiones periódicas oficiales.'",6,7205]
["'7206 Formación/información inadecuada, inexistente sobre riesgos o medidas preventivas'",6,7206]
["'7207 Inexistencia o inadecuación de plan y/o medidas de emergencia.'",6,7207]
["'7208 No poner a disposición de los trabajadores las prendas o equipos de protección necesarios o ser estos inadecuados o mal mantenidos, o no supervisar su correcta utilización.'",6,7208]
["'7209 Falta de presencia de los recursos preventivos requeridos'",6,7209]
["'7210 Vigilancia de la salud inadecuada a los riesgos del puesto de trabajo'",6,7210]
["'7211 Ausencia/deficiencias de permisos y/o procedimientos de trabajo en intervenciones peligrosas (por ejemplo soldaduras en zonas de riesgo, trabajos en tensión, espacios confinados etc.)'",6,7211]
["'7212 Asignación de tarea a un trabajador con falta de cualificación o experiencia'",6,7212]
["'7299 Otras causas relativas a las actividades preventivas'",6,7299]
["'7999 Otras causas relativas a la gestión de la prevención'",8,7999]
["'8101 Realización de tareas no asignadas'",7,8101]
["'8102 Incumplimiento de procedimientos e instrucciones de trabajo'",7,8102]
["'8103 Incumplimiento de normas de seguridad establecidas'",7,8103]
["'8104 Uso indebido de materiales, herramientas o útiles de trabajo, puestos a disposición por la empresa'",7,8104]
["'8105 Uso indebido o no utilización de medios auxiliares de trabajo o de seguridad puestos a disposición por la empresa y de uso obligatorio (empujadores, distanciadores, etc.)'",7,8105]
["'8106 No utilización de equipos de protección individual puestas a disposición por la empresa y de uso obligatorio.'",7,8106]
["'8107 Retirada o anulación de protecciones o dispositivos de seguridad'",7,8107]
["'8108 Permanencia del trabajador dentro de una zona peligrosa'",7,8108]
["'8109 Adopción de una postura inadecuada en el puesto de trabajo'",7,8109]
["'8199 Otras causas relativas a los factores de comportamiento'",7,8199]
["'8201 Incapacidad física o mental para la realización normal del trabajo.'",7,8201]
["'8202 Deficiente asimilación de órdenes recibidas.'",7,8202]
["'8203 Falta de cualificación y/o experiencia para la tarea realizada achacable al trabajador'",7,8203]
["'8299 Otras causas relativas a los factores intrinsecos, de salud o capacidades'",7,8299]
["'8999 Otras causas relativas a los factores personales-individuales'",8,8999]
["'9199 Otras causas '",8,9199]
["'9299 Hechos no causales'",8,9299]

{"sheet":"Hoja20","index":23,"n_rows":227,"n_cols":3,"rows_kept":227,"cut":false,"hidden":true,"merged":[]}
[]
["Ordenados por bloque"]
[]
["Literal de Bloque","Código Bloque"]
["Prevención intrínseca",1]
["Protección señalización",2]
["Materiales, productos o agentes",3]
["Espacios y superficies de trabajo",4]
["Organización del trabajo",5]
["Gestión de la prevención",6]
["Factores individuales",7]
["Otras causas",8]
[]
[]
[]
["Literal de Causa","Bloque","Causa Código"]
["1113 Ausencia de vías de evacuación o insuficientes en número, mal dimensionadas, obstruidas o incorrectamente distribuida",1,1113]
["1114 Inexistencia, insuficiencia o ineficacia de sectorización o aislamiento de áreas de riesgos, como por ejemplo zonificación de atmósferas explosivas, espacios confinados, zonas extremadamente calientes o frias etc",1,1114]
["1116 Vías de circulación deficientes (insuficentes, mal dimensionadas o faltas de separación entre ellas)",1,1116]
["1117 Diseño incorrecto de ventanas (sistema de cierre inseguro, falta previsión situaciones de limpieza y mantenimiento)",1,1117]
["1118 Diseño incorrecto de puertas y pontones (sistema de cierre inseguro, sin parada de emergencia, falta previsión situaciones de limpieza y mantenimiento)",1,1118]
["2101 Corte no debidamente previsto de suministro energético o de servicios (agua, electricidad, aire comprimido, gases etc.)",1,2101]
["2102 No uso de muy baja tensión de funcionamiento (compatible con el MI BT 036) estando establecido su uso obligatorio.",1,2102]
["2103 Defectos en el diseño, construcción, montaje, mantenimiento o uso de instalaciones eléctricas (ubicación de celdas de alta tensión, transformadores, aparallaje o instalaciones de baja tensión)",1,2103]
["2104 Ausencia/deficiencia de sistemas para evitar la generación de electricidad estática",1,2104]
["2105 Sistemas de detección de incendios-transmisión de alarma inexistentes, insuficientes o ineficaces",1,2105]
["2106 Almacenamiento de Sustancias y/o Preparados inflamables (“Clasificados como Clases A y B en la MIE-APQ 1”) en coexistencia con focos de ignición de distinta etiología (eléctricos, térmicos, mecánicos...), sin el control preciso.",1,2106]
["2107 Inexistencia de instalación anti-explosiva en atmósferas potencialmente explosivas (aplicable a equipos eléctricos, instrumentos neumáticos e hidráulicos).",1,2107]
["2108 Dificultad para efectuar un adecuado mantenimiento o limpieza de instalaciones de servicio o protección",1,2108]
["2110 Ausencia de cubeto de retención de una Instalación de Almacenamiento de Productos Químicos",1,2110]
["2111 Tanques o Depósitos inadecuados (por diseño, construcción, ubicación, mantenimiento, uso etc) por ejemplo no estancos, fabricados con material inadecuado para la naturaleza de la sustancia almacenada.",1,2111]
["2112 Sistemas de conducción de sustancias o preparados inadecuados (por diseño, construcción, ubicación, mantenimiento, uso etc) por ejemplo no estancos, fabricados con material inadecuado para la naturaleza de la sustancia transportado.",1,2112]
["2199 Otras causas relativas al diseño, construcción, montaje, manteniemiento, reparación y limpieza de instalaciones de servicio y protección",1,2199]
["2204 Ausencia o no funcionamiento de dispositivos para la eliminación de la electricidad estática",1,2204]
["2205 Imposibilidad de corte omnipolar simultáneo en Instalaciones eléctricas",1,2205]
["2209 Generación de atmósferas peligrosas por deficiencias de ventilación, natural o forzada",1,2209]
["3101 Diseño incorrecto de la máquina o componente que hace que no se cumplan los principios de la prevención intrínseca y/o de la ergonomía",1,3101]
["3104 Defectos de estabilidad en equipos, maquinas o sus componentes  ",1,3104]
["3105 Resistencia mecánica insuficiente de la máquina  ",1,3105]
["3106 Diseño incorrecto de la máquina frente a presión interna o temperatura o agresión química",1,3106]
["3107 Focos de ignición no controlados (por causa mecánica, eléctrica, térmica o química)  ",1,3107]
["3108 Fallos en el sistema neumático, hidráulico o eléctrico",1,3108]
["3109 Órganos de accionamiento inseguros (incorrecto diseño, no visibles o identificables, que posibilitan arranques intempestivos, imposibilitan la detención de partes móviles, variación incontrolada de velocidad, mal funcionamiento del modo manual, etc.).",1,3109]
["3110 Falta de dispositivos de parada, puesta en marcha y control en el punto de operación (en este epígrafe no se contempla la parada de emergencia).",1,3110]
["3111 Accesibilidad a órganos de la máquina peligrosos (atrapantes, cortantes, punzantes, o con posibilidad de ocasionar un contacto eléctrico)",1,3111]
["3112 Accesibilidad o falta de medios de aislamiento a zonas de la máquina en las que puede haber sustancias peligrosas por perdidas, fugas etc. o a zonas extremadamente calientes/frías",1,3112]
["3113 Deficiencia de los medios de acceso al puesto de trabajo o de conducción de la maquina",1,3113]
["3114 Visibilidad insuficiente en el puesto de conducción de la máquina ya sea por un mal diseño o por no disponer de de dispositivos auxiliares que mejoren la visibilidad cuando el campo de visión no es directo (espejos, cámaras de T.V.)",1,3114]
["3115 Defectos o ausencia en el sistema de dirección de la maquina automotriz, en el mecanismo de embrague, en el sistema de cambio de velocidades o en el sistema de frenos ",1,3115]
["3116 Dificultad para efectuar un adecuado mantenimiento, reglaje o limpieza (accesibilidad a partes internas, dificultad de manipulación, dificultad de supervisión, ausencia de medios de diagnóstico)",1,3116]
["3117 Ausencia/deficiencia de elementos de montaje de máquinas",1,3117]
["3118 Deficiencia en el dispositivo de enganche/desenganche entre maquinas",1,3118]
["3119 Categoria insuficiente del dispositivo de mando o de protección ",1,3119]
["3199 Otras causas relativas al diseño, ubicación, construccion, montaje, mantenimiento reparación y limpieza de máquinas.",1,3199]
["4101 Diseño incorrecto del equipo que hace que no se cumplan los principios de la prevención intrínseca y/o de la ergonomía",1,4101]
["4102 Deficiente ubicación, defectos de estabilidad en equipos de trabajo debido a una incorrecta construcción, montaje y mantenimiento .",1,4102]
["4103 Resistencia mecánica insuficiente del equipo de trabajo  ",1,4103]
["4104 Diseño incorrecto  del equipo de trabajo frente a presión interna o temperatura o agresión química",1,4104]
["4105 Partes del equipo accesibles peligrosas (atrapantes, cortantes, punzantes,etc.)",1,4105]
["4106 Escalera de mano insegura (material no resistente, apoyos inadecuados ….)",1,4106]
["4199 Otras causas relativas al diseño, ubicación, construccion, montaje, y limpieza  de otros equipos de trabajo.",1,4199]
["1104 Ausencia/deficiencia de protecciones colectivas frente a caídas de personas",2,1104]
["1107 Ausencia de señalización de límite de sobrecarga de uso de las superficies de trabajo",2,1107]
["1112 Vías de evacuación o salida no señalizadas o señalizadas de forma insuficiente o incorrecta",2,1112]
["1115 Deficiencia/ausencia de señalización u otro tipo de elementos necesarios para la delimitación de la zona de trabajo (ej.: Maniobras o trabajos próximos a instalaciones de a.t., área de obra, movimientos de vehículos, etc...)",2,1115]
["2109 Instalación de servicio o protección en mal estado-por otra causa",2,2109]
["2201 Ausencia/deficiencia de medios para evitar los contactos eléctricos directos (defectos en el aislamiento de las partes activas, barreras o envolventes inexistentes o ineficaces, ausencia o deficiencia en los medios para obstaculizar el paso o incumplimiento en cuanto a las distancias que conforman el volumen de accesibilidad)",2,2201]
["2202 Deficiencias de aislamiento o inadecuado grado de protección (i.p.) en conductores, tomas de corriente, aparatos  o conexiones eléctricas defectuosas de la instalación",2,2202]
["2203 Ausencia o no funcionamiento de elementos constituyentes del sistema de prevención contra contactos indirectos (interruptores diferenciales por ser inadecuados o haber sido \"puenteados”, puesta a tierra, etc.) incluyendo dispositivos para la eliminación de electricidad estática",2,2203]
["2206 Ausencia de protección contra sobre-intensidad, sobrecarga y cortocircuito en instalaciones eléctricas",2,2206]
["2207 Ausencia de protección contra sobrepresión(válvulas de presión,venteos, discos de rotura, válvulas de descarga,…)",2,2207]
["2208 Inexistencia, insuficiencia o ineficacia de medios de extinción.",2,2208]
["2210 Dispositivos enclavamiento violados (puenteados, anulados, etc.)",2,2210]
["2299 Otras causas relativas los elementos y dispositivos de protección de instalaciones de servicio y protección",2,2299]
["2301 Defectos o insuficiencias en la identificación de conductores activos y de protección",2,2301]
["2302 Conducciones de fluidos peligrosos deficientemente señalizadas (inflamables, tóxicos, corrosivos, etc.)  ",2,2302]
["2303 Medios de lucha contra incendios no señalizados o señalizados incorrectamente (pulsadores de alarma, extintores, bie´s...).",2,2303]
["2399 Otras causas relativas a la señalización e información de protección de instalaciones de servicio y protección",2,2399]
["2999 Otras causas relativas a las instalaciones de servicio y protección",2,2999]
["3201 Ausencia y/o deficiencia de resguardos y de dispositivos de protección (nota: el fallo puede consistir en la inexistencia de resguardos o de dispositivos de protección, en su mala instalación, en su aplicación en lugar de otros mas adecuados al riesgo que",2,3201]
["3202 Parada de emergencia inexistente, ineficaz o no accesible",2,3202]
["3203 Ausencia/deficiencia de protecciones colectivas frente a caídas de personas y objetos desde máquinas",2,3203]
["3204 Ausencia/deficiencia de protecciones antivuelco en maquinas automotrices (r.o.p.s.)",2,3204]
["3205 Ausencia/deficiencia de estructura de protección contra caída de materiales (f.o.p.s.)  ",2,3205]
["3206 Ausencia de medios técnicos para la consignación (imposibilidad de puesta en marcha) de la máquina o vehículo",2,3206]
["3207 Ausencia de dispositivos que eviten que los trabajadores no autorizados utilicen los equipos de trabajo",2,3207]
["3208 Ausencia/deficiencia o falta de uso de dispositivos que mantengan a los conductores o a los trabajadores transportados en su posición correcta durante el desplazamiento.",2,3208]
["3299 Otras causas relativas a los elementos y dispositivos de protección de máquinas.",2,3299]
["3301 Ausencia de alarmas (puesta en marcha de maquinas peligrosas o marcha atrás de vehículos, etc.)",2,3301]
["3399 Otras causas relativas a la señalización e información de máquinas.",2,3399]
["4201 Ausencia/deficiencia de elementos de seguridad en los medios de elevación de cargas (pestillos de seguridad en ganchos, etc) ",2,4201]
["4202 Ausencia de elementos de protección de herramientas (protectores de empuñaduras, etc)",2,4202]
["4203 Ausencia/deficiencia de protecciones colectivas frente a caídas de personas y objetos desde equipos de trabajo",2,4203]
["4299 Otras causas relativas a los elementos y dispositivos de protección de otros equipos de trabajo",2,4299]
["4301 Deficiencia/ausencia del manual de instrucciones o señalización (nota: el fallo puede consistir en la inexistencia del manual de instrucciones o en la insuficiente o ininteligible información contenida en el o en la utilización de un idioma incomprensible",2,4301]
["4302 Falta de señalización e información acerca de la carga máxima en eslingas y otros accesorios de elevación",2,4302]
["4399 Otras causas relativas a la señalización e información de otros equipos de trabajo",2,4399]
["5210 Ausencia/deficiencia de protecciones para evitar la generación y propagación de agentes químicos (estará incluida la ausencia/deficiencia de dispositivos de  encapsulamiento de la fuente y en general de aquellos que eviten o minimizen la liberación de agentes)",2,5210]
["5303 Ausencia/deficiencia de protecciones para evitar la generación y propagación de agentes biológicos (estará incluida la ausencia/deficiencia de dispositivos de  encapsulamiento de la fuente y en general de aquellos que eviten o minimizen la liberación de agentes)",2,5303]
["6306 Deficiencia/ausencia de información o señalización visual o acústica obligatoria o necesaria, incluyendo la utilización de un idioma incomprensible para el trabajador",2,6306]
["6307 Falta de señalista en caso necesario para organizar la circulación de personas y/o vehículos, así como manejo de cargas.",2,6307]
["6308 Deficiencia/ausencia de señalización de \"prohibido maniobra\" en los órganos de accionamiento, en caso de trabajos a efectuar sin tensión, sin presión o sin otras energías.",2,6308]
["1301 Causas relativas al nivel de ruido ambiental",3,1301]
["1302 Causas relativas a vibraciones",3,1302]
["1303 Causas relativas a radiaciones ionizantes",3,1303]
["1304 Causas relativas a radiaciones no ionizantes",3,1304]
["1305 Iluminación insuficiente o inapropiada",3,1305]
["1306 Deslumbramientos",3,1306]
["1307 Causas relativas a la temperatura y condiciones termo higrométricas ",3,1307]
["1308 Causas relativas a los aspectos meteorológicos",3,1308]
["1309 Ausencia/deficiencia de protecciones para evitar la generación y propagación de agentes físicos.",3,1309]
["1399 Otras causas relativas a los agentes físicos en el ambiente",3,1399]
["5101 Defectos en los materiales utilizados de forma general, excluídos los que conforman una máquina, instalación y equipo.",3,5101]
["5102 Materiales muy pesados, voluminosos, de gran superficie, inestables o con aristas/perfiles cortantes, en relación con los medios utilizados en su manejo.",3,5102]
["5199 Otras causas relativas a la manipulación y almacenamiento de materiales ",3,5199]
["5201 Inhalación, ingestión o contacto con productos químicos (sustancias o preparados) presentes en el puesto de trabajo.",3,5201]
["5203 Presencia de productos químicos (sustancias o preparados) en el ambiente (tóxicos, irritantes, inflamables, etc...) en cualquier estado (polvos, vapores, gases, etc.), cuyo control o eliminación no está garantizado",3,5203]
["5204 Productos químicos (sustancias o preparados) capaces de producir reacciones peligrosas (exotérmicas, tóxicas, etc) cuyo control o eliminación no está garantizado",3,5204]
["5205 Productos químicos (sustancias o preparados) inflamable o explosiva, en cualquier estado físico, cuyo control o eliminación no está garantizado",3,5205]
["5206 Posibilidad de contacto o mezcla de productos químicos (sustancias o preparados) incompatibles o que pueden generar una reacción con desprendimiento de productos tóxicos, corrosivos y/o calor",3,5206]
["5207 Fugas o derrames de productos químicos (sustancias o preparados) (durante su fabricación, transporte, almacenamiento y manipulación).",3,5207]
["5299 Otras causas relativas a los productos químicos",3,5299]
["5301 Contacto o presencia de animales",3,5301]
["5302 Agentes biológicos o seres vivos susceptibles de originar cualquier tipo de infección, alergia o toxicidad, cuyo control o eliminación no está garantizado",3,5302]
["5399 Otras causas relativas a los agentes biologicos y seres vivos",3,5399]
["1101 Deficiente diseño ergonómico del puesto de trabajo.",4,1101]
["1102 Superficies de trabajo habitualmente inestables, incluidos barcos.",4,1102]
["1103 Espacio insuficiente en lugares de trabajo o en las zonas de tránsito",4,1103]
["1105 Aberturas y huecos desprotegidos",4,1105]
["1106 Falta de seguridad estructural o estabilidad de paramentos, etc.",4,1106]
["1108 Falta/deficiencia de entibación o taludes inadecuados",4,1108]
["1109 Dificultad/deficiencia en el acceso al puesto de trabajo.",4,1109]
["1110 Pavimento deficiente o inadecuado (discontinuo, resbaladizo, inestable, con  pendiente excesiva, etc.)",4,1110]
["1111 Escaleras fijas, de servicio o escala inseguras por falta de anchura, peldaño desigual, huella insufiente etc o en mal estado.",4,1111]
["1199 Otras causas relativas a la configuración de los espacios de trabajo",4,1199]
["1201 Orden y limpieza deficientes",4,1201]
["1202 Ausencia o deficiencia de medios para drenaje de líquidos.",4,1202]
["1203 No delimitación entre las zonas de trabajo o tránsito y las de almacenamiento o no respetar las zonas establecidas.",4,1203]
["1299 Otras causas relativas al orden y limpieza",4,1299]
["3103 Deficiente ubicación de la máquina",4,3103]
["5105 Zonas de almacenamiento inadecuadas o no previstas.",4,5105]
["5103 No mecanización o automatización de las operaciones de carga/descarga                                ",5,5103]
["5104 Deficiente sistema de almacenamiento, empaquetado, paletizado, apilamiento atc",5,5104]
["5106 Falta de planificación y/o vigilancia en operaciones de levantamiento de cargas",5,5106]
["5202 Ausencia o deficiencia en los procedimientos de manipulado o almacenamiento de productos químicos (sustancias o preparados).",5,5202]
["5208 Deficiente envasado y etiquetado de los productos químicos (sustancias o preparados) utilizados en caso de trasvase en la propia empresa",5,5208]
["5304 Deficiencia de medidas de higiene personal adecuadas para la prevención de enfermedades infecciosas",5,5304]
["6101 Método de trabajo  inexistente ",5,6101]
["6102 Método de trabajo inadecuado",5,6102]
["6103 Diseño inadecuado del trabajo o tarea",5,6103]
["6104 Apremio de tiempo o ritmo de trabajo elevado",5,6104]
["6105 Trabajo monótono o rutinario, sin medidas para evitar su efecto nocivo",5,6105]
["6106 Trabajos solitarios sin las medidas de prevención adecuadas",5,6106]
["6107 Sobrecarga de la máquina o equipo (respecto a sus características técnicas)",5,6107]
["6108 Sobrecarga trabajador (fatiga física o mental)",5,6108]
["6109 Existencia de interferencias o falta de coordinación entre trabajadores que realizan la misma o distintas tareas",5,6109]
["6110 Ausencia de vigilancia, control y dirección de persona competente",5,6110]
["6111 No organizar el trabajo teniendo en cuenta las condiciones meteorológicas adversas.",5,6111]
["6199 Otras causas relativas a los métodos de trabajo",5,6199]
["6201 Operación inhabitual para el operario que la realiza, sea ordinaria o esporádica",5,6201]
["6202 Operación destinada a evitar averías o incidentes o recuperar incidentes.",5,6202]
["6203 Operación extraordinaria realizada en caso de incidentes, accidentes o emergencias.",5,6203]
["6299 Otras causas relativas a la organización de las tareas",5,6299]
["6301 Deficiencias en el sistema de comunicación a nivel horizontal o vertical, incluyendo la incomprensión del idioma.",5,6301]
["6302 Instrucciones inexistentes",5,6302]
["6303 Instrucciones respecto a la tarea confusas, contradictorias o insuficientes",5,6303]
["6304 Formación/información inadecuada o inexistente sobre la tarea",5,6304]
["6305 Procedimientos inexistentes o insuficientes para formar o informar a los trabajadores  acerca de la utilización o manipulación de maquinaria, equipos, productos, materias primas y útiles de trabajo.",5,6305]
["6399 Otras causas relativas a la formación, información, instrucciones y señalización sobre la tarea",5,6399]
["6401 No poner a disposición de los trabajadores las máquinas, equipos y medios auxiliares necesarios o adecuados.",5,6401]
["6402 Selección de máquinas no adecuadas al trabajo a realizar",5,6402]
["6403 Selección de útiles, herramientas y medios auxiliares no adecuados al trabajo a realizar",5,6403]
["6404 Selección de materiales no adecuados al trabajo a realizar",5,6404]
["6405 Utilización de la máquina de manera no prevista por el fabricante.",5,6405]
["6406 Utilización de útiles, herramientas y medios auxiliares de manera no prevista por el fabricante.",5,6406]
["6407 Utilización de materiales en general de manera no prevista por el fabricante..",5,6407]
["6408 No comprobación del estado de las maquinas, herramientas, equipos o medios auxiliares antes de su utilización",5,6408]
["6409 Ausencia de medios organizativos o procedimientos para la consignación de máquinas, instalaciones y lugares de trabajo.",5,6409]
["6499 Otras causas relativas a la selección y utilización de equipos y materiales",5,6499]
["7107 Sistema inadecuado de asignación de tareas por otras razones que no sean la falta de cualificación o experiencia",5,7107]
["3102 Modificaciones realizadas en la maquina que dan lugar a situaciones de riesgo no previstas por el fabricante.",6,3102]
["3302 Deficiencia/ausencia del manual de instrucciones de máquinas ",6,3302]
["5209 Deficiente envasado y etiquetado de los productos químicos (sustancias o preparados) utilizados (excluido los trasvasados en la propia empresa)",6,5209]
["7101 Inexistencia o insuficiencia de un procedimiento que regule la realización de las actividades dirigidas a la identificación y evaluación de riesgos, incluidas las referidas a los estudios requeridos en las Obras de Construcción",6,7101]
["7102 Inexistencia o deficiencia de un procedimiento que regule la planificación de la implantación de las medidas preventivas propuestas, incluidas las referidas a los planes de seguridad en las Obras de Construcción",6,7102]
["7103 Procedimientos inexistentes, insuficientes o deficientes para informar a los trabajadores de los riesgos y las medidas preventivas",6,7103]
["7104 Deficiencias en la organización de los recursos obligatorios (organización preventiva) para la realización de las actividades preventivas exigidas por la normativa",6,7104]
["7105 Procedimientos inexistentes, insuficientes o deficientes. para la coordinación de actividades realizadas por varias empresas ",6,7105]
["7106 Inadecuada política de compras desde el punto de vista de la prevención.",6,7106]
["7108 No apreciar las características de los trabajadores para la realización de la tarea o en función de los riesgos ",6,7108]
["7199 Otras causas relativas a la gestión de la prevención",6,7199]
["7201 No identificación del/los riesgos que han materializado el accidente",6,7201]
["7202 Medidas preventivas propuestas en la planificación derivada de la evaluación de riesgos insuficientes o inadecuadas, incluidas las referidas al Plan de Seguridad y salud en el Trabajo en Obras de Construcción",6,7202]
["7203 No ejecución de medidas preventivas propuestas en la planificación derivada de la evaluación de riesgos. ",6,7203]
["7204 Falta de control del cumplimiento del Plan de seguridad y salud en Construcción.",6,7204]
["7205 Mantenimiento preventivo inexistente o inadecuado o falta de revisiones periódicas oficiales.",6,7205]
["7206 Formación/información inadecuada, inexistente sobre riesgos o medidas preventivas",6,7206]
["7207 Inexistencia o inadecuación de plan y/o medidas de emergencia.",6,7207]
["7208 No poner a disposición de los trabajadores las prendas o equipos de protección necesarios o ser estos inadecuados o mal mantenidos, o no supervisar su correcta utilización.",6,7208]
["7209 Falta de presencia de los recursos preventivos requeridos",6,7209]
["7210 Vigilancia de la salud inadecuada a los riesgos del puesto de trabajo",6,7210]
["7211 Ausencia/deficiencias de permisos y/o procedimientos de trabajo en intervenciones peligrosas (por ejemplo soldaduras en zonas de riesgo, trabajos en tensión, espacios confinados etc.)",6,7211]
["7212 Asignación de tarea a un trabajador con falta de cualificación o experiencia",6,7212]
["7299 Otras causas relativas a las actividades preventivas",6,7299]
["8101 Realización de tareas no asignadas",7,8101]
["8102 Incumplimiento de procedimientos e instrucciones de trabajo",7,8102]
["8103 Incumplimiento de normas de seguridad establecidas",7,8103]
["8104 Uso indebido de materiales, herramientas o útiles de trabajo, puestos a disposición por la empresa",7,8104]
["8105 Uso indebido o no utilización de medios auxiliares de trabajo o de seguridad puestos a disposición por la empresa y de uso obligatorio (empujadores, distanciadores, etc.)",7,8105]
["8106 No utilización de equipos de protección individual puestas a disposición por la empresa y de uso obligatorio.",7,8106]
["8107 Retirada o anulación de protecciones o dispositivos de seguridad",7,8107]
["8108 Permanencia del trabajador dentro de una zona peligrosa",7,8108]
["8109 Adopción de una postura inadecuada en el puesto de trabajo",7,8109]
["8199 Otras causas relativas a los factores de comportamiento",7,8199]
["8201 Incapacidad física o mental para la realización normal del trabajo.",7,8201]
["8202 Deficiente asimilación de órdenes recibidas.",7,8202]
["8203 Falta de cualificación y/o experiencia para la tarea realizada achacable al trabajador",7,8203]
["8299 Otras causas relativas a los factores intrinsecos, de salud o capacidades",7,8299]
["1999 Otras causas relativas a las condiciones de los espacios de trabajo",8,1999]
["3999 Otras causas relativas a las máquinas.",8,3999]
["4999 Otras causas relativas a otros equipos de trabajo",8,4999]
["5999 Otras causas relativas a materiales y agentes contaminantes",8,5999]
["6999 Otras causas relativas a la organización del trabajo",8,6999]
["7999 Otras causas relativas a la gestión de la prevención",8,7999]
["8999 Otras causas relativas a los factores personales-individuales",8,8999]
["9199 Otras causas ",8,9199]
["9299 Hechos no causales",8,9299]